Workbook

Sheet INTRO
B2: PC Joint Reporting Form v.3
B4: The purpose of this template Joint Reporting Form (JRF) - available as an Excel file - is to provide national health authorities and data managers with a standardized tool to address these reporting challenges, facilitate integration and thereby further contribute to improving overall programme management. This template aims to standardize national reporting of programme implementation outcomes, improve availability and coordination of preventive chemotherapy data across the World Health Organization regions. National authorities are requested to complete this form for submission to the World Health Organization any time before 15 August of the current year for reporting data on PC interventions implemented during the previous year.
B6: Structure of the application (worksheets):
B8: INTRO | C8: This worksheet includes guides on how to complete the joint reporting form and information about status of PC for endemic diseases in the country
B9: COUNTRY_INFO | C9: This worksheet includes information about administrative structure of the country, population by age group, status of endemicity for each disease, population requiring PC, planned interventions and interventions implemented
B10: MDA1, MDA2, MDA3, T1, T2 and T3 | C10: These worksheets include information about endemic districts targeted for treatment with specified PC medicines, treatment plan, and number of people who received treatment by age group
B11: DISTRICT | C11: This worksheet includes summary of people treated by disease at the level of implementation. If data by gender is available, it requires to enter.
B12: SUMMARY | C12: This worksheet includes summary of people treated by disease and by PC intervention. Before generating the report (run macros) please select the disease for which you need the report. Follow the same rule to generate various reports. This worksheet should be printed and submitted as a Joint Report (see the instruction for submission in the SUMMARY worksheet).
B14: Instruction for data entry
B16: Most of the cells in the above-mentioned worksheets include formula that are calculated automatically according to the treatment policy recommended by WHO for each disease. See the link http://www.who.int/neglected_diseases/preventive_chemotherapy/pct_manual/en/index.html
B18: Please enter your data into the cells according to their colour code:
C20: White - cell is not protected. Please enter the value of the requested indicator.
C22: Yellow - cell is protected and includes name of indicator. No data entry required.
C24: Orange - cell is not protected and includes a drop-down menu. Please select the value from the drop-down list.
C27: Green - cell is not protected and includes formula. Please change the value only if your data are different from those that are calculated automatically.
C30: Blue - cell is protected and includes formula. No data entry required.
B32: Country data
B34: COUNTRY | E34: Uganda
B36: Year of reporting data | E36: 2017
B38: Is country endemic for lymphatic filariasis (LF)? | E38: Endemic
B40: Is country endemic for onchocerciasis (ONCHO)? | E40: Endemic
B42: Is country endemic for soil-transmitted helminthiases (STH)? | E42: Endemic
B44: Is country endemic for schistosomiasis (SCH)? | E44: Endemic
B46: How many administrative units in the country? | E46: 116
B47: If demographical data at the second administrative level are not available by age group, please enter the proportion (%) of population by age group in the country. If data are available, please leave these cells blank.
B48: 1-4 years age | C48: Preschool-age children (PreSAC) | E48: 0.142
B49: 5-14 years age | C49: School-age children (SAC) | E49: 0.302
B50: 15 years + | C50: Adults | E50: 0.521

Sheet COUNTRY_INFO
A1: COUNTRY INFORMATION
A2: Administrative structure, population by age group, endemicity status, planned interventions and interventions implemented
A4: TOTAL | D4: =SUM(D$9:D$1000) -> 37858243 | E4: =SUM(E$9:E$1000) -> 5375868 | F4: =SUM(F$9:F$1000) -> 11433191 | G4: =SUM(G$9:G$1000) -> 19724142 | L4: =SUM(L$9:L$1000) -> 2990412 | M4: =SUM(M$9:M$1000) -> 2669822 | N4: =SUM(N$9:N$1000) -> 16809059 | O4: =SUM(O$9:O$1000) -> 7459152
A6: Country administrative structure | D6: Population | H6: Endemicity | L6: Population requiring PC | P6: Number of treatment rounds planned for the year | T6: PC implemented | V6: Click to see the recommended strategy
A7: Country | B7: Province/State | C7: District | D7: Total | E7: PreSAC | F7: SAC | G7: Adults | H7: LF | I7: Oncho | J7: STH | K7: SCH | L7: LF | M7: Oncho | N7: STH | O7: SCH | P7: LF | Q7: Oncho | R7: STH | S7: SCH | T7: ROUND 1 | U7: ROUND2 | X7: IU_ID | Y7: IU_NAME
A9: =IF(INTRO!$E$34<>0,INTRO!$E$34,"") -> Uganda | B9: Central | C9: Buikwe | D9: 462377 | E9: =IF(INTRO!$E$48="","",ROUND($D9*INTRO!$E$48,0)) -> 65658 | F9: =IF(INTRO!$E$49="","",ROUND($D9*INTRO!$E$49,0)) -> 139638 | G9: =IF(INTRO!$E$50="","",ROUND($D9*INTRO!$E$50,0)) -> 240898 | H9: 0 | I9: 0 | J9: 3 | K9: 2 | L9: =IF(INTRO!$E$38="Endemic", IF($H9>0, IF($H9=4,"Unknown", IF($H9=99,"Stopped", $D9)), 0),"Not required") -> 0 | M9: =IF(INTRO!$E$40="Endemic", IF($I9>0, IF($I9=4,"Unknown",IF($I9=99,"Stopped", $D9)), 0),"Not required") -> 0 | N9: =IF(INTRO!$E$42="Endemic", IF(AND($J9>1,$J9<5), IF($J9=4, "Unknown", E9+F9), 0),"Not required") -> 205296 | O9: 140805 | P9: 0 | Q9: 0 | R9: 2 | S9: 1 | T9: T3 (ALB/MBD) | U9: T2 (PZQ) | X9: 49725 | Y9: BUIKWE | AA9: =Y9=C9 -> TRUE
A10: =IF(INTRO!$E$34<>0,INTRO!$E$34,"") -> Uganda | B10: Central | C10: Bukomansimbi | D10: 165598 | E10: =IF(INTRO!$E$48="","",ROUND($D10*INTRO!$E$48,0)) -> 23515 | F10: =IF(INTRO!$E$49="","",ROUND($D10*INTRO!$E$49,0)) -> 50011 | G10: =IF(INTRO!$E$50="","",ROUND($D10*INTRO!$E$50,0)) -> 86277 | H10: 0 | I10: 0 | J10: 3 | K10: 0 | L10: =IF(INTRO!$E$38="Endemic", IF($H10>0, IF($H10=4,"Unknown", IF($H10=99,"Stopped", $D10)), 0),"Not required") -> 0 | M10: 0 | N10: =IF(INTRO!$E$42="Endemic", IF(AND($J10>1,$J10<5), IF($J10=4, "Unknown", E10+F10), 0),"Not required") -> 73526 | O10: 0 | P10: 0 | Q10: 0 | R10: 2 | S10: 0 | T10: T3 (ALB/MBD) | U10: T3 (ALB/MBD) | X10: 49726 | Y10: BUKOMANSIMBI | AA10: =Y10=C10 -> TRUE
A11: =IF(INTRO!$E$34<>0,INTRO!$E$34,"") -> Uganda | B11: Central | C11: Butambala | D11: 110286 | E11: =IF(INTRO!$E$48="","",ROUND($D11*INTRO!$E$48,0)) -> 15661 | F11: =IF(INTRO!$E$49="","",ROUND($D11*INTRO!$E$49,0)) -> 33306 | G11: =IF(INTRO!$E$50="","",ROUND($D11*INTRO!$E$50,0)) -> 57459 | H11: 0 | I11: 0 | J11: 3 | K11: 0 | L11: =IF(INTRO!$E$38="Endemic", IF($H11>0, IF($H11=4,"Unknown", IF($H11=99,"Stopped", $D11)), 0),"Not required") -> 0 | M11: 0 | N11: =IF(INTRO!$E$42="Endemic", IF(AND($J11>1,$J11<5), IF($J11=4, "Unknown", E11+F11), 0),"Not required") -> 48967 | O11: 0 | P11: 0 | Q11: 0 | R11: 2 | S11: 0 | T11: T3 (ALB/MBD) | U11: T3 (ALB/MBD) | X11: 49730 | Y11: BUTAMBALA | AA11: TRUE
A12: =IF(INTRO!$E$34<>0,INTRO!$E$34,"") -> Uganda | B12: Central | C12: Buvuma | D12: 102464 | E12: =IF(INTRO!$E$48="","",ROUND($D12*INTRO!$E$48,0)) -> 14550 | F12: =IF(INTRO!$E$49="","",ROUND($D12*INTRO!$E$49,0)) -> 30944 | G12: =IF(INTRO!$E$50="","",ROUND($D12*INTRO!$E$50,0)) -> 53384 | H12: 0 | I12: 0 | J12: 3 | K12: 3 | L12: =IF(INTRO!$E$38="Endemic", IF($H12>0, IF($H12=4,"Unknown", IF($H12=99,"Stopped", $D12)), 0),"Not required") -> 0 | M12: 0 | N12: =IF(INTRO!$E$42="Endemic", IF(AND($J12>1,$J12<5), IF($J12=4, "Unknown", E12+F12), 0),"Not required") -> 45494 | O12: 85356 | P12: 0 | Q12: 0 | R12: 2 | S12: 1 | T12: T3 (ALB/MBD) | U12: T2 (PZQ) | X12: 49731 | Y12: BUVUMA | AA12: TRUE
A13: =IF(INTRO!$E$34<>0,INTRO!$E$34,"") -> Uganda | B13: Central | C13: Gomba | D13: 174904 | E13: =IF(INTRO!$E$48="","",ROUND($D13*INTRO!$E$48,0)) -> 24836 | F13: =IF(INTRO!$E$49="","",ROUND($D13*INTRO!$E$49,0)) -> 52821 | G13: =IF(INTRO!$E$50="","",ROUND($D13*INTRO!$E$50,0)) -> 91125 | H13: 0 | I13: 0 | J13: 3 | K13: 3 | L13: =IF(INTRO!$E$38="Endemic", IF($H13>0, IF($H13=4,"Unknown", IF($H13=99,"Stopped", $D13)), 0),"Not required") -> 0 | M13: 0 | N13: =IF(INTRO!$E$42="Endemic", IF(AND($J13>1,$J13<5), IF($J13=4, "Unknown", E13+F13), 0),"Not required") -> 77657 | O13: 22324 | P13: 0 | Q13: 0 | R13: 2 | S13: 1 | T13: T3 (ALB/MBD) | U13: T2 (PZQ) | X13: 49735 | Y13: GOMBA | AA13: TRUE
A14: =IF(INTRO!$E$34<>0,INTRO!$E$34,"") -> Uganda | B14: Central | C14: Kalangala | D14: 59379 | E14: =IF(INTRO!$E$48="","",ROUND($D14*INTRO!$E$48,0)) -> 8432 | F14: =IF(INTRO!$E$49="","",ROUND($D14*INTRO!$E$49,0)) -> 17932 | G14: =IF(INTRO!$E$50="","",ROUND($D14*INTRO!$E$50,0)) -> 30936 | H14: 0 | I14: 0 | J14: 3 | K14: 3 | L14: =IF(INTRO!$E$38="Endemic", IF($H14>0, IF($H14=4,"Unknown", IF($H14=99,"Stopped", $D14)), 0),"Not required") -> 0 | M14: 0 | N14: =IF(INTRO!$E$42="Endemic", IF(AND($J14>1,$J14<5), IF($J14=4, "Unknown", E14+F14), 0),"Not required") -> 26364 | O14: 44622 | P14: 0 | Q14: 0 | R14: 2 | S14: 1 | T14: T3 (ALB/MBD) | U14: T2 (PZQ) | X14: 49745 | Y14: KALANGALA | AA14: TRUE
A15: =IF(INTRO!$E$34<>0,INTRO!$E$34,"") -> Uganda | B15: Central | C15: Kalungu | D15: 200397 | E15: =IF(INTRO!$E$48="","",ROUND($D15*INTRO!$E$48,0)) -> 28456 | F15: =IF(INTRO!$E$49="","",ROUND($D15*INTRO!$E$49,0)) -> 60520 | G15: =IF(INTRO!$E$50="","",ROUND($D15*INTRO!$E$50,0)) -> 104407 | H15: 0 | I15: 0 | J15: 3 | K15: 1 | L15: =IF(INTRO!$E$38="Endemic", IF($H15>0, IF($H15=4,"Unknown", IF($H15=99,"Stopped", $D15)), 0),"Not required") -> 0 | M15: 0 | N15: =IF(INTRO!$E$42="Endemic", IF(AND($J15>1,$J15<5), IF($J15=4, "Unknown", E15+F15), 0),"Not required") -> 88976 | O15: 20777 | P15: 0 | Q15: 0 | R15: 2 | S15: 1 | T15: T3 (ALB/MBD) | U15: T2 (PZQ) | X15: 49758 | Y15: KALUNGU | AA15: TRUE
A16: =IF(INTRO!$E$34<>0,INTRO!$E$34,"") -> Uganda | B16: Central | C16: Kampala | D16: 1648267 | E16: =IF(INTRO!$E$48="","",ROUND($D16*INTRO!$E$48,0)) -> 234054 | F16: =IF(INTRO!$E$49="","",ROUND($D16*INTRO!$E$49,0)) -> 497777 | G16: =IF(INTRO!$E$50="","",ROUND($D16*INTRO!$E$50,0)) -> 858747 | H16: 0 | I16: 0 | J16: 3 | K16: 0 | L16: =IF(INTRO!$E$38="Endemic", IF($H16>0, IF($H16=4,"Unknown", IF($H16=99,"Stopped", $D16)), 0),"Not required") -> 0 | M16: 0 | N16: =IF(INTRO!$E$42="Endemic", IF(AND($J16>1,$J16<5), IF($J16=4, "Unknown", E16+F16), 0),"Not required") -> 731831 | O16: 0 | P16: 0 | Q16: 0 | R16: 2 | S16: 0 | T16: T3 (ALB/MBD) | U16: T3 (ALB/MBD) | X16: 49759 | Y16: KAMPALA | AA16: TRUE
A17: =IF(INTRO!$E$34<>0,INTRO!$E$34,"") -> Uganda | B17: Central | C17: Kayunga | D17: 402542 | E17: =IF(INTRO!$E$48="","",ROUND($D17*INTRO!$E$48,0)) -> 57161 | F17: =IF(INTRO!$E$49="","",ROUND($D17*INTRO!$E$49,0)) -> 121568 | G17: =IF(INTRO!$E$50="","",ROUND($D17*INTRO!$E$50,0)) -> 209724 | H17: 0 | I17: 0 | J17: 3 | K17: 3 | L17: =IF(INTRO!$E$38="Endemic", IF($H17>0, IF($H17=4,"Unknown", IF($H17=99,"Stopped", $D17)), 0),"Not required") -> 0 | M17: 0 | N17: =IF(INTRO!$E$42="Endemic", IF(AND($J17>1,$J17<5), IF($J17=4, "Unknown", E17+F17), 0),"Not required") -> 178729 | O17: 105580 | P17: 0 | Q17: 0 | R17: 2 | S17: 1 | T17: T3 (ALB/MBD) | U17: T2 (PZQ) | X17: 49761 | Y17: KAYUNGA | AA17: TRUE
A18: =IF(INTRO!$E$34<>0,INTRO!$E$34,"") -> Uganda | B18: Central | C18: Kiboga | D18: 162103 | E18: =IF(INTRO!$E$48="","",ROUND($D18*INTRO!$E$48,0)) -> 23019 | F18: =IF(INTRO!$E$49="","",ROUND($D18*INTRO!$E$49,0)) -> 48955 | G18: =IF(INTRO!$E$50="","",ROUND($D18*INTRO!$E$50,0)) -> 84456 | H18: 0 | I18: 0 | J18: 3 | K18: 0 | L18: =IF(INTRO!$E$38="Endemic", IF($H18>0, IF($H18=4,"Unknown", IF($H18=99,"Stopped", $D18)), 0),"Not required") -> 0 | M18: 0 | N18: =IF(INTRO!$E$42="Endemic", IF(AND($J18>1,$J18<5), IF($J18=4, "Unknown", E18+F18), 0),"Not required") -> 71974 | O18: 0 | P18: 0 | Q18: 0 | R18: 2 | S18: 0 | T18: T3 (ALB/MBD) | U18: T3 (ALB/MBD) | X18: 49762 | Y18: KIBOGA | AA18: TRUE
A19: =IF(INTRO!$E$34<>0,INTRO!$E$34,"") -> Uganda | B19: Central | C19: Kyankwanzi | D19: 234805 | E19: =IF(INTRO!$E$48="","",ROUND($D19*INTRO!$E$48,0)) -> 33342 | F19: =IF(INTRO!$E$49="","",ROUND($D19*INTRO!$E$49,0)) -> 70911 | G19: =IF(INTRO!$E$50="","",ROUND($D19*INTRO!$E$50,0)) -> 122333 | H19: 0 | I19: 0 | J19: 3 | K19: 0 | L19: =IF(INTRO!$E$38="Endemic", IF($H19>0, IF($H19=4,"Unknown", IF($H19=99,"Stopped", $D19)), 0),"Not required") -> 0 | M19: 0 | N19: =IF(INTRO!$E$42="Endemic", IF(AND($J19>1,$J19<5), IF($J19=4, "Unknown", E19+F19), 0),"Not required") -> 104253 | O19: 0 | P19: 0 | Q19: 0 | R19: 2 | S19: 0 | T19: T3 (ALB/MBD) | U19: T3 (ALB/MBD) | X19: 49769 | Y19: KYANKWANZI | AA19: TRUE
A20: =IF(INTRO!$E$34<>0,INTRO!$E$34,"") -> Uganda | B20: Central | C20: Luwero | D20: 499767 | E20: =IF(INTRO!$E$48="","",ROUND($D20*INTRO!$E$48,0)) -> 70967 | F20: =IF(INTRO!$E$49="","",ROUND($D20*INTRO!$E$49,0)) -> 150930 | G20: =IF(INTRO!$E$50="","",ROUND($D20*INTRO!$E$50,0)) -> 260379 | H20: 0 | I20: 0 | J20: 3 | K20: 0 | L20: =IF(INTRO!$E$38="Endemic", IF($H20>0, IF($H20=4,"Unknown", IF($H20=99,"Stopped", $D20)), 0),"Not required") -> 0 | M20: 0 | N20: =IF(INTRO!$E$42="Endemic", IF(AND($J20>1,$J20<5), IF($J20=4, "Unknown", E20+F20), 0),"Not required") -> 221897 | O20: 0 | P20: 0 | Q20: 0 | R20: 2 | S20: 0 | T20: T3 (ALB/MBD) | U20: T3 (ALB/MBD) | X20: 49774 | Y20: LUWERO | AA20: TRUE
A21: =IF(INTRO!$E$34<>0,INTRO!$E$34,"") -> Uganda | B21: Central | C21: Lwengo | D21: 300712 | E21: =IF(INTRO!$E$48="","",ROUND($D21*INTRO!$E$48,0)) -> 42701 | F21: =IF(INTRO!$E$49="","",ROUND($D21*INTRO!$E$49,0)) -> 90815 | G21: =IF(INTRO!$E$50="","",ROUND($D21*INTRO!$E$50,0)) -> 156671 | H21: 0 | I21: 0 | J21: 3 | K21: 0 | L21: =IF(INTRO!$E$38="Endemic", IF($H21>0, IF($H21=4,"Unknown", IF($H21=99,"Stopped", $D21)), 0),"Not required") -> 0 | M21: 0 | N21: =IF(INTRO!$E$42="Endemic", IF(AND($J21>1,$J21<5), IF($J21=4, "Unknown", E21+F21), 0),"Not required") -> 133516 | O21: 0 | P21: 0 | Q21: 0 | R21: 2 | S21: 0 | T21: T3 (ALB/MBD) | U21: T3 (ALB/MBD) | X21: 49775 | Y21: LWENGO | AA21: TRUE
A22: =IF(INTRO!$E$34<>0,INTRO!$E$34,"") -> Uganda | B22: Central | C22: Lyantonde | D22: 102536 | E22: =IF(INTRO!$E$48="","",ROUND($D22*INTRO!$E$48,0)) -> 14560 | F22: =IF(INTRO!$E$49="","",ROUND($D22*INTRO!$E$49,0)) -> 30966 | G22: =IF(INTRO!$E$50="","",ROUND($D22*INTRO!$E$50,0)) -> 53421 | H22: 0 | I22: 0 | J22: 3 | K22: 0 | L22: =IF(INTRO!$E$38="Endemic", IF($H22>0, IF($H22=4,"Unknown", IF($H22=99,"Stopped", $D22)), 0),"Not required") -> 0 | M22: 0 | N22: =IF(INTRO!$E$42="Endemic", IF(AND($J22>1,$J22<5), IF($J22=4, "Unknown", E22+F22), 0),"Not required") -> 45526 | O22: 0 | P22: 0 | Q22: 0 | R22: 2 | S22: 0 | T22: T3 (ALB/MBD) | U22: T3 (ALB/MBD) | X22: 49776 | Y22: LYANTONDE | AA22: TRUE
A23: =IF(INTRO!$E$34<>0,INTRO!$E$34,"") -> Uganda | B23: Central | C23: Masaka | D23: 324828 | E23: =IF(INTRO!$E$48="","",ROUND($D23*INTRO!$E$48,0)) -> 46126 | F23: =IF(INTRO!$E$49="","",ROUND($D23*INTRO!$E$49,0)) -> 98098 | G23: =IF(INTRO!$E$50="","",ROUND($D23*INTRO!$E$50,0)) -> 169235 | H23: 0 | I23: 0 | J23: 3 | K23: 3 | L23: =IF(INTRO!$E$38="Endemic", IF($H23>0, IF($H23=4,"Unknown", IF($H23=99,"Stopped", $D23)), 0),"Not required") -> 0 | M23: 0 | N23: =IF(INTRO!$E$42="Endemic", IF(AND($J23>1,$J23<5), IF($J23=4, "Unknown", E23+F23), 0),"Not required") -> 144224 | O23: 44264 | P23: 0 | Q23: 0 | R23: 2 | S23: 1 | T23: T3 (ALB/MBD) | U23: T2 (PZQ) | X23: 49785 | Y23: MASAKA | AA23: TRUE
A24: =IF(INTRO!$E$34<>0,INTRO!$E$34,"") -> Uganda | B24: Central | C24: Mityana | D24: 359783 | E24: =IF(INTRO!$E$48="","",ROUND($D24*INTRO!$E$48,0)) -> 51089 | F24: =IF(INTRO!$E$49="","",ROUND($D24*INTRO!$E$49,0)) -> 108654 | G24: =IF(INTRO!$E$50="","",ROUND($D24*INTRO!$E$50,0)) -> 187447 | H24: 0 | I24: 0 | J24: 3 | K24: 3 | L24: =IF(INTRO!$E$38="Endemic", IF($H24>0, IF($H24=4,"Unknown", IF($H24=99,"Stopped", $D24)), 0),"Not required") -> 0 | M24: 0 | N24: =IF(INTRO!$E$42="Endemic", IF(AND($J24>1,$J24<5), IF($J24=4, "Unknown", E24+F24), 0),"Not required") -> 159743 | O24: 27404 | P24: 0 | Q24: 0 | R24: 2 | S24: 1 | T24: T3 (ALB/MBD) | U24: T2 (PZQ) | X24: 49788 | Y24: MITYANA | AA24: TRUE
A25: =IF(INTRO!$E$34<>0,INTRO!$E$34,"") -> Uganda | B25: Central | C25: Mpigi | D25: 274021 | E25: =IF(INTRO!$E$48="","",ROUND($D25*INTRO!$E$48,0)) -> 38911 | F25: =IF(INTRO!$E$49="","",ROUND($D25*INTRO!$E$49,0)) -> 82754 | G25: =IF(INTRO!$E$50="","",ROUND($D25*INTRO!$E$50,0)) -> 142765 | H25: 0 | I25: 0 | J25: 3 | K25: 2 | L25: =IF(INTRO!$E$38="Endemic", IF($H25>0, IF($H25=4,"Unknown", IF($H25=99,"Stopped", $D25)), 0),"Not required") -> 0 | M25: 0 | N25: =IF(INTRO!$E$42="Endemic", IF(AND($J25>1,$J25<5), IF($J25=4, "Unknown", E25+F25), 0),"Not required") -> 121665 | O25: 102457 | P25: 0 | Q25: 0 | R25: 2 | S25: 1 | T25: T3 (ALB/MBD) | U25: T2 (PZQ) | X25: 49789 | Y25: MPIGI | AA25: TRUE
A26: =IF(INTRO!$E$34<>0,INTRO!$E$34,"") -> Uganda | B26: Central | C26: Mubende | D26: 748447 | E26: =IF(INTRO!$E$48="","",ROUND($D26*INTRO!$E$48,0)) -> 106279 | F26: =IF(INTRO!$E$49="","",ROUND($D26*INTRO!$E$49,0)) -> 226031 | G26: =IF(INTRO!$E$50="","",ROUND($D26*INTRO!$E$50,0)) -> 389941 | H26: 0 | I26: 0 | J26: 3 | K26: 1 | L26: =IF(INTRO!$E$38="Endemic", IF($H26>0, IF($H26=4,"Unknown", IF($H26=99,"Stopped", $D26)), 0),"Not required") -> 0 | M26: 0 | N26: =IF(INTRO!$E$42="Endemic", IF(AND($J26>1,$J26<5), IF($J26=4, "Unknown", E26+F26), 0),"Not required") -> 332310 | O26: 51692 | P26: 0 | Q26: 0 | R26: 2 | S26: 1 | T26: T3 (ALB/MBD) | U26: T2 (PZQ) | X26: 49790 | Y26: MUBENDE | AA26: TRUE
A27: =IF(INTRO!$E$34<>0,INTRO!$E$34,"") -> Uganda | B27: Central | C27: Mukono | D27: 652714 | E27: =IF(INTRO!$E$48="","",ROUND($D27*INTRO!$E$48,0)) -> 92685 | F27: =IF(INTRO!$E$49="","",ROUND($D27*INTRO!$E$49,0)) -> 197120 | G27: =IF(INTRO!$E$50="","",ROUND($D27*INTRO!$E$50,0)) -> 340064 | H27: 0 | I27: 0 | J27: 3 | K27: 3 | L27: =IF(INTRO!$E$38="Endemic", IF($H27>0, IF($H27=4,"Unknown", IF($H27=99,"Stopped", $D27)), 0),"Not required") -> 0 | M27: 0 | N27: =IF(INTRO!$E$42="Endemic", IF(AND($J27>1,$J27<5), IF($J27=4, "Unknown", E27+F27), 0),"Not required") -> 289805 | O27: 62119 | P27: 0 | Q27: 0 | R27: 2 | S27: 1 | T27: T3 (ALB/MBD) | U27: T2 (PZQ) | X27: 49783 | Y27: MUKONO | AA27: TRUE
A28: =IF(INTRO!$E$34<>0,INTRO!$E$34,"") -> Uganda | B28: Central | C28: Nakaseke | D28: 215858 | E28: =IF(INTRO!$E$48="","",ROUND($D28*INTRO!$E$48,0)) -> 30652 | F28: =IF(INTRO!$E$49="","",ROUND($D28*INTRO!$E$49,0)) -> 65189 | G28: =IF(INTRO!$E$50="","",ROUND($D28*INTRO!$E$50,0)) -> 112462 | H28: 0 | I28: 0 | J28: 3 | K28: 0 | L28: =IF(INTRO!$E$38="Endemic", IF($H28>0, IF($H28=4,"Unknown", IF($H28=99,"Stopped", $D28)), 0),"Not required") -> 0 | M28: 0 | N28: =IF(INTRO!$E$42="Endemic", IF(AND($J28>1,$J28<5), IF($J28=4, "Unknown", E28+F28), 0),"Not required") -> 95841 | O28: 0 | P28: 0 | Q28: 0 | R28: 2 | S28: 0 | T28: T3 (ALB/MBD) | U28: T3 (ALB/MBD) | X28: 49795 | Y28: NAKASEKE | AA28: TRUE
A29: =IF(INTRO!$E$34<>0,INTRO!$E$34,"") -> Uganda | B29: Central | C29: Nakasongola | D29: 198830 | E29: =IF(INTRO!$E$48="","",ROUND($D29*INTRO!$E$48,0)) -> 28234 | F29: =IF(INTRO!$E$49="","",ROUND($D29*INTRO!$E$49,0)) -> 60047 | G29: =IF(INTRO!$E$50="","",ROUND($D29*INTRO!$E$50,0)) -> 103590 | H29: 0 | I29: 0 | J29: 3 | K29: 1 | L29: =IF(INTRO!$E$38="Endemic", IF($H29>0, IF($H29=4,"Unknown", IF($H29=99,"Stopped", $D29)), 0),"Not required") -> 0 | M29: 0 | N29: =IF(INTRO!$E$42="Endemic", IF(AND($J29>1,$J29<5), IF($J29=4, "Unknown", E29+F29), 0),"Not required") -> 88281 | O29: 39420 | P29: 0 | Q29: 0 | R29: 2 | S29: 1 | T29: T3 (ALB/MBD) | U29: T2 (PZQ) | X29: 49791 | Y29: NAKASONGOLA | AA29: TRUE
A30: =IF(INTRO!$E$34<>0,INTRO!$E$34,"") -> Uganda | B30: Central | C30: Rakai | D30: 564678 | E30: =IF(INTRO!$E$48="","",ROUND($D30*INTRO!$E$48,0)) -> 80184 | F30: =IF(INTRO!$E$49="","",ROUND($D30*INTRO!$E$49,0)) -> 170533 | G30: =IF(INTRO!$E$50="","",ROUND($D30*INTRO!$E$50,0)) -> 294197 | H30: 0 | I30: 0 | J30: 3 | K30: 1 | L30: =IF(INTRO!$E$38="Endemic", IF($H30>0, IF($H30=4,"Unknown", IF($H30=99,"Stopped", $D30)), 0),"Not required") -> 0 | M30: 0 | N30: =IF(INTRO!$E$42="Endemic", IF(AND($J30>1,$J30<5), IF($J30=4, "Unknown", E30+F30), 0),"Not required") -> 250717 | O30: 41540 | P30: 0 | Q30: 0 | R30: 2 | S30: 1 | T30: T3 (ALB/MBD) | U30: T2 (PZQ) | X30: 49807 | Y30: RAKAI | AA30: TRUE
A31: =IF(INTRO!$E$34<>0,INTRO!$E$34,"") -> Uganda | B31: Central | C31: Sembabule | D31: 276262 | E31: =IF(INTRO!$E$48="","",ROUND($D31*INTRO!$E$48,0)) -> 39229 | F31: =IF(INTRO!$E$49="","",ROUND($D31*INTRO!$E$49,0)) -> 83431 | G31: =IF(INTRO!$E$50="","",ROUND($D31*INTRO!$E$50,0)) -> 143933 | H31: 0 | I31: 0 | J31: 3 | K31: 0 | L31: =IF(INTRO!$E$38="Endemic", IF($H31>0, IF($H31=4,"Unknown", IF($H31=99,"Stopped", $D31)), 0),"Not required") -> 0 | M31: 0 | N31: =IF(INTRO!$E$42="Endemic", IF(AND($J31>1,$J31<5), IF($J31=4, "Unknown", E31+F31), 0),"Not required") -> 122660 | O31: 0 | P31: 0 | Q31: 0 | R31: 2 | S31: 0 | T31: T3 (ALB/MBD) | U31: T3 (ALB/MBD) | X31: 49811 | Y31: SEMBABULE | AA31: TRUE
A32: =IF(INTRO!$E$34<>0,INTRO!$E$34,"") -> Uganda | B32: Central | C32: Wakiso | D32: 2184541 | E32: =IF(INTRO!$E$48="","",ROUND($D32*INTRO!$E$48,0)) -> 310205 | F32: =IF(INTRO!$E$49="","",ROUND($D32*INTRO!$E$49,0)) -> 659731 | G32: =IF(INTRO!$E$50="","",ROUND($D32*INTRO!$E$50,0)) -> 1138146 | H32: 0 | I32: 0 | J32: 3 | K32: 2 | L32: =IF(INTRO!$E$38="Endemic", IF($H32>0, IF($H32=4,"Unknown", IF($H32=99,"Stopped", $D32)), 0),"Not required") -> 0 | M32: 0 | N32: =IF(INTRO!$E$42="Endemic", IF(AND($J32>1,$J32<5), IF($J32=4, "Unknown", E32+F32), 0),"Not required") -> 969936 | O32: 164285 | P32: 0 | Q32: 0 | R32: 2 | S32: 1 | T32: T3 (ALB/MBD) | U32: T2 (PZQ) | X32: 49815 | Y32: WAKISO | AA32: TRUE
A33: =IF(INTRO!$E$34<>0,INTRO!$E$34,"") -> Uganda | B33: Eastern | C33: Amuria | D33: 296309 | E33: =IF(INTRO!$E$48="","",ROUND($D33*INTRO!$E$48,0)) -> 42076 | F33: =IF(INTRO!$E$49="","",ROUND($D33*INTRO!$E$49,0)) -> 89485 | G33: =IF(INTRO!$E$50="","",ROUND($D33*INTRO!$E$50,0)) -> 154377 | H33: 99 | I33: 0 | J33: 3 | K33: 0 | L33: =IF(INTRO!$E$38="Endemic", IF($H33>0, IF($H33=4,"Unknown", IF($H33=99,"Stopped", $D33)), 0),"Not required") -> Stopped | M33: 0 | N33: =IF(INTRO!$E$42="Endemic", IF(AND($J33>1,$J33<5), IF($J33=4, "Unknown", E33+F33), 0),"Not required") -> 131561 | O33: 0 | P33: 0 | Q33: 0 | R33: 2 | S33: 0 | T33: T3 (ALB/MBD) | U33: T3 (ALB/MBD) | X33: 49709 | Y33: AMURIA | AA33: TRUE
A34: =IF(INTRO!$E$34<>0,INTRO!$E$34,"") -> Uganda | B34: Eastern | C34: Budaka | D34: 227045 | E34: =IF(INTRO!$E$48="","",ROUND($D34*INTRO!$E$48,0)) -> 32240 | F34: =IF(INTRO!$E$49="","",ROUND($D34*INTRO!$E$49,0)) -> 68568 | G34: =IF(INTRO!$E$50="","",ROUND($D34*INTRO!$E$50,0)) -> 118290 | H34: 99 | I34: 0 | J34: 3 | K34: 1 | L34: =IF(INTRO!$E$38="Endemic", IF($H34>0, IF($H34=4,"Unknown", IF($H34=99,"Stopped", $D34)), 0),"Not required") -> Stopped | M34: 0 | N34: =IF(INTRO!$E$42="Endemic", IF(AND($J34>1,$J34<5), IF($J34=4, "Unknown", E34+F34), 0),"Not required") -> 100808 | O34: 30377 | P34: 0 | Q34: 0 | R34: 2 | S34: 1 | T34: T3 (ALB/MBD) | U34: T2 (PZQ) | X34: 49716 | Y34: BUDAKA | AA34: TRUE
A35: =IF(INTRO!$E$34<>0,INTRO!$E$34,"") -> Uganda | B35: Eastern | C35: Bududa | D35: 229862 | E35: =IF(INTRO!$E$48="","",ROUND($D35*INTRO!$E$48,0)) -> 32640 | F35: =IF(INTRO!$E$49="","",ROUND($D35*INTRO!$E$49,0)) -> 69418 | G35: =IF(INTRO!$E$50="","",ROUND($D35*INTRO!$E$50,0)) -> 119758 | H35: 0 | I35: 99 | J35: 3 | K35: 0 | L35: =IF(INTRO!$E$38="Endemic", IF($H35>0, IF($H35=4,"Unknown", IF($H35=99,"Stopped", $D35)), 0),"Not required") -> 0 | M35: Stopped | N35: =IF(INTRO!$E$42="Endemic", IF(AND($J35>1,$J35<5), IF($J35=4, "Unknown", E35+F35), 0),"Not required") -> 102058 | O35: 0 | P35: 0 | Q35: 0 | R35: 2 | S35: 0 | T35: T3 (ALB/MBD) | U35: T3 (ALB/MBD) | X35: 49717 | Y35: BUDUDA | AA35: TRUE
A36: =IF(INTRO!$E$34<>0,INTRO!$E$34,"") -> Uganda | B36: Eastern | C36: Bugiri | D36: 406133 | E36: =IF(INTRO!$E$48="","",ROUND($D36*INTRO!$E$48,0)) -> 57671 | F36: =IF(INTRO!$E$49="","",ROUND($D36*INTRO!$E$49,0)) -> 122652 | G36: =IF(INTRO!$E$50="","",ROUND($D36*INTRO!$E$50,0)) -> 211595 | H36: 1 | I36: 0 | J36: 3 | K36: 2 | L36: =IF(INTRO!$E$38="Endemic", IF($H36>0, IF($H36=4,"Unknown", IF($H36=99,"Stopped", $D36)), 0),"Not required") -> 406133 | M36: 0 | N36: =IF(INTRO!$E$42="Endemic", IF(AND($J36>1,$J36<5), IF($J36=4, "Unknown", E36+F36), 0),"Not required") -> 180323 | O36: 69756 | P36: 1 | Q36: 0 | R36: 2 | S36: 1 | T36: MDA1 (IVM+ALB) | U36: T2 (PZQ) | X36: 49718 | Y36: BUGIRI | AA36: TRUE
A37: =IF(INTRO!$E$34<>0,INTRO!$E$34,"") -> Uganda | B37: Eastern | C37: Bukedea | D37: 222674 | E37: =IF(INTRO!$E$48="","",ROUND($D37*INTRO!$E$48,0)) -> 31620 | F37: =IF(INTRO!$E$49="","",ROUND($D37*INTRO!$E$49,0)) -> 67248 | G37: =IF(INTRO!$E$50="","",ROUND($D37*INTRO!$E$50,0)) -> 116013 | H37: 99 | I37: 0 | J37: 3 | K37: 1 | L37: =IF(INTRO!$E$38="Endemic", IF($H37>0, IF($H37=4,"Unknown", IF($H37=99,"Stopped", $D37)), 0),"Not required") -> Stopped | M37: 0 | N37: =IF(INTRO!$E$42="Endemic", IF(AND($J37>1,$J37<5), IF($J37=4, "Unknown", E37+F37), 0),"Not required") -> 98868 | O37: 65544 | P37: 0 | Q37: 0 | R37: 2 | S37: 1 | T37: T3 (ALB/MBD) | U37: T2 (PZQ) | X37: 49719 | Y37: BUKEDEA | AA37: TRUE
A38: =IF(INTRO!$E$34<>0,INTRO!$E$34,"") -> Uganda | B38: Eastern | C38: Bukwo | D38: 97727 | E38: =IF(INTRO!$E$48="","",ROUND($D38*INTRO!$E$48,0)) -> 13877 | F38: =IF(INTRO!$E$49="","",ROUND($D38*INTRO!$E$49,0)) -> 29514 | G38: =IF(INTRO!$E$50="","",ROUND($D38*INTRO!$E$50,0)) -> 50916 | H38: 0 | I38: 0 | J38: 3 | K38: 0 | L38: =IF(INTRO!$E$38="Endemic", IF($H38>0, IF($H38=4,"Unknown", IF($H38=99,"Stopped", $D38)), 0),"Not required") -> 0 | M38: 0 | N38: =IF(INTRO!$E$42="Endemic", IF(AND($J38>1,$J38<5), IF($J38=4, "Unknown", E38+F38), 0),"Not required") -> 43391 | O38: 0 | P38: 0 | Q38: 0 | R38: 2 | S38: 0 | T38: T3 (ALB/MBD) | U38: T3 (ALB/MBD) | X38: 49727 | Y38: BUKWO | AA38: TRUE
A39: =IF(INTRO!$E$34<>0,INTRO!$E$34,"") -> Uganda | B39: Eastern | C39: Bulambuli | D39: 190857 | E39: =IF(INTRO!$E$48="","",ROUND($D39*INTRO!$E$48,0)) -> 27102 | F39: =IF(INTRO!$E$49="","",ROUND($D39*INTRO!$E$49,0)) -> 57639 | G39: =IF(INTRO!$E$50="","",ROUND($D39*INTRO!$E$50,0)) -> 99436 | H39: 0 | I39: 0 | J39: 3 | K39: 1 | L39: =IF(INTRO!$E$38="Endemic", IF($H39>0, IF($H39=4,"Unknown", IF($H39=99,"Stopped", $D39)), 0),"Not required") -> 0 | M39: 0 | N39: =IF(INTRO!$E$42="Endemic", IF(AND($J39>1,$J39<5), IF($J39=4, "Unknown", E39+F39), 0),"Not required") -> 84741 | O39: 8187 | P39: 0 | Q39: 0 | R39: 2 | S39: 1 | T39: T3 (ALB/MBD) | U39: T2 (PZQ) | X39: 49728 | Y39: BULAMBULI | AA39: TRUE
A40: =IF(INTRO!$E$34<>0,INTRO!$E$34,"") -> Uganda | B40: Eastern | C40: Busia | D40: 353983 | E40: =IF(INTRO!$E$48="","",ROUND($D40*INTRO!$E$48,0)) -> 50266 | F40: =IF(INTRO!$E$49="","",ROUND($D40*INTRO!$E$49,0)) -> 106903 | G40: =IF(INTRO!$E$50="","",ROUND($D40*INTRO!$E$50,0)) -> 184425 | H40: 0 | I40: 0 | J40: 3 | K40: 3 | L40: =IF(INTRO!$E$38="Endemic", IF($H40>0, IF($H40=4,"Unknown", IF($H40=99,"Stopped", $D40)), 0),"Not required") -> 0 | M40: 0 | N40: =IF(INTRO!$E$42="Endemic", IF(AND($J40>1,$J40<5), IF($J40=4, "Unknown", E40+F40), 0),"Not required") -> 157169 | O40: 114634 | P40: 0 | Q40: 0 | R40: 2 | S40: 1 | T40: T3 (ALB/MBD) | U40: T2 (PZQ) | X40: 49723 | Y40: BUSIA | AA40: TRUE
A41: =IF(INTRO!$E$34<>0,INTRO!$E$34,"") -> Uganda | B41: Eastern | C41: Butaleja | D41: 267026 | E41: =IF(INTRO!$E$48="","",ROUND($D41*INTRO!$E$48,0)) -> 37918 | F41: =IF(INTRO!$E$49="","",ROUND($D41*INTRO!$E$49,0)) -> 80642 | G41: =IF(INTRO!$E$50="","",ROUND($D41*INTRO!$E$50,0)) -> 139121 | H41: 99 | I41: 0 | J41: 3 | K41: 1 | L41: =IF(INTRO!$E$38="Endemic", IF($H41>0, IF($H41=4,"Unknown", IF($H41=99,"Stopped", $D41)), 0),"Not required") -> Stopped | M41: 0 | N41: =IF(INTRO!$E$42="Endemic", IF(AND($J41>1,$J41<5), IF($J41=4, "Unknown", E41+F41), 0),"Not required") -> 118560 | O41: 23066 | P41: 0 | Q41: 0 | R41: 2 | S41: 1 | T41: T3 (ALB/MBD) | U41: T2 (PZQ) | X41: 49729 | Y41: BUTALEJA | AA41: TRUE
A42: =IF(INTRO!$E$34<>0,INTRO!$E$34,"") -> Uganda | B42: Eastern | C42: Buyende | D42: 353333 | E42: =IF(INTRO!$E$48="","",ROUND($D42*INTRO!$E$48,0)) -> 50173 | F42: =IF(INTRO!$E$49="","",ROUND($D42*INTRO!$E$49,0)) -> 106707 | G42: =IF(INTRO!$E$50="","",ROUND($D42*INTRO!$E$50,0)) -> 184086 | H42: 99 | I42: 0 | J42: 3 | K42: 3 | L42: =IF(INTRO!$E$38="Endemic", IF($H42>0, IF($H42=4,"Unknown", IF($H42=99,"Stopped", $D42)), 0),"Not required") -> Stopped | M42: 0 | N42: =IF(INTRO!$E$42="Endemic", IF(AND($J42>1,$J42<5), IF($J42=4, "Unknown", E42+F42), 0),"Not required") -> 156880 | O42: 250777 | P42: 0 | Q42: 0 | R42: 2 | S42: 1 | T42: T3 (ALB/MBD) | U42: T2 (PZQ) | X42: 49732 | Y42: BUYENDE | AA42: TRUE
A43: =IF(INTRO!$E$34<>0,INTRO!$E$34,"") -> Uganda | B43: Eastern | C43: Iganga | D43: 551431 | E43: =IF(INTRO!$E$48="","",ROUND($D43*INTRO!$E$48,0)) -> 78303 | F43: =IF(INTRO!$E$49="","",ROUND($D43*INTRO!$E$49,0)) -> 166532 | G43: =IF(INTRO!$E$50="","",ROUND($D43*INTRO!$E$50,0)) -> 287296 | H43: 99 | I43: 0 | J43: 3 | K43: 1 | L43: =IF(INTRO!$E$38="Endemic", IF($H43>0, IF($H43=4,"Unknown", IF($H43=99,"Stopped", $D43)), 0),"Not required") -> Stopped | M43: 0 | N43: =IF(INTRO!$E$42="Endemic", IF(AND($J43>1,$J43<5), IF($J43=4, "Unknown", E43+F43), 0),"Not required") -> 244835 | O43: 54956 | P43: 0 | Q43: 0 | R43: 2 | S43: 1 | T43: T3 (ALB/MBD) | U43: T2 (PZQ) | X43: 49738 | Y43: IGANGA | AA43: TRUE
A44: =IF(INTRO!$E$34<>0,INTRO!$E$34,"") -> Uganda | B44: Eastern | C44: Jinja | D44: 515389 | E44: =IF(INTRO!$E$48="","",ROUND($D44*INTRO!$E$48,0)) -> 73185 | F44: =IF(INTRO!$E$49="","",ROUND($D44*INTRO!$E$49,0)) -> 155647 | G44: =IF(INTRO!$E$50="","",ROUND($D44*INTRO!$E$50,0)) -> 268518 | H44: 0 | I44: 0 | J44: 3 | K44: 3 | L44: =IF(INTRO!$E$38="Endemic", IF($H44>0, IF($H44=4,"Unknown", IF($H44=99,"Stopped", $D44)), 0),"Not required") -> 0 | M44: 0 | N44: =IF(INTRO!$E$42="Endemic", IF(AND($J44>1,$J44<5), IF($J44=4, "Unknown", E44+F44), 0),"Not required") -> 228832 | O44: 449567 | P44: 0 | Q44: 0 | R44: 2 | S44: 1 | T44: T3 (ALB/MBD) | U44: T2 (PZQ) | X44: 49740 | Y44: JINJA | AA44: TRUE
A45: =IF(INTRO!$E$34<>0,INTRO!$E$34,"") -> Uganda | B45: Eastern | C45: Kaberamaido | D45: 235170 | E45: =IF(INTRO!$E$48="","",ROUND($D45*INTRO!$E$48,0)) -> 33394 | F45: =IF(INTRO!$E$49="","",ROUND($D45*INTRO!$E$49,0)) -> 71021 | G45: =IF(INTRO!$E$50="","",ROUND($D45*INTRO!$E$50,0)) -> 122524 | H45: 99 | I45: 0 | J45: 3 | K45: 3 | L45: =IF(INTRO!$E$38="Endemic", IF($H45>0, IF($H45=4,"Unknown", IF($H45=99,"Stopped", $D45)), 0),"Not required") -> Stopped | M45: 0 | N45: =IF(INTRO!$E$42="Endemic", IF(AND($J45>1,$J45<5), IF($J45=4, "Unknown", E45+F45), 0),"Not required") -> 104415 | O45: 108823 | P45: 0 | Q45: 0 | R45: 2 | S45: 1 | T45: T3 (ALB/MBD) | U45: T2 (PZQ) | X45: 49743 | Y45: KABERAMAIDO | AA45: TRUE
A46: =IF(INTRO!$E$34<>0,INTRO!$E$34,"") -> Uganda | B46: Eastern | C46: Kaliro | D46: 258327 | E46: =IF(INTRO!$E$48="","",ROUND($D46*INTRO!$E$48,0)) -> 36682 | F46: =IF(INTRO!$E$49="","",ROUND($D46*INTRO!$E$49,0)) -> 78015 | G46: =IF(INTRO!$E$50="","",ROUND($D46*INTRO!$E$50,0)) -> 134588 | H46: 99 | I46: 0 | J46: 3 | K46: 1 | L46: =IF(INTRO!$E$38="Endemic", IF($H46>0, IF($H46=4,"Unknown", IF($H46=99,"Stopped", $D46)), 0),"Not required") -> Stopped | M46: 0 | N46: =IF(INTRO!$E$42="Endemic", IF(AND($J46>1,$J46<5), IF($J46=4, "Unknown", E46+F46), 0),"Not required") -> 114697 | O46: 69175 | P46: 0 | Q46: 0 | R46: 2 | S46: 1 | T46: T3 (ALB/MBD) | U46: T2 (PZQ) | X46: 49746 | Y46: KALIRO | AA46: TRUE
A47: =IF(INTRO!$E$34<>0,INTRO!$E$34,"") -> Uganda | B47: Eastern | C47: Kamuli | D47: 531878 | E47: =IF(INTRO!$E$48="","",ROUND($D47*INTRO!$E$48,0)) -> 75527 | F47: =IF(INTRO!$E$49="","",ROUND($D47*INTRO!$E$49,0)) -> 160627 | G47: =IF(INTRO!$E$50="","",ROUND($D47*INTRO!$E$50,0)) -> 277108 | H47: 99 | I47: 0 | J47: 3 | K47: 1 | L47: =IF(INTRO!$E$38="Endemic", IF($H47>0, IF($H47=4,"Unknown", IF($H47=99,"Stopped", $D47)), 0),"Not required") -> Stopped | M47: 0 | N47: =IF(INTRO!$E$42="Endemic", IF(AND($J47>1,$J47<5), IF($J47=4, "Unknown", E47+F47), 0),"Not required") -> 236154 | O47: 93693 | P47: 0 | Q47: 0 | R47: 2 | S47: 1 | T47: T3 (ALB/MBD) | U47: T2 (PZQ) | X47: 49747 | Y47: KAMULI | AA47: TRUE
A48: =IF(INTRO!$E$34<>0,INTRO!$E$34,"") -> Uganda | B48: Eastern | C48: Kapchorwa | D48: 115040 | E48: =IF(INTRO!$E$48="","",ROUND($D48*INTRO!$E$48,0)) -> 16336 | F48: =IF(INTRO!$E$49="","",ROUND($D48*INTRO!$E$49,0)) -> 34742 | G48: =IF(INTRO!$E$50="","",ROUND($D48*INTRO!$E$50,0)) -> 59936 | H48: 0 | I48: 0 | J48: 3 | K48: 0 | L48: =IF(INTRO!$E$38="Endemic", IF($H48>0, IF($H48=4,"Unknown", IF($H48=99,"Stopped", $D48)), 0),"Not required") -> 0 | M48: 0 | N48: =IF(INTRO!$E$42="Endemic", IF(AND($J48>1,$J48<5), IF($J48=4, "Unknown", E48+F48), 0),"Not required") -> 51078 | O48: 0 | P48: 0 | Q48: 0 | R48: 2 | S48: 0 | T48: T3 (ALB/MBD) | U48: T3 (ALB/MBD) | X48: 49760 | Y48: KAPCHORWA | AA48: TRUE
A49: =IF(INTRO!$E$34<>0,INTRO!$E$34,"") -> Uganda | B49: Eastern | C49: Katakwi | D49: 181804 | E49: =IF(INTRO!$E$48="","",ROUND($D49*INTRO!$E$48,0)) -> 25816 | F49: =IF(INTRO!$E$49="","",ROUND($D49*INTRO!$E$49,0)) -> 54905 | G49: =IF(INTRO!$E$50="","",ROUND($D49*INTRO!$E$50,0)) -> 94720 | H49: 99 | I49: 0 | J49: 3 | K49: 1 | L49: =IF(INTRO!$E$38="Endemic", IF($H49>0, IF($H49=4,"Unknown", IF($H49=99,"Stopped", $D49)), 0),"Not required") -> Stopped | M49: 0 | N49: =IF(INTRO!$E$42="Endemic", IF(AND($J49>1,$J49<5), IF($J49=4, "Unknown", E49+F49), 0),"Not required") -> 80721 | O49: 18678 | P49: 0 | Q49: 0 | R49: 2 | S49: 1 | T49: T3 (ALB/MBD) | U49: T2 (PZQ) | X49: 49751 | Y49: KATAKWI | AA49: TRUE
A50: =IF(INTRO!$E$34<>0,INTRO!$E$34,"") -> Uganda | B50: Eastern | C50: Kibuku | D50: 220960 | E50: =IF(INTRO!$E$48="","",ROUND($D50*INTRO!$E$48,0)) -> 31376 | F50: =IF(INTRO!$E$49="","",ROUND($D50*INTRO!$E$49,0)) -> 66730 | G50: =IF(INTRO!$E$50="","",ROUND($D50*INTRO!$E$50,0)) -> 115120 | H50: 99 | I50: 0 | J50: 3 | K50: 1 | L50: =IF(INTRO!$E$38="Endemic", IF($H50>0, IF($H50=4,"Unknown", IF($H50=99,"Stopped", $D50)), 0),"Not required") -> Stopped | M50: 0 | N50: =IF(INTRO!$E$42="Endemic", IF(AND($J50>1,$J50<5), IF($J50=4, "Unknown", E50+F50), 0),"Not required") -> 98106 | O50: 43365 | P50: 0 | Q50: 0 | R50: 2 | S50: 1 | T50: T3 (ALB/MBD) | U50: T2 (PZQ) | X50: 49763 | Y50: KIBUKU | AA50: TRUE
A51: =IF(INTRO!$E$34<>0,INTRO!$E$34,"") -> Uganda | B51: Eastern | C51: Kumi | D51: 261683 | E51: =IF(INTRO!$E$48="","",ROUND($D51*INTRO!$E$48,0)) -> 37159 | F51: =IF(INTRO!$E$49="","",ROUND($D51*INTRO!$E$49,0)) -> 79028 | G51: =IF(INTRO!$E$50="","",ROUND($D51*INTRO!$E$50,0)) -> 136337 | H51: 99 | I51: 0 | J51: 3 | K51: 1 | L51: =IF(INTRO!$E$38="Endemic", IF($H51>0, IF($H51=4,"Unknown", IF($H51=99,"Stopped", $D51)), 0),"Not required") -> Stopped | M51: 0 | N51: =IF(INTRO!$E$42="Endemic", IF(AND($J51>1,$J51<5), IF($J51=4, "Unknown", E51+F51), 0),"Not required") -> 116187 | O51: 41967 | P51: 0 | Q51: 0 | R51: 2 | S51: 1 | T51: T3 (ALB/MBD) | U51: T2 (PZQ) | X51: 49756 | Y51: KUMI | AA51: TRUE
A52: =IF(INTRO!$E$34<>0,INTRO!$E$34,"") -> Uganda | B52: Eastern | C52: Kween | D52: 102442 | E52: =IF(INTRO!$E$48="","",ROUND($D52*INTRO!$E$48,0)) -> 14547 | F52: =IF(INTRO!$E$49="","",ROUND($D52*INTRO!$E$49,0)) -> 30937 | G52: =IF(INTRO!$E$50="","",ROUND($D52*INTRO!$E$50,0)) -> 53372 | H52: 0 | I52: 0 | J52: 3 | K52: 1 | L52: =IF(INTRO!$E$38="Endemic", IF($H52>0, IF($H52=4,"Unknown", IF($H52=99,"Stopped", $D52)), 0),"Not required") -> 0 | M52: 0 | N52: =IF(INTRO!$E$42="Endemic", IF(AND($J52>1,$J52<5), IF($J52=4, "Unknown", E52+F52), 0),"Not required") -> 45484 | O52: 3044 | P52: 0 | Q52: 0 | R52: 2 | S52: 1 | T52: T3 (ALB/MBD) | U52: T2 (PZQ) | X52: 49768 | Y52: KWEEN | AA52: TRUE
A53: =IF(INTRO!$E$34<>0,INTRO!$E$34,"") -> Uganda | B53: Eastern | C53: Luuka | D53: 260319 | E53: =IF(INTRO!$E$48="","",ROUND($D53*INTRO!$E$48,0)) -> 36965 | F53: =IF(INTRO!$E$49="","",ROUND($D53*INTRO!$E$49,0)) -> 78616 | G53: =IF(INTRO!$E$50="","",ROUND($D53*INTRO!$E$50,0)) -> 135626 | H53: 99 | I53: 0 | J53: 3 | K53: 1 | L53: =IF(INTRO!$E$38="Endemic", IF($H53>0, IF($H53=4,"Unknown", IF($H53=99,"Stopped", $D53)), 0),"Not required") -> Stopped | M53: 0 | N53: =IF(INTRO!$E$42="Endemic", IF(AND($J53>1,$J53<5), IF($J53=4, "Unknown", E53+F53), 0),"Not required") -> 115581 | O53: 84810 | P53: 0 | Q53: 0 | R53: 2 | S53: 1 | T53: T3 (ALB/MBD) | U53: T2 (PZQ) | X53: 49773 | Y53: LUUKA | AA53: TRUE
A54: =IF(INTRO!$E$34<>0,INTRO!$E$34,"") -> Uganda | B54: Eastern | C54: Manafwa | D54: 386972 | E54: =IF(INTRO!$E$48="","",ROUND($D54*INTRO!$E$48,0)) -> 54950 | F54: =IF(INTRO!$E$49="","",ROUND($D54*INTRO!$E$49,0)) -> 116866 | G54: =IF(INTRO!$E$50="","",ROUND($D54*INTRO!$E$50,0)) -> 201612 | H54: 0 | I54: 99 | J54: 3 | K54: 1 | L54: =IF(INTRO!$E$38="Endemic", IF($H54>0, IF($H54=4,"Unknown", IF($H54=99,"Stopped", $D54)), 0),"Not required") -> 0 | M54: Stopped | N54: =IF(INTRO!$E$42="Endemic", IF(AND($J54>1,$J54<5), IF($J54=4, "Unknown", E54+F54), 0),"Not required") -> 171816 | O54: 14317 | P54: 0 | Q54: 0 | R54: 2 | S54: 1 | T54: T3 (ALB/MBD) | U54: T2 (PZQ) | X54: 49777 | Y54: MANAFWA | AA54: TRUE
A55: =IF(INTRO!$E$34<>0,INTRO!$E$34,"") -> Uganda | B55: Eastern | C55: Mayuge | D55: 477822 | E55: =IF(INTRO!$E$48="","",ROUND($D55*INTRO!$E$48,0)) -> 67851 | F55: =IF(INTRO!$E$49="","",ROUND($D55*INTRO!$E$49,0)) -> 144302 | G55: =IF(INTRO!$E$50="","",ROUND($D55*INTRO!$E$50,0)) -> 248945 | H55: 1 | I55: 0 | J55: 3 | K55: 3 | L55: =IF(INTRO!$E$38="Endemic", IF($H55>0, IF($H55=4,"Unknown", IF($H55=99,"Stopped", $D55)), 0),"Not required") -> 477822 | M55: 0 | N55: =IF(INTRO!$E$42="Endemic", IF(AND($J55>1,$J55<5), IF($J55=4, "Unknown", E55+F55), 0),"Not required") -> 212153 | O55: 139087 | P55: 1 | Q55: 0 | R55: 2 | S55: 1 | T55: MDA1 (IVM+ALB) | U55: T2 (PZQ) | X55: 49779 | Y55: MAYUGE | AA55: TRUE
A56: =IF(INTRO!$E$34<>0,INTRO!$E$34,"") -> Uganda | B56: Eastern | C56: Mbale | D56: 534766 | E56: =IF(INTRO!$E$48="","",ROUND($D56*INTRO!$E$48,0)) -> 75937 | F56: =IF(INTRO!$E$49="","",ROUND($D56*INTRO!$E$49,0)) -> 161499 | G56: =IF(INTRO!$E$50="","",ROUND($D56*INTRO!$E$50,0)) -> 278613 | H56: 0 | I56: 99 | J56: 3 | K56: 1 | L56: =IF(INTRO!$E$38="Endemic", IF($H56>0, IF($H56=4,"Unknown", IF($H56=99,"Stopped", $D56)), 0),"Not required") -> 0 | M56: Stopped | N56: =IF(INTRO!$E$42="Endemic", IF(AND($J56>1,$J56<5), IF($J56=4, "Unknown", E56+F56), 0),"Not required") -> 237436 | O56: 4099 | P56: 0 | Q56: 0 | R56: 2 | S56: 1 | T56: T3 (ALB/MBD) | U56: T2 (PZQ) | X56: 49780 | Y56: MBALE | AA56: TRUE
A57: =IF(INTRO!$E$34<>0,INTRO!$E$34,"") -> Uganda | B57: Eastern | C57: Namayingo | D57: 259657 | E57: =IF(INTRO!$E$48="","",ROUND($D57*INTRO!$E$48,0)) -> 36871 | F57: =IF(INTRO!$E$49="","",ROUND($D57*INTRO!$E$49,0)) -> 78416 | G57: =IF(INTRO!$E$50="","",ROUND($D57*INTRO!$E$50,0)) -> 135281 | H57: 1 | I57: 0 | J57: 3 | K57: 3 | L57: =IF(INTRO!$E$38="Endemic", IF($H57>0, IF($H57=4,"Unknown", IF($H57=99,"Stopped", $D57)), 0),"Not required") -> 259657 | M57: 0 | N57: =IF(INTRO!$E$42="Endemic", IF(AND($J57>1,$J57<5), IF($J57=4, "Unknown", E57+F57), 0),"Not required") -> 115287 | O57: 203497 | P57: 1 | Q57: 0 | R57: 2 | S57: 1 | T57: MDA1 (IVM+ALB) | U57: T2 (PZQ) | X57: 49796 | Y57: NAMAYINGO | AA57: TRUE
A58: =IF(INTRO!$E$34<>0,INTRO!$E$34,"") -> Uganda | B58: Eastern | C58: Namutumba | D58: 276223 | E58: =IF(INTRO!$E$48="","",ROUND($D58*INTRO!$E$48,0)) -> 39224 | F58: =IF(INTRO!$E$49="","",ROUND($D58*INTRO!$E$49,0)) -> 83419 | G58: =IF(INTRO!$E$50="","",ROUND($D58*INTRO!$E$50,0)) -> 143912 | H58: 99 | I58: 0 | J58: 3 | K58: 1 | L58: =IF(INTRO!$E$38="Endemic", IF($H58>0, IF($H58=4,"Unknown", IF($H58=99,"Stopped", $D58)), 0),"Not required") -> Stopped | M58: 0 | N58: =IF(INTRO!$E$42="Endemic", IF(AND($J58>1,$J58<5), IF($J58=4, "Unknown", E58+F58), 0),"Not required") -> 122643 | O58: 99757 | P58: 0 | Q58: 0 | R58: 2 | S58: 1 | T58: T3 (ALB/MBD) | U58: T2 (PZQ) | X58: 49792 | Y58: NAMUTUMBA | AA58: TRUE
A59: =IF(INTRO!$E$34<>0,INTRO!$E$34,"") -> Uganda | B59: Eastern | C59: Ngora | D59: 155214 | E59: =IF(INTRO!$E$48="","",ROUND($D59*INTRO!$E$48,0)) -> 22040 | F59: =IF(INTRO!$E$49="","",ROUND($D59*INTRO!$E$49,0)) -> 46875 | G59: =IF(INTRO!$E$50="","",ROUND($D59*INTRO!$E$50,0)) -> 80866 | H59: 99 | I59: 0 | J59: 3 | K59: 1 | L59: =IF(INTRO!$E$38="Endemic", IF($H59>0, IF($H59=4,"Unknown", IF($H59=99,"Stopped", $D59)), 0),"Not required") -> Stopped | M59: 0 | N59: =IF(INTRO!$E$42="Endemic", IF(AND($J59>1,$J59<5), IF($J59=4, "Unknown", E59+F59), 0),"Not required") -> 68915 | O59: 48870 | P59: 0 | Q59: 0 | R59: 2 | S59: 1 | T59: T3 (ALB/MBD) | U59: T2 (PZQ) | X59: 49798 | Y59: NGORA | AA59: TRUE
A60: =IF(INTRO!$E$34<>0,INTRO!$E$34,"") -> Uganda | B60: Eastern | C60: Pallisa | D60: 423135 | E60: =IF(INTRO!$E$48="","",ROUND($D60*INTRO!$E$48,0)) -> 60085 | F60: =IF(INTRO!$E$49="","",ROUND($D60*INTRO!$E$49,0)) -> 127787 | G60: =IF(INTRO!$E$50="","",ROUND($D60*INTRO!$E$50,0)) -> 220453 | H60: 99 | I60: 0 | J60: 3 | K60: 1 | L60: =IF(INTRO!$E$38="Endemic", IF($H60>0, IF($H60=4,"Unknown", IF($H60=99,"Stopped", $D60)), 0),"Not required") -> Stopped | M60: 0 | N60: =IF(INTRO!$E$42="Endemic", IF(AND($J60>1,$J60<5), IF($J60=4, "Unknown", E60+F60), 0),"Not required") -> 187872 | O60: 69467 | P60: 0 | Q60: 0 | R60: 2 | S60: 1 | T60: T3 (ALB/MBD) | U60: T2 (PZQ) | X60: 49804 | Y60: PALLISA | AA60: TRUE
A61: =IF(INTRO!$E$34<>0,INTRO!$E$34,"") -> Uganda | B61: Eastern | C61: Serere | D61: 312687 | E61: =IF(INTRO!$E$48="","",ROUND($D61*INTRO!$E$48,0)) -> 44402 | F61: =IF(INTRO!$E$49="","",ROUND($D61*INTRO!$E$49,0)) -> 94431 | G61: =IF(INTRO!$E$50="","",ROUND($D61*INTRO!$E$50,0)) -> 162910 | H61: 99 | I61: 0 | J61: 3 | K61: 3 | L61: =IF(INTRO!$E$38="Endemic", IF($H61>0, IF($H61=4,"Unknown", IF($H61=99,"Stopped", $D61)), 0),"Not required") -> Stopped | M61: 0 | N61: =IF(INTRO!$E$42="Endemic", IF(AND($J61>1,$J61<5), IF($J61=4, "Unknown", E61+F61), 0),"Not required") -> 138833 | O61: 158461 | P61: 0 | Q61: 0 | R61: 2 | S61: 1 | T61: T3 (ALB/MBD) | U61: T2 (PZQ) | X61: 49812 | Y61: SERERE | AA61: TRUE
A62: =IF(INTRO!$E$34<>0,INTRO!$E$34,"") -> Uganda | B62: Eastern | C62: Sironko | D62: 265132 | E62: =IF(INTRO!$E$48="","",ROUND($D62*INTRO!$E$48,0)) -> 37649 | F62: =IF(INTRO!$E$49="","",ROUND($D62*INTRO!$E$49,0)) -> 80070 | G62: =IF(INTRO!$E$50="","",ROUND($D62*INTRO!$E$50,0)) -> 138134 | H62: 0 | I62: 99 | J62: 3 | K62: 1 | L62: =IF(INTRO!$E$38="Endemic", IF($H62>0, IF($H62=4,"Unknown", IF($H62=99,"Stopped", $D62)), 0),"Not required") -> 0 | M62: Stopped | N62: =IF(INTRO!$E$42="Endemic", IF(AND($J62>1,$J62<5), IF($J62=4, "Unknown", E62+F62), 0),"Not required") -> 117719 | O62: 9431 | P62: 0 | Q62: 0 | R62: 2 | S62: 1 | T62: T3 (ALB/MBD) | U62: T2 (PZQ) | X62: 49809 | Y62: SIRONKO | AA62: TRUE
A63: =IF(INTRO!$E$34<>0,INTRO!$E$34,"") -> Uganda | B63: Eastern | C63: Soroti | D63: 324641 | E63: =IF(INTRO!$E$48="","",ROUND($D63*INTRO!$E$48,0)) -> 46099 | F63: =IF(INTRO!$E$49="","",ROUND($D63*INTRO!$E$49,0)) -> 98042 | G63: =IF(INTRO!$E$50="","",ROUND($D63*INTRO!$E$50,0)) -> 169138 | H63: 99 | I63: 0 | J63: 3 | K63: 1 | L63: =IF(INTRO!$E$38="Endemic", IF($H63>0, IF($H63=4,"Unknown", IF($H63=99,"Stopped", $D63)), 0),"Not required") -> Stopped | M63: 0 | N63: =IF(INTRO!$E$42="Endemic", IF(AND($J63>1,$J63<5), IF($J63=4, "Unknown", E63+F63), 0),"Not required") -> 144141 | O63: 18118 | P63: 0 | Q63: 0 | R63: 2 | S63: 1 | T63: T3 (ALB/MBD) | U63: T2 (PZQ) | X63: 49810 | Y63: SOROTI | AA63: TRUE
A64: =IF(INTRO!$E$34<>0,INTRO!$E$34,"") -> Uganda | B64: Eastern | C64: Tororo | D64: 565523 | E64: =IF(INTRO!$E$48="","",ROUND($D64*INTRO!$E$48,0)) -> 80304 | F64: =IF(INTRO!$E$49="","",ROUND($D64*INTRO!$E$49,0)) -> 170788 | G64: =IF(INTRO!$E$50="","",ROUND($D64*INTRO!$E$50,0)) -> 294637 | H64: 99 | I64: 0 | J64: 3 | K64: 1 | L64: =IF(INTRO!$E$38="Endemic", IF($H64>0, IF($H64=4,"Unknown", IF($H64=99,"Stopped", $D64)), 0),"Not required") -> Stopped | M64: 0 | N64: =IF(INTRO!$E$42="Endemic", IF(AND($J64>1,$J64<5), IF($J64=4, "Unknown", E64+F64), 0),"Not required") -> 251092 | O64: 105271 | P64: 0 | Q64: 0 | R64: 2 | S64: 1 | T64: T3 (ALB/MBD) | U64: T2 (PZQ) | X64: 49814 | Y64: TORORO | AA64: TRUE
A65: =IF(INTRO!$E$34<>0,INTRO!$E$34,"") -> Uganda | B65: Northern | C65: Abim | D65: 118080 | E65: =IF(INTRO!$E$48="","",ROUND($D65*INTRO!$E$48,0)) -> 16767 | F65: =IF(INTRO!$E$49="","",ROUND($D65*INTRO!$E$49,0)) -> 35660 | G65: =IF(INTRO!$E$50="","",ROUND($D65*INTRO!$E$50,0)) -> 61520 | H65: 99 | I65: 0 | J65: 3 | K65: 0 | L65: =IF(INTRO!$E$38="Endemic", IF($H65>0, IF($H65=4,"Unknown", IF($H65=99,"Stopped", $D65)), 0),"Not required") -> Stopped | M65: 0 | N65: =IF(INTRO!$E$42="Endemic", IF(AND($J65>1,$J65<5), IF($J65=4, "Unknown", E65+F65), 0),"Not required") -> 52427 | O65: 0 | P65: 0 | Q65: 0 | R65: 2 | S65: 0 | T65: T3 (ALB/MBD) | U65: T3 (ALB/MBD) | X65: 49706 | Y65: ABIM | AA65: TRUE
A66: =IF(INTRO!$E$34<>0,INTRO!$E$34,"") -> Uganda | B66: Northern | C66: Adjumani | D66: 246353 | E66: =IF(INTRO!$E$48="","",ROUND($D66*INTRO!$E$48,0)) -> 34982 | F66: =IF(INTRO!$E$49="","",ROUND($D66*INTRO!$E$49,0)) -> 74399 | G66: =IF(INTRO!$E$50="","",ROUND($D66*INTRO!$E$50,0)) -> 128350 | H66: 99 | I66: 1 | J66: 3 | K66: 3 | L66: =IF(INTRO!$E$38="Endemic", IF($H66>0, IF($H66=4,"Unknown", IF($H66=99,"Stopped", $D66)), 0),"Not required") -> Stopped | M66: 28589 | N66: =IF(INTRO!$E$42="Endemic", IF(AND($J66>1,$J66<5), IF($J66=4, "Unknown", E66+F66), 0),"Not required") -> 109381 | O66: 47435 | P66: 0 | Q66: 2 | R66: 2 | S66: 1 | T66: MDA3 (IVM) | U66: T2 (PZQ) | X66: 49707 | Y66: ADJUMANI | AA66: TRUE
A67: =IF(INTRO!$E$34<>0,INTRO!$E$34,"") -> Uganda | B67: Northern | C67: Agago | D67: 249132 | E67: =IF(INTRO!$E$48="","",ROUND($D67*INTRO!$E$48,0)) -> 35377 | F67: =IF(INTRO!$E$49="","",ROUND($D67*INTRO!$E$49,0)) -> 75238 | G67: =IF(INTRO!$E$50="","",ROUND($D67*INTRO!$E$50,0)) -> 129798 | H67: 99 | I67: 0 | J67: 3 | K67: 3 | L67: =IF(INTRO!$E$38="Endemic", IF($H67>0, IF($H67=4,"Unknown", IF($H67=99,"Stopped", $D67)), 0),"Not required") -> Stopped | M67: 0 | N67: =IF(INTRO!$E$42="Endemic", IF(AND($J67>1,$J67<5), IF($J67=4, "Unknown", E67+F67), 0),"Not required") -> 110615 | O67: 184053 | P67: 0 | Q67: 0 | R67: 2 | S67: 1 | T67: T3 (ALB/MBD) | U67: T2 (PZQ) | X67: 49713 | Y67: AGAGO | AA67: TRUE
A68: =IF(INTRO!$E$34<>0,INTRO!$E$34,"") -> Uganda | B68: Northern | C68: Alebtong | D68: 248857 | E68: =IF(INTRO!$E$48="","",ROUND($D68*INTRO!$E$48,0)) -> 35338 | F68: =IF(INTRO!$E$49="","",ROUND($D68*INTRO!$E$49,0)) -> 75155 | G68: =IF(INTRO!$E$50="","",ROUND($D68*INTRO!$E$50,0)) -> 129654 | H68: 99 | I68: 0 | J68: 3 | K68: 2 | L68: =IF(INTRO!$E$38="Endemic", IF($H68>0, IF($H68=4,"Unknown", IF($H68=99,"Stopped", $D68)), 0),"Not required") -> Stopped | M68: 0 | N68: =IF(INTRO!$E$42="Endemic", IF(AND($J68>1,$J68<5), IF($J68=4, "Unknown", E68+F68), 0),"Not required") -> 110493 | O68: 99773 | P68: 0 | Q68: 0 | R68: 2 | S68: 1 | T68: T3 (ALB/MBD) | U68: T2 (PZQ) | X68: 49714 | Y68: ALEBTONG | AA68: TRUE
A69: =IF(INTRO!$E$34<>0,INTRO!$E$34,"") -> Uganda | B69: Northern | C69: Amolatar | D69: 160952 | E69: =IF(INTRO!$E$48="","",ROUND($D69*INTRO!$E$48,0)) -> 22855 | F69: =IF(INTRO!$E$49="","",ROUND($D69*INTRO!$E$49,0)) -> 48608 | G69: =IF(INTRO!$E$50="","",ROUND($D69*INTRO!$E$50,0)) -> 83856 | H69: 99 | I69: 0 | J69: 3 | K69: 3 | L69: =IF(INTRO!$E$38="Endemic", IF($H69>0, IF($H69=4,"Unknown", IF($H69=99,"Stopped", $D69)), 0),"Not required") -> Stopped | M69: 0 | N69: =IF(INTRO!$E$42="Endemic", IF(AND($J69>1,$J69<5), IF($J69=4, "Unknown", E69+F69), 0),"Not required") -> 71463 | O69: 126651 | P69: 0 | Q69: 0 | R69: 2 | S69: 1 | T69: T3 (ALB/MBD) | U69: T2 (PZQ) | X69: 49708 | Y69: AMOLATAR | AA69: TRUE
A70: =IF(INTRO!$E$34<>0,INTRO!$E$34,"") -> Uganda | B70: Northern | C70: Amudat | D70: 115676 | E70: =IF(INTRO!$E$48="","",ROUND($D70*INTRO!$E$48,0)) -> 16426 | F70: =IF(INTRO!$E$49="","",ROUND($D70*INTRO!$E$49,0)) -> 34934 | G70: =IF(INTRO!$E$50="","",ROUND($D70*INTRO!$E$50,0)) -> 60267 | H70: 99 | I70: 0 | J70: 3 | K70: 0 | L70: =IF(INTRO!$E$38="Endemic", IF($H70>0, IF($H70=4,"Unknown", IF($H70=99,"Stopped", $D70)), 0),"Not required") -> Stopped | M70: 0 | N70: =IF(INTRO!$E$42="Endemic", IF(AND($J70>1,$J70<5), IF($J70=4, "Unknown", E70+F70), 0),"Not required") -> 51360 | O70: 0 | P70: 0 | Q70: 0 | R70: 2 | S70: 0 | T70: T3 (ALB/MBD) | U70: T3 (ALB/MBD) | X70: 49715 | Y70: AMUDAT | AA70: TRUE
A71: =IF(INTRO!$E$34<>0,INTRO!$E$34,"") -> Uganda | B71: Northern | C71: Amuru | D71: 242538 | E71: =IF(INTRO!$E$48="","",ROUND($D71*INTRO!$E$48,0)) -> 34440 | F71: =IF(INTRO!$E$49="","",ROUND($D71*INTRO!$E$49,0)) -> 73246 | G71: =IF(INTRO!$E$50="","",ROUND($D71*INTRO!$E$50,0)) -> 126362 | H71: 99 | I71: 1 | J71: 3 | K71: 3 | L71: =IF(INTRO!$E$38="Endemic", IF($H71>0, IF($H71=4,"Unknown", IF($H71=99,"Stopped", $D71)), 0),"Not required") -> Stopped | M71: 242538 | N71: =IF(INTRO!$E$42="Endemic", IF(AND($J71>1,$J71<5), IF($J71=4, "Unknown", E71+F71), 0),"Not required") -> 107686 | O71: 199608 | P71: 0 | Q71: 2 | R71: 2 | S71: 1 | T71: MDA3 (IVM) | U71: T2 (PZQ) | X71: 49710 | Y71: AMURU | AA71: TRUE
A72: =IF(INTRO!$E$34<>0,INTRO!$E$34,"") -> Uganda | B72: Northern | C72: Apac | D72: 403159 | E72: =IF(INTRO!$E$48="","",ROUND($D72*INTRO!$E$48,0)) -> 57249 | F72: =IF(INTRO!$E$49="","",ROUND($D72*INTRO!$E$49,0)) -> 121754 | G72: =IF(INTRO!$E$50="","",ROUND($D72*INTRO!$E$50,0)) -> 210046 | H72: 99 | I72: 0 | J72: 3 | K72: 3 | L72: =IF(INTRO!$E$38="Endemic", IF($H72>0, IF($H72=4,"Unknown", IF($H72=99,"Stopped", $D72)), 0),"Not required") -> Stopped | M72: 0 | N72: =IF(INTRO!$E$42="Endemic", IF(AND($J72>1,$J72<5), IF($J72=4, "Unknown", E72+F72), 0),"Not required") -> 179003 | O72: 238178 | P72: 0 | Q72: 0 | R72: 2 | S72: 1 | T72: T3 (ALB/MBD) | U72: T2 (PZQ) | X72: 49711 | Y72: APAC | AA72: TRUE
A73: =IF(INTRO!$E$34<>0,INTRO!$E$34,"") -> Uganda | B73: Northern | C73: Arua | D73: 855344 | E73: =IF(INTRO!$E$48="","",ROUND($D73*INTRO!$E$48,0)) -> 121459 | F73: =IF(INTRO!$E$49="","",ROUND($D73*INTRO!$E$49,0)) -> 258314 | G73: =IF(INTRO!$E$50="","",ROUND($D73*INTRO!$E$50,0)) -> 445634 | H73: 1 | I73: 1 | J73: 3 | K73: 2 | L73: =IF(INTRO!$E$38="Endemic", IF($H73>0, IF($H73=4,"Unknown", IF($H73=99,"Stopped", $D73)), 0),"Not required") -> 855344 | M73: 186294 | N73: =IF(INTRO!$E$42="Endemic", IF(AND($J73>1,$J73<5), IF($J73=4, "Unknown", E73+F73), 0),"Not required") -> 379773 | O73: 770141 | P73: 1 | Q73: 2 | R73: 2 | S73: 1 | T73: MDA1 (IVM+ALB) | U73: T2 (PZQ) | X73: 49712 | Y73: ARUA | AA73: TRUE
A74: =IF(INTRO!$E$34<>0,INTRO!$E$34,"") -> Uganda | B74: Northern | C74: Dokolo | D74: 200246 | E74: =IF(INTRO!$E$48="","",ROUND($D74*INTRO!$E$48,0)) -> 28435 | F74: =IF(INTRO!$E$49="","",ROUND($D74*INTRO!$E$49,0)) -> 60474 | G74: =IF(INTRO!$E$50="","",ROUND($D74*INTRO!$E$50,0)) -> 104328 | H74: 99 | I74: 0 | J74: 3 | K74: 1 | L74: =IF(INTRO!$E$38="Endemic", IF($H74>0, IF($H74=4,"Unknown", IF($H74=99,"Stopped", $D74)), 0),"Not required") -> Stopped | M74: 0 | N74: =IF(INTRO!$E$42="Endemic", IF(AND($J74>1,$J74<5), IF($J74=4, "Unknown", E74+F74), 0),"Not required") -> 88909 | O74: 32455 | P74: 0 | Q74: 0 | R74: 2 | S74: 1 | T74: T3 (ALB/MBD) | U74: T2 (PZQ) | X74: 49733 | Y74: DOKOLO | AA74: =Y74=C74 -> TRUE
A75: =IF(INTRO!$E$34<>0,INTRO!$E$34,"") -> Uganda | B75: Northern | C75: Gulu | D75: 219162 | E75: =IF(INTRO!$E$48="","",ROUND($D75*INTRO!$E$48,0)) -> 31121 | F75: =IF(INTRO!$E$49="","",ROUND($D75*INTRO!$E$49,0)) -> 66187 | G75: =IF(INTRO!$E$50="","",ROUND($D75*INTRO!$E$50,0)) -> 114183 | H75: 1 | I75: 1 | J75: 3 | K75: 2 | L75: =IF(INTRO!$E$38="Endemic", IF($H75>0, IF($H75=4,"Unknown", IF($H75=99,"Stopped", $D75)), 0),"Not required") -> 219162 | M75: 149990 | N75: =IF(INTRO!$E$42="Endemic", IF(AND($J75>1,$J75<5), IF($J75=4, "Unknown", E75+F75), 0),"Not required") -> 97308 | O75: 186904 | P75: 1 | Q75: 2 | R75: 2 | S75: 1 | T75: MDA1 (IVM+ALB) | U75: T2 (PZQ) | X75: 49734 | Y75: GULU | AA75: TRUE
A76: =IF(INTRO!$E$34<>0,INTRO!$E$34,"") -> Uganda | B76: Northern | C76: Kaabong | D76: 183607 | E76: =IF(INTRO!$E$48="","",ROUND($D76*INTRO!$E$48,0)) -> 26072 | F76: =IF(INTRO!$E$49="","",ROUND($D76*INTRO!$E$49,0)) -> 55449 | G76: =IF(INTRO!$E$50="","",ROUND($D76*INTRO!$E$50,0)) -> 95659 | H76: 99 | I76: 0 | J76: 3 | K76: 0 | L76: =IF(INTRO!$E$38="Endemic", IF($H76>0, IF($H76=4,"Unknown", IF($H76=99,"Stopped", $D76)), 0),"Not required") -> Stopped | M76: 0 | N76: =IF(INTRO!$E$42="Endemic", IF(AND($J76>1,$J76<5), IF($J76=4, "Unknown", E76+F76), 0),"Not required") -> 81521 | O76: 0 | P76: 0 | Q76: 0 | R76: 2 | S76: 0 | T76: T3 (ALB/MBD) | U76: T3 (ALB/MBD) | X76: 49744 | Y76: KAABONG | AA76: TRUE
A77: =IF(INTRO!$E$34<>0,INTRO!$E$34,"") -> Uganda | B77: Northern | C77: Kitgum | D77: 223164 | E77: =IF(INTRO!$E$48="","",ROUND($D77*INTRO!$E$48,0)) -> 31689 | F77: =IF(INTRO!$E$49="","",ROUND($D77*INTRO!$E$49,0)) -> 67396 | G77: =IF(INTRO!$E$50="","",ROUND($D77*INTRO!$E$50,0)) -> 116268 | H77: 1 | I77: 1 | J77: 3 | K77: 3 | L77: =IF(INTRO!$E$38="Endemic", IF($H77>0, IF($H77=4,"Unknown", IF($H77=99,"Stopped", $D77)), 0),"Not required") -> 223164 | M77: 107765 | N77: =IF(INTRO!$E$42="Endemic", IF(AND($J77>1,$J77<5), IF($J77=4, "Unknown", E77+F77), 0),"Not required") -> 99085 | O77: 181165 | P77: 1 | Q77: 2 | R77: 2 | S77: 1 | T77: MDA1 (IVM+ALB) | U77: T2 (PZQ) | X77: 49766 | Y77: KITGUM | AA77: TRUE
A78: =IF(INTRO!$E$34<>0,INTRO!$E$34,"") -> Uganda | B78: Northern | C78: Koboko | D78: 225840 | E78: =IF(INTRO!$E$48="","",ROUND($D78*INTRO!$E$48,0)) -> 32069 | F78: =IF(INTRO!$E$49="","",ROUND($D78*INTRO!$E$49,0)) -> 68204 | G78: =IF(INTRO!$E$50="","",ROUND($D78*INTRO!$E$50,0)) -> 117663 | H78: 99 | I78: 1 | J78: 3 | K78: 3 | L78: =IF(INTRO!$E$38="Endemic", IF($H78>0, IF($H78=4,"Unknown", IF($H78=99,"Stopped", $D78)), 0),"Not required") -> Stopped | M78: 15178 | N78: =IF(INTRO!$E$42="Endemic", IF(AND($J78>1,$J78<5), IF($J78=4, "Unknown", E78+F78), 0),"Not required") -> 100273 | O78: 47801 | P78: 0 | Q78: 1 | R78: 2 | S78: 1 | T78: MDA3 (IVM) | U78: T2 (PZQ) | X78: 49754 | Y78: KOBOKO | AA78: TRUE
A79: =IF(INTRO!$E$34<>0,INTRO!$E$34,"") -> Uganda | B79: Northern | C79: Kole | D79: 261748 | E79: =IF(INTRO!$E$48="","",ROUND($D79*INTRO!$E$48,0)) -> 37168 | F79: =IF(INTRO!$E$49="","",ROUND($D79*INTRO!$E$49,0)) -> 79048 | G79: =IF(INTRO!$E$50="","",ROUND($D79*INTRO!$E$50,0)) -> 136371 | H79: 99 | I79: 0 | J79: 3 | K79: 0 | L79: =IF(INTRO!$E$38="Endemic", IF($H79>0, IF($H79=4,"Unknown", IF($H79=99,"Stopped", $D79)), 0),"Not required") -> Stopped | M79: 0 | N79: =IF(INTRO!$E$42="Endemic", IF(AND($J79>1,$J79<5), IF($J79=4, "Unknown", E79+F79), 0),"Not required") -> 116216 | O79: 0 | P79: 0 | Q79: 0 | R79: 2 | S79: 0 | T79: T3 (ALB/MBD) | U79: T3 (ALB/MBD) | X79: 49767 | Y79: KOLE | AA79: TRUE
A80: =IF(INTRO!$E$34<>0,INTRO!$E$34,"") -> Uganda | B80: Northern | C80: Kotido | D80: 198011 | E80: =IF(INTRO!$E$48="","",ROUND($D80*INTRO!$E$48,0)) -> 28118 | F80: =IF(INTRO!$E$49="","",ROUND($D80*INTRO!$E$49,0)) -> 59799 | G80: =IF(INTRO!$E$50="","",ROUND($D80*INTRO!$E$50,0)) -> 103164 | H80: 99 | I80: 0 | J80: 3 | K80: 0 | L80: =IF(INTRO!$E$38="Endemic", IF($H80>0, IF($H80=4,"Unknown", IF($H80=99,"Stopped", $D80)), 0),"Not required") -> Stopped | M80: 0 | N80: =IF(INTRO!$E$42="Endemic", IF(AND($J80>1,$J80<5), IF($J80=4, "Unknown", E80+F80), 0),"Not required") -> 87917 | O80: 0 | P80: 0 | Q80: 0 | R80: 2 | S80: 0 | T80: T3 (ALB/MBD) | U80: T3 (ALB/MBD) | X80: 49755 | Y80: KOTIDO | AA80: TRUE
A81: =IF(INTRO!$E$34<>0,INTRO!$E$34,"") -> Uganda | B81: Northern | C81: Lamwo | D81: 153001 | E81: =IF(INTRO!$E$48="","",ROUND($D81*INTRO!$E$48,0)) -> 21726 | F81: =IF(INTRO!$E$49="","",ROUND($D81*INTRO!$E$49,0)) -> 46206 | G81: =IF(INTRO!$E$50="","",ROUND($D81*INTRO!$E$50,0)) -> 79714 | H81: 1 | I81: 1 | J81: 3 | K81: 1 | L81: =IF(INTRO!$E$38="Endemic", IF($H81>0, IF($H81=4,"Unknown", IF($H81=99,"Stopped", $D81)), 0),"Not required") -> 153001 | M81: 153001 | N81: =IF(INTRO!$E$42="Endemic", IF(AND($J81>1,$J81<5), IF($J81=4, "Unknown", E81+F81), 0),"Not required") -> 67932 | O81: 40343 | P81: 1 | Q81: 2 | R81: 2 | S81: 1 | T81: MDA1 (IVM+ALB) | U81: T2 (PZQ) | X81: 49772 | Y81: LAMWO | AA81: TRUE
A82: =IF(INTRO!$E$34<>0,INTRO!$E$34,"") -> Uganda | B82: Northern | C82: Lira | D82: 446269 | E82: =IF(INTRO!$E$48="","",ROUND($D82*INTRO!$E$48,0)) -> 63370 | F82: =IF(INTRO!$E$49="","",ROUND($D82*INTRO!$E$49,0)) -> 134773 | G82: =IF(INTRO!$E$50="","",ROUND($D82*INTRO!$E$50,0)) -> 232506 | H82: 99 | I82: 1 | J82: 3 | K82: 1 | L82: =IF(INTRO!$E$38="Endemic", IF($H82>0, IF($H82=4,"Unknown", IF($H82=99,"Stopped", $D82)), 0),"Not required") -> Stopped | M82: 73110 | N82: =IF(INTRO!$E$42="Endemic", IF(AND($J82>1,$J82<5), IF($J82=4, "Unknown", E82+F82), 0),"Not required") -> 198143 | O82: 8718 | P82: 0 | Q82: 1 | R82: 2 | S82: 1 | T82: MDA3 (IVM) | U82: T2 (PZQ) | X82: 49771 | Y82: LIRA | AA82: TRUE
A83: =IF(INTRO!$E$34<>0,INTRO!$E$34,"") -> Uganda | B83: Northern | C83: Maracha | D83: 203572 | E83: =IF(INTRO!$E$48="","",ROUND($D83*INTRO!$E$48,0)) -> 28907 | F83: =IF(INTRO!$E$49="","",ROUND($D83*INTRO!$E$49,0)) -> 61479 | G83: =IF(INTRO!$E$50="","",ROUND($D83*INTRO!$E$50,0)) -> 106061 | H83: 1 | I83: 99 | J83: 3 | K83: 1 | L83: =IF(INTRO!$E$38="Endemic", IF($H83>0, IF($H83=4,"Unknown", IF($H83=99,"Stopped", $D83)), 0),"Not required") -> 203572 | M83: Stopped | N83: =IF(INTRO!$E$42="Endemic", IF(AND($J83>1,$J83<5), IF($J83=4, "Unknown", E83+F83), 0),"Not required") -> 90386 | O83: 61479 | P83: 1 | Q83: 0 | R83: 2 | S83: 1 | T83: MDA1 (IVM+ALB) | U83: T2 (PZQ) | X83: 49784 | Y83: MARACHA | AA83: TRUE
A84: =IF(INTRO!$E$34<>0,INTRO!$E$34,"") -> Uganda | B84: Northern | C84: Moroto | D84: 113122 | E84: =IF(INTRO!$E$48="","",ROUND($D84*INTRO!$E$48,0)) -> 16063 | F84: =IF(INTRO!$E$49="","",ROUND($D84*INTRO!$E$49,0)) -> 34163 | G84: =IF(INTRO!$E$50="","",ROUND($D84*INTRO!$E$50,0)) -> 58937 | H84: 99 | I84: 0 | J84: 3 | K84: 0 | L84: =IF(INTRO!$E$38="Endemic", IF($H84>0, IF($H84=4,"Unknown", IF($H84=99,"Stopped", $D84)), 0),"Not required") -> Stopped | M84: 0 | N84: =IF(INTRO!$E$42="Endemic", IF(AND($J84>1,$J84<5), IF($J84=4, "Unknown", E84+F84), 0),"Not required") -> 50226 | O84: 0 | P84: 0 | Q84: 0 | R84: 2 | S84: 0 | T84: T3 (ALB/MBD) | U84: T3 (ALB/MBD) | X84: 49781 | Y84: MOROTO | AA84: TRUE
A85: =IF(INTRO!$E$34<>0,INTRO!$E$34,"") -> Uganda | B85: Northern | C85: Moyo | D85: 152035 | E85: =IF(INTRO!$E$48="","",ROUND($D85*INTRO!$E$48,0)) -> 21589 | F85: =IF(INTRO!$E$49="","",ROUND($D85*INTRO!$E$49,0)) -> 45915 | G85: =IF(INTRO!$E$50="","",ROUND($D85*INTRO!$E$50,0)) -> 79210 | H85: 99 | I85: 1 | J85: 3 | K85: 3 | L85: =IF(INTRO!$E$38="Endemic", IF($H85>0, IF($H85=4,"Unknown", IF($H85=99,"Stopped", $D85)), 0),"Not required") -> Stopped | M85: 90729 | N85: =IF(INTRO!$E$42="Endemic", IF(AND($J85>1,$J85<5), IF($J85=4, "Unknown", E85+F85), 0),"Not required") -> 67504 | O85: 89608 | P85: 0 | Q85: 2 | R85: 2 | S85: 1 | T85: MDA3 (IVM) | U85: T2 (PZQ) | X85: 49782 | Y85: MOYO | AA85: TRUE
A86: =IF(INTRO!$E$34<>0,INTRO!$E$34,"") -> Uganda | B86: Northern | C86: Nakapiripirit | D86: 171370 | E86: =IF(INTRO!$E$48="","",ROUND($D86*INTRO!$E$48,0)) -> 24335 | F86: =IF(INTRO!$E$49="","",ROUND($D86*INTRO!$E$49,0)) -> 51754 | G86: =IF(INTRO!$E$50="","",ROUND($D86*INTRO!$E$50,0)) -> 89284 | H86: 99 | I86: 0 | J86: 3 | K86: 1 | L86: =IF(INTRO!$E$38="Endemic", IF($H86>0, IF($H86=4,"Unknown", IF($H86=99,"Stopped", $D86)), 0),"Not required") -> Stopped | M86: 0 | N86: =IF(INTRO!$E$42="Endemic", IF(AND($J86>1,$J86<5), IF($J86=4, "Unknown", E86+F86), 0),"Not required") -> 76089 | O86: 7906 | P86: 0 | Q86: 0 | R86: 2 | S86: 1 | T86: T3 (ALB/MBD) | U86: T2 (PZQ) | X86: 49794 | Y86: NAKAPIRIPIRIT | AA86: TRUE
A87: =IF(INTRO!$E$34<>0,INTRO!$E$34,"") -> Uganda | B87: Northern | C87: Napak | D87: 155547 | E87: =IF(INTRO!$E$48="","",ROUND($D87*INTRO!$E$48,0)) -> 22088 | F87: =IF(INTRO!$E$49="","",ROUND($D87*INTRO!$E$49,0)) -> 46975 | G87: =IF(INTRO!$E$50="","",ROUND($D87*INTRO!$E$50,0)) -> 81040 | H87: 99 | I87: 0 | J87: 3 | K87: 0 | L87: =IF(INTRO!$E$38="Endemic", IF($H87>0, IF($H87=4,"Unknown", IF($H87=99,"Stopped", $D87)), 0),"Not required") -> Stopped | M87: 0 | N87: =IF(INTRO!$E$42="Endemic", IF(AND($J87>1,$J87<5), IF($J87=4, "Unknown", E87+F87), 0),"Not required") -> 69063 | O87: 0 | P87: 0 | Q87: 0 | R87: 2 | S87: 0 | T87: T3 (ALB/MBD) | U87: T3 (ALB/MBD) | X87: 49797 | Y87: NAPAK | AA87: TRUE
A88: =IF(INTRO!$E$34<>0,INTRO!$E$34,"") -> Uganda | B88: Northern | C88: Nebbi | D88: 433966 | E88: =IF(INTRO!$E$48="","",ROUND($D88*INTRO!$E$48,0)) -> 61623 | F88: =IF(INTRO!$E$49="","",ROUND($D88*INTRO!$E$49,0)) -> 131058 | G88: =IF(INTRO!$E$50="","",ROUND($D88*INTRO!$E$50,0)) -> 226096 | H88: 99 | I88: 1 | J88: 3 | K88: 3 | L88: =IF(INTRO!$E$38="Endemic", IF($H88>0, IF($H88=4,"Unknown", IF($H88=99,"Stopped", $D88)), 0),"Not required") -> Stopped | M88: 142850 | N88: =IF(INTRO!$E$42="Endemic", IF(AND($J88>1,$J88<5), IF($J88=4, "Unknown", E88+F88), 0),"Not required") -> 192681 | O88: 145807 | P88: 0 | Q88: 2 | R88: 2 | S88: 1 | T88: MDA3 (IVM) | U88: T2 (PZQ) | X88: 49793 | Y88: NEBBI | AA88: TRUE
A89: =IF(INTRO!$E$34<>0,INTRO!$E$34,"") -> Uganda | B89: Northern | C89: Nwoya | D89: 180617 | E89: =IF(INTRO!$E$48="","",ROUND($D89*INTRO!$E$48,0)) -> 25648 | F89: =IF(INTRO!$E$49="","",ROUND($D89*INTRO!$E$49,0)) -> 54546 | G89: =IF(INTRO!$E$50="","",ROUND($D89*INTRO!$E$50,0)) -> 94101 | H89: 99 | I89: 1 | J89: 3 | K89: 2 | L89: =IF(INTRO!$E$38="Endemic", IF($H89>0, IF($H89=4,"Unknown", IF($H89=99,"Stopped", $D89)), 0),"Not required") -> Stopped | M89: 180617 | N89: =IF(INTRO!$E$42="Endemic", IF(AND($J89>1,$J89<5), IF($J89=4, "Unknown", E89+F89), 0),"Not required") -> 80194 | O89: 144863 | P89: 0 | Q89: 2 | R89: 2 | S89: 1 | T89: MDA3 (IVM) | U89: T2 (PZQ) | X89: 49801 | Y89: NWOYA | AA89: TRUE
A90: =IF(INTRO!$E$34<>0,INTRO!$E$34,"") -> Uganda | B90: Northern | C90: Omoro | D90: 192557 | E90: =IF(INTRO!$E$48="","",ROUND($D90*INTRO!$E$48,0)) -> 27343 | F90: =IF(INTRO!$E$49="","",ROUND($D90*INTRO!$E$49,0)) -> 58152 | G90: =IF(INTRO!$E$50="","",ROUND($D90*INTRO!$E$50,0)) -> 100322 | H90: 1 | I90: 1 | J90: 3 | K90: 2 | L90: =IF(INTRO!$E$38="Endemic", IF($H90>0, IF($H90=4,"Unknown", IF($H90=99,"Stopped", $D90)), 0),"Not required") -> 192557 | M90: 192557 | N90: =IF(INTRO!$E$42="Endemic", IF(AND($J90>1,$J90<5), IF($J90=4, "Unknown", E90+F90), 0),"Not required") -> 85495 | O90: 134078 | P90: 1 | Q90: 2 | R90: 2 | S90: 1 | T90: MDA1 (IVM+ALB) | U90: T2 (PZQ) | X90: 49818 | Y90: OMORO | AA90: TRUE
A91: =IF(INTRO!$E$34<>0,INTRO!$E$34,"") -> Uganda | B91: Northern | C91: Otuke | D91: 114021 | E91: =IF(INTRO!$E$48="","",ROUND($D91*INTRO!$E$48,0)) -> 16191 | F91: =IF(INTRO!$E$49="","",ROUND($D91*INTRO!$E$49,0)) -> 34434 | G91: =IF(INTRO!$E$50="","",ROUND($D91*INTRO!$E$50,0)) -> 59405 | H91: 99 | I91: 0 | J91: 3 | K91: 0 | L91: =IF(INTRO!$E$38="Endemic", IF($H91>0, IF($H91=4,"Unknown", IF($H91=99,"Stopped", $D91)), 0),"Not required") -> Stopped | M91: 0 | N91: =IF(INTRO!$E$42="Endemic", IF(AND($J91>1,$J91<5), IF($J91=4, "Unknown", E91+F91), 0),"Not required") -> 50625 | O91: 0 | P91: 0 | Q91: 0 | R91: 2 | S91: 0 | T91: T3 (ALB/MBD) | U91: T3 (ALB/MBD) | X91: 49803 | Y91: OTUKE | AA91: TRUE
A92: =IF(INTRO!$E$34<>0,INTRO!$E$34,"") -> Uganda | B92: Northern | C92: Oyam | D92: 419585 | E92: =IF(INTRO!$E$48="","",ROUND($D92*INTRO!$E$48,0)) -> 59581 | F92: =IF(INTRO!$E$49="","",ROUND($D92*INTRO!$E$49,0)) -> 126715 | G92: =IF(INTRO!$E$50="","",ROUND($D92*INTRO!$E$50,0)) -> 218604 | H92: 99 | I92: 1 | J92: 3 | K92: 3 | L92: =IF(INTRO!$E$38="Endemic", IF($H92>0, IF($H92=4,"Unknown", IF($H92=99,"Stopped", $D92)), 0),"Not required") -> Stopped | M92: 23841 | N92: =IF(INTRO!$E$42="Endemic", IF(AND($J92>1,$J92<5), IF($J92=4, "Unknown", E92+F92), 0),"Not required") -> 186296 | O92: 169299 | P92: 0 | Q92: 2 | R92: 2 | S92: 1 | T92: MDA3 (IVM) | U92: T2 (PZQ) | X92: 49802 | Y92: OYAM | AA92: TRUE
A93: =IF(INTRO!$E$34<>0,INTRO!$E$34,"") -> Uganda | B93: Northern | C93: Pader | D93: 194828 | E93: =IF(INTRO!$E$48="","",ROUND($D93*INTRO!$E$48,0)) -> 27666 | F93: =IF(INTRO!$E$49="","",ROUND($D93*INTRO!$E$49,0)) -> 58838 | G93: =IF(INTRO!$E$50="","",ROUND($D93*INTRO!$E$50,0)) -> 101505 | H93: 99 | I93: 1 | J93: 3 | K93: 3 | L93: =IF(INTRO!$E$38="Endemic", IF($H93>0, IF($H93=4,"Unknown", IF($H93=99,"Stopped", $D93)), 0),"Not required") -> Stopped | M93: 194828 | N93: =IF(INTRO!$E$42="Endemic", IF(AND($J93>1,$J93<5), IF($J93=4, "Unknown", E93+F93), 0),"Not required") -> 86504 | O93: 188678 | P93: 0 | Q93: 2 | R93: 2 | S93: 1 | T93: MDA3 (IVM) | U93: T2 (PZQ) | X93: 49805 | Y93: PADER | AA93: TRUE
A94: =IF(INTRO!$E$34<>0,INTRO!$E$34,"") -> Uganda | B94: Northern | C94: Yumbe | D94: 530241 | E94: =IF(INTRO!$E$48="","",ROUND($D94*INTRO!$E$48,0)) -> 75294 | F94: =IF(INTRO!$E$49="","",ROUND($D94*INTRO!$E$49,0)) -> 160133 | G94: =IF(INTRO!$E$50="","",ROUND($D94*INTRO!$E$50,0)) -> 276256 | H94: 99 | I94: 1 | J94: 3 | K94: 2 | L94: =IF(INTRO!$E$38="Endemic", IF($H94>0, IF($H94=4,"Unknown", IF($H94=99,"Stopped", $D94)), 0),"Not required") -> Stopped | M94: 191424 | N94: =IF(INTRO!$E$42="Endemic", IF(AND($J94>1,$J94<5), IF($J94=4, "Unknown", E94+F94), 0),"Not required") -> 235427 | O94: 247540 | P94: 0 | Q94: 1 | R94: 2 | S94: 1 | T94: MDA3 (IVM) | U94: T2 (PZQ) | X94: 49816 | Y94: YUMBE | AA94: TRUE
A95: =IF(INTRO!$E$34<>0,INTRO!$E$34,"") -> Uganda | B95: Northern | C95: Zombo | D95: 252098 | E95: =IF(INTRO!$E$48="","",ROUND($D95*INTRO!$E$48,0)) -> 35798 | F95: =IF(INTRO!$E$49="","",ROUND($D95*INTRO!$E$49,0)) -> 76134 | G95: =IF(INTRO!$E$50="","",ROUND($D95*INTRO!$E$50,0)) -> 131343 | H95: 99 | I95: 1 | J95: 3 | K95: 1 | L95: =IF(INTRO!$E$38="Endemic", IF($H95>0, IF($H95=4,"Unknown", IF($H95=99,"Stopped", $D95)), 0),"Not required") -> Stopped | M95: 252098 | N95: =IF(INTRO!$E$42="Endemic", IF(AND($J95>1,$J95<5), IF($J95=4, "Unknown", E95+F95), 0),"Not required") -> 111932 | O95: 29902 | P95: 0 | Q95: 2 | R95: 2 | S95: 1 | T95: MDA3 (IVM) | U95: T2 (PZQ) | X95: 49817 | Y95: ZOMBO | AA95: TRUE
A96: =IF(INTRO!$E$34<>0,INTRO!$E$34,"") -> Uganda | B96: Western | C96: Buhweju | D96: 132030 | E96: =IF(INTRO!$E$48="","",ROUND($D96*INTRO!$E$48,0)) -> 18748 | F96: =IF(INTRO!$E$49="","",ROUND($D96*INTRO!$E$49,0)) -> 39873 | G96: =IF(INTRO!$E$50="","",ROUND($D96*INTRO!$E$50,0)) -> 68788 | H96: 0 | I96: 99 | J96: 3 | K96: 0 | L96: =IF(INTRO!$E$38="Endemic", IF($H96>0, IF($H96=4,"Unknown", IF($H96=99,"Stopped", $D96)), 0),"Not required") -> 0 | M96: Stopped | N96: =IF(INTRO!$E$42="Endemic", IF(AND($J96>1,$J96<5), IF($J96=4, "Unknown", E96+F96), 0),"Not required") -> 58621 | O96: 0 | P96: 0 | Q96: 0 | R96: 2 | S96: 0 | T96: T3 (ALB/MBD) | U96: T3 (ALB/MBD) | X96: 49724 | Y96: BUHWEJU | AA96: TRUE
A97: =IF(INTRO!$E$34<>0,INTRO!$E$34,"") -> Uganda | B97: Western | C97: Buliisa | D97: 123763 | E97: =IF(INTRO!$E$48="","",ROUND($D97*INTRO!$E$48,0)) -> 17574 | F97: =IF(INTRO!$E$49="","",ROUND($D97*INTRO!$E$49,0)) -> 37376 | G97: =IF(INTRO!$E$50="","",ROUND($D97*INTRO!$E$50,0)) -> 64481 | H97: 0 | I97: 1 | J97: 3 | K97: 3 | L97: =IF(INTRO!$E$38="Endemic", IF($H97>0, IF($H97=4,"Unknown", IF($H97=99,"Stopped", $D97)), 0),"Not required") -> 0 | M97: 34376 | N97: =IF(INTRO!$E$42="Endemic", IF(AND($J97>1,$J97<5), IF($J97=4, "Unknown", E97+F97), 0),"Not required") -> 54950 | O97: 114938 | P97: 0 | Q97: 2 | R97: 2 | S97: 1 | T97: MDA3 (IVM) | U97: T2 (PZQ) | X97: 49720 | Y97: BULIISA | AA97: TRUE
A98: =IF(INTRO!$E$34<>0,INTRO!$E$34,"") -> Uganda | B98: Western | C98: Bundibugyo | D98: 245408 | E98: =IF(INTRO!$E$48="","",ROUND($D98*INTRO!$E$48,0)) -> 34848 | F98: =IF(INTRO!$E$49="","",ROUND($D98*INTRO!$E$49,0)) -> 74113 | G98: =IF(INTRO!$E$50="","",ROUND($D98*INTRO!$E$50,0)) -> 127858 | H98: 99 | I98: 0 | J98: 3 | K98: 0 | L98: =IF(INTRO!$E$38="Endemic", IF($H98>0, IF($H98=4,"Unknown", IF($H98=99,"Stopped", $D98)), 0),"Not required") -> Stopped | M98: 0 | N98: =IF(INTRO!$E$42="Endemic", IF(AND($J98>1,$J98<5), IF($J98=4, "Unknown", E98+F98), 0),"Not required") -> 108961 | O98: 0 | P98: 0 | Q98: 0 | R98: 2 | S98: 0 | T98: T3 (ALB/MBD) | U98: T3 (ALB/MBD) | X98: 49721 | Y98: BUNDIBUGYO | AA98: TRUE
A99: =IF(INTRO!$E$34<>0,INTRO!$E$34,"") -> Uganda | B99: Western | C99: Bushenyi | D99: 256404 | E99: =IF(INTRO!$E$48="","",ROUND($D99*INTRO!$E$48,0)) -> 36409 | F99: =IF(INTRO!$E$49="","",ROUND($D99*INTRO!$E$49,0)) -> 77434 | G99: =IF(INTRO!$E$50="","",ROUND($D99*INTRO!$E$50,0)) -> 133586 | H99: 0 | I99: 99 | J99: 3 | K99: 0 | L99: =IF(INTRO!$E$38="Endemic", IF($H99>0, IF($H99=4,"Unknown", IF($H99=99,"Stopped", $D99)), 0),"Not required") -> 0 | M99: Stopped | N99: =IF(INTRO!$E$42="Endemic", IF(AND($J99>1,$J99<5), IF($J99=4, "Unknown", E99+F99), 0),"Not required") -> 113843 | O99: 0 | P99: 0 | Q99: 0 | R99: 2 | S99: 0 | T99: T3 (ALB/MBD) | U99: T3 (ALB/MBD) | X99: 49722 | Y99: BUSHENYI | AA99: TRUE
A100: =IF(INTRO!$E$34<>0,INTRO!$E$34,"") -> Uganda | B100: Western | C100: Hoima | D100: 626665 | E100: =IF(INTRO!$E$48="","",ROUND($D100*INTRO!$E$48,0)) -> 88986 | F100: =IF(INTRO!$E$49="","",ROUND($D100*INTRO!$E$49,0)) -> 189253 | G100: =IF(INTRO!$E$50="","",ROUND($D100*INTRO!$E$50,0)) -> 326492 | H100: 0 | I100: 1 | J100: 3 | K100: 3 | L100: =IF(INTRO!$E$38="Endemic", IF($H100>0, IF($H100=4,"Unknown", IF($H100=99,"Stopped", $D100)), 0),"Not required") -> 0 | M100: 82518 | N100: =IF(INTRO!$E$42="Endemic", IF(AND($J100>1,$J100<5), IF($J100=4, "Unknown", E100+F100), 0),"Not required") -> 278239 | O100: 164204 | P100: 0 | Q100: 2 | R100: 2 | S100: 1 | T100: MDA3 (IVM) | U100: T2 (PZQ) | X100: 49736 | Y100: HOIMA | AA100: TRUE
A101: =IF(INTRO!$E$34<>0,INTRO!$E$34,"") -> Uganda | B101: Western | C101: Ibanda | D101: 273011 | E101: =IF(INTRO!$E$48="","",ROUND($D101*INTRO!$E$48,0)) -> 38768 | F101: =IF(INTRO!$E$49="","",ROUND($D101*INTRO!$E$49,0)) -> 82449 | G101: =IF(INTRO!$E$50="","",ROUND($D101*INTRO!$E$50,0)) -> 142239 | H101: 0 | I101: 99 | J101: 3 | K101: 1 | L101: =IF(INTRO!$E$38="Endemic", IF($H101>0, IF($H101=4,"Unknown", IF($H101=99,"Stopped", $D101)), 0),"Not required") -> 0 | M101: Stopped | N101: =IF(INTRO!$E$42="Endemic", IF(AND($J101>1,$J101<5), IF($J101=4, "Unknown", E101+F101), 0),"Not required") -> 121217 | O101: 6903 | P101: 0 | Q101: 0 | R101: 2 | S101: 1 | T101: T3 (ALB/MBD) | U101: T2 (PZQ) | X101: 49737 | Y101: IBANDA | AA101: TRUE
A102: =IF(INTRO!$E$34<>0,INTRO!$E$34,"") -> Uganda | B102: Western | C102: Isingiro | D102: 531923 | E102: =IF(INTRO!$E$48="","",ROUND($D102*INTRO!$E$48,0)) -> 75533 | F102: =IF(INTRO!$E$49="","",ROUND($D102*INTRO!$E$49,0)) -> 160641 | G102: =IF(INTRO!$E$50="","",ROUND($D102*INTRO!$E$50,0)) -> 277132 | H102: 0 | I102: 0 | J102: 3 | K102: 1 | L102: =IF(INTRO!$E$38="Endemic", IF($H102>0, IF($H102=4,"Unknown", IF($H102=99,"Stopped", $D102)), 0),"Not required") -> 0 | M102: 0 | N102: =IF(INTRO!$E$42="Endemic", IF(AND($J102>1,$J102<5), IF($J102=4, "Unknown", E102+F102), 0),"Not required") -> 236174 | O102: 20643 | P102: 0 | Q102: 0 | R102: 2 | S102: 1 | T102: T3 (ALB/MBD) | U102: T2 (PZQ) | X102: 49739 | Y102: ISINGIRO | AA102: TRUE
A103: =IF(INTRO!$E$34<>0,INTRO!$E$34,"") -> Uganda | B103: Western | C103: Kabale | D103: 361650 | E103: =IF(INTRO!$E$48="","",ROUND($D103*INTRO!$E$48,0)) -> 51354 | F103: =IF(INTRO!$E$49="","",ROUND($D103*INTRO!$E$49,0)) -> 109218 | G103: =IF(INTRO!$E$50="","",ROUND($D103*INTRO!$E$50,0)) -> 188420 | H103: 0 | I103: 0 | J103: 3 | K103: 0 | L103: =IF(INTRO!$E$38="Endemic", IF($H103>0, IF($H103=4,"Unknown", IF($H103=99,"Stopped", $D103)), 0),"Not required") -> 0 | M103: 0 | N103: =IF(INTRO!$E$42="Endemic", IF(AND($J103>1,$J103<5), IF($J103=4, "Unknown", E103+F103), 0),"Not required") -> 160572 | O103: 0 | P103: 0 | Q103: 0 | R103: 2 | S103: 0 | T103: T3 (ALB/MBD) | U103: T3 (ALB/MBD) | X103: 49741 | Y103: KABALE | AA103: TRUE
A104: =IF(INTRO!$E$34<>0,INTRO!$E$34,"") -> Uganda | B104: Western | C104: Kabarole | D104: 513196 | E104: =IF(INTRO!$E$48="","",ROUND($D104*INTRO!$E$48,0)) -> 72874 | F104: =IF(INTRO!$E$49="","",ROUND($D104*INTRO!$E$49,0)) -> 154985 | G104: =IF(INTRO!$E$50="","",ROUND($D104*INTRO!$E$50,0)) -> 267375 | H104: 0 | I104: 99 | J104: 3 | K104: 3 | L104: =IF(INTRO!$E$38="Endemic", IF($H104>0, IF($H104=4,"Unknown", IF($H104=99,"Stopped", $D104)), 0),"Not required") -> 0 | M104: Stopped | N104: =IF(INTRO!$E$42="Endemic", IF(AND($J104>1,$J104<5), IF($J104=4, "Unknown", E104+F104), 0),"Not required") -> 227859 | O104: 60313 | P104: 0 | Q104: 0 | R104: 2 | S104: 1 | T104: T3 (ALB/MBD) | U104: T2 (PZQ) | X104: 49742 | Y104: KABAROLE | AA104: TRUE
A105: =IF(INTRO!$E$34<>0,INTRO!$E$34,"") -> Uganda | B105: Western | C105: Kagadi | D105: 383811 | E105: =IF(INTRO!$E$48="","",ROUND($D105*INTRO!$E$48,0)) -> 54501 | F105: =IF(INTRO!$E$49="","",ROUND($D105*INTRO!$E$49,0)) -> 115911 | G105: =IF(INTRO!$E$50="","",ROUND($D105*INTRO!$E$50,0)) -> 199966 | H105: 0 | I105: 99 | J105: 3 | K105: 3 | L105: =IF(INTRO!$E$38="Endemic", IF($H105>0, IF($H105=4,"Unknown", IF($H105=99,"Stopped", $D105)), 0),"Not required") -> 0 | M105: Stopped | N105: =IF(INTRO!$E$42="Endemic", IF(AND($J105>1,$J105<5), IF($J105=4, "Unknown", E105+F105), 0),"Not required") -> 170412 | O105: 198582 | P105: 0 | Q105: 0 | R105: 2 | S105: 1 | T105: T3 (ALB/MBD) | U105: T2 (PZQ) | X105: 49752 | Y105: KAGADI | AA105: TRUE
A106: =IF(INTRO!$E$34<>0,INTRO!$E$34,"") -> Uganda | B106: Western | C106: Kakumiro | D106: 322848 | E106: =IF(INTRO!$E$48="","",ROUND($D106*INTRO!$E$48,0)) -> 45844 | F106: =IF(INTRO!$E$49="","",ROUND($D106*INTRO!$E$49,0)) -> 97500 | G106: =IF(INTRO!$E$50="","",ROUND($D106*INTRO!$E$50,0)) -> 168204 | H106: 0 | I106: 0 | J106: 3 | K106: 0 | L106: =IF(INTRO!$E$38="Endemic", IF($H106>0, IF($H106=4,"Unknown", IF($H106=99,"Stopped", $D106)), 0),"Not required") -> 0 | M106: 0 | N106: =IF(INTRO!$E$42="Endemic", IF(AND($J106>1,$J106<5), IF($J106=4, "Unknown", E106+F106), 0),"Not required") -> 143344 | O106: 0 | P106: 0 | Q106: 0 | R106: 2 | S106: 0 | T106: T3 (ALB/MBD) | U106: T3 (ALB/MBD) | X106: 49819 | Y106: KAKUMIRO | AA106: TRUE
A107: =IF(INTRO!$E$34<>0,INTRO!$E$34,"") -> Uganda | B107: Western | C107: Kamwenge | D107: 453280 | E107: =IF(INTRO!$E$48="","",ROUND($D107*INTRO!$E$48,0)) -> 64366 | F107: =IF(INTRO!$E$49="","",ROUND($D107*INTRO!$E$49,0)) -> 136891 | G107: =IF(INTRO!$E$50="","",ROUND($D107*INTRO!$E$50,0)) -> 236159 | H107: 0 | I107: 99 | J107: 3 | K107: 2 | L107: =IF(INTRO!$E$38="Endemic", IF($H107>0, IF($H107=4,"Unknown", IF($H107=99,"Stopped", $D107)), 0),"Not required") -> 0 | M107: Stopped | N107: =IF(INTRO!$E$42="Endemic", IF(AND($J107>1,$J107<5), IF($J107=4, "Unknown", E107+F107), 0),"Not required") -> 201257 | O107: 15387 | P107: 0 | Q107: 0 | R107: 2 | S107: 1 | T107: T3 (ALB/MBD) | U107: T2 (PZQ) | X107: 49748 | Y107: KAMWENGE | AA107: TRUE
A108: =IF(INTRO!$E$34<>0,INTRO!$E$34,"") -> Uganda | B108: Western | C108: Kanungu | D108: 275765 | E108: =IF(INTRO!$E$48="","",ROUND($D108*INTRO!$E$48,0)) -> 39159 | F108: =IF(INTRO!$E$49="","",ROUND($D108*INTRO!$E$49,0)) -> 83281 | G108: =IF(INTRO!$E$50="","",ROUND($D108*INTRO!$E$50,0)) -> 143674 | H108: 0 | I108: 1 | J108: 3 | K108: 0 | L108: =IF(INTRO!$E$38="Endemic", IF($H108>0, IF($H108=4,"Unknown", IF($H108=99,"Stopped", $D108)), 0),"Not required") -> 0 | M108: 64166 | N108: =IF(INTRO!$E$42="Endemic", IF(AND($J108>1,$J108<5), IF($J108=4, "Unknown", E108+F108), 0),"Not required") -> 122440 | O108: 0 | P108: 0 | Q108: 2 | R108: 2 | S108: 0 | T108: MDA3 (IVM) | U108: T3 (ALB/MBD) | X108: 49749 | Y108: KANUNGU | AA108: TRUE
A109: =IF(INTRO!$E$34<>0,INTRO!$E$34,"") -> Uganda | B109: Western | C109: Kasese | D109: 760100 | E109: =IF(INTRO!$E$48="","",ROUND($D109*INTRO!$E$48,0)) -> 107934 | F109: =IF(INTRO!$E$49="","",ROUND($D109*INTRO!$E$49,0)) -> 229550 | G109: =IF(INTRO!$E$50="","",ROUND($D109*INTRO!$E$50,0)) -> 396012 | H109: 0 | I109: 1 | J109: 3 | K109: 3 | L109: =IF(INTRO!$E$38="Endemic", IF($H109>0, IF($H109=4,"Unknown", IF($H109=99,"Stopped", $D109)), 0),"Not required") -> 0 | M109: 135046 | N109: =IF(INTRO!$E$42="Endemic", IF(AND($J109>1,$J109<5), IF($J109=4, "Unknown", E109+F109), 0),"Not required") -> 337484 | O109: 11340 | P109: 0 | Q109: 2 | R109: 2 | S109: 1 | T109: MDA3 (IVM) | U109: T2 (PZQ) | X109: 49750 | Y109: KASESE | AA109: TRUE
A110: =IF(INTRO!$E$34<>0,INTRO!$E$34,"") -> Uganda | B110: Western | C110: Kibaale | D110: 151979 | E110: =IF(INTRO!$E$48="","",ROUND($D110*INTRO!$E$48,0)) -> 21581 | F110: =IF(INTRO!$E$49="","",ROUND($D110*INTRO!$E$49,0)) -> 45898 | G110: =IF(INTRO!$E$50="","",ROUND($D110*INTRO!$E$50,0)) -> 79181 | H110: 0 | I110: 99 | J110: 3 | K110: 0 | L110: =IF(INTRO!$E$38="Endemic", IF($H110>0, IF($H110=4,"Unknown", IF($H110=99,"Stopped", $D110)), 0),"Not required") -> 0 | M110: Stopped | N110: =IF(INTRO!$E$42="Endemic", IF(AND($J110>1,$J110<5), IF($J110=4, "Unknown", E110+F110), 0),"Not required") -> 67479 | O110: 0 | P110: 0 | Q110: 0 | R110: 2 | S110: 0 | T110: T3 (ALB/MBD) | U110: T3 (ALB/MBD) | X110: 49820 | Y110: KIBAALE | AA110: TRUE
A111: =IF(INTRO!$E$34<>0,INTRO!$E$34,"") -> Uganda | B111: Western | C111: Kiruhura | D111: 358812 | E111: =IF(INTRO!$E$48="","",ROUND($D111*INTRO!$E$48,0)) -> 50951 | F111: =IF(INTRO!$E$49="","",ROUND($D111*INTRO!$E$49,0)) -> 108361 | G111: =IF(INTRO!$E$50="","",ROUND($D111*INTRO!$E$50,0)) -> 186941 | H111: 0 | I111: 0 | J111: 3 | K111: 1 | L111: =IF(INTRO!$E$38="Endemic", IF($H111>0, IF($H111=4,"Unknown", IF($H111=99,"Stopped", $D111)), 0),"Not required") -> 0 | M111: 0 | N111: =IF(INTRO!$E$42="Endemic", IF(AND($J111>1,$J111<5), IF($J111=4, "Unknown", E111+F111), 0),"Not required") -> 159312 | O111: 30772 | P111: 0 | Q111: 0 | R111: 2 | S111: 1 | T111: T3 (ALB/MBD) | U111: T2 (PZQ) | X111: 49764 | Y111: KIRUHURA | AA111: TRUE
A112: =IF(INTRO!$E$34<>0,INTRO!$E$34,"") -> Uganda | B112: Western | C112: Kiryandongo | D112: 291135 | E112: =IF(INTRO!$E$48="","",ROUND($D112*INTRO!$E$48,0)) -> 41341 | F112: =IF(INTRO!$E$49="","",ROUND($D112*INTRO!$E$49,0)) -> 87923 | G112: =IF(INTRO!$E$50="","",ROUND($D112*INTRO!$E$50,0)) -> 151681 | H112: 0 | I112: 0 | J112: 3 | K112: 3 | L112: =IF(INTRO!$E$38="Endemic", IF($H112>0, IF($H112=4,"Unknown", IF($H112=99,"Stopped", $D112)), 0),"Not required") -> 0 | M112: 0 | N112: =IF(INTRO!$E$42="Endemic", IF(AND($J112>1,$J112<5), IF($J112=4, "Unknown", E112+F112), 0),"Not required") -> 129264 | O112: 72052 | P112: 0 | Q112: 0 | R112: 2 | S112: 1 | T112: T3 (ALB/MBD) | U112: T2 (PZQ) | X112: 49765 | Y112: KIRYANDONGO | AA112: TRUE
A113: =IF(INTRO!$E$34<>0,INTRO!$E$34,"") -> Uganda | B113: Western | C113: Kisoro | D113: 308096 | E113: =IF(INTRO!$E$48="","",ROUND($D113*INTRO!$E$48,0)) -> 43750 | F113: =IF(INTRO!$E$49="","",ROUND($D113*INTRO!$E$49,0)) -> 93045 | G113: =IF(INTRO!$E$50="","",ROUND($D113*INTRO!$E$50,0)) -> 160518 | H113: 0 | I113: 1 | J113: 3 | K113: 0 | L113: =IF(INTRO!$E$38="Endemic", IF($H113>0, IF($H113=4,"Unknown", IF($H113=99,"Stopped", $D113)), 0),"Not required") -> 0 | M113: 41024 | N113: =IF(INTRO!$E$42="Endemic", IF(AND($J113>1,$J113<5), IF($J113=4, "Unknown", E113+F113), 0),"Not required") -> 136795 | O113: 0 | P113: 0 | Q113: 2 | R113: 2 | S113: 0 | T113: MDA3 (IVM) | U113: T3 (ALB/MBD) | X113: 49753 | Y113: KISORO | AA113: TRUE
A114: =IF(INTRO!$E$34<>0,INTRO!$E$34,"") -> Uganda | B114: Western | C114: Kyegegwa | D114: 308022 | E114: =IF(INTRO!$E$48="","",ROUND($D114*INTRO!$E$48,0)) -> 43739 | F114: =IF(INTRO!$E$49="","",ROUND($D114*INTRO!$E$49,0)) -> 93023 | G114: =IF(INTRO!$E$50="","",ROUND($D114*INTRO!$E$50,0)) -> 160479 | H114: 0 | I114: 0 | J114: 3 | K114: 0 | L114: =IF(INTRO!$E$38="Endemic", IF($H114>0, IF($H114=4,"Unknown", IF($H114=99,"Stopped", $D114)), 0),"Not required") -> 0 | M114: 0 | N114: =IF(INTRO!$E$42="Endemic", IF(AND($J114>1,$J114<5), IF($J114=4, "Unknown", E114+F114), 0),"Not required") -> 136762 | O114: 0 | P114: 0 | Q114: 0 | R114: 2 | S114: 0 | T114: T3 (ALB/MBD) | U114: T3 (ALB/MBD) | X114: 49770 | Y114: KYEGEGWA | AA114: TRUE
A115: =IF(INTRO!$E$34<>0,INTRO!$E$34,"") -> Uganda | B115: Western | C115: Kyenjojo | D115: 461757 | E115: =IF(INTRO!$E$48="","",ROUND($D115*INTRO!$E$48,0)) -> 65569 | F115: =IF(INTRO!$E$49="","",ROUND($D115*INTRO!$E$49,0)) -> 139451 | G115: =IF(INTRO!$E$50="","",ROUND($D115*INTRO!$E$50,0)) -> 240575 | H115: 0 | I115: 99 | J115: 3 | K115: 0 | L115: =IF(INTRO!$E$38="Endemic", IF($H115>0, IF($H115=4,"Unknown", IF($H115=99,"Stopped", $D115)), 0),"Not required") -> 0 | M115: Stopped | N115: =IF(INTRO!$E$42="Endemic", IF(AND($J115>1,$J115<5), IF($J115=4, "Unknown", E115+F115), 0),"Not required") -> 205020 | O115: 0 | P115: 0 | Q115: 0 | R115: 2 | S115: 0 | T115: T3 (ALB/MBD) | U115: T3 (ALB/MBD) | X115: 49757 | Y115: KYENJOJO | AA115: TRUE
A116: =IF(INTRO!$E$34<>0,INTRO!$E$34,"") -> Uganda | B116: Western | C116: Masindi | D116: 318385 | E116: =IF(INTRO!$E$48="","",ROUND($D116*INTRO!$E$48,0)) -> 45211 | F116: =IF(INTRO!$E$49="","",ROUND($D116*INTRO!$E$49,0)) -> 96152 | G116: =IF(INTRO!$E$50="","",ROUND($D116*INTRO!$E$50,0)) -> 165879 | H116: 0 | I116: 1 | J116: 3 | K116: 0 | L116: =IF(INTRO!$E$38="Endemic", IF($H116>0, IF($H116=4,"Unknown", IF($H116=99,"Stopped", $D116)), 0),"Not required") -> 0 | M116: 54001 | N116: =IF(INTRO!$E$42="Endemic", IF(AND($J116>1,$J116<5), IF($J116=4, "Unknown", E116+F116), 0),"Not required") -> 141363 | O116: 0 | P116: 0 | Q116: 2 | R116: 2 | S116: 0 | T116: MDA3 (IVM) | U116: T3 (ALB/MBD) | X116: 49778 | Y116: MASINDI | AA116: TRUE
A117: =IF(INTRO!$E$34<>0,INTRO!$E$34,"") -> Uganda | B117: Western | C117: Mbarara | D117: 516907 | E117: =IF(INTRO!$E$48="","",ROUND($D117*INTRO!$E$48,0)) -> 73401 | F117: =IF(INTRO!$E$49="","",ROUND($D117*INTRO!$E$49,0)) -> 156106 | G117: =IF(INTRO!$E$50="","",ROUND($D117*INTRO!$E$50,0)) -> 269309 | H117: 0 | I117: 0 | J117: 3 | K117: 0 | L117: =IF(INTRO!$E$38="Endemic", IF($H117>0, IF($H117=4,"Unknown", IF($H117=99,"Stopped", $D117)), 0),"Not required") -> 0 | M117: 0 | N117: =IF(INTRO!$E$42="Endemic", IF(AND($J117>1,$J117<5), IF($J117=4, "Unknown", E117+F117), 0),"Not required") -> 229507 | O117: 0 | P117: 0 | Q117: 0 | R117: 2 | S117: 0 | T117: T3 (ALB/MBD) | U117: T3 (ALB/MBD) | X117: 49786 | Y117: MBARARA | AA117: TRUE
A118: =IF(INTRO!$E$34<>0,INTRO!$E$34,"") -> Uganda | B118: Western | C118: Mitooma | D118: 200629 | E118: =IF(INTRO!$E$48="","",ROUND($D118*INTRO!$E$48,0)) -> 28489 | F118: =IF(INTRO!$E$49="","",ROUND($D118*INTRO!$E$49,0)) -> 60590 | G118: =IF(INTRO!$E$50="","",ROUND($D118*INTRO!$E$50,0)) -> 104528 | H118: 0 | I118: 99 | J118: 3 | K118: 0 | L118: =IF(INTRO!$E$38="Endemic", IF($H118>0, IF($H118=4,"Unknown", IF($H118=99,"Stopped", $D118)), 0),"Not required") -> 0 | M118: Stopped | N118: =IF(INTRO!$E$42="Endemic", IF(AND($J118>1,$J118<5), IF($J118=4, "Unknown", E118+F118), 0),"Not required") -> 89079 | O118: 0 | P118: 0 | Q118: 0 | R118: 2 | S118: 0 | T118: T3 (ALB/MBD) | U118: T3 (ALB/MBD) | X118: 49787 | Y118: MITOOMA | AA118: TRUE
A119: =IF(INTRO!$E$34<>0,INTRO!$E$34,"") -> Uganda | B119: Western | C119: Ntoroko | D119: 73282 | E119: =IF(INTRO!$E$48="","",ROUND($D119*INTRO!$E$48,0)) -> 10406 | F119: =IF(INTRO!$E$49="","",ROUND($D119*INTRO!$E$49,0)) -> 22131 | G119: =IF(INTRO!$E$50="","",ROUND($D119*INTRO!$E$50,0)) -> 38180 | H119: 99 | I119: 0 | J119: 3 | K119: 3 | L119: =IF(INTRO!$E$38="Endemic", IF($H119>0, IF($H119=4,"Unknown", IF($H119=99,"Stopped", $D119)), 0),"Not required") -> Stopped | M119: 0 | N119: =IF(INTRO!$E$42="Endemic", IF(AND($J119>1,$J119<5), IF($J119=4, "Unknown", E119+F119), 0),"Not required") -> 32537 | O119: 13507 | P119: 0 | Q119: 0 | R119: 2 | S119: 1 | T119: T3 (ALB/MBD) | U119: T2 (PZQ) | X119: 49799 | Y119: NTOROKO | AA119: TRUE
A120: =IF(INTRO!$E$34<>0,INTRO!$E$34,"") -> Uganda | B120: Western | C120: Ntungamo | D120: 529168 | E120: =IF(INTRO!$E$48="","",ROUND($D120*INTRO!$E$48,0)) -> 75142 | F120: =IF(INTRO!$E$49="","",ROUND($D120*INTRO!$E$49,0)) -> 159809 | G120: =IF(INTRO!$E$50="","",ROUND($D120*INTRO!$E$50,0)) -> 275697 | H120: 0 | I120: 0 | J120: 3 | K120: 0 | L120: =IF(INTRO!$E$38="Endemic", IF($H120>0, IF($H120=4,"Unknown", IF($H120=99,"Stopped", $D120)), 0),"Not required") -> 0 | M120: 0 | N120: =IF(INTRO!$E$42="Endemic", IF(AND($J120>1,$J120<5), IF($J120=4, "Unknown", E120+F120), 0),"Not required") -> 234951 | O120: 0 | P120: 0 | Q120: 0 | R120: 2 | S120: 0 | T120: T3 (ALB/MBD) | U120: T3 (ALB/MBD) | X120: 49800 | Y120: NTUNGAMO | AA120: TRUE
A121: =IF(INTRO!$E$34<>0,INTRO!$E$34,"") -> Uganda | B121: Western | C121: Rubanda | D121: 216066 | E121: =IF(INTRO!$E$48="","",ROUND($D121*INTRO!$E$48,0)) -> 30681 | F121: =IF(INTRO!$E$49="","",ROUND($D121*INTRO!$E$49,0)) -> 65252 | G121: =IF(INTRO!$E$50="","",ROUND($D121*INTRO!$E$50,0)) -> 112570 | H121: 0 | I121: 1 | J121: 3 | K121: 0 | L121: =IF(INTRO!$E$38="Endemic", IF($H121>0, IF($H121=4,"Unknown", IF($H121=99,"Stopped", $D121)), 0),"Not required") -> 0 | M121: 33282 | N121: =IF(INTRO!$E$42="Endemic", IF(AND($J121>1,$J121<5), IF($J121=4, "Unknown", E121+F121), 0),"Not required") -> 95933 | O121: 0 | P121: 0 | Q121: 2 | R121: 2 | S121: 0 | T121: MDA3 (IVM) | U121: T3 (ALB/MBD) | X121: 49821 | Y121: RUBANDA | AA121: TRUE
A122: =IF(INTRO!$E$34<>0,INTRO!$E$34,"") -> Uganda | B122: Western | C122: Rubirizi | D122: 141248 | E122: =IF(INTRO!$E$48="","",ROUND($D122*INTRO!$E$48,0)) -> 20057 | F122: =IF(INTRO!$E$49="","",ROUND($D122*INTRO!$E$49,0)) -> 42657 | G122: =IF(INTRO!$E$50="","",ROUND($D122*INTRO!$E$50,0)) -> 73590 | H122: 0 | I122: 99 | J122: 3 | K122: 3 | L122: =IF(INTRO!$E$38="Endemic", IF($H122>0, IF($H122=4,"Unknown", IF($H122=99,"Stopped", $D122)), 0),"Not required") -> 0 | M122: Stopped | N122: =IF(INTRO!$E$42="Endemic", IF(AND($J122>1,$J122<5), IF($J122=4, "Unknown", E122+F122), 0),"Not required") -> 62714 | O122: 3509 | P122: 0 | Q122: 0 | R122: 2 | S122: 1 | T122: T3 (ALB/MBD) | U122: T2 (PZQ) | X122: 49808 | Y122: RUBIRIZI | AA122: TRUE
A123: =IF(INTRO!$E$34<>0,INTRO!$E$34,"") -> Uganda | B123: Western | C123: Rukungiri | D123: 344175 | E123: =IF(INTRO!$E$48="","",ROUND($D123*INTRO!$E$48,0)) -> 48873 | F123: =IF(INTRO!$E$49="","",ROUND($D123*INTRO!$E$49,0)) -> 103941 | G123: =IF(INTRO!$E$50="","",ROUND($D123*INTRO!$E$50,0)) -> 179315 | H123: 0 | I123: 0 | J123: 3 | K123: 1 | L123: =IF(INTRO!$E$38="Endemic", IF($H123>0, IF($H123=4,"Unknown", IF($H123=99,"Stopped", $D123)), 0),"Not required") -> 0 | M123: 0 | N123: =IF(INTRO!$E$42="Endemic", IF(AND($J123>1,$J123<5), IF($J123=4, "Unknown", E123+F123), 0),"Not required") -> 152814 | O123: 11178 | P123: 0 | Q123: 0 | R123: 2 | S123: 1 | T123: T3 (ALB/MBD) | U123: T2 (PZQ) | X123: 49806 | Y123: RUKUNGIRI | AA123: TRUE
A124: =IF(INTRO!$E$34<>0,INTRO!$E$34,"") -> Uganda | B124: Western | C124: Sheema | D124: 226767 | E124: =IF(INTRO!$E$48="","",ROUND($D124*INTRO!$E$48,0)) -> 32201 | F124: =IF(INTRO!$E$49="","",ROUND($D124*INTRO!$E$49,0)) -> 68484 | G124: =IF(INTRO!$E$50="","",ROUND($D124*INTRO!$E$50,0)) -> 118146 | H124: 0 | I124: 0 | J124: 3 | K124: 0 | L124: =IF(INTRO!$E$38="Endemic", IF($H124>0, IF($H124=4,"Unknown", IF($H124=99,"Stopped", $D124)), 0),"Not required") -> 0 | M124: 0 | N124: =IF(INTRO!$E$42="Endemic", IF(AND($J124>1,$J124<5), IF($J124=4, "Unknown", E124+F124), 0),"Not required") -> 100685 | O124: 0 | P124: 0 | Q124: 0 | R124: 2 | S124: 0 | T124: T3 (ALB/MBD) | U124: T3 (ALB/MBD) | X124: 49813 | Y124: SHEEMA | AA124: TRUE

Sheet MDA1
A1: MDA 1 - Ivermectin (IVM) and Albendazole (ALB)
A2: Administrative structure, population requiring PC by age group, population treated by age group and coverage
A4: TOTAL | G4: =SUM(G$9:G$1000) -> 903104 | H4: =SUM(H$9:H$1000) -> 1558003 | I4: =SUM(I$9:I$1000) -> 2461107 | K4: =SUM(K$9:K$1000) -> 726439 | L4: =SUM(L$9:L$1000) -> 1253228 | M4: =SUM(M$9:M$1000) -> 1979667 | O4: =IF(G4<>0, IF(K4/G4*100=0, "-", K4/G4*100), " ") -> 80.43802264 | P4: =IF(H4<>0, IF(L4/H4*100=0, "-", L4/H4*100), " ") -> 80.43809928 | Q4: =IF(I4<>0, IF(M4/I4*100=0, "-", M4/I4*100), " ") -> 80.43807116
D6: PC implemented | E6: Date | F6: Population targeted for MDA 1 | J6: Population treated | N6: Programme coverage (%)
A7: Country | B7: Province/State | C7: District | F7: PreSAC | G7: SAC | H7: Adults | I7: Total | J7: PreSAC | K7: SAC | L7: Adults | M7: Total | N7: PreSAC | O7: SAC | P7: Adults | Q7: Total
A9: =IF(COUNTRY_INFO!A9=0," ",COUNTRY_INFO!A9) -> Uganda | B9: =IF(COUNTRY_INFO!B9=0," ",COUNTRY_INFO!B9) -> Central | C9: =IF(COUNTRY_INFO!C9=0," ",COUNTRY_INFO!C9) -> Buikwe | D9: =IF(COUNTRY_INFO!$T$9:$T$1000="MDA1 (IVM+ALB)", COUNTRY_INFO!$T$9:$T$1000, " ") ->  | I9: =SUM(F9:H9) -> 0 | M9: =SUM(J9:L9) -> 0 | O9: =IF(G9<>0, IF(K9/G9*100=0, "-", K9/G9*100), " ") ->  | P9: =IF(H9<>0, IF(L9/H9*100=0, "-", L9/H9*100), " ") -> 
A10: =IF(COUNTRY_INFO!A10=0," ",COUNTRY_INFO!A10) -> Uganda | B10: =IF(COUNTRY_INFO!B10=0," ",COUNTRY_INFO!B10) -> Central | C10: =IF(COUNTRY_INFO!C10=0," ",COUNTRY_INFO!C10) -> Bukomansimbi | D10: =IF(COUNTRY_INFO!$T$9:$T$1000="MDA1 (IVM+ALB)", COUNTRY_INFO!$T$9:$T$1000, " ") ->  | I10: =SUM(F10:H10) -> 0 | M10: =SUM(J10:L10) -> 0 | O10: =IF(G10<>0, IF(K10/G10*100=0, "-", K10/G10*100), " ") ->  | P10: =IF(H10<>0, IF(L10/H10*100=0, "-", L10/H10*100), " ") ->  | Q10: =IF(I10<>0, IF(M10/I10*100=0, "-", M10/I10*100), " ") -> 
A11: =IF(COUNTRY_INFO!A11=0," ",COUNTRY_INFO!A11) -> Uganda | B11: =IF(COUNTRY_INFO!B11=0," ",COUNTRY_INFO!B11) -> Central | C11: =IF(COUNTRY_INFO!C11=0," ",COUNTRY_INFO!C11) -> Butambala | D11: =IF(COUNTRY_INFO!$T$9:$T$1000="MDA1 (IVM+ALB)", COUNTRY_INFO!$T$9:$T$1000, " ") ->  | I11: 0 | M11: 0
A12: =IF(COUNTRY_INFO!A12=0," ",COUNTRY_INFO!A12) -> Uganda | B12: =IF(COUNTRY_INFO!B12=0," ",COUNTRY_INFO!B12) -> Central | C12: =IF(COUNTRY_INFO!C12=0," ",COUNTRY_INFO!C12) -> Buvuma | D12: =IF(COUNTRY_INFO!$T$9:$T$1000="MDA1 (IVM+ALB)", COUNTRY_INFO!$T$9:$T$1000, " ") ->  | I12: 0 | M12: 0
A13: =IF(COUNTRY_INFO!A13=0," ",COUNTRY_INFO!A13) -> Uganda | B13: =IF(COUNTRY_INFO!B13=0," ",COUNTRY_INFO!B13) -> Central | C13: =IF(COUNTRY_INFO!C13=0," ",COUNTRY_INFO!C13) -> Gomba | D13: =IF(COUNTRY_INFO!$T$9:$T$1000="MDA1 (IVM+ALB)", COUNTRY_INFO!$T$9:$T$1000, " ") ->  | I13: 0 | M13: 0
A14: =IF(COUNTRY_INFO!A14=0," ",COUNTRY_INFO!A14) -> Uganda | B14: =IF(COUNTRY_INFO!B14=0," ",COUNTRY_INFO!B14) -> Central | C14: =IF(COUNTRY_INFO!C14=0," ",COUNTRY_INFO!C14) -> Kalangala | D14: =IF(COUNTRY_INFO!$T$9:$T$1000="MDA1 (IVM+ALB)", COUNTRY_INFO!$T$9:$T$1000, " ") ->  | I14: 0 | M14: 0
A15: =IF(COUNTRY_INFO!A15=0," ",COUNTRY_INFO!A15) -> Uganda | B15: =IF(COUNTRY_INFO!B15=0," ",COUNTRY_INFO!B15) -> Central | C15: =IF(COUNTRY_INFO!C15=0," ",COUNTRY_INFO!C15) -> Kalungu | D15: =IF(COUNTRY_INFO!$T$9:$T$1000="MDA1 (IVM+ALB)", COUNTRY_INFO!$T$9:$T$1000, " ") ->  | I15: 0 | M15: 0
A16: =IF(COUNTRY_INFO!A16=0," ",COUNTRY_INFO!A16) -> Uganda | B16: =IF(COUNTRY_INFO!B16=0," ",COUNTRY_INFO!B16) -> Central | C16: =IF(COUNTRY_INFO!C16=0," ",COUNTRY_INFO!C16) -> Kampala | D16: =IF(COUNTRY_INFO!$T$9:$T$1000="MDA1 (IVM+ALB)", COUNTRY_INFO!$T$9:$T$1000, " ") ->  | I16: 0 | M16: 0
A17: =IF(COUNTRY_INFO!A17=0," ",COUNTRY_INFO!A17) -> Uganda | B17: =IF(COUNTRY_INFO!B17=0," ",COUNTRY_INFO!B17) -> Central | C17: =IF(COUNTRY_INFO!C17=0," ",COUNTRY_INFO!C17) -> Kayunga | D17: =IF(COUNTRY_INFO!$T$9:$T$1000="MDA1 (IVM+ALB)", COUNTRY_INFO!$T$9:$T$1000, " ") ->  | I17: 0 | M17: 0
A18: =IF(COUNTRY_INFO!A18=0," ",COUNTRY_INFO!A18) -> Uganda | B18: =IF(COUNTRY_INFO!B18=0," ",COUNTRY_INFO!B18) -> Central | C18: =IF(COUNTRY_INFO!C18=0," ",COUNTRY_INFO!C18) -> Kiboga | D18: =IF(COUNTRY_INFO!$T$9:$T$1000="MDA1 (IVM+ALB)", COUNTRY_INFO!$T$9:$T$1000, " ") ->  | I18: 0 | M18: 0
A19: =IF(COUNTRY_INFO!A19=0," ",COUNTRY_INFO!A19) -> Uganda | B19: =IF(COUNTRY_INFO!B19=0," ",COUNTRY_INFO!B19) -> Central | C19: =IF(COUNTRY_INFO!C19=0," ",COUNTRY_INFO!C19) -> Kyankwanzi | D19: =IF(COUNTRY_INFO!$T$9:$T$1000="MDA1 (IVM+ALB)", COUNTRY_INFO!$T$9:$T$1000, " ") ->  | I19: 0 | M19: 0
A20: =IF(COUNTRY_INFO!A20=0," ",COUNTRY_INFO!A20) -> Uganda | B20: =IF(COUNTRY_INFO!B20=0," ",COUNTRY_INFO!B20) -> Central | C20: =IF(COUNTRY_INFO!C20=0," ",COUNTRY_INFO!C20) -> Luwero | D20: =IF(COUNTRY_INFO!$T$9:$T$1000="MDA1 (IVM+ALB)", COUNTRY_INFO!$T$9:$T$1000, " ") ->  | I20: 0 | M20: 0
A21: =IF(COUNTRY_INFO!A21=0," ",COUNTRY_INFO!A21) -> Uganda | B21: =IF(COUNTRY_INFO!B21=0," ",COUNTRY_INFO!B21) -> Central | C21: =IF(COUNTRY_INFO!C21=0," ",COUNTRY_INFO!C21) -> Lwengo | D21: =IF(COUNTRY_INFO!$T$9:$T$1000="MDA1 (IVM+ALB)", COUNTRY_INFO!$T$9:$T$1000, " ") ->  | I21: 0 | M21: 0
A22: =IF(COUNTRY_INFO!A22=0," ",COUNTRY_INFO!A22) -> Uganda | B22: =IF(COUNTRY_INFO!B22=0," ",COUNTRY_INFO!B22) -> Central | C22: =IF(COUNTRY_INFO!C22=0," ",COUNTRY_INFO!C22) -> Lyantonde | D22: =IF(COUNTRY_INFO!$T$9:$T$1000="MDA1 (IVM+ALB)", COUNTRY_INFO!$T$9:$T$1000, " ") ->  | I22: 0 | M22: 0
A23: =IF(COUNTRY_INFO!A23=0," ",COUNTRY_INFO!A23) -> Uganda | B23: =IF(COUNTRY_INFO!B23=0," ",COUNTRY_INFO!B23) -> Central | C23: =IF(COUNTRY_INFO!C23=0," ",COUNTRY_INFO!C23) -> Masaka | D23: =IF(COUNTRY_INFO!$T$9:$T$1000="MDA1 (IVM+ALB)", COUNTRY_INFO!$T$9:$T$1000, " ") ->  | I23: 0 | M23: 0
A24: =IF(COUNTRY_INFO!A24=0," ",COUNTRY_INFO!A24) -> Uganda | B24: =IF(COUNTRY_INFO!B24=0," ",COUNTRY_INFO!B24) -> Central | C24: =IF(COUNTRY_INFO!C24=0," ",COUNTRY_INFO!C24) -> Mityana | D24: =IF(COUNTRY_INFO!$T$9:$T$1000="MDA1 (IVM+ALB)", COUNTRY_INFO!$T$9:$T$1000, " ") ->  | I24: 0 | M24: 0
A25: =IF(COUNTRY_INFO!A25=0," ",COUNTRY_INFO!A25) -> Uganda | B25: =IF(COUNTRY_INFO!B25=0," ",COUNTRY_INFO!B25) -> Central | C25: =IF(COUNTRY_INFO!C25=0," ",COUNTRY_INFO!C25) -> Mpigi | D25: =IF(COUNTRY_INFO!$T$9:$T$1000="MDA1 (IVM+ALB)", COUNTRY_INFO!$T$9:$T$1000, " ") ->  | I25: 0 | M25: 0
A26: =IF(COUNTRY_INFO!A26=0," ",COUNTRY_INFO!A26) -> Uganda | B26: =IF(COUNTRY_INFO!B26=0," ",COUNTRY_INFO!B26) -> Central | C26: =IF(COUNTRY_INFO!C26=0," ",COUNTRY_INFO!C26) -> Mubende | D26: =IF(COUNTRY_INFO!$T$9:$T$1000="MDA1 (IVM+ALB)", COUNTRY_INFO!$T$9:$T$1000, " ") ->  | I26: 0 | M26: 0
A27: =IF(COUNTRY_INFO!A27=0," ",COUNTRY_INFO!A27) -> Uganda | B27: =IF(COUNTRY_INFO!B27=0," ",COUNTRY_INFO!B27) -> Central | C27: =IF(COUNTRY_INFO!C27=0," ",COUNTRY_INFO!C27) -> Mukono | D27: =IF(COUNTRY_INFO!$T$9:$T$1000="MDA1 (IVM+ALB)", COUNTRY_INFO!$T$9:$T$1000, " ") ->  | I27: 0 | M27: 0
A28: =IF(COUNTRY_INFO!A28=0," ",COUNTRY_INFO!A28) -> Uganda | B28: =IF(COUNTRY_INFO!B28=0," ",COUNTRY_INFO!B28) -> Central | C28: =IF(COUNTRY_INFO!C28=0," ",COUNTRY_INFO!C28) -> Nakaseke | D28: =IF(COUNTRY_INFO!$T$9:$T$1000="MDA1 (IVM+ALB)", COUNTRY_INFO!$T$9:$T$1000, " ") ->  | I28: 0 | M28: 0
A29: =IF(COUNTRY_INFO!A29=0," ",COUNTRY_INFO!A29) -> Uganda | B29: =IF(COUNTRY_INFO!B29=0," ",COUNTRY_INFO!B29) -> Central | C29: =IF(COUNTRY_INFO!C29=0," ",COUNTRY_INFO!C29) -> Nakasongola | D29: =IF(COUNTRY_INFO!$T$9:$T$1000="MDA1 (IVM+ALB)", COUNTRY_INFO!$T$9:$T$1000, " ") ->  | I29: 0 | M29: 0
A30: =IF(COUNTRY_INFO!A30=0," ",COUNTRY_INFO!A30) -> Uganda | B30: =IF(COUNTRY_INFO!B30=0," ",COUNTRY_INFO!B30) -> Central | C30: =IF(COUNTRY_INFO!C30=0," ",COUNTRY_INFO!C30) -> Rakai | D30: =IF(COUNTRY_INFO!$T$9:$T$1000="MDA1 (IVM+ALB)", COUNTRY_INFO!$T$9:$T$1000, " ") ->  | I30: 0 | M30: 0
A31: =IF(COUNTRY_INFO!A31=0," ",COUNTRY_INFO!A31) -> Uganda | B31: =IF(COUNTRY_INFO!B31=0," ",COUNTRY_INFO!B31) -> Central | C31: =IF(COUNTRY_INFO!C31=0," ",COUNTRY_INFO!C31) -> Sembabule | D31: =IF(COUNTRY_INFO!$T$9:$T$1000="MDA1 (IVM+ALB)", COUNTRY_INFO!$T$9:$T$1000, " ") ->  | I31: 0 | M31: 0
A32: =IF(COUNTRY_INFO!A32=0," ",COUNTRY_INFO!A32) -> Uganda | B32: =IF(COUNTRY_INFO!B32=0," ",COUNTRY_INFO!B32) -> Central | C32: =IF(COUNTRY_INFO!C32=0," ",COUNTRY_INFO!C32) -> Wakiso | D32: =IF(COUNTRY_INFO!$T$9:$T$1000="MDA1 (IVM+ALB)", COUNTRY_INFO!$T$9:$T$1000, " ") ->  | I32: 0 | M32: 0
A33: =IF(COUNTRY_INFO!A33=0," ",COUNTRY_INFO!A33) -> Uganda | B33: =IF(COUNTRY_INFO!B33=0," ",COUNTRY_INFO!B33) -> Eastern | C33: =IF(COUNTRY_INFO!C33=0," ",COUNTRY_INFO!C33) -> Amuria | D33: =IF(COUNTRY_INFO!$T$9:$T$1000="MDA1 (IVM+ALB)", COUNTRY_INFO!$T$9:$T$1000, " ") ->  | I33: 0 | M33: 0
A34: =IF(COUNTRY_INFO!A34=0," ",COUNTRY_INFO!A34) -> Uganda | B34: =IF(COUNTRY_INFO!B34=0," ",COUNTRY_INFO!B34) -> Eastern | C34: =IF(COUNTRY_INFO!C34=0," ",COUNTRY_INFO!C34) -> Budaka | D34: =IF(COUNTRY_INFO!$T$9:$T$1000="MDA1 (IVM+ALB)", COUNTRY_INFO!$T$9:$T$1000, " ") ->  | I34: 0 | M34: 0
A35: =IF(COUNTRY_INFO!A35=0," ",COUNTRY_INFO!A35) -> Uganda | B35: =IF(COUNTRY_INFO!B35=0," ",COUNTRY_INFO!B35) -> Eastern | C35: =IF(COUNTRY_INFO!C35=0," ",COUNTRY_INFO!C35) -> Bududa | D35: =IF(COUNTRY_INFO!$T$9:$T$1000="MDA1 (IVM+ALB)", COUNTRY_INFO!$T$9:$T$1000, " ") ->  | I35: 0 | M35: 0
A36: =IF(COUNTRY_INFO!A36=0," ",COUNTRY_INFO!A36) -> Uganda | B36: =IF(COUNTRY_INFO!B36=0," ",COUNTRY_INFO!B36) -> Eastern | C36: =IF(COUNTRY_INFO!C36=0," ",COUNTRY_INFO!C36) -> Bugiri | D36: =IF(COUNTRY_INFO!$T$9:$T$1000="MDA1 (IVM+ALB)", COUNTRY_INFO!$T$9:$T$1000, " ") -> MDA1 (IVM+ALB) | E36: Oct- 2017 | G36: 122652 | H36: 211595 | I36: 334247 | K36: 80431 | L36: 138756 | M36: 219187 | O36: 65.57659068 | P36: 65.57621872 | Q36: 65.57635521
A37: =IF(COUNTRY_INFO!A37=0," ",COUNTRY_INFO!A37) -> Uganda | B37: =IF(COUNTRY_INFO!B37=0," ",COUNTRY_INFO!B37) -> Eastern | C37: =IF(COUNTRY_INFO!C37=0," ",COUNTRY_INFO!C37) -> Bukedea | D37: =IF(COUNTRY_INFO!$T$9:$T$1000="MDA1 (IVM+ALB)", COUNTRY_INFO!$T$9:$T$1000, " ") ->  | I37: 0 | M37: 0
A38: =IF(COUNTRY_INFO!A38=0," ",COUNTRY_INFO!A38) -> Uganda | B38: =IF(COUNTRY_INFO!B38=0," ",COUNTRY_INFO!B38) -> Eastern | C38: =IF(COUNTRY_INFO!C38=0," ",COUNTRY_INFO!C38) -> Bukwo | D38: =IF(COUNTRY_INFO!$T$9:$T$1000="MDA1 (IVM+ALB)", COUNTRY_INFO!$T$9:$T$1000, " ") ->  | I38: 0 | M38: 0
A39: =IF(COUNTRY_INFO!A39=0," ",COUNTRY_INFO!A39) -> Uganda | B39: =IF(COUNTRY_INFO!B39=0," ",COUNTRY_INFO!B39) -> Eastern | C39: =IF(COUNTRY_INFO!C39=0," ",COUNTRY_INFO!C39) -> Bulambuli | D39: =IF(COUNTRY_INFO!$T$9:$T$1000="MDA1 (IVM+ALB)", COUNTRY_INFO!$T$9:$T$1000, " ") ->  | I39: 0 | M39: 0
A40: =IF(COUNTRY_INFO!A40=0," ",COUNTRY_INFO!A40) -> Uganda | B40: =IF(COUNTRY_INFO!B40=0," ",COUNTRY_INFO!B40) -> Eastern | C40: =IF(COUNTRY_INFO!C40=0," ",COUNTRY_INFO!C40) -> Busia | D40: =IF(COUNTRY_INFO!$T$9:$T$1000="MDA1 (IVM+ALB)", COUNTRY_INFO!$T$9:$T$1000, " ") ->  | I40: 0 | M40: 0
A41: =IF(COUNTRY_INFO!A41=0," ",COUNTRY_INFO!A41) -> Uganda | B41: =IF(COUNTRY_INFO!B41=0," ",COUNTRY_INFO!B41) -> Eastern | C41: =IF(COUNTRY_INFO!C41=0," ",COUNTRY_INFO!C41) -> Butaleja | D41: =IF(COUNTRY_INFO!$T$9:$T$1000="MDA1 (IVM+ALB)", COUNTRY_INFO!$T$9:$T$1000, " ") ->  | I41: 0 | M41: 0
A42: =IF(COUNTRY_INFO!A42=0," ",COUNTRY_INFO!A42) -> Uganda | B42: =IF(COUNTRY_INFO!B42=0," ",COUNTRY_INFO!B42) -> Eastern | C42: =IF(COUNTRY_INFO!C42=0," ",COUNTRY_INFO!C42) -> Buyende | D42: =IF(COUNTRY_INFO!$T$9:$T$1000="MDA1 (IVM+ALB)", COUNTRY_INFO!$T$9:$T$1000, " ") ->  | I42: 0 | M42: 0
A43: =IF(COUNTRY_INFO!A43=0," ",COUNTRY_INFO!A43) -> Uganda | B43: =IF(COUNTRY_INFO!B43=0," ",COUNTRY_INFO!B43) -> Eastern | C43: =IF(COUNTRY_INFO!C43=0," ",COUNTRY_INFO!C43) -> Iganga | D43: =IF(COUNTRY_INFO!$T$9:$T$1000="MDA1 (IVM+ALB)", COUNTRY_INFO!$T$9:$T$1000, " ") ->  | I43: 0 | M43: 0
A44: =IF(COUNTRY_INFO!A44=0," ",COUNTRY_INFO!A44) -> Uganda | B44: =IF(COUNTRY_INFO!B44=0," ",COUNTRY_INFO!B44) -> Eastern | C44: =IF(COUNTRY_INFO!C44=0," ",COUNTRY_INFO!C44) -> Jinja | D44: =IF(COUNTRY_INFO!$T$9:$T$1000="MDA1 (IVM+ALB)", COUNTRY_INFO!$T$9:$T$1000, " ") ->  | I44: 0 | M44: 0
A45: =IF(COUNTRY_INFO!A45=0," ",COUNTRY_INFO!A45) -> Uganda | B45: =IF(COUNTRY_INFO!B45=0," ",COUNTRY_INFO!B45) -> Eastern | C45: =IF(COUNTRY_INFO!C45=0," ",COUNTRY_INFO!C45) -> Kaberamaido | D45: =IF(COUNTRY_INFO!$T$9:$T$1000="MDA1 (IVM+ALB)", COUNTRY_INFO!$T$9:$T$1000, " ") ->  | I45: 0 | M45: 0
A46: =IF(COUNTRY_INFO!A46=0," ",COUNTRY_INFO!A46) -> Uganda | B46: =IF(COUNTRY_INFO!B46=0," ",COUNTRY_INFO!B46) -> Eastern | C46: =IF(COUNTRY_INFO!C46=0," ",COUNTRY_INFO!C46) -> Kaliro | D46: =IF(COUNTRY_INFO!$T$9:$T$1000="MDA1 (IVM+ALB)", COUNTRY_INFO!$T$9:$T$1000, " ") ->  | I46: 0 | M46: 0
A47: =IF(COUNTRY_INFO!A47=0," ",COUNTRY_INFO!A47) -> Uganda | B47: =IF(COUNTRY_INFO!B47=0," ",COUNTRY_INFO!B47) -> Eastern | C47: =IF(COUNTRY_INFO!C47=0," ",COUNTRY_INFO!C47) -> Kamuli | D47: =IF(COUNTRY_INFO!$T$9:$T$1000="MDA1 (IVM+ALB)", COUNTRY_INFO!$T$9:$T$1000, " ") ->  | I47: 0 | M47: 0
A48: =IF(COUNTRY_INFO!A48=0," ",COUNTRY_INFO!A48) -> Uganda | B48: =IF(COUNTRY_INFO!B48=0," ",COUNTRY_INFO!B48) -> Eastern | C48: =IF(COUNTRY_INFO!C48=0," ",COUNTRY_INFO!C48) -> Kapchorwa | D48: =IF(COUNTRY_INFO!$T$9:$T$1000="MDA1 (IVM+ALB)", COUNTRY_INFO!$T$9:$T$1000, " ") ->  | I48: 0 | M48: 0
A49: =IF(COUNTRY_INFO!A49=0," ",COUNTRY_INFO!A49) -> Uganda | B49: =IF(COUNTRY_INFO!B49=0," ",COUNTRY_INFO!B49) -> Eastern | C49: =IF(COUNTRY_INFO!C49=0," ",COUNTRY_INFO!C49) -> Katakwi | D49: =IF(COUNTRY_INFO!$T$9:$T$1000="MDA1 (IVM+ALB)", COUNTRY_INFO!$T$9:$T$1000, " ") ->  | I49: 0 | M49: 0
A50: =IF(COUNTRY_INFO!A50=0," ",COUNTRY_INFO!A50) -> Uganda | B50: =IF(COUNTRY_INFO!B50=0," ",COUNTRY_INFO!B50) -> Eastern | C50: =IF(COUNTRY_INFO!C50=0," ",COUNTRY_INFO!C50) -> Kibuku | D50: =IF(COUNTRY_INFO!$T$9:$T$1000="MDA1 (IVM+ALB)", COUNTRY_INFO!$T$9:$T$1000, " ") ->  | I50: 0 | M50: 0
A51: =IF(COUNTRY_INFO!A51=0," ",COUNTRY_INFO!A51) -> Uganda | B51: =IF(COUNTRY_INFO!B51=0," ",COUNTRY_INFO!B51) -> Eastern | C51: =IF(COUNTRY_INFO!C51=0," ",COUNTRY_INFO!C51) -> Kumi | D51: =IF(COUNTRY_INFO!$T$9:$T$1000="MDA1 (IVM+ALB)", COUNTRY_INFO!$T$9:$T$1000, " ") ->  | I51: 0 | M51: 0
A52: =IF(COUNTRY_INFO!A52=0," ",COUNTRY_INFO!A52) -> Uganda | B52: =IF(COUNTRY_INFO!B52=0," ",COUNTRY_INFO!B52) -> Eastern | C52: =IF(COUNTRY_INFO!C52=0," ",COUNTRY_INFO!C52) -> Kween | D52: =IF(COUNTRY_INFO!$T$9:$T$1000="MDA1 (IVM+ALB)", COUNTRY_INFO!$T$9:$T$1000, " ") ->  | I52: 0 | M52: 0
A53: =IF(COUNTRY_INFO!A53=0," ",COUNTRY_INFO!A53) -> Uganda | B53: =IF(COUNTRY_INFO!B53=0," ",COUNTRY_INFO!B53) -> Eastern | C53: =IF(COUNTRY_INFO!C53=0," ",COUNTRY_INFO!C53) -> Luuka | D53: =IF(COUNTRY_INFO!$T$9:$T$1000="MDA1 (IVM+ALB)", COUNTRY_INFO!$T$9:$T$1000, " ") ->  | I53: 0 | M53: 0
A54: =IF(COUNTRY_INFO!A54=0," ",COUNTRY_INFO!A54) -> Uganda | B54: =IF(COUNTRY_INFO!B54=0," ",COUNTRY_INFO!B54) -> Eastern | C54: =IF(COUNTRY_INFO!C54=0," ",COUNTRY_INFO!C54) -> Manafwa | D54: =IF(COUNTRY_INFO!$T$9:$T$1000="MDA1 (IVM+ALB)", COUNTRY_INFO!$T$9:$T$1000, " ") ->  | I54: 0 | M54: 0
A55: =IF(COUNTRY_INFO!A55=0," ",COUNTRY_INFO!A55) -> Uganda | B55: =IF(COUNTRY_INFO!B55=0," ",COUNTRY_INFO!B55) -> Eastern | C55: =IF(COUNTRY_INFO!C55=0," ",COUNTRY_INFO!C55) -> Mayuge | D55: =IF(COUNTRY_INFO!$T$9:$T$1000="MDA1 (IVM+ALB)", COUNTRY_INFO!$T$9:$T$1000, " ") -> MDA1 (IVM+ALB) | E55: Oct- 2017 | G55: 144302 | H55: 248945 | I55: 393247 | K55: 113191 | L55: 195273 | M55: 308464 | O55: 78.44035426 | P55: 78.44021772 | Q55: 78.44026782
A56: =IF(COUNTRY_INFO!A56=0," ",COUNTRY_INFO!A56) -> Uganda | B56: =IF(COUNTRY_INFO!B56=0," ",COUNTRY_INFO!B56) -> Eastern | C56: =IF(COUNTRY_INFO!C56=0," ",COUNTRY_INFO!C56) -> Mbale | D56: =IF(COUNTRY_INFO!$T$9:$T$1000="MDA1 (IVM+ALB)", COUNTRY_INFO!$T$9:$T$1000, " ") ->  | I56: 0 | M56: 0
A57: =IF(COUNTRY_INFO!A57=0," ",COUNTRY_INFO!A57) -> Uganda | B57: =IF(COUNTRY_INFO!B57=0," ",COUNTRY_INFO!B57) -> Eastern | C57: =IF(COUNTRY_INFO!C57=0," ",COUNTRY_INFO!C57) -> Namayingo | D57: =IF(COUNTRY_INFO!$T$9:$T$1000="MDA1 (IVM+ALB)", COUNTRY_INFO!$T$9:$T$1000, " ") -> MDA1 (IVM+ALB) | E57: Oct- 2017 | G57: 78416 | H57: 135281 | I57: 213697 | K57: 61417 | L57: 105955 | M57: 167372 | O57: 78.32202612 | P57: 78.32215906 | Q57: 78.32211028
A58: =IF(COUNTRY_INFO!A58=0," ",COUNTRY_INFO!A58) -> Uganda | B58: =IF(COUNTRY_INFO!B58=0," ",COUNTRY_INFO!B58) -> Eastern | C58: =IF(COUNTRY_INFO!C58=0," ",COUNTRY_INFO!C58) -> Namutumba | D58: =IF(COUNTRY_INFO!$T$9:$T$1000="MDA1 (IVM+ALB)", COUNTRY_INFO!$T$9:$T$1000, " ") ->  | I58: 0 | M58: 0
A59: =IF(COUNTRY_INFO!A59=0," ",COUNTRY_INFO!A59) -> Uganda | B59: =IF(COUNTRY_INFO!B59=0," ",COUNTRY_INFO!B59) -> Eastern | C59: =IF(COUNTRY_INFO!C59=0," ",COUNTRY_INFO!C59) -> Ngora | D59: =IF(COUNTRY_INFO!$T$9:$T$1000="MDA1 (IVM+ALB)", COUNTRY_INFO!$T$9:$T$1000, " ") ->  | I59: 0 | M59: 0
A60: =IF(COUNTRY_INFO!A60=0," ",COUNTRY_INFO!A60) -> Uganda | B60: =IF(COUNTRY_INFO!B60=0," ",COUNTRY_INFO!B60) -> Eastern | C60: =IF(COUNTRY_INFO!C60=0," ",COUNTRY_INFO!C60) -> Pallisa | D60: =IF(COUNTRY_INFO!$T$9:$T$1000="MDA1 (IVM+ALB)", COUNTRY_INFO!$T$9:$T$1000, " ") ->  | I60: 0 | M60: 0
A61: =IF(COUNTRY_INFO!A61=0," ",COUNTRY_INFO!A61) -> Uganda | B61: =IF(COUNTRY_INFO!B61=0," ",COUNTRY_INFO!B61) -> Eastern | C61: =IF(COUNTRY_INFO!C61=0," ",COUNTRY_INFO!C61) -> Serere | D61: =IF(COUNTRY_INFO!$T$9:$T$1000="MDA1 (IVM+ALB)", COUNTRY_INFO!$T$9:$T$1000, " ") ->  | I61: 0 | M61: 0
A62: =IF(COUNTRY_INFO!A62=0," ",COUNTRY_INFO!A62) -> Uganda | B62: =IF(COUNTRY_INFO!B62=0," ",COUNTRY_INFO!B62) -> Eastern | C62: =IF(COUNTRY_INFO!C62=0," ",COUNTRY_INFO!C62) -> Sironko | D62: =IF(COUNTRY_INFO!$T$9:$T$1000="MDA1 (IVM+ALB)", COUNTRY_INFO!$T$9:$T$1000, " ") ->  | I62: 0 | M62: 0
A63: =IF(COUNTRY_INFO!A63=0," ",COUNTRY_INFO!A63) -> Uganda | B63: =IF(COUNTRY_INFO!B63=0," ",COUNTRY_INFO!B63) -> Eastern | C63: =IF(COUNTRY_INFO!C63=0," ",COUNTRY_INFO!C63) -> Soroti | D63: =IF(COUNTRY_INFO!$T$9:$T$1000="MDA1 (IVM+ALB)", COUNTRY_INFO!$T$9:$T$1000, " ") ->  | I63: 0 | M63: 0
A64: =IF(COUNTRY_INFO!A64=0," ",COUNTRY_INFO!A64) -> Uganda | B64: =IF(COUNTRY_INFO!B64=0," ",COUNTRY_INFO!B64) -> Eastern | C64: =IF(COUNTRY_INFO!C64=0," ",COUNTRY_INFO!C64) -> Tororo | D64: =IF(COUNTRY_INFO!$T$9:$T$1000="MDA1 (IVM+ALB)", COUNTRY_INFO!$T$9:$T$1000, " ") ->  | I64: 0 | M64: 0
A65: =IF(COUNTRY_INFO!A65=0," ",COUNTRY_INFO!A65) -> Uganda | B65: =IF(COUNTRY_INFO!B65=0," ",COUNTRY_INFO!B65) -> Northern | C65: =IF(COUNTRY_INFO!C65=0," ",COUNTRY_INFO!C65) -> Abim | D65: =IF(COUNTRY_INFO!$T$9:$T$1000="MDA1 (IVM+ALB)", COUNTRY_INFO!$T$9:$T$1000, " ") ->  | I65: 0 | M65: 0
A66: =IF(COUNTRY_INFO!A66=0," ",COUNTRY_INFO!A66) -> Uganda | B66: =IF(COUNTRY_INFO!B66=0," ",COUNTRY_INFO!B66) -> Northern | C66: =IF(COUNTRY_INFO!C66=0," ",COUNTRY_INFO!C66) -> Adjumani | D66: =IF(COUNTRY_INFO!$T$9:$T$1000="MDA1 (IVM+ALB)", COUNTRY_INFO!$T$9:$T$1000, " ") ->  | I66: 0 | M66: 0
A67: =IF(COUNTRY_INFO!A67=0," ",COUNTRY_INFO!A67) -> Uganda | B67: =IF(COUNTRY_INFO!B67=0," ",COUNTRY_INFO!B67) -> Northern | C67: =IF(COUNTRY_INFO!C67=0," ",COUNTRY_INFO!C67) -> Agago | D67: =IF(COUNTRY_INFO!$T$9:$T$1000="MDA1 (IVM+ALB)", COUNTRY_INFO!$T$9:$T$1000, " ") ->  | I67: 0 | M67: 0
A68: =IF(COUNTRY_INFO!A68=0," ",COUNTRY_INFO!A68) -> Uganda | B68: =IF(COUNTRY_INFO!B68=0," ",COUNTRY_INFO!B68) -> Northern | C68: =IF(COUNTRY_INFO!C68=0," ",COUNTRY_INFO!C68) -> Alebtong | D68: =IF(COUNTRY_INFO!$T$9:$T$1000="MDA1 (IVM+ALB)", COUNTRY_INFO!$T$9:$T$1000, " ") ->  | I68: 0 | M68: 0
A69: =IF(COUNTRY_INFO!A69=0," ",COUNTRY_INFO!A69) -> Uganda | B69: =IF(COUNTRY_INFO!B69=0," ",COUNTRY_INFO!B69) -> Northern | C69: =IF(COUNTRY_INFO!C69=0," ",COUNTRY_INFO!C69) -> Amolatar | D69: =IF(COUNTRY_INFO!$T$9:$T$1000="MDA1 (IVM+ALB)", COUNTRY_INFO!$T$9:$T$1000, " ") ->  | I69: 0 | M69: 0
A70: =IF(COUNTRY_INFO!A70=0," ",COUNTRY_INFO!A70) -> Uganda | B70: =IF(COUNTRY_INFO!B70=0," ",COUNTRY_INFO!B70) -> Northern | C70: =IF(COUNTRY_INFO!C70=0," ",COUNTRY_INFO!C70) -> Amudat | D70: =IF(COUNTRY_INFO!$T$9:$T$1000="MDA1 (IVM+ALB)", COUNTRY_INFO!$T$9:$T$1000, " ") ->  | I70: 0 | M70: 0
A71: =IF(COUNTRY_INFO!A71=0," ",COUNTRY_INFO!A71) -> Uganda | B71: =IF(COUNTRY_INFO!B71=0," ",COUNTRY_INFO!B71) -> Northern | C71: =IF(COUNTRY_INFO!C71=0," ",COUNTRY_INFO!C71) -> Amuru | D71: =IF(COUNTRY_INFO!$T$9:$T$1000="MDA1 (IVM+ALB)", COUNTRY_INFO!$T$9:$T$1000, " ") ->  | I71: 0 | M71: 0
A72: =IF(COUNTRY_INFO!A72=0," ",COUNTRY_INFO!A72) -> Uganda | B72: =IF(COUNTRY_INFO!B72=0," ",COUNTRY_INFO!B72) -> Northern | C72: =IF(COUNTRY_INFO!C72=0," ",COUNTRY_INFO!C72) -> Apac | D72: =IF(COUNTRY_INFO!$T$9:$T$1000="MDA1 (IVM+ALB)", COUNTRY_INFO!$T$9:$T$1000, " ") ->  | I72: 0 | M72: 0
A73: =IF(COUNTRY_INFO!A73=0," ",COUNTRY_INFO!A73) -> Uganda | B73: =IF(COUNTRY_INFO!B73=0," ",COUNTRY_INFO!B73) -> Northern | C73: =IF(COUNTRY_INFO!C73=0," ",COUNTRY_INFO!C73) -> Arua | D73: =IF(COUNTRY_INFO!$T$9:$T$1000="MDA1 (IVM+ALB)", COUNTRY_INFO!$T$9:$T$1000, " ") -> MDA1 (IVM+ALB) | E73: Oct- 2017 | G73: 258314 | H73: 445634 | I73: 703948 | K73: 202683 | L73: 349663 | M73: 552346 | O73: 78.46380761 | P73: 78.46416566 | Q73: 78.46403428
A74: =IF(COUNTRY_INFO!A74=0," ",COUNTRY_INFO!A74) -> Uganda | B74: =IF(COUNTRY_INFO!B74=0," ",COUNTRY_INFO!B74) -> Northern | C74: =IF(COUNTRY_INFO!C74=0," ",COUNTRY_INFO!C74) -> Dokolo | D74: =IF(COUNTRY_INFO!$T$9:$T$1000="MDA1 (IVM+ALB)", COUNTRY_INFO!$T$9:$T$1000, " ") ->  | I74: =SUM(F74:H74) -> 0 | M74: =SUM(J74:L74) -> 0 | O74: =IF(G74<>0, IF(K74/G74*100=0, "-", K74/G74*100), " ") ->  | P74: =IF(H74<>0, IF(L74/H74*100=0, "-", L74/H74*100), " ") ->  | Q74: =IF(I74<>0, IF(M74/I74*100=0, "-", M74/I74*100), " ") -> 
A75: =IF(COUNTRY_INFO!A75=0," ",COUNTRY_INFO!A75) -> Uganda | B75: =IF(COUNTRY_INFO!B75=0," ",COUNTRY_INFO!B75) -> Northern | C75: =IF(COUNTRY_INFO!C75=0," ",COUNTRY_INFO!C75) -> Gulu | D75: =IF(COUNTRY_INFO!$T$9:$T$1000="MDA1 (IVM+ALB)", COUNTRY_INFO!$T$9:$T$1000, " ") -> MDA1 (IVM+ALB) | E75: Oct- 2017 | G75: 66187 | H75: 114183 | I75: 180370 | K75: 57729 | L75: 99593 | M75: 157322 | O75: 87.22105549 | P75: 87.22226601 | Q75: 87.22182181
A76: =IF(COUNTRY_INFO!A76=0," ",COUNTRY_INFO!A76) -> Uganda | B76: =IF(COUNTRY_INFO!B76=0," ",COUNTRY_INFO!B76) -> Northern | C76: =IF(COUNTRY_INFO!C76=0," ",COUNTRY_INFO!C76) -> Kaabong | D76: =IF(COUNTRY_INFO!$T$9:$T$1000="MDA1 (IVM+ALB)", COUNTRY_INFO!$T$9:$T$1000, " ") ->  | I76: 0 | M76: 0
A77: =IF(COUNTRY_INFO!A77=0," ",COUNTRY_INFO!A77) -> Uganda | B77: =IF(COUNTRY_INFO!B77=0," ",COUNTRY_INFO!B77) -> Northern | C77: =IF(COUNTRY_INFO!C77=0," ",COUNTRY_INFO!C77) -> Kitgum | D77: =IF(COUNTRY_INFO!$T$9:$T$1000="MDA1 (IVM+ALB)", COUNTRY_INFO!$T$9:$T$1000, " ") -> MDA1 (IVM+ALB) | E77: Oct- 2017 | G77: 67396 | H77: 116268 | I77: 183664 | K77: 55786 | L77: 96240 | M77: 152026 | O77: 82.77345837 | P77: 82.77428011 | Q77: 82.77397857
A78: =IF(COUNTRY_INFO!A78=0," ",COUNTRY_INFO!A78) -> Uganda | B78: =IF(COUNTRY_INFO!B78=0," ",COUNTRY_INFO!B78) -> Northern | C78: =IF(COUNTRY_INFO!C78=0," ",COUNTRY_INFO!C78) -> Koboko | D78: =IF(COUNTRY_INFO!$T$9:$T$1000="MDA1 (IVM+ALB)", COUNTRY_INFO!$T$9:$T$1000, " ") ->  | I78: 0 | M78: 0
A79: =IF(COUNTRY_INFO!A79=0," ",COUNTRY_INFO!A79) -> Uganda | B79: =IF(COUNTRY_INFO!B79=0," ",COUNTRY_INFO!B79) -> Northern | C79: =IF(COUNTRY_INFO!C79=0," ",COUNTRY_INFO!C79) -> Kole | D79: =IF(COUNTRY_INFO!$T$9:$T$1000="MDA1 (IVM+ALB)", COUNTRY_INFO!$T$9:$T$1000, " ") ->  | I79: 0 | M79: 0
A80: =IF(COUNTRY_INFO!A80=0," ",COUNTRY_INFO!A80) -> Uganda | B80: =IF(COUNTRY_INFO!B80=0," ",COUNTRY_INFO!B80) -> Northern | C80: =IF(COUNTRY_INFO!C80=0," ",COUNTRY_INFO!C80) -> Kotido | D80: =IF(COUNTRY_INFO!$T$9:$T$1000="MDA1 (IVM+ALB)", COUNTRY_INFO!$T$9:$T$1000, " ") ->  | I80: 0 | M80: 0
A81: =IF(COUNTRY_INFO!A81=0," ",COUNTRY_INFO!A81) -> Uganda | B81: =IF(COUNTRY_INFO!B81=0," ",COUNTRY_INFO!B81) -> Northern | C81: =IF(COUNTRY_INFO!C81=0," ",COUNTRY_INFO!C81) -> Lamwo | D81: =IF(COUNTRY_INFO!$T$9:$T$1000="MDA1 (IVM+ALB)", COUNTRY_INFO!$T$9:$T$1000, " ") -> MDA1 (IVM+ALB) | E81: Oct- 2017 | G81: 46206 | H81: 79714 | I81: 125920 | K81: 41590 | L81: 71750 | M81: 113340 | O81: 90.00995542 | P81: 90.00928319 | Q81: 90.00952986
A82: =IF(COUNTRY_INFO!A82=0," ",COUNTRY_INFO!A82) -> Uganda | B82: =IF(COUNTRY_INFO!B82=0," ",COUNTRY_INFO!B82) -> Northern | C82: =IF(COUNTRY_INFO!C82=0," ",COUNTRY_INFO!C82) -> Lira | D82: =IF(COUNTRY_INFO!$T$9:$T$1000="MDA1 (IVM+ALB)", COUNTRY_INFO!$T$9:$T$1000, " ") ->  | I82: 0 | M82: 0
A83: =IF(COUNTRY_INFO!A83=0," ",COUNTRY_INFO!A83) -> Uganda | B83: =IF(COUNTRY_INFO!B83=0," ",COUNTRY_INFO!B83) -> Northern | C83: =IF(COUNTRY_INFO!C83=0," ",COUNTRY_INFO!C83) -> Maracha | D83: =IF(COUNTRY_INFO!$T$9:$T$1000="MDA1 (IVM+ALB)", COUNTRY_INFO!$T$9:$T$1000, " ") -> MDA1 (IVM+ALB) | E83: Oct- 2017 | G83: 61479 | H83: 106061 | I83: 167540 | K83: 59557 | L83: 102745 | M83: 162302 | O83: 96.87372924 | P83: 96.87349733 | Q83: 96.87358243
A84: =IF(COUNTRY_INFO!A84=0," ",COUNTRY_INFO!A84) -> Uganda | B84: =IF(COUNTRY_INFO!B84=0," ",COUNTRY_INFO!B84) -> Northern | C84: =IF(COUNTRY_INFO!C84=0," ",COUNTRY_INFO!C84) -> Moroto | D84: =IF(COUNTRY_INFO!$T$9:$T$1000="MDA1 (IVM+ALB)", COUNTRY_INFO!$T$9:$T$1000, " ") ->  | I84: 0 | M84: 0
A85: =IF(COUNTRY_INFO!A85=0," ",COUNTRY_INFO!A85) -> Uganda | B85: =IF(COUNTRY_INFO!B85=0," ",COUNTRY_INFO!B85) -> Northern | C85: =IF(COUNTRY_INFO!C85=0," ",COUNTRY_INFO!C85) -> Moyo | D85: =IF(COUNTRY_INFO!$T$9:$T$1000="MDA1 (IVM+ALB)", COUNTRY_INFO!$T$9:$T$1000, " ") ->  | I85: 0 | M85: 0
A86: =IF(COUNTRY_INFO!A86=0," ",COUNTRY_INFO!A86) -> Uganda | B86: =IF(COUNTRY_INFO!B86=0," ",COUNTRY_INFO!B86) -> Northern | C86: =IF(COUNTRY_INFO!C86=0," ",COUNTRY_INFO!C86) -> Nakapiripirit | D86: =IF(COUNTRY_INFO!$T$9:$T$1000="MDA1 (IVM+ALB)", COUNTRY_INFO!$T$9:$T$1000, " ") ->  | I86: 0 | M86: 0
A87: =IF(COUNTRY_INFO!A87=0," ",COUNTRY_INFO!A87) -> Uganda | B87: =IF(COUNTRY_INFO!B87=0," ",COUNTRY_INFO!B87) -> Northern | C87: =IF(COUNTRY_INFO!C87=0," ",COUNTRY_INFO!C87) -> Napak | D87: =IF(COUNTRY_INFO!$T$9:$T$1000="MDA1 (IVM+ALB)", COUNTRY_INFO!$T$9:$T$1000, " ") ->  | I87: 0 | M87: 0
A88: =IF(COUNTRY_INFO!A88=0," ",COUNTRY_INFO!A88) -> Uganda | B88: =IF(COUNTRY_INFO!B88=0," ",COUNTRY_INFO!B88) -> Northern | C88: =IF(COUNTRY_INFO!C88=0," ",COUNTRY_INFO!C88) -> Nebbi | D88: =IF(COUNTRY_INFO!$T$9:$T$1000="MDA1 (IVM+ALB)", COUNTRY_INFO!$T$9:$T$1000, " ") ->  | I88: 0 | M88: 0
A89: =IF(COUNTRY_INFO!A89=0," ",COUNTRY_INFO!A89) -> Uganda | B89: =IF(COUNTRY_INFO!B89=0," ",COUNTRY_INFO!B89) -> Northern | C89: =IF(COUNTRY_INFO!C89=0," ",COUNTRY_INFO!C89) -> Nwoya | D89: =IF(COUNTRY_INFO!$T$9:$T$1000="MDA1 (IVM+ALB)", COUNTRY_INFO!$T$9:$T$1000, " ") ->  | I89: 0 | M89: 0
A90: =IF(COUNTRY_INFO!A90=0," ",COUNTRY_INFO!A90) -> Uganda | B90: =IF(COUNTRY_INFO!B90=0," ",COUNTRY_INFO!B90) -> Northern | C90: =IF(COUNTRY_INFO!C90=0," ",COUNTRY_INFO!C90) -> Omoro | D90: =IF(COUNTRY_INFO!$T$9:$T$1000="MDA1 (IVM+ALB)", COUNTRY_INFO!$T$9:$T$1000, " ") -> MDA1 (IVM+ALB) | E90: Oct- 2017 | G90: 58152 | H90: 100322 | I90: 158474 | K90: 54055 | L90: 93253 | M90: 147308 | O90: 92.95467052 | P90: 92.95368912 | Q90: 92.95404924
A91: =IF(COUNTRY_INFO!A91=0," ",COUNTRY_INFO!A91) -> Uganda | B91: =IF(COUNTRY_INFO!B91=0," ",COUNTRY_INFO!B91) -> Northern | C91: =IF(COUNTRY_INFO!C91=0," ",COUNTRY_INFO!C91) -> Otuke | D91: =IF(COUNTRY_INFO!$T$9:$T$1000="MDA1 (IVM+ALB)", COUNTRY_INFO!$T$9:$T$1000, " ") ->  | I91: 0 | M91: 0
A92: =IF(COUNTRY_INFO!A92=0," ",COUNTRY_INFO!A92) -> Uganda | B92: =IF(COUNTRY_INFO!B92=0," ",COUNTRY_INFO!B92) -> Northern | C92: =IF(COUNTRY_INFO!C92=0," ",COUNTRY_INFO!C92) -> Oyam | D92: =IF(COUNTRY_INFO!$T$9:$T$1000="MDA1 (IVM+ALB)", COUNTRY_INFO!$T$9:$T$1000, " ") ->  | I92: 0 | M92: 0
A93: =IF(COUNTRY_INFO!A93=0," ",COUNTRY_INFO!A93) -> Uganda | B93: =IF(COUNTRY_INFO!B93=0," ",COUNTRY_INFO!B93) -> Northern | C93: =IF(COUNTRY_INFO!C93=0," ",COUNTRY_INFO!C93) -> Pader | D93: =IF(COUNTRY_INFO!$T$9:$T$1000="MDA1 (IVM+ALB)", COUNTRY_INFO!$T$9:$T$1000, " ") ->  | I93: 0 | M93: 0
A94: =IF(COUNTRY_INFO!A94=0," ",COUNTRY_INFO!A94) -> Uganda | B94: =IF(COUNTRY_INFO!B94=0," ",COUNTRY_INFO!B94) -> Northern | C94: =IF(COUNTRY_INFO!C94=0," ",COUNTRY_INFO!C94) -> Yumbe | D94: =IF(COUNTRY_INFO!$T$9:$T$1000="MDA1 (IVM+ALB)", COUNTRY_INFO!$T$9:$T$1000, " ") ->  | I94: 0 | M94: 0
A95: =IF(COUNTRY_INFO!A95=0," ",COUNTRY_INFO!A95) -> Uganda | B95: =IF(COUNTRY_INFO!B95=0," ",COUNTRY_INFO!B95) -> Northern | C95: =IF(COUNTRY_INFO!C95=0," ",COUNTRY_INFO!C95) -> Zombo | D95: =IF(COUNTRY_INFO!$T$9:$T$1000="MDA1 (IVM+ALB)", COUNTRY_INFO!$T$9:$T$1000, " ") ->  | I95: 0 | M95: 0
A96: =IF(COUNTRY_INFO!A96=0," ",COUNTRY_INFO!A96) -> Uganda | B96: =IF(COUNTRY_INFO!B96=0," ",COUNTRY_INFO!B96) -> Western | C96: =IF(COUNTRY_INFO!C96=0," ",COUNTRY_INFO!C96) -> Buhweju | D96: =IF(COUNTRY_INFO!$T$9:$T$1000="MDA1 (IVM+ALB)", COUNTRY_INFO!$T$9:$T$1000, " ") ->  | I96: 0 | M96: 0
A97: =IF(COUNTRY_INFO!A97=0," ",COUNTRY_INFO!A97) -> Uganda | B97: =IF(COUNTRY_INFO!B97=0," ",COUNTRY_INFO!B97) -> Western | C97: =IF(COUNTRY_INFO!C97=0," ",COUNTRY_INFO!C97) -> Buliisa | D97: =IF(COUNTRY_INFO!$T$9:$T$1000="MDA1 (IVM+ALB)", COUNTRY_INFO!$T$9:$T$1000, " ") ->  | I97: 0 | M97: 0
A98: =IF(COUNTRY_INFO!A98=0," ",COUNTRY_INFO!A98) -> Uganda | B98: =IF(COUNTRY_INFO!B98=0," ",COUNTRY_INFO!B98) -> Western | C98: =IF(COUNTRY_INFO!C98=0," ",COUNTRY_INFO!C98) -> Bundibugyo | D98: =IF(COUNTRY_INFO!$T$9:$T$1000="MDA1 (IVM+ALB)", COUNTRY_INFO!$T$9:$T$1000, " ") ->  | I98: 0 | M98: 0
A99: =IF(COUNTRY_INFO!A99=0," ",COUNTRY_INFO!A99) -> Uganda | B99: =IF(COUNTRY_INFO!B99=0," ",COUNTRY_INFO!B99) -> Western | C99: =IF(COUNTRY_INFO!C99=0," ",COUNTRY_INFO!C99) -> Bushenyi | D99: =IF(COUNTRY_INFO!$T$9:$T$1000="MDA1 (IVM+ALB)", COUNTRY_INFO!$T$9:$T$1000, " ") ->  | I99: 0 | M99: 0
A100: =IF(COUNTRY_INFO!A100=0," ",COUNTRY_INFO!A100) -> Uganda | B100: =IF(COUNTRY_INFO!B100=0," ",COUNTRY_INFO!B100) -> Western | C100: =IF(COUNTRY_INFO!C100=0," ",COUNTRY_INFO!C100) -> Hoima | D100: =IF(COUNTRY_INFO!$T$9:$T$1000="MDA1 (IVM+ALB)", COUNTRY_INFO!$T$9:$T$1000, " ") ->  | I100: 0 | M100: 0
A101: =IF(COUNTRY_INFO!A101=0," ",COUNTRY_INFO!A101) -> Uganda | B101: =IF(COUNTRY_INFO!B101=0," ",COUNTRY_INFO!B101) -> Western | C101: =IF(COUNTRY_INFO!C101=0," ",COUNTRY_INFO!C101) -> Ibanda | D101: =IF(COUNTRY_INFO!$T$9:$T$1000="MDA1 (IVM+ALB)", COUNTRY_INFO!$T$9:$T$1000, " ") ->  | I101: 0 | M101: 0
A102: =IF(COUNTRY_INFO!A102=0," ",COUNTRY_INFO!A102) -> Uganda | B102: =IF(COUNTRY_INFO!B102=0," ",COUNTRY_INFO!B102) -> Western | C102: =IF(COUNTRY_INFO!C102=0," ",COUNTRY_INFO!C102) -> Isingiro | D102: =IF(COUNTRY_INFO!$T$9:$T$1000="MDA1 (IVM+ALB)", COUNTRY_INFO!$T$9:$T$1000, " ") ->  | I102: 0 | M102: 0
A103: =IF(COUNTRY_INFO!A103=0," ",COUNTRY_INFO!A103) -> Uganda | B103: =IF(COUNTRY_INFO!B103=0," ",COUNTRY_INFO!B103) -> Western | C103: =IF(COUNTRY_INFO!C103=0," ",COUNTRY_INFO!C103) -> Kabale | D103: =IF(COUNTRY_INFO!$T$9:$T$1000="MDA1 (IVM+ALB)", COUNTRY_INFO!$T$9:$T$1000, " ") ->  | I103: 0 | M103: 0
A104: =IF(COUNTRY_INFO!A104=0," ",COUNTRY_INFO!A104) -> Uganda | B104: =IF(COUNTRY_INFO!B104=0," ",COUNTRY_INFO!B104) -> Western | C104: =IF(COUNTRY_INFO!C104=0," ",COUNTRY_INFO!C104) -> Kabarole | D104: =IF(COUNTRY_INFO!$T$9:$T$1000="MDA1 (IVM+ALB)", COUNTRY_INFO!$T$9:$T$1000, " ") ->  | I104: 0 | M104: 0
A105: =IF(COUNTRY_INFO!A105=0," ",COUNTRY_INFO!A105) -> Uganda | B105: =IF(COUNTRY_INFO!B105=0," ",COUNTRY_INFO!B105) -> Western | C105: =IF(COUNTRY_INFO!C105=0," ",COUNTRY_INFO!C105) -> Kagadi | D105: =IF(COUNTRY_INFO!$T$9:$T$1000="MDA1 (IVM+ALB)", COUNTRY_INFO!$T$9:$T$1000, " ") ->  | I105: 0 | M105: 0
A106: =IF(COUNTRY_INFO!A106=0," ",COUNTRY_INFO!A106) -> Uganda | B106: =IF(COUNTRY_INFO!B106=0," ",COUNTRY_INFO!B106) -> Western | C106: =IF(COUNTRY_INFO!C106=0," ",COUNTRY_INFO!C106) -> Kakumiro | D106: =IF(COUNTRY_INFO!$T$9:$T$1000="MDA1 (IVM+ALB)", COUNTRY_INFO!$T$9:$T$1000, " ") ->  | I106: 0 | M106: 0
A107: =IF(COUNTRY_INFO!A107=0," ",COUNTRY_INFO!A107) -> Uganda | B107: =IF(COUNTRY_INFO!B107=0," ",COUNTRY_INFO!B107) -> Western | C107: =IF(COUNTRY_INFO!C107=0," ",COUNTRY_INFO!C107) -> Kamwenge | D107: =IF(COUNTRY_INFO!$T$9:$T$1000="MDA1 (IVM+ALB)", COUNTRY_INFO!$T$9:$T$1000, " ") ->  | I107: 0 | M107: 0
A108: =IF(COUNTRY_INFO!A108=0," ",COUNTRY_INFO!A108) -> Uganda | B108: =IF(COUNTRY_INFO!B108=0," ",COUNTRY_INFO!B108) -> Western | C108: =IF(COUNTRY_INFO!C108=0," ",COUNTRY_INFO!C108) -> Kanungu | D108: =IF(COUNTRY_INFO!$T$9:$T$1000="MDA1 (IVM+ALB)", COUNTRY_INFO!$T$9:$T$1000, " ") ->  | I108: 0 | M108: 0
A109: =IF(COUNTRY_INFO!A109=0," ",COUNTRY_INFO!A109) -> Uganda | B109: =IF(COUNTRY_INFO!B109=0," ",COUNTRY_INFO!B109) -> Western | C109: =IF(COUNTRY_INFO!C109=0," ",COUNTRY_INFO!C109) -> Kasese | D109: =IF(COUNTRY_INFO!$T$9:$T$1000="MDA1 (IVM+ALB)", COUNTRY_INFO!$T$9:$T$1000, " ") ->  | I109: 0 | M109: 0
A110: =IF(COUNTRY_INFO!A110=0," ",COUNTRY_INFO!A110) -> Uganda | B110: =IF(COUNTRY_INFO!B110=0," ",COUNTRY_INFO!B110) -> Western | C110: =IF(COUNTRY_INFO!C110=0," ",COUNTRY_INFO!C110) -> Kibaale | D110: =IF(COUNTRY_INFO!$T$9:$T$1000="MDA1 (IVM+ALB)", COUNTRY_INFO!$T$9:$T$1000, " ") ->  | I110: 0 | M110: 0
A111: =IF(COUNTRY_INFO!A111=0," ",COUNTRY_INFO!A111) -> Uganda | B111: =IF(COUNTRY_INFO!B111=0," ",COUNTRY_INFO!B111) -> Western | C111: =IF(COUNTRY_INFO!C111=0," ",COUNTRY_INFO!C111) -> Kiruhura | D111: =IF(COUNTRY_INFO!$T$9:$T$1000="MDA1 (IVM+ALB)", COUNTRY_INFO!$T$9:$T$1000, " ") ->  | I111: 0 | M111: 0
A112: =IF(COUNTRY_INFO!A112=0," ",COUNTRY_INFO!A112) -> Uganda | B112: =IF(COUNTRY_INFO!B112=0," ",COUNTRY_INFO!B112) -> Western | C112: =IF(COUNTRY_INFO!C112=0," ",COUNTRY_INFO!C112) -> Kiryandongo | D112: =IF(COUNTRY_INFO!$T$9:$T$1000="MDA1 (IVM+ALB)", COUNTRY_INFO!$T$9:$T$1000, " ") ->  | I112: 0 | M112: 0
A113: =IF(COUNTRY_INFO!A113=0," ",COUNTRY_INFO!A113) -> Uganda | B113: =IF(COUNTRY_INFO!B113=0," ",COUNTRY_INFO!B113) -> Western | C113: =IF(COUNTRY_INFO!C113=0," ",COUNTRY_INFO!C113) -> Kisoro | D113: =IF(COUNTRY_INFO!$T$9:$T$1000="MDA1 (IVM+ALB)", COUNTRY_INFO!$T$9:$T$1000, " ") ->  | I113: 0 | M113: 0
A114: =IF(COUNTRY_INFO!A114=0," ",COUNTRY_INFO!A114) -> Uganda | B114: =IF(COUNTRY_INFO!B114=0," ",COUNTRY_INFO!B114) -> Western | C114: =IF(COUNTRY_INFO!C114=0," ",COUNTRY_INFO!C114) -> Kyegegwa | D114: =IF(COUNTRY_INFO!$T$9:$T$1000="MDA1 (IVM+ALB)", COUNTRY_INFO!$T$9:$T$1000, " ") ->  | I114: 0 | M114: 0
A115: =IF(COUNTRY_INFO!A115=0," ",COUNTRY_INFO!A115) -> Uganda | B115: =IF(COUNTRY_INFO!B115=0," ",COUNTRY_INFO!B115) -> Western | C115: =IF(COUNTRY_INFO!C115=0," ",COUNTRY_INFO!C115) -> Kyenjojo | D115: =IF(COUNTRY_INFO!$T$9:$T$1000="MDA1 (IVM+ALB)", COUNTRY_INFO!$T$9:$T$1000, " ") ->  | I115: 0 | M115: 0
A116: =IF(COUNTRY_INFO!A116=0," ",COUNTRY_INFO!A116) -> Uganda | B116: =IF(COUNTRY_INFO!B116=0," ",COUNTRY_INFO!B116) -> Western | C116: =IF(COUNTRY_INFO!C116=0," ",COUNTRY_INFO!C116) -> Masindi | D116: =IF(COUNTRY_INFO!$T$9:$T$1000="MDA1 (IVM+ALB)", COUNTRY_INFO!$T$9:$T$1000, " ") ->  | I116: 0 | M116: 0
A117: =IF(COUNTRY_INFO!A117=0," ",COUNTRY_INFO!A117) -> Uganda | B117: =IF(COUNTRY_INFO!B117=0," ",COUNTRY_INFO!B117) -> Western | C117: =IF(COUNTRY_INFO!C117=0," ",COUNTRY_INFO!C117) -> Mbarara | D117: =IF(COUNTRY_INFO!$T$9:$T$1000="MDA1 (IVM+ALB)", COUNTRY_INFO!$T$9:$T$1000, " ") ->  | I117: 0 | M117: 0
A118: =IF(COUNTRY_INFO!A118=0," ",COUNTRY_INFO!A118) -> Uganda | B118: =IF(COUNTRY_INFO!B118=0," ",COUNTRY_INFO!B118) -> Western | C118: =IF(COUNTRY_INFO!C118=0," ",COUNTRY_INFO!C118) -> Mitooma | D118: =IF(COUNTRY_INFO!$T$9:$T$1000="MDA1 (IVM+ALB)", COUNTRY_INFO!$T$9:$T$1000, " ") ->  | I118: 0 | M118: 0
A119: =IF(COUNTRY_INFO!A119=0," ",COUNTRY_INFO!A119) -> Uganda | B119: =IF(COUNTRY_INFO!B119=0," ",COUNTRY_INFO!B119) -> Western | C119: =IF(COUNTRY_INFO!C119=0," ",COUNTRY_INFO!C119) -> Ntoroko | D119: =IF(COUNTRY_INFO!$T$9:$T$1000="MDA1 (IVM+ALB)", COUNTRY_INFO!$T$9:$T$1000, " ") ->  | I119: 0 | M119: 0
A120: =IF(COUNTRY_INFO!A120=0," ",COUNTRY_INFO!A120) -> Uganda | B120: =IF(COUNTRY_INFO!B120=0," ",COUNTRY_INFO!B120) -> Western | C120: =IF(COUNTRY_INFO!C120=0," ",COUNTRY_INFO!C120) -> Ntungamo | D120: =IF(COUNTRY_INFO!$T$9:$T$1000="MDA1 (IVM+ALB)", COUNTRY_INFO!$T$9:$T$1000, " ") ->  | I120: 0 | M120: 0
A121: =IF(COUNTRY_INFO!A121=0," ",COUNTRY_INFO!A121) -> Uganda | B121: =IF(COUNTRY_INFO!B121=0," ",COUNTRY_INFO!B121) -> Western | C121: =IF(COUNTRY_INFO!C121=0," ",COUNTRY_INFO!C121) -> Rubanda | D121: =IF(COUNTRY_INFO!$T$9:$T$1000="MDA1 (IVM+ALB)", COUNTRY_INFO!$T$9:$T$1000, " ") ->  | I121: 0 | M121: 0
A122: =IF(COUNTRY_INFO!A122=0," ",COUNTRY_INFO!A122) -> Uganda | B122: =IF(COUNTRY_INFO!B122=0," ",COUNTRY_INFO!B122) -> Western | C122: =IF(COUNTRY_INFO!C122=0," ",COUNTRY_INFO!C122) -> Rubirizi | D122: =IF(COUNTRY_INFO!$T$9:$T$1000="MDA1 (IVM+ALB)", COUNTRY_INFO!$T$9:$T$1000, " ") ->  | I122: 0 | M122: 0
A123: =IF(COUNTRY_INFO!A123=0," ",COUNTRY_INFO!A123) -> Uganda | B123: =IF(COUNTRY_INFO!B123=0," ",COUNTRY_INFO!B123) -> Western | C123: =IF(COUNTRY_INFO!C123=0," ",COUNTRY_INFO!C123) -> Rukungiri | D123: =IF(COUNTRY_INFO!$T$9:$T$1000="MDA1 (IVM+ALB)", COUNTRY_INFO!$T$9:$T$1000, " ") ->  | I123: 0 | M123: 0
A124: =IF(COUNTRY_INFO!A124=0," ",COUNTRY_INFO!A124) -> Uganda | B124: =IF(COUNTRY_INFO!B124=0," ",COUNTRY_INFO!B124) -> Western | C124: =IF(COUNTRY_INFO!C124=0," ",COUNTRY_INFO!C124) -> Sheema | D124: =IF(COUNTRY_INFO!$T$9:$T$1000="MDA1 (IVM+ALB)", COUNTRY_INFO!$T$9:$T$1000, " ") ->  | I124: 0 | M124: 0

Sheet MDA2 (hidden)
A1: MDA 2 - Diethylcarbamazine citrate (DEC) + Albendazole (ALB)
A2: Administrative structure, population requiring PC by age group, population treated by age group and coverage
A4: TOTAL | F4: =SUM(F$9:F$1000) -> 0 | G4: =SUM(G$9:G$1000) -> 0 | H4: 0 | I4: 0 | J4: 0 | K4: 0 | L4: 0 | M4: 0 | N4: =IF(F4<>0, IF(J4/F4*100=0, "-", J4/F4*100), " ") ->  | O4: =IF(G4<>0, IF(K4/G4*100=0, "-", K4/G4*100), " ") ->  | P4: =IF(H4<>0, IF(L4/H4*100=0, "-", L4/H4*100), " ") ->  | Q4: =IF(I4<>0, IF(M4/I4*100=0, "-", M4/I4*100), " ") -> 
D6: PC implemented | E6: Date | F6: Population targeted for MDA 2 | J6: Population treated | N6: Programme coverage (%)
A7: Country | B7: Province/State | C7: District | F7: PreSAC | G7: SAC | H7: Adults | I7: Total | J7: PreSAC | K7: SAC | L7: Adults | M7: Total | N7: PreSAC | O7: SAC | P7: Adults | Q7: Total
A9: =IF(COUNTRY_INFO!A9=0," ",COUNTRY_INFO!A9) -> Uganda | B9: =IF(COUNTRY_INFO!B9=0," ",COUNTRY_INFO!B9) -> Central | C9: =IF(COUNTRY_INFO!C9=0," ",COUNTRY_INFO!C9) -> Buikwe | D9: =IF(COUNTRY_INFO!$T$9:$T$1000="MDA2 (DEC+ALB)", COUNTRY_INFO!$T$9:$T$1000, " ") ->  | I9: =SUM(F9:H9) -> 0 | M9: =SUM(J9:L9) -> 0 | N9: =IF(F9<>0, IF(J9/F9*100=0, "-", J9/F9*100), " ") -> 
A10: =IF(COUNTRY_INFO!A10=0," ",COUNTRY_INFO!A10) -> Uganda | B10: =IF(COUNTRY_INFO!B10=0," ",COUNTRY_INFO!B10) -> Central | C10: =IF(COUNTRY_INFO!C10=0," ",COUNTRY_INFO!C10) -> Bukomansimbi | D10: =IF(COUNTRY_INFO!$T$9:$T$1000="MDA2 (DEC+ALB)", COUNTRY_INFO!$T$9:$T$1000, " ") ->  | I10: =SUM(F10:H10) -> 0 | M10: =SUM(J10:L10) -> 0 | N10: =IF(F10<>0, IF(J10/F10*100=0, "-", J10/F10*100), " ") ->  | O10: =IF(G10<>0, IF(K10/G10*100=0, "-", K10/G10*100), " ") ->  | P10: =IF(H10<>0, IF(L10/H10*100=0, "-", L10/H10*100), " ") ->  | Q10: =IF(I10<>0, IF(M10/I10*100=0, "-", M10/I10*100), " ") -> 
A11: =IF(COUNTRY_INFO!A11=0," ",COUNTRY_INFO!A11) -> Uganda | B11: =IF(COUNTRY_INFO!B11=0," ",COUNTRY_INFO!B11) -> Central | C11: =IF(COUNTRY_INFO!C11=0," ",COUNTRY_INFO!C11) -> Butambala | D11: =IF(COUNTRY_INFO!$T$9:$T$1000="MDA2 (DEC+ALB)", COUNTRY_INFO!$T$9:$T$1000, " ") ->  | I11: 0 | M11: 0
A12: =IF(COUNTRY_INFO!A12=0," ",COUNTRY_INFO!A12) -> Uganda | B12: =IF(COUNTRY_INFO!B12=0," ",COUNTRY_INFO!B12) -> Central | C12: =IF(COUNTRY_INFO!C12=0," ",COUNTRY_INFO!C12) -> Buvuma | D12: =IF(COUNTRY_INFO!$T$9:$T$1000="MDA2 (DEC+ALB)", COUNTRY_INFO!$T$9:$T$1000, " ") ->  | I12: 0 | M12: 0
A13: =IF(COUNTRY_INFO!A13=0," ",COUNTRY_INFO!A13) -> Uganda | B13: =IF(COUNTRY_INFO!B13=0," ",COUNTRY_INFO!B13) -> Central | C13: =IF(COUNTRY_INFO!C13=0," ",COUNTRY_INFO!C13) -> Gomba | D13: =IF(COUNTRY_INFO!$T$9:$T$1000="MDA2 (DEC+ALB)", COUNTRY_INFO!$T$9:$T$1000, " ") ->  | I13: 0 | M13: 0
A14: =IF(COUNTRY_INFO!A14=0," ",COUNTRY_INFO!A14) -> Uganda | B14: =IF(COUNTRY_INFO!B14=0," ",COUNTRY_INFO!B14) -> Central | C14: =IF(COUNTRY_INFO!C14=0," ",COUNTRY_INFO!C14) -> Kalangala | D14: =IF(COUNTRY_INFO!$T$9:$T$1000="MDA2 (DEC+ALB)", COUNTRY_INFO!$T$9:$T$1000, " ") ->  | I14: 0 | M14: 0
A15: =IF(COUNTRY_INFO!A15=0," ",COUNTRY_INFO!A15) -> Uganda | B15: =IF(COUNTRY_INFO!B15=0," ",COUNTRY_INFO!B15) -> Central | C15: =IF(COUNTRY_INFO!C15=0," ",COUNTRY_INFO!C15) -> Kalungu | D15: =IF(COUNTRY_INFO!$T$9:$T$1000="MDA2 (DEC+ALB)", COUNTRY_INFO!$T$9:$T$1000, " ") ->  | I15: 0 | M15: 0
A16: =IF(COUNTRY_INFO!A16=0," ",COUNTRY_INFO!A16) -> Uganda | B16: =IF(COUNTRY_INFO!B16=0," ",COUNTRY_INFO!B16) -> Central | C16: =IF(COUNTRY_INFO!C16=0," ",COUNTRY_INFO!C16) -> Kampala | D16: =IF(COUNTRY_INFO!$T$9:$T$1000="MDA2 (DEC+ALB)", COUNTRY_INFO!$T$9:$T$1000, " ") ->  | I16: 0 | M16: 0
A17: =IF(COUNTRY_INFO!A17=0," ",COUNTRY_INFO!A17) -> Uganda | B17: =IF(COUNTRY_INFO!B17=0," ",COUNTRY_INFO!B17) -> Central | C17: =IF(COUNTRY_INFO!C17=0," ",COUNTRY_INFO!C17) -> Kayunga | D17: =IF(COUNTRY_INFO!$T$9:$T$1000="MDA2 (DEC+ALB)", COUNTRY_INFO!$T$9:$T$1000, " ") ->  | I17: 0 | M17: 0
A18: =IF(COUNTRY_INFO!A18=0," ",COUNTRY_INFO!A18) -> Uganda | B18: =IF(COUNTRY_INFO!B18=0," ",COUNTRY_INFO!B18) -> Central | C18: =IF(COUNTRY_INFO!C18=0," ",COUNTRY_INFO!C18) -> Kiboga | D18: =IF(COUNTRY_INFO!$T$9:$T$1000="MDA2 (DEC+ALB)", COUNTRY_INFO!$T$9:$T$1000, " ") ->  | I18: 0 | M18: 0
A19: =IF(COUNTRY_INFO!A19=0," ",COUNTRY_INFO!A19) -> Uganda | B19: =IF(COUNTRY_INFO!B19=0," ",COUNTRY_INFO!B19) -> Central | C19: =IF(COUNTRY_INFO!C19=0," ",COUNTRY_INFO!C19) -> Kyankwanzi | D19: =IF(COUNTRY_INFO!$T$9:$T$1000="MDA2 (DEC+ALB)", COUNTRY_INFO!$T$9:$T$1000, " ") ->  | I19: 0 | M19: 0
A20: =IF(COUNTRY_INFO!A20=0," ",COUNTRY_INFO!A20) -> Uganda | B20: =IF(COUNTRY_INFO!B20=0," ",COUNTRY_INFO!B20) -> Central | C20: =IF(COUNTRY_INFO!C20=0," ",COUNTRY_INFO!C20) -> Luwero | D20: =IF(COUNTRY_INFO!$T$9:$T$1000="MDA2 (DEC+ALB)", COUNTRY_INFO!$T$9:$T$1000, " ") ->  | I20: 0 | M20: 0
A21: =IF(COUNTRY_INFO!A21=0," ",COUNTRY_INFO!A21) -> Uganda | B21: =IF(COUNTRY_INFO!B21=0," ",COUNTRY_INFO!B21) -> Central | C21: =IF(COUNTRY_INFO!C21=0," ",COUNTRY_INFO!C21) -> Lwengo | D21: =IF(COUNTRY_INFO!$T$9:$T$1000="MDA2 (DEC+ALB)", COUNTRY_INFO!$T$9:$T$1000, " ") ->  | I21: 0 | M21: 0
A22: =IF(COUNTRY_INFO!A22=0," ",COUNTRY_INFO!A22) -> Uganda | B22: =IF(COUNTRY_INFO!B22=0," ",COUNTRY_INFO!B22) -> Central | C22: =IF(COUNTRY_INFO!C22=0," ",COUNTRY_INFO!C22) -> Lyantonde | D22: =IF(COUNTRY_INFO!$T$9:$T$1000="MDA2 (DEC+ALB)", COUNTRY_INFO!$T$9:$T$1000, " ") ->  | I22: 0 | M22: 0
A23: =IF(COUNTRY_INFO!A23=0," ",COUNTRY_INFO!A23) -> Uganda | B23: =IF(COUNTRY_INFO!B23=0," ",COUNTRY_INFO!B23) -> Central | C23: =IF(COUNTRY_INFO!C23=0," ",COUNTRY_INFO!C23) -> Masaka | D23: =IF(COUNTRY_INFO!$T$9:$T$1000="MDA2 (DEC+ALB)", COUNTRY_INFO!$T$9:$T$1000, " ") ->  | I23: 0 | M23: 0
A24: =IF(COUNTRY_INFO!A24=0," ",COUNTRY_INFO!A24) -> Uganda | B24: =IF(COUNTRY_INFO!B24=0," ",COUNTRY_INFO!B24) -> Central | C24: =IF(COUNTRY_INFO!C24=0," ",COUNTRY_INFO!C24) -> Mityana | D24: =IF(COUNTRY_INFO!$T$9:$T$1000="MDA2 (DEC+ALB)", COUNTRY_INFO!$T$9:$T$1000, " ") ->  | I24: 0 | M24: 0
A25: =IF(COUNTRY_INFO!A25=0," ",COUNTRY_INFO!A25) -> Uganda | B25: =IF(COUNTRY_INFO!B25=0," ",COUNTRY_INFO!B25) -> Central | C25: =IF(COUNTRY_INFO!C25=0," ",COUNTRY_INFO!C25) -> Mpigi | D25: =IF(COUNTRY_INFO!$T$9:$T$1000="MDA2 (DEC+ALB)", COUNTRY_INFO!$T$9:$T$1000, " ") ->  | I25: 0 | M25: 0
A26: =IF(COUNTRY_INFO!A26=0," ",COUNTRY_INFO!A26) -> Uganda | B26: =IF(COUNTRY_INFO!B26=0," ",COUNTRY_INFO!B26) -> Central | C26: =IF(COUNTRY_INFO!C26=0," ",COUNTRY_INFO!C26) -> Mubende | D26: =IF(COUNTRY_INFO!$T$9:$T$1000="MDA2 (DEC+ALB)", COUNTRY_INFO!$T$9:$T$1000, " ") ->  | I26: 0 | M26: 0
A27: =IF(COUNTRY_INFO!A27=0," ",COUNTRY_INFO!A27) -> Uganda | B27: =IF(COUNTRY_INFO!B27=0," ",COUNTRY_INFO!B27) -> Central | C27: =IF(COUNTRY_INFO!C27=0," ",COUNTRY_INFO!C27) -> Mukono | D27: =IF(COUNTRY_INFO!$T$9:$T$1000="MDA2 (DEC+ALB)", COUNTRY_INFO!$T$9:$T$1000, " ") ->  | I27: 0 | M27: 0
A28: =IF(COUNTRY_INFO!A28=0," ",COUNTRY_INFO!A28) -> Uganda | B28: =IF(COUNTRY_INFO!B28=0," ",COUNTRY_INFO!B28) -> Central | C28: =IF(COUNTRY_INFO!C28=0," ",COUNTRY_INFO!C28) -> Nakaseke | D28: =IF(COUNTRY_INFO!$T$9:$T$1000="MDA2 (DEC+ALB)", COUNTRY_INFO!$T$9:$T$1000, " ") ->  | I28: 0 | M28: 0
A29: =IF(COUNTRY_INFO!A29=0," ",COUNTRY_INFO!A29) -> Uganda | B29: =IF(COUNTRY_INFO!B29=0," ",COUNTRY_INFO!B29) -> Central | C29: =IF(COUNTRY_INFO!C29=0," ",COUNTRY_INFO!C29) -> Nakasongola | D29: =IF(COUNTRY_INFO!$T$9:$T$1000="MDA2 (DEC+ALB)", COUNTRY_INFO!$T$9:$T$1000, " ") ->  | I29: 0 | M29: 0
A30: =IF(COUNTRY_INFO!A30=0," ",COUNTRY_INFO!A30) -> Uganda | B30: =IF(COUNTRY_INFO!B30=0," ",COUNTRY_INFO!B30) -> Central | C30: =IF(COUNTRY_INFO!C30=0," ",COUNTRY_INFO!C30) -> Rakai | D30: =IF(COUNTRY_INFO!$T$9:$T$1000="MDA2 (DEC+ALB)", COUNTRY_INFO!$T$9:$T$1000, " ") ->  | I30: 0 | M30: 0
A31: =IF(COUNTRY_INFO!A31=0," ",COUNTRY_INFO!A31) -> Uganda | B31: =IF(COUNTRY_INFO!B31=0," ",COUNTRY_INFO!B31) -> Central | C31: =IF(COUNTRY_INFO!C31=0," ",COUNTRY_INFO!C31) -> Sembabule | D31: =IF(COUNTRY_INFO!$T$9:$T$1000="MDA2 (DEC+ALB)", COUNTRY_INFO!$T$9:$T$1000, " ") ->  | I31: 0 | M31: 0
A32: =IF(COUNTRY_INFO!A32=0," ",COUNTRY_INFO!A32) -> Uganda | B32: =IF(COUNTRY_INFO!B32=0," ",COUNTRY_INFO!B32) -> Central | C32: =IF(COUNTRY_INFO!C32=0," ",COUNTRY_INFO!C32) -> Wakiso | D32: =IF(COUNTRY_INFO!$T$9:$T$1000="MDA2 (DEC+ALB)", COUNTRY_INFO!$T$9:$T$1000, " ") ->  | I32: 0 | M32: 0
A33: =IF(COUNTRY_INFO!A33=0," ",COUNTRY_INFO!A33) -> Uganda | B33: =IF(COUNTRY_INFO!B33=0," ",COUNTRY_INFO!B33) -> Eastern | C33: =IF(COUNTRY_INFO!C33=0," ",COUNTRY_INFO!C33) -> Amuria | D33: =IF(COUNTRY_INFO!$T$9:$T$1000="MDA2 (DEC+ALB)", COUNTRY_INFO!$T$9:$T$1000, " ") ->  | I33: 0 | M33: 0
A34: =IF(COUNTRY_INFO!A34=0," ",COUNTRY_INFO!A34) -> Uganda | B34: =IF(COUNTRY_INFO!B34=0," ",COUNTRY_INFO!B34) -> Eastern | C34: =IF(COUNTRY_INFO!C34=0," ",COUNTRY_INFO!C34) -> Budaka | D34: =IF(COUNTRY_INFO!$T$9:$T$1000="MDA2 (DEC+ALB)", COUNTRY_INFO!$T$9:$T$1000, " ") ->  | I34: 0 | M34: 0
A35: =IF(COUNTRY_INFO!A35=0," ",COUNTRY_INFO!A35) -> Uganda | B35: =IF(COUNTRY_INFO!B35=0," ",COUNTRY_INFO!B35) -> Eastern | C35: =IF(COUNTRY_INFO!C35=0," ",COUNTRY_INFO!C35) -> Bududa | D35: =IF(COUNTRY_INFO!$T$9:$T$1000="MDA2 (DEC+ALB)", COUNTRY_INFO!$T$9:$T$1000, " ") ->  | I35: 0 | M35: 0
A36: =IF(COUNTRY_INFO!A36=0," ",COUNTRY_INFO!A36) -> Uganda | B36: =IF(COUNTRY_INFO!B36=0," ",COUNTRY_INFO!B36) -> Eastern | C36: =IF(COUNTRY_INFO!C36=0," ",COUNTRY_INFO!C36) -> Bugiri | D36: =IF(COUNTRY_INFO!$T$9:$T$1000="MDA2 (DEC+ALB)", COUNTRY_INFO!$T$9:$T$1000, " ") ->  | I36: 0 | M36: 0
A37: =IF(COUNTRY_INFO!A37=0," ",COUNTRY_INFO!A37) -> Uganda | B37: =IF(COUNTRY_INFO!B37=0," ",COUNTRY_INFO!B37) -> Eastern | C37: =IF(COUNTRY_INFO!C37=0," ",COUNTRY_INFO!C37) -> Bukedea | D37: =IF(COUNTRY_INFO!$T$9:$T$1000="MDA2 (DEC+ALB)", COUNTRY_INFO!$T$9:$T$1000, " ") ->  | I37: 0 | M37: 0
A38: =IF(COUNTRY_INFO!A38=0," ",COUNTRY_INFO!A38) -> Uganda | B38: =IF(COUNTRY_INFO!B38=0," ",COUNTRY_INFO!B38) -> Eastern | C38: =IF(COUNTRY_INFO!C38=0," ",COUNTRY_INFO!C38) -> Bukwo | D38: =IF(COUNTRY_INFO!$T$9:$T$1000="MDA2 (DEC+ALB)", COUNTRY_INFO!$T$9:$T$1000, " ") ->  | I38: 0 | M38: 0
A39: =IF(COUNTRY_INFO!A39=0," ",COUNTRY_INFO!A39) -> Uganda | B39: =IF(COUNTRY_INFO!B39=0," ",COUNTRY_INFO!B39) -> Eastern | C39: =IF(COUNTRY_INFO!C39=0," ",COUNTRY_INFO!C39) -> Bulambuli | D39: =IF(COUNTRY_INFO!$T$9:$T$1000="MDA2 (DEC+ALB)", COUNTRY_INFO!$T$9:$T$1000, " ") ->  | I39: 0 | M39: 0
A40: =IF(COUNTRY_INFO!A40=0," ",COUNTRY_INFO!A40) -> Uganda | B40: =IF(COUNTRY_INFO!B40=0," ",COUNTRY_INFO!B40) -> Eastern | C40: =IF(COUNTRY_INFO!C40=0," ",COUNTRY_INFO!C40) -> Busia | D40: =IF(COUNTRY_INFO!$T$9:$T$1000="MDA2 (DEC+ALB)", COUNTRY_INFO!$T$9:$T$1000, " ") ->  | I40: 0 | M40: 0
A41: =IF(COUNTRY_INFO!A41=0," ",COUNTRY_INFO!A41) -> Uganda | B41: =IF(COUNTRY_INFO!B41=0," ",COUNTRY_INFO!B41) -> Eastern | C41: =IF(COUNTRY_INFO!C41=0," ",COUNTRY_INFO!C41) -> Butaleja | D41: =IF(COUNTRY_INFO!$T$9:$T$1000="MDA2 (DEC+ALB)", COUNTRY_INFO!$T$9:$T$1000, " ") ->  | I41: 0 | M41: 0
A42: =IF(COUNTRY_INFO!A42=0," ",COUNTRY_INFO!A42) -> Uganda | B42: =IF(COUNTRY_INFO!B42=0," ",COUNTRY_INFO!B42) -> Eastern | C42: =IF(COUNTRY_INFO!C42=0," ",COUNTRY_INFO!C42) -> Buyende | D42: =IF(COUNTRY_INFO!$T$9:$T$1000="MDA2 (DEC+ALB)", COUNTRY_INFO!$T$9:$T$1000, " ") ->  | I42: 0 | M42: 0
A43: =IF(COUNTRY_INFO!A43=0," ",COUNTRY_INFO!A43) -> Uganda | B43: =IF(COUNTRY_INFO!B43=0," ",COUNTRY_INFO!B43) -> Eastern | C43: =IF(COUNTRY_INFO!C43=0," ",COUNTRY_INFO!C43) -> Iganga | D43: =IF(COUNTRY_INFO!$T$9:$T$1000="MDA2 (DEC+ALB)", COUNTRY_INFO!$T$9:$T$1000, " ") ->  | I43: 0 | M43: 0
A44: =IF(COUNTRY_INFO!A44=0," ",COUNTRY_INFO!A44) -> Uganda | B44: =IF(COUNTRY_INFO!B44=0," ",COUNTRY_INFO!B44) -> Eastern | C44: =IF(COUNTRY_INFO!C44=0," ",COUNTRY_INFO!C44) -> Jinja | D44: =IF(COUNTRY_INFO!$T$9:$T$1000="MDA2 (DEC+ALB)", COUNTRY_INFO!$T$9:$T$1000, " ") ->  | I44: 0 | M44: 0
A45: =IF(COUNTRY_INFO!A45=0," ",COUNTRY_INFO!A45) -> Uganda | B45: =IF(COUNTRY_INFO!B45=0," ",COUNTRY_INFO!B45) -> Eastern | C45: =IF(COUNTRY_INFO!C45=0," ",COUNTRY_INFO!C45) -> Kaberamaido | D45: =IF(COUNTRY_INFO!$T$9:$T$1000="MDA2 (DEC+ALB)", COUNTRY_INFO!$T$9:$T$1000, " ") ->  | I45: 0 | M45: 0
A46: =IF(COUNTRY_INFO!A46=0," ",COUNTRY_INFO!A46) -> Uganda | B46: =IF(COUNTRY_INFO!B46=0," ",COUNTRY_INFO!B46) -> Eastern | C46: =IF(COUNTRY_INFO!C46=0," ",COUNTRY_INFO!C46) -> Kaliro | D46: =IF(COUNTRY_INFO!$T$9:$T$1000="MDA2 (DEC+ALB)", COUNTRY_INFO!$T$9:$T$1000, " ") ->  | I46: 0 | M46: 0
A47: =IF(COUNTRY_INFO!A47=0," ",COUNTRY_INFO!A47) -> Uganda | B47: =IF(COUNTRY_INFO!B47=0," ",COUNTRY_INFO!B47) -> Eastern | C47: =IF(COUNTRY_INFO!C47=0," ",COUNTRY_INFO!C47) -> Kamuli | D47: =IF(COUNTRY_INFO!$T$9:$T$1000="MDA2 (DEC+ALB)", COUNTRY_INFO!$T$9:$T$1000, " ") ->  | I47: 0 | M47: 0
A48: =IF(COUNTRY_INFO!A48=0," ",COUNTRY_INFO!A48) -> Uganda | B48: =IF(COUNTRY_INFO!B48=0," ",COUNTRY_INFO!B48) -> Eastern | C48: =IF(COUNTRY_INFO!C48=0," ",COUNTRY_INFO!C48) -> Kapchorwa | D48: =IF(COUNTRY_INFO!$T$9:$T$1000="MDA2 (DEC+ALB)", COUNTRY_INFO!$T$9:$T$1000, " ") ->  | I48: 0 | M48: 0
A49: =IF(COUNTRY_INFO!A49=0," ",COUNTRY_INFO!A49) -> Uganda | B49: =IF(COUNTRY_INFO!B49=0," ",COUNTRY_INFO!B49) -> Eastern | C49: =IF(COUNTRY_INFO!C49=0," ",COUNTRY_INFO!C49) -> Katakwi | D49: =IF(COUNTRY_INFO!$T$9:$T$1000="MDA2 (DEC+ALB)", COUNTRY_INFO!$T$9:$T$1000, " ") ->  | I49: 0 | M49: 0
A50: =IF(COUNTRY_INFO!A50=0," ",COUNTRY_INFO!A50) -> Uganda | B50: =IF(COUNTRY_INFO!B50=0," ",COUNTRY_INFO!B50) -> Eastern | C50: =IF(COUNTRY_INFO!C50=0," ",COUNTRY_INFO!C50) -> Kibuku | D50: =IF(COUNTRY_INFO!$T$9:$T$1000="MDA2 (DEC+ALB)", COUNTRY_INFO!$T$9:$T$1000, " ") ->  | I50: 0 | M50: 0
A51: =IF(COUNTRY_INFO!A51=0," ",COUNTRY_INFO!A51) -> Uganda | B51: =IF(COUNTRY_INFO!B51=0," ",COUNTRY_INFO!B51) -> Eastern | C51: =IF(COUNTRY_INFO!C51=0," ",COUNTRY_INFO!C51) -> Kumi | D51: =IF(COUNTRY_INFO!$T$9:$T$1000="MDA2 (DEC+ALB)", COUNTRY_INFO!$T$9:$T$1000, " ") ->  | I51: 0 | M51: 0
A52: =IF(COUNTRY_INFO!A52=0," ",COUNTRY_INFO!A52) -> Uganda | B52: =IF(COUNTRY_INFO!B52=0," ",COUNTRY_INFO!B52) -> Eastern | C52: =IF(COUNTRY_INFO!C52=0," ",COUNTRY_INFO!C52) -> Kween | D52: =IF(COUNTRY_INFO!$T$9:$T$1000="MDA2 (DEC+ALB)", COUNTRY_INFO!$T$9:$T$1000, " ") ->  | I52: 0 | M52: 0
A53: =IF(COUNTRY_INFO!A53=0," ",COUNTRY_INFO!A53) -> Uganda | B53: =IF(COUNTRY_INFO!B53=0," ",COUNTRY_INFO!B53) -> Eastern | C53: =IF(COUNTRY_INFO!C53=0," ",COUNTRY_INFO!C53) -> Luuka | D53: =IF(COUNTRY_INFO!$T$9:$T$1000="MDA2 (DEC+ALB)", COUNTRY_INFO!$T$9:$T$1000, " ") ->  | I53: 0 | M53: 0
A54: =IF(COUNTRY_INFO!A54=0," ",COUNTRY_INFO!A54) -> Uganda | B54: =IF(COUNTRY_INFO!B54=0," ",COUNTRY_INFO!B54) -> Eastern | C54: =IF(COUNTRY_INFO!C54=0," ",COUNTRY_INFO!C54) -> Manafwa | D54: =IF(COUNTRY_INFO!$T$9:$T$1000="MDA2 (DEC+ALB)", COUNTRY_INFO!$T$9:$T$1000, " ") ->  | I54: 0 | M54: 0
A55: =IF(COUNTRY_INFO!A55=0," ",COUNTRY_INFO!A55) -> Uganda | B55: =IF(COUNTRY_INFO!B55=0," ",COUNTRY_INFO!B55) -> Eastern | C55: =IF(COUNTRY_INFO!C55=0," ",COUNTRY_INFO!C55) -> Mayuge | D55: =IF(COUNTRY_INFO!$T$9:$T$1000="MDA2 (DEC+ALB)", COUNTRY_INFO!$T$9:$T$1000, " ") ->  | I55: 0 | M55: 0
A56: =IF(COUNTRY_INFO!A56=0," ",COUNTRY_INFO!A56) -> Uganda | B56: =IF(COUNTRY_INFO!B56=0," ",COUNTRY_INFO!B56) -> Eastern | C56: =IF(COUNTRY_INFO!C56=0," ",COUNTRY_INFO!C56) -> Mbale | D56: =IF(COUNTRY_INFO!$T$9:$T$1000="MDA2 (DEC+ALB)", COUNTRY_INFO!$T$9:$T$1000, " ") ->  | I56: 0 | M56: 0
A57: =IF(COUNTRY_INFO!A57=0," ",COUNTRY_INFO!A57) -> Uganda | B57: =IF(COUNTRY_INFO!B57=0," ",COUNTRY_INFO!B57) -> Eastern | C57: =IF(COUNTRY_INFO!C57=0," ",COUNTRY_INFO!C57) -> Namayingo | D57: =IF(COUNTRY_INFO!$T$9:$T$1000="MDA2 (DEC+ALB)", COUNTRY_INFO!$T$9:$T$1000, " ") ->  | I57: 0 | M57: 0
A58: =IF(COUNTRY_INFO!A58=0," ",COUNTRY_INFO!A58) -> Uganda | B58: =IF(COUNTRY_INFO!B58=0," ",COUNTRY_INFO!B58) -> Eastern | C58: =IF(COUNTRY_INFO!C58=0," ",COUNTRY_INFO!C58) -> Namutumba | D58: =IF(COUNTRY_INFO!$T$9:$T$1000="MDA2 (DEC+ALB)", COUNTRY_INFO!$T$9:$T$1000, " ") ->  | I58: 0 | M58: 0
A59: =IF(COUNTRY_INFO!A59=0," ",COUNTRY_INFO!A59) -> Uganda | B59: =IF(COUNTRY_INFO!B59=0," ",COUNTRY_INFO!B59) -> Eastern | C59: =IF(COUNTRY_INFO!C59=0," ",COUNTRY_INFO!C59) -> Ngora | D59: =IF(COUNTRY_INFO!$T$9:$T$1000="MDA2 (DEC+ALB)", COUNTRY_INFO!$T$9:$T$1000, " ") ->  | I59: 0 | M59: 0
A60: =IF(COUNTRY_INFO!A60=0," ",COUNTRY_INFO!A60) -> Uganda | B60: =IF(COUNTRY_INFO!B60=0," ",COUNTRY_INFO!B60) -> Eastern | C60: =IF(COUNTRY_INFO!C60=0," ",COUNTRY_INFO!C60) -> Pallisa | D60: =IF(COUNTRY_INFO!$T$9:$T$1000="MDA2 (DEC+ALB)", COUNTRY_INFO!$T$9:$T$1000, " ") ->  | I60: 0 | M60: 0
A61: =IF(COUNTRY_INFO!A61=0," ",COUNTRY_INFO!A61) -> Uganda | B61: =IF(COUNTRY_INFO!B61=0," ",COUNTRY_INFO!B61) -> Eastern | C61: =IF(COUNTRY_INFO!C61=0," ",COUNTRY_INFO!C61) -> Serere | D61: =IF(COUNTRY_INFO!$T$9:$T$1000="MDA2 (DEC+ALB)", COUNTRY_INFO!$T$9:$T$1000, " ") ->  | I61: 0 | M61: 0
A62: =IF(COUNTRY_INFO!A62=0," ",COUNTRY_INFO!A62) -> Uganda | B62: =IF(COUNTRY_INFO!B62=0," ",COUNTRY_INFO!B62) -> Eastern | C62: =IF(COUNTRY_INFO!C62=0," ",COUNTRY_INFO!C62) -> Sironko | D62: =IF(COUNTRY_INFO!$T$9:$T$1000="MDA2 (DEC+ALB)", COUNTRY_INFO!$T$9:$T$1000, " ") ->  | I62: 0 | M62: 0
A63: =IF(COUNTRY_INFO!A63=0," ",COUNTRY_INFO!A63) -> Uganda | B63: =IF(COUNTRY_INFO!B63=0," ",COUNTRY_INFO!B63) -> Eastern | C63: =IF(COUNTRY_INFO!C63=0," ",COUNTRY_INFO!C63) -> Soroti | D63: =IF(COUNTRY_INFO!$T$9:$T$1000="MDA2 (DEC+ALB)", COUNTRY_INFO!$T$9:$T$1000, " ") ->  | I63: 0 | M63: 0
A64: =IF(COUNTRY_INFO!A64=0," ",COUNTRY_INFO!A64) -> Uganda | B64: =IF(COUNTRY_INFO!B64=0," ",COUNTRY_INFO!B64) -> Eastern | C64: =IF(COUNTRY_INFO!C64=0," ",COUNTRY_INFO!C64) -> Tororo | D64: =IF(COUNTRY_INFO!$T$9:$T$1000="MDA2 (DEC+ALB)", COUNTRY_INFO!$T$9:$T$1000, " ") ->  | I64: 0 | M64: 0
A65: =IF(COUNTRY_INFO!A65=0," ",COUNTRY_INFO!A65) -> Uganda | B65: =IF(COUNTRY_INFO!B65=0," ",COUNTRY_INFO!B65) -> Northern | C65: =IF(COUNTRY_INFO!C65=0," ",COUNTRY_INFO!C65) -> Abim | D65: =IF(COUNTRY_INFO!$T$9:$T$1000="MDA2 (DEC+ALB)", COUNTRY_INFO!$T$9:$T$1000, " ") ->  | I65: 0 | M65: 0
A66: =IF(COUNTRY_INFO!A66=0," ",COUNTRY_INFO!A66) -> Uganda | B66: =IF(COUNTRY_INFO!B66=0," ",COUNTRY_INFO!B66) -> Northern | C66: =IF(COUNTRY_INFO!C66=0," ",COUNTRY_INFO!C66) -> Adjumani | D66: =IF(COUNTRY_INFO!$T$9:$T$1000="MDA2 (DEC+ALB)", COUNTRY_INFO!$T$9:$T$1000, " ") ->  | I66: 0 | M66: 0
A67: =IF(COUNTRY_INFO!A67=0," ",COUNTRY_INFO!A67) -> Uganda | B67: =IF(COUNTRY_INFO!B67=0," ",COUNTRY_INFO!B67) -> Northern | C67: =IF(COUNTRY_INFO!C67=0," ",COUNTRY_INFO!C67) -> Agago | D67: =IF(COUNTRY_INFO!$T$9:$T$1000="MDA2 (DEC+ALB)", COUNTRY_INFO!$T$9:$T$1000, " ") ->  | I67: 0 | M67: 0
A68: =IF(COUNTRY_INFO!A68=0," ",COUNTRY_INFO!A68) -> Uganda | B68: =IF(COUNTRY_INFO!B68=0," ",COUNTRY_INFO!B68) -> Northern | C68: =IF(COUNTRY_INFO!C68=0," ",COUNTRY_INFO!C68) -> Alebtong | D68: =IF(COUNTRY_INFO!$T$9:$T$1000="MDA2 (DEC+ALB)", COUNTRY_INFO!$T$9:$T$1000, " ") ->  | I68: 0 | M68: 0
A69: =IF(COUNTRY_INFO!A69=0," ",COUNTRY_INFO!A69) -> Uganda | B69: =IF(COUNTRY_INFO!B69=0," ",COUNTRY_INFO!B69) -> Northern | C69: =IF(COUNTRY_INFO!C69=0," ",COUNTRY_INFO!C69) -> Amolatar | D69: =IF(COUNTRY_INFO!$T$9:$T$1000="MDA2 (DEC+ALB)", COUNTRY_INFO!$T$9:$T$1000, " ") ->  | I69: 0 | M69: 0
A70: =IF(COUNTRY_INFO!A70=0," ",COUNTRY_INFO!A70) -> Uganda | B70: =IF(COUNTRY_INFO!B70=0," ",COUNTRY_INFO!B70) -> Northern | C70: =IF(COUNTRY_INFO!C70=0," ",COUNTRY_INFO!C70) -> Amudat | D70: =IF(COUNTRY_INFO!$T$9:$T$1000="MDA2 (DEC+ALB)", COUNTRY_INFO!$T$9:$T$1000, " ") ->  | I70: 0 | M70: 0
A71: =IF(COUNTRY_INFO!A71=0," ",COUNTRY_INFO!A71) -> Uganda | B71: =IF(COUNTRY_INFO!B71=0," ",COUNTRY_INFO!B71) -> Northern | C71: =IF(COUNTRY_INFO!C71=0," ",COUNTRY_INFO!C71) -> Amuru | D71: =IF(COUNTRY_INFO!$T$9:$T$1000="MDA2 (DEC+ALB)", COUNTRY_INFO!$T$9:$T$1000, " ") ->  | I71: 0 | M71: 0
A72: =IF(COUNTRY_INFO!A72=0," ",COUNTRY_INFO!A72) -> Uganda | B72: =IF(COUNTRY_INFO!B72=0," ",COUNTRY_INFO!B72) -> Northern | C72: =IF(COUNTRY_INFO!C72=0," ",COUNTRY_INFO!C72) -> Apac | D72: =IF(COUNTRY_INFO!$T$9:$T$1000="MDA2 (DEC+ALB)", COUNTRY_INFO!$T$9:$T$1000, " ") ->  | I72: 0 | M72: 0
A73: =IF(COUNTRY_INFO!A73=0," ",COUNTRY_INFO!A73) -> Uganda | B73: =IF(COUNTRY_INFO!B73=0," ",COUNTRY_INFO!B73) -> Northern | C73: =IF(COUNTRY_INFO!C73=0," ",COUNTRY_INFO!C73) -> Arua | D73: =IF(COUNTRY_INFO!$T$9:$T$1000="MDA2 (DEC+ALB)", COUNTRY_INFO!$T$9:$T$1000, " ") ->  | I73: 0 | M73: 0
A74: =IF(COUNTRY_INFO!A74=0," ",COUNTRY_INFO!A74) -> Uganda | B74: =IF(COUNTRY_INFO!B74=0," ",COUNTRY_INFO!B74) -> Northern | C74: =IF(COUNTRY_INFO!C74=0," ",COUNTRY_INFO!C74) -> Dokolo | D74: =IF(COUNTRY_INFO!$T$9:$T$1000="MDA2 (DEC+ALB)", COUNTRY_INFO!$T$9:$T$1000, " ") ->  | I74: =SUM(F74:H74) -> 0 | M74: =SUM(J74:L74) -> 0 | N74: =IF(F74<>0, IF(J74/F74*100=0, "-", J74/F74*100), " ") ->  | O74: =IF(G74<>0, IF(K74/G74*100=0, "-", K74/G74*100), " ") ->  | P74: =IF(H74<>0, IF(L74/H74*100=0, "-", L74/H74*100), " ") ->  | Q74: =IF(I74<>0, IF(M74/I74*100=0, "-", M74/I74*100), " ") -> 
A75: =IF(COUNTRY_INFO!A75=0," ",COUNTRY_INFO!A75) -> Uganda | B75: =IF(COUNTRY_INFO!B75=0," ",COUNTRY_INFO!B75) -> Northern | C75: =IF(COUNTRY_INFO!C75=0," ",COUNTRY_INFO!C75) -> Gulu | D75: =IF(COUNTRY_INFO!$T$9:$T$1000="MDA2 (DEC+ALB)", COUNTRY_INFO!$T$9:$T$1000, " ") ->  | I75: 0 | M75: 0
A76: =IF(COUNTRY_INFO!A76=0," ",COUNTRY_INFO!A76) -> Uganda | B76: =IF(COUNTRY_INFO!B76=0," ",COUNTRY_INFO!B76) -> Northern | C76: =IF(COUNTRY_INFO!C76=0," ",COUNTRY_INFO!C76) -> Kaabong | D76: =IF(COUNTRY_INFO!$T$9:$T$1000="MDA2 (DEC+ALB)", COUNTRY_INFO!$T$9:$T$1000, " ") ->  | I76: 0 | M76: 0
A77: =IF(COUNTRY_INFO!A77=0," ",COUNTRY_INFO!A77) -> Uganda | B77: =IF(COUNTRY_INFO!B77=0," ",COUNTRY_INFO!B77) -> Northern | C77: =IF(COUNTRY_INFO!C77=0," ",COUNTRY_INFO!C77) -> Kitgum | D77: =IF(COUNTRY_INFO!$T$9:$T$1000="MDA2 (DEC+ALB)", COUNTRY_INFO!$T$9:$T$1000, " ") ->  | I77: 0 | M77: 0
A78: =IF(COUNTRY_INFO!A78=0," ",COUNTRY_INFO!A78) -> Uganda | B78: =IF(COUNTRY_INFO!B78=0," ",COUNTRY_INFO!B78) -> Northern | C78: =IF(COUNTRY_INFO!C78=0," ",COUNTRY_INFO!C78) -> Koboko | D78: =IF(COUNTRY_INFO!$T$9:$T$1000="MDA2 (DEC+ALB)", COUNTRY_INFO!$T$9:$T$1000, " ") ->  | I78: 0 | M78: 0
A79: =IF(COUNTRY_INFO!A79=0," ",COUNTRY_INFO!A79) -> Uganda | B79: =IF(COUNTRY_INFO!B79=0," ",COUNTRY_INFO!B79) -> Northern | C79: =IF(COUNTRY_INFO!C79=0," ",COUNTRY_INFO!C79) -> Kole | D79: =IF(COUNTRY_INFO!$T$9:$T$1000="MDA2 (DEC+ALB)", COUNTRY_INFO!$T$9:$T$1000, " ") ->  | I79: 0 | M79: 0
A80: =IF(COUNTRY_INFO!A80=0," ",COUNTRY_INFO!A80) -> Uganda | B80: =IF(COUNTRY_INFO!B80=0," ",COUNTRY_INFO!B80) -> Northern | C80: =IF(COUNTRY_INFO!C80=0," ",COUNTRY_INFO!C80) -> Kotido | D80: =IF(COUNTRY_INFO!$T$9:$T$1000="MDA2 (DEC+ALB)", COUNTRY_INFO!$T$9:$T$1000, " ") ->  | I80: 0 | M80: 0
A81: =IF(COUNTRY_INFO!A81=0," ",COUNTRY_INFO!A81) -> Uganda | B81: =IF(COUNTRY_INFO!B81=0," ",COUNTRY_INFO!B81) -> Northern | C81: =IF(COUNTRY_INFO!C81=0," ",COUNTRY_INFO!C81) -> Lamwo | D81: =IF(COUNTRY_INFO!$T$9:$T$1000="MDA2 (DEC+ALB)", COUNTRY_INFO!$T$9:$T$1000, " ") ->  | I81: 0 | M81: 0
A82: =IF(COUNTRY_INFO!A82=0," ",COUNTRY_INFO!A82) -> Uganda | B82: =IF(COUNTRY_INFO!B82=0," ",COUNTRY_INFO!B82) -> Northern | C82: =IF(COUNTRY_INFO!C82=0," ",COUNTRY_INFO!C82) -> Lira | D82: =IF(COUNTRY_INFO!$T$9:$T$1000="MDA2 (DEC+ALB)", COUNTRY_INFO!$T$9:$T$1000, " ") ->  | I82: 0 | M82: 0
A83: =IF(COUNTRY_INFO!A83=0," ",COUNTRY_INFO!A83) -> Uganda | B83: =IF(COUNTRY_INFO!B83=0," ",COUNTRY_INFO!B83) -> Northern | C83: =IF(COUNTRY_INFO!C83=0," ",COUNTRY_INFO!C83) -> Maracha | D83: =IF(COUNTRY_INFO!$T$9:$T$1000="MDA2 (DEC+ALB)", COUNTRY_INFO!$T$9:$T$1000, " ") ->  | I83: 0 | M83: 0
A84: =IF(COUNTRY_INFO!A84=0," ",COUNTRY_INFO!A84) -> Uganda | B84: =IF(COUNTRY_INFO!B84=0," ",COUNTRY_INFO!B84) -> Northern | C84: =IF(COUNTRY_INFO!C84=0," ",COUNTRY_INFO!C84) -> Moroto | D84: =IF(COUNTRY_INFO!$T$9:$T$1000="MDA2 (DEC+ALB)", COUNTRY_INFO!$T$9:$T$1000, " ") ->  | I84: 0 | M84: 0
A85: =IF(COUNTRY_INFO!A85=0," ",COUNTRY_INFO!A85) -> Uganda | B85: =IF(COUNTRY_INFO!B85=0," ",COUNTRY_INFO!B85) -> Northern | C85: =IF(COUNTRY_INFO!C85=0," ",COUNTRY_INFO!C85) -> Moyo | D85: =IF(COUNTRY_INFO!$T$9:$T$1000="MDA2 (DEC+ALB)", COUNTRY_INFO!$T$9:$T$1000, " ") ->  | I85: 0 | M85: 0
A86: =IF(COUNTRY_INFO!A86=0," ",COUNTRY_INFO!A86) -> Uganda | B86: =IF(COUNTRY_INFO!B86=0," ",COUNTRY_INFO!B86) -> Northern | C86: =IF(COUNTRY_INFO!C86=0," ",COUNTRY_INFO!C86) -> Nakapiripirit | D86: =IF(COUNTRY_INFO!$T$9:$T$1000="MDA2 (DEC+ALB)", COUNTRY_INFO!$T$9:$T$1000, " ") ->  | I86: 0 | M86: 0
A87: =IF(COUNTRY_INFO!A87=0," ",COUNTRY_INFO!A87) -> Uganda | B87: =IF(COUNTRY_INFO!B87=0," ",COUNTRY_INFO!B87) -> Northern | C87: =IF(COUNTRY_INFO!C87=0," ",COUNTRY_INFO!C87) -> Napak | D87: =IF(COUNTRY_INFO!$T$9:$T$1000="MDA2 (DEC+ALB)", COUNTRY_INFO!$T$9:$T$1000, " ") ->  | I87: 0 | M87: 0
A88: =IF(COUNTRY_INFO!A88=0," ",COUNTRY_INFO!A88) -> Uganda | B88: =IF(COUNTRY_INFO!B88=0," ",COUNTRY_INFO!B88) -> Northern | C88: =IF(COUNTRY_INFO!C88=0," ",COUNTRY_INFO!C88) -> Nebbi | D88: =IF(COUNTRY_INFO!$T$9:$T$1000="MDA2 (DEC+ALB)", COUNTRY_INFO!$T$9:$T$1000, " ") ->  | I88: 0 | M88: 0
A89: =IF(COUNTRY_INFO!A89=0," ",COUNTRY_INFO!A89) -> Uganda | B89: =IF(COUNTRY_INFO!B89=0," ",COUNTRY_INFO!B89) -> Northern | C89: =IF(COUNTRY_INFO!C89=0," ",COUNTRY_INFO!C89) -> Nwoya | D89: =IF(COUNTRY_INFO!$T$9:$T$1000="MDA2 (DEC+ALB)", COUNTRY_INFO!$T$9:$T$1000, " ") ->  | I89: 0 | M89: 0
A90: =IF(COUNTRY_INFO!A90=0," ",COUNTRY_INFO!A90) -> Uganda | B90: =IF(COUNTRY_INFO!B90=0," ",COUNTRY_INFO!B90) -> Northern | C90: =IF(COUNTRY_INFO!C90=0," ",COUNTRY_INFO!C90) -> Omoro | D90: =IF(COUNTRY_INFO!$T$9:$T$1000="MDA2 (DEC+ALB)", COUNTRY_INFO!$T$9:$T$1000, " ") ->  | I90: 0 | M90: 0
A91: =IF(COUNTRY_INFO!A91=0," ",COUNTRY_INFO!A91) -> Uganda | B91: =IF(COUNTRY_INFO!B91=0," ",COUNTRY_INFO!B91) -> Northern | C91: =IF(COUNTRY_INFO!C91=0," ",COUNTRY_INFO!C91) -> Otuke | D91: =IF(COUNTRY_INFO!$T$9:$T$1000="MDA2 (DEC+ALB)", COUNTRY_INFO!$T$9:$T$1000, " ") ->  | I91: 0 | M91: 0
A92: =IF(COUNTRY_INFO!A92=0," ",COUNTRY_INFO!A92) -> Uganda | B92: =IF(COUNTRY_INFO!B92=0," ",COUNTRY_INFO!B92) -> Northern | C92: =IF(COUNTRY_INFO!C92=0," ",COUNTRY_INFO!C92) -> Oyam | D92: =IF(COUNTRY_INFO!$T$9:$T$1000="MDA2 (DEC+ALB)", COUNTRY_INFO!$T$9:$T$1000, " ") ->  | I92: 0 | M92: 0
A93: =IF(COUNTRY_INFO!A93=0," ",COUNTRY_INFO!A93) -> Uganda | B93: =IF(COUNTRY_INFO!B93=0," ",COUNTRY_INFO!B93) -> Northern | C93: =IF(COUNTRY_INFO!C93=0," ",COUNTRY_INFO!C93) -> Pader | D93: =IF(COUNTRY_INFO!$T$9:$T$1000="MDA2 (DEC+ALB)", COUNTRY_INFO!$T$9:$T$1000, " ") ->  | I93: 0 | M93: 0
A94: =IF(COUNTRY_INFO!A94=0," ",COUNTRY_INFO!A94) -> Uganda | B94: =IF(COUNTRY_INFO!B94=0," ",COUNTRY_INFO!B94) -> Northern | C94: =IF(COUNTRY_INFO!C94=0," ",COUNTRY_INFO!C94) -> Yumbe | D94: =IF(COUNTRY_INFO!$T$9:$T$1000="MDA2 (DEC+ALB)", COUNTRY_INFO!$T$9:$T$1000, " ") ->  | I94: 0 | M94: 0
A95: =IF(COUNTRY_INFO!A95=0," ",COUNTRY_INFO!A95) -> Uganda | B95: =IF(COUNTRY_INFO!B95=0," ",COUNTRY_INFO!B95) -> Northern | C95: =IF(COUNTRY_INFO!C95=0," ",COUNTRY_INFO!C95) -> Zombo | D95: =IF(COUNTRY_INFO!$T$9:$T$1000="MDA2 (DEC+ALB)", COUNTRY_INFO!$T$9:$T$1000, " ") ->  | I95: 0 | M95: 0
A96: =IF(COUNTRY_INFO!A96=0," ",COUNTRY_INFO!A96) -> Uganda | B96: =IF(COUNTRY_INFO!B96=0," ",COUNTRY_INFO!B96) -> Western | C96: =IF(COUNTRY_INFO!C96=0," ",COUNTRY_INFO!C96) -> Buhweju | D96: =IF(COUNTRY_INFO!$T$9:$T$1000="MDA2 (DEC+ALB)", COUNTRY_INFO!$T$9:$T$1000, " ") ->  | I96: 0 | M96: 0
A97: =IF(COUNTRY_INFO!A97=0," ",COUNTRY_INFO!A97) -> Uganda | B97: =IF(COUNTRY_INFO!B97=0," ",COUNTRY_INFO!B97) -> Western | C97: =IF(COUNTRY_INFO!C97=0," ",COUNTRY_INFO!C97) -> Buliisa | D97: =IF(COUNTRY_INFO!$T$9:$T$1000="MDA2 (DEC+ALB)", COUNTRY_INFO!$T$9:$T$1000, " ") ->  | I97: 0 | M97: 0
A98: =IF(COUNTRY_INFO!A98=0," ",COUNTRY_INFO!A98) -> Uganda | B98: =IF(COUNTRY_INFO!B98=0," ",COUNTRY_INFO!B98) -> Western | C98: =IF(COUNTRY_INFO!C98=0," ",COUNTRY_INFO!C98) -> Bundibugyo | D98: =IF(COUNTRY_INFO!$T$9:$T$1000="MDA2 (DEC+ALB)", COUNTRY_INFO!$T$9:$T$1000, " ") ->  | I98: 0 | M98: 0
A99: =IF(COUNTRY_INFO!A99=0," ",COUNTRY_INFO!A99) -> Uganda | B99: =IF(COUNTRY_INFO!B99=0," ",COUNTRY_INFO!B99) -> Western | C99: =IF(COUNTRY_INFO!C99=0," ",COUNTRY_INFO!C99) -> Bushenyi | D99: =IF(COUNTRY_INFO!$T$9:$T$1000="MDA2 (DEC+ALB)", COUNTRY_INFO!$T$9:$T$1000, " ") ->  | I99: 0 | M99: 0
A100: =IF(COUNTRY_INFO!A100=0," ",COUNTRY_INFO!A100) -> Uganda | B100: =IF(COUNTRY_INFO!B100=0," ",COUNTRY_INFO!B100) -> Western | C100: =IF(COUNTRY_INFO!C100=0," ",COUNTRY_INFO!C100) -> Hoima | D100: =IF(COUNTRY_INFO!$T$9:$T$1000="MDA2 (DEC+ALB)", COUNTRY_INFO!$T$9:$T$1000, " ") ->  | I100: 0 | M100: 0
A101: =IF(COUNTRY_INFO!A101=0," ",COUNTRY_INFO!A101) -> Uganda | B101: =IF(COUNTRY_INFO!B101=0," ",COUNTRY_INFO!B101) -> Western | C101: =IF(COUNTRY_INFO!C101=0," ",COUNTRY_INFO!C101) -> Ibanda | D101: =IF(COUNTRY_INFO!$T$9:$T$1000="MDA2 (DEC+ALB)", COUNTRY_INFO!$T$9:$T$1000, " ") ->  | I101: 0 | M101: 0
A102: =IF(COUNTRY_INFO!A102=0," ",COUNTRY_INFO!A102) -> Uganda | B102: =IF(COUNTRY_INFO!B102=0," ",COUNTRY_INFO!B102) -> Western | C102: =IF(COUNTRY_INFO!C102=0," ",COUNTRY_INFO!C102) -> Isingiro | D102: =IF(COUNTRY_INFO!$T$9:$T$1000="MDA2 (DEC+ALB)", COUNTRY_INFO!$T$9:$T$1000, " ") ->  | I102: 0 | M102: 0
A103: =IF(COUNTRY_INFO!A103=0," ",COUNTRY_INFO!A103) -> Uganda | B103: =IF(COUNTRY_INFO!B103=0," ",COUNTRY_INFO!B103) -> Western | C103: =IF(COUNTRY_INFO!C103=0," ",COUNTRY_INFO!C103) -> Kabale | D103: =IF(COUNTRY_INFO!$T$9:$T$1000="MDA2 (DEC+ALB)", COUNTRY_INFO!$T$9:$T$1000, " ") ->  | I103: 0 | M103: 0
A104: =IF(COUNTRY_INFO!A104=0," ",COUNTRY_INFO!A104) -> Uganda | B104: =IF(COUNTRY_INFO!B104=0," ",COUNTRY_INFO!B104) -> Western | C104: =IF(COUNTRY_INFO!C104=0," ",COUNTRY_INFO!C104) -> Kabarole | D104: =IF(COUNTRY_INFO!$T$9:$T$1000="MDA2 (DEC+ALB)", COUNTRY_INFO!$T$9:$T$1000, " ") ->  | I104: 0 | M104: 0
A105: =IF(COUNTRY_INFO!A105=0," ",COUNTRY_INFO!A105) -> Uganda | B105: =IF(COUNTRY_INFO!B105=0," ",COUNTRY_INFO!B105) -> Western | C105: =IF(COUNTRY_INFO!C105=0," ",COUNTRY_INFO!C105) -> Kagadi | D105: =IF(COUNTRY_INFO!$T$9:$T$1000="MDA2 (DEC+ALB)", COUNTRY_INFO!$T$9:$T$1000, " ") ->  | I105: 0 | M105: 0
A106: =IF(COUNTRY_INFO!A106=0," ",COUNTRY_INFO!A106) -> Uganda | B106: =IF(COUNTRY_INFO!B106=0," ",COUNTRY_INFO!B106) -> Western | C106: =IF(COUNTRY_INFO!C106=0," ",COUNTRY_INFO!C106) -> Kakumiro | D106: =IF(COUNTRY_INFO!$T$9:$T$1000="MDA2 (DEC+ALB)", COUNTRY_INFO!$T$9:$T$1000, " ") ->  | I106: 0 | M106: 0
A107: =IF(COUNTRY_INFO!A107=0," ",COUNTRY_INFO!A107) -> Uganda | B107: =IF(COUNTRY_INFO!B107=0," ",COUNTRY_INFO!B107) -> Western | C107: =IF(COUNTRY_INFO!C107=0," ",COUNTRY_INFO!C107) -> Kamwenge | D107: =IF(COUNTRY_INFO!$T$9:$T$1000="MDA2 (DEC+ALB)", COUNTRY_INFO!$T$9:$T$1000, " ") ->  | I107: 0 | M107: 0
A108: =IF(COUNTRY_INFO!A108=0," ",COUNTRY_INFO!A108) -> Uganda | B108: =IF(COUNTRY_INFO!B108=0," ",COUNTRY_INFO!B108) -> Western | C108: =IF(COUNTRY_INFO!C108=0," ",COUNTRY_INFO!C108) -> Kanungu | D108: =IF(COUNTRY_INFO!$T$9:$T$1000="MDA2 (DEC+ALB)", COUNTRY_INFO!$T$9:$T$1000, " ") ->  | I108: 0 | M108: 0
A109: =IF(COUNTRY_INFO!A109=0," ",COUNTRY_INFO!A109) -> Uganda | B109: =IF(COUNTRY_INFO!B109=0," ",COUNTRY_INFO!B109) -> Western | C109: =IF(COUNTRY_INFO!C109=0," ",COUNTRY_INFO!C109) -> Kasese | D109: =IF(COUNTRY_INFO!$T$9:$T$1000="MDA2 (DEC+ALB)", COUNTRY_INFO!$T$9:$T$1000, " ") ->  | I109: 0 | M109: 0
A110: =IF(COUNTRY_INFO!A110=0," ",COUNTRY_INFO!A110) -> Uganda | B110: =IF(COUNTRY_INFO!B110=0," ",COUNTRY_INFO!B110) -> Western | C110: =IF(COUNTRY_INFO!C110=0," ",COUNTRY_INFO!C110) -> Kibaale | D110: =IF(COUNTRY_INFO!$T$9:$T$1000="MDA2 (DEC+ALB)", COUNTRY_INFO!$T$9:$T$1000, " ") ->  | I110: 0 | M110: 0
A111: =IF(COUNTRY_INFO!A111=0," ",COUNTRY_INFO!A111) -> Uganda | B111: =IF(COUNTRY_INFO!B111=0," ",COUNTRY_INFO!B111) -> Western | C111: =IF(COUNTRY_INFO!C111=0," ",COUNTRY_INFO!C111) -> Kiruhura | D111: =IF(COUNTRY_INFO!$T$9:$T$1000="MDA2 (DEC+ALB)", COUNTRY_INFO!$T$9:$T$1000, " ") ->  | I111: 0 | M111: 0
A112: =IF(COUNTRY_INFO!A112=0," ",COUNTRY_INFO!A112) -> Uganda | B112: =IF(COUNTRY_INFO!B112=0," ",COUNTRY_INFO!B112) -> Western | C112: =IF(COUNTRY_INFO!C112=0," ",COUNTRY_INFO!C112) -> Kiryandongo | D112: =IF(COUNTRY_INFO!$T$9:$T$1000="MDA2 (DEC+ALB)", COUNTRY_INFO!$T$9:$T$1000, " ") ->  | I112: 0 | M112: 0
A113: =IF(COUNTRY_INFO!A113=0," ",COUNTRY_INFO!A113) -> Uganda | B113: =IF(COUNTRY_INFO!B113=0," ",COUNTRY_INFO!B113) -> Western | C113: =IF(COUNTRY_INFO!C113=0," ",COUNTRY_INFO!C113) -> Kisoro | D113: =IF(COUNTRY_INFO!$T$9:$T$1000="MDA2 (DEC+ALB)", COUNTRY_INFO!$T$9:$T$1000, " ") ->  | I113: 0 | M113: 0
A114: =IF(COUNTRY_INFO!A114=0," ",COUNTRY_INFO!A114) -> Uganda | B114: =IF(COUNTRY_INFO!B114=0," ",COUNTRY_INFO!B114) -> Western | C114: =IF(COUNTRY_INFO!C114=0," ",COUNTRY_INFO!C114) -> Kyegegwa | D114: =IF(COUNTRY_INFO!$T$9:$T$1000="MDA2 (DEC+ALB)", COUNTRY_INFO!$T$9:$T$1000, " ") ->  | I114: 0 | M114: 0
A115: =IF(COUNTRY_INFO!A115=0," ",COUNTRY_INFO!A115) -> Uganda | B115: =IF(COUNTRY_INFO!B115=0," ",COUNTRY_INFO!B115) -> Western | C115: =IF(COUNTRY_INFO!C115=0," ",COUNTRY_INFO!C115) -> Kyenjojo | D115: =IF(COUNTRY_INFO!$T$9:$T$1000="MDA2 (DEC+ALB)", COUNTRY_INFO!$T$9:$T$1000, " ") ->  | I115: 0 | M115: 0
A116: =IF(COUNTRY_INFO!A116=0," ",COUNTRY_INFO!A116) -> Uganda | B116: =IF(COUNTRY_INFO!B116=0," ",COUNTRY_INFO!B116) -> Western | C116: =IF(COUNTRY_INFO!C116=0," ",COUNTRY_INFO!C116) -> Masindi | D116: =IF(COUNTRY_INFO!$T$9:$T$1000="MDA2 (DEC+ALB)", COUNTRY_INFO!$T$9:$T$1000, " ") ->  | I116: 0 | M116: 0
A117: =IF(COUNTRY_INFO!A117=0," ",COUNTRY_INFO!A117) -> Uganda | B117: =IF(COUNTRY_INFO!B117=0," ",COUNTRY_INFO!B117) -> Western | C117: =IF(COUNTRY_INFO!C117=0," ",COUNTRY_INFO!C117) -> Mbarara | D117: =IF(COUNTRY_INFO!$T$9:$T$1000="MDA2 (DEC+ALB)", COUNTRY_INFO!$T$9:$T$1000, " ") ->  | I117: 0 | M117: 0
A118: =IF(COUNTRY_INFO!A118=0," ",COUNTRY_INFO!A118) -> Uganda | B118: =IF(COUNTRY_INFO!B118=0," ",COUNTRY_INFO!B118) -> Western | C118: =IF(COUNTRY_INFO!C118=0," ",COUNTRY_INFO!C118) -> Mitooma | D118: =IF(COUNTRY_INFO!$T$9:$T$1000="MDA2 (DEC+ALB)", COUNTRY_INFO!$T$9:$T$1000, " ") ->  | I118: 0 | M118: 0
A119: =IF(COUNTRY_INFO!A119=0," ",COUNTRY_INFO!A119) -> Uganda | B119: =IF(COUNTRY_INFO!B119=0," ",COUNTRY_INFO!B119) -> Western | C119: =IF(COUNTRY_INFO!C119=0," ",COUNTRY_INFO!C119) -> Ntoroko | D119: =IF(COUNTRY_INFO!$T$9:$T$1000="MDA2 (DEC+ALB)", COUNTRY_INFO!$T$9:$T$1000, " ") ->  | I119: 0 | M119: 0
A120: =IF(COUNTRY_INFO!A120=0," ",COUNTRY_INFO!A120) -> Uganda | B120: =IF(COUNTRY_INFO!B120=0," ",COUNTRY_INFO!B120) -> Western | C120: =IF(COUNTRY_INFO!C120=0," ",COUNTRY_INFO!C120) -> Ntungamo | D120: =IF(COUNTRY_INFO!$T$9:$T$1000="MDA2 (DEC+ALB)", COUNTRY_INFO!$T$9:$T$1000, " ") ->  | I120: 0 | M120: 0
A121: =IF(COUNTRY_INFO!A121=0," ",COUNTRY_INFO!A121) -> Uganda | B121: =IF(COUNTRY_INFO!B121=0," ",COUNTRY_INFO!B121) -> Western | C121: =IF(COUNTRY_INFO!C121=0," ",COUNTRY_INFO!C121) -> Rubanda | D121: =IF(COUNTRY_INFO!$T$9:$T$1000="MDA2 (DEC+ALB)", COUNTRY_INFO!$T$9:$T$1000, " ") ->  | I121: 0 | M121: 0
A122: =IF(COUNTRY_INFO!A122=0," ",COUNTRY_INFO!A122) -> Uganda | B122: =IF(COUNTRY_INFO!B122=0," ",COUNTRY_INFO!B122) -> Western | C122: =IF(COUNTRY_INFO!C122=0," ",COUNTRY_INFO!C122) -> Rubirizi | D122: =IF(COUNTRY_INFO!$T$9:$T$1000="MDA2 (DEC+ALB)", COUNTRY_INFO!$T$9:$T$1000, " ") ->  | I122: 0 | M122: 0
A123: =IF(COUNTRY_INFO!A123=0," ",COUNTRY_INFO!A123) -> Uganda | B123: =IF(COUNTRY_INFO!B123=0," ",COUNTRY_INFO!B123) -> Western | C123: =IF(COUNTRY_INFO!C123=0," ",COUNTRY_INFO!C123) -> Rukungiri | D123: =IF(COUNTRY_INFO!$T$9:$T$1000="MDA2 (DEC+ALB)", COUNTRY_INFO!$T$9:$T$1000, " ") ->  | I123: 0 | M123: 0
A124: =IF(COUNTRY_INFO!A124=0," ",COUNTRY_INFO!A124) -> Uganda | B124: =IF(COUNTRY_INFO!B124=0," ",COUNTRY_INFO!B124) -> Western | C124: =IF(COUNTRY_INFO!C124=0," ",COUNTRY_INFO!C124) -> Sheema | D124: =IF(COUNTRY_INFO!$T$9:$T$1000="MDA2 (DEC+ALB)", COUNTRY_INFO!$T$9:$T$1000, " ") ->  | I124: 0 | M124: 0

Sheet MDA3
A1: MDA 3 - Ivermectin (IVM)
A2: Administrative structure, population requiring PC by age group, population treated by age group and coverage
A4: TOTAL | F4: =SUM(F$9:F$1000) -> 829847 | G4: 1436028 | H4: 2265875 | I4: 720285 | J4: 1242611 | K4: 1962896 | L4: 782794 | M4: 1350451 | N4: 2133245 | O4: 789336 | P4: 1361736 | Q4: 2151072 | R4: =IF(F4<>0, IF(O4/F4*100=0, "-", O4/F4*100), " ") -> 95.11825674 | S4: =IF(G4<>0, IF(P4/G4*100=0, "-", P4/G4*100), " ") -> 94.82656327 | T4: =IF(H4<>0, IF(Q4/H4*100=0, "-", Q4/H4*100), " ") -> 94.93339218
D6: PC implemented | E6: Date | F6: Population targeted for MDA 3 | I6: Population treated - 1st round | L6: Population treated - 2nd round | O6: Population treated | R6: Programme coverage (%)
A7: Country | B7: Province/State | C7: District | F7: SAC | G7: Adults | H7: Total | I7: SAC | J7: Adults | K7: Total | L7: SAC | M7: Adults | N7: Total | O7: SAC | P7: Adults | Q7: Total | R7: SAC | S7: Adults | T7: Total
A9: =IF(COUNTRY_INFO!A9=0," ",COUNTRY_INFO!A9) -> Uganda | B9: =IF(COUNTRY_INFO!B9=0," ",COUNTRY_INFO!B9) -> Central | C9: =IF(COUNTRY_INFO!C9=0," ",COUNTRY_INFO!C9) -> Buikwe | D9: =IF(COUNTRY_INFO!$T$9:$T$1000="MDA3 (IVM)", COUNTRY_INFO!$T$9:$T$1000, " ") ->  | H9: =SUM(F9:G9) -> 0 | K9: =SUM(I9:J9) -> 0 | N9: =SUM(L9:M9) -> 0 | O9: =MAX(I9,L9) -> 0 | P9: 0 | Q9: =SUM(O9:P9) -> 0 | R9: =IF(F9<>0, IF(MAX(I9,L9)/F9*100=0, "-", MAX(I9,L9)/F9*100), " ") ->  | T9: =IF(H9<>0, IF((MAX(I9,L9)+MAX(J9,M9))/H9*100=0, "-",(MAX(I9,L9)+MAX(J9,M9))/H9*100), " ") -> 
A10: =IF(COUNTRY_INFO!A10=0," ",COUNTRY_INFO!A10) -> Uganda | B10: =IF(COUNTRY_INFO!B10=0," ",COUNTRY_INFO!B10) -> Central | C10: =IF(COUNTRY_INFO!C10=0," ",COUNTRY_INFO!C10) -> Bukomansimbi | D10: =IF(COUNTRY_INFO!$T$9:$T$1000="MDA3 (IVM)", COUNTRY_INFO!$T$9:$T$1000, " ") ->  | H10: =SUM(F10:G10) -> 0 | K10: =SUM(I10:J10) -> 0 | N10: =SUM(L10:M10) -> 0 | O10: =MAX(I10,L10) -> 0 | P10: =MAX(J10,M10) -> 0 | Q10: =SUM(O10:P10) -> 0 | R10: =IF(F10<>0, IF(MAX(I10,L10)/F10*100=0, "-", MAX(I10,L10)/F10*100), " ") ->  | S10: =IF(G10<>0, IF(MAX(J10,M10)/G10*100=0, "-", MAX(J10,M10)/G10*100), " ") ->  | T10: =IF(H10<>0, IF((MAX(I10,L10)+MAX(J10,M10))/H10*100=0, "-",(MAX(I10,L10)+MAX(J10,M10))/H10*100), " ") -> 
A11: =IF(COUNTRY_INFO!A11=0," ",COUNTRY_INFO!A11) -> Uganda | B11: =IF(COUNTRY_INFO!B11=0," ",COUNTRY_INFO!B11) -> Central | C11: =IF(COUNTRY_INFO!C11=0," ",COUNTRY_INFO!C11) -> Butambala | D11: =IF(COUNTRY_INFO!$T$9:$T$1000="MDA3 (IVM)", COUNTRY_INFO!$T$9:$T$1000, " ") ->  | H11: 0 | K11: 0 | N11: 0 | O11: 0 | P11: 0 | Q11: 0
A12: =IF(COUNTRY_INFO!A12=0," ",COUNTRY_INFO!A12) -> Uganda | B12: =IF(COUNTRY_INFO!B12=0," ",COUNTRY_INFO!B12) -> Central | C12: =IF(COUNTRY_INFO!C12=0," ",COUNTRY_INFO!C12) -> Buvuma | D12: =IF(COUNTRY_INFO!$T$9:$T$1000="MDA3 (IVM)", COUNTRY_INFO!$T$9:$T$1000, " ") ->  | H12: 0 | K12: 0 | N12: 0 | O12: 0 | P12: 0 | Q12: 0
A13: =IF(COUNTRY_INFO!A13=0," ",COUNTRY_INFO!A13) -> Uganda | B13: =IF(COUNTRY_INFO!B13=0," ",COUNTRY_INFO!B13) -> Central | C13: =IF(COUNTRY_INFO!C13=0," ",COUNTRY_INFO!C13) -> Gomba | D13: =IF(COUNTRY_INFO!$T$9:$T$1000="MDA3 (IVM)", COUNTRY_INFO!$T$9:$T$1000, " ") ->  | H13: 0 | K13: 0 | N13: 0 | O13: 0 | P13: 0 | Q13: 0
A14: =IF(COUNTRY_INFO!A14=0," ",COUNTRY_INFO!A14) -> Uganda | B14: =IF(COUNTRY_INFO!B14=0," ",COUNTRY_INFO!B14) -> Central | C14: =IF(COUNTRY_INFO!C14=0," ",COUNTRY_INFO!C14) -> Kalangala | D14: =IF(COUNTRY_INFO!$T$9:$T$1000="MDA3 (IVM)", COUNTRY_INFO!$T$9:$T$1000, " ") ->  | H14: 0 | K14: 0 | N14: 0 | O14: 0 | P14: 0 | Q14: 0
A15: =IF(COUNTRY_INFO!A15=0," ",COUNTRY_INFO!A15) -> Uganda | B15: =IF(COUNTRY_INFO!B15=0," ",COUNTRY_INFO!B15) -> Central | C15: =IF(COUNTRY_INFO!C15=0," ",COUNTRY_INFO!C15) -> Kalungu | D15: =IF(COUNTRY_INFO!$T$9:$T$1000="MDA3 (IVM)", COUNTRY_INFO!$T$9:$T$1000, " ") ->  | H15: 0 | K15: 0 | N15: 0 | O15: 0 | P15: 0 | Q15: 0
A16: =IF(COUNTRY_INFO!A16=0," ",COUNTRY_INFO!A16) -> Uganda | B16: =IF(COUNTRY_INFO!B16=0," ",COUNTRY_INFO!B16) -> Central | C16: =IF(COUNTRY_INFO!C16=0," ",COUNTRY_INFO!C16) -> Kampala | D16: =IF(COUNTRY_INFO!$T$9:$T$1000="MDA3 (IVM)", COUNTRY_INFO!$T$9:$T$1000, " ") ->  | H16: 0 | K16: 0 | N16: 0 | O16: 0 | P16: 0 | Q16: 0
A17: =IF(COUNTRY_INFO!A17=0," ",COUNTRY_INFO!A17) -> Uganda | B17: =IF(COUNTRY_INFO!B17=0," ",COUNTRY_INFO!B17) -> Central | C17: =IF(COUNTRY_INFO!C17=0," ",COUNTRY_INFO!C17) -> Kayunga | D17: =IF(COUNTRY_INFO!$T$9:$T$1000="MDA3 (IVM)", COUNTRY_INFO!$T$9:$T$1000, " ") ->  | H17: 0 | K17: 0 | N17: 0 | O17: 0 | P17: 0 | Q17: 0
A18: =IF(COUNTRY_INFO!A18=0," ",COUNTRY_INFO!A18) -> Uganda | B18: =IF(COUNTRY_INFO!B18=0," ",COUNTRY_INFO!B18) -> Central | C18: =IF(COUNTRY_INFO!C18=0," ",COUNTRY_INFO!C18) -> Kiboga | D18: =IF(COUNTRY_INFO!$T$9:$T$1000="MDA3 (IVM)", COUNTRY_INFO!$T$9:$T$1000, " ") ->  | H18: 0 | K18: 0 | N18: 0 | O18: 0 | P18: 0 | Q18: 0
A19: =IF(COUNTRY_INFO!A19=0," ",COUNTRY_INFO!A19) -> Uganda | B19: =IF(COUNTRY_INFO!B19=0," ",COUNTRY_INFO!B19) -> Central | C19: =IF(COUNTRY_INFO!C19=0," ",COUNTRY_INFO!C19) -> Kyankwanzi | D19: =IF(COUNTRY_INFO!$T$9:$T$1000="MDA3 (IVM)", COUNTRY_INFO!$T$9:$T$1000, " ") ->  | H19: 0 | K19: 0 | N19: 0 | O19: 0 | P19: 0 | Q19: 0
A20: =IF(COUNTRY_INFO!A20=0," ",COUNTRY_INFO!A20) -> Uganda | B20: =IF(COUNTRY_INFO!B20=0," ",COUNTRY_INFO!B20) -> Central | C20: =IF(COUNTRY_INFO!C20=0," ",COUNTRY_INFO!C20) -> Luwero | D20: =IF(COUNTRY_INFO!$T$9:$T$1000="MDA3 (IVM)", COUNTRY_INFO!$T$9:$T$1000, " ") ->  | H20: 0 | K20: 0 | N20: 0 | O20: 0 | P20: 0 | Q20: 0
A21: =IF(COUNTRY_INFO!A21=0," ",COUNTRY_INFO!A21) -> Uganda | B21: =IF(COUNTRY_INFO!B21=0," ",COUNTRY_INFO!B21) -> Central | C21: =IF(COUNTRY_INFO!C21=0," ",COUNTRY_INFO!C21) -> Lwengo | D21: =IF(COUNTRY_INFO!$T$9:$T$1000="MDA3 (IVM)", COUNTRY_INFO!$T$9:$T$1000, " ") ->  | H21: 0 | K21: 0 | N21: 0 | O21: 0 | P21: 0 | Q21: 0
A22: =IF(COUNTRY_INFO!A22=0," ",COUNTRY_INFO!A22) -> Uganda | B22: =IF(COUNTRY_INFO!B22=0," ",COUNTRY_INFO!B22) -> Central | C22: =IF(COUNTRY_INFO!C22=0," ",COUNTRY_INFO!C22) -> Lyantonde | D22: =IF(COUNTRY_INFO!$T$9:$T$1000="MDA3 (IVM)", COUNTRY_INFO!$T$9:$T$1000, " ") ->  | H22: 0 | K22: 0 | N22: 0 | O22: 0 | P22: 0 | Q22: 0
A23: =IF(COUNTRY_INFO!A23=0," ",COUNTRY_INFO!A23) -> Uganda | B23: =IF(COUNTRY_INFO!B23=0," ",COUNTRY_INFO!B23) -> Central | C23: =IF(COUNTRY_INFO!C23=0," ",COUNTRY_INFO!C23) -> Masaka | D23: =IF(COUNTRY_INFO!$T$9:$T$1000="MDA3 (IVM)", COUNTRY_INFO!$T$9:$T$1000, " ") ->  | H23: 0 | K23: 0 | N23: 0 | O23: 0 | P23: 0 | Q23: 0
A24: =IF(COUNTRY_INFO!A24=0," ",COUNTRY_INFO!A24) -> Uganda | B24: =IF(COUNTRY_INFO!B24=0," ",COUNTRY_INFO!B24) -> Central | C24: =IF(COUNTRY_INFO!C24=0," ",COUNTRY_INFO!C24) -> Mityana | D24: =IF(COUNTRY_INFO!$T$9:$T$1000="MDA3 (IVM)", COUNTRY_INFO!$T$9:$T$1000, " ") ->  | H24: 0 | K24: 0 | N24: 0 | O24: 0 | P24: 0 | Q24: 0
A25: =IF(COUNTRY_INFO!A25=0," ",COUNTRY_INFO!A25) -> Uganda | B25: =IF(COUNTRY_INFO!B25=0," ",COUNTRY_INFO!B25) -> Central | C25: =IF(COUNTRY_INFO!C25=0," ",COUNTRY_INFO!C25) -> Mpigi | D25: =IF(COUNTRY_INFO!$T$9:$T$1000="MDA3 (IVM)", COUNTRY_INFO!$T$9:$T$1000, " ") ->  | H25: 0 | K25: 0 | N25: 0 | O25: 0 | P25: 0 | Q25: 0
A26: =IF(COUNTRY_INFO!A26=0," ",COUNTRY_INFO!A26) -> Uganda | B26: =IF(COUNTRY_INFO!B26=0," ",COUNTRY_INFO!B26) -> Central | C26: =IF(COUNTRY_INFO!C26=0," ",COUNTRY_INFO!C26) -> Mubende | D26: =IF(COUNTRY_INFO!$T$9:$T$1000="MDA3 (IVM)", COUNTRY_INFO!$T$9:$T$1000, " ") ->  | H26: 0 | K26: 0 | N26: 0 | O26: 0 | P26: 0 | Q26: 0
A27: =IF(COUNTRY_INFO!A27=0," ",COUNTRY_INFO!A27) -> Uganda | B27: =IF(COUNTRY_INFO!B27=0," ",COUNTRY_INFO!B27) -> Central | C27: =IF(COUNTRY_INFO!C27=0," ",COUNTRY_INFO!C27) -> Mukono | D27: =IF(COUNTRY_INFO!$T$9:$T$1000="MDA3 (IVM)", COUNTRY_INFO!$T$9:$T$1000, " ") ->  | H27: 0 | K27: 0 | N27: 0 | O27: 0 | P27: 0 | Q27: 0
A28: =IF(COUNTRY_INFO!A28=0," ",COUNTRY_INFO!A28) -> Uganda | B28: =IF(COUNTRY_INFO!B28=0," ",COUNTRY_INFO!B28) -> Central | C28: =IF(COUNTRY_INFO!C28=0," ",COUNTRY_INFO!C28) -> Nakaseke | D28: =IF(COUNTRY_INFO!$T$9:$T$1000="MDA3 (IVM)", COUNTRY_INFO!$T$9:$T$1000, " ") ->  | H28: 0 | K28: 0 | N28: 0 | O28: 0 | P28: 0 | Q28: 0
A29: =IF(COUNTRY_INFO!A29=0," ",COUNTRY_INFO!A29) -> Uganda | B29: =IF(COUNTRY_INFO!B29=0," ",COUNTRY_INFO!B29) -> Central | C29: =IF(COUNTRY_INFO!C29=0," ",COUNTRY_INFO!C29) -> Nakasongola | D29: =IF(COUNTRY_INFO!$T$9:$T$1000="MDA3 (IVM)", COUNTRY_INFO!$T$9:$T$1000, " ") ->  | H29: 0 | K29: 0 | N29: 0 | O29: 0 | P29: 0 | Q29: 0
A30: =IF(COUNTRY_INFO!A30=0," ",COUNTRY_INFO!A30) -> Uganda | B30: =IF(COUNTRY_INFO!B30=0," ",COUNTRY_INFO!B30) -> Central | C30: =IF(COUNTRY_INFO!C30=0," ",COUNTRY_INFO!C30) -> Rakai | D30: =IF(COUNTRY_INFO!$T$9:$T$1000="MDA3 (IVM)", COUNTRY_INFO!$T$9:$T$1000, " ") ->  | H30: 0 | K30: 0 | N30: 0 | O30: 0 | P30: 0 | Q30: 0
A31: =IF(COUNTRY_INFO!A31=0," ",COUNTRY_INFO!A31) -> Uganda | B31: =IF(COUNTRY_INFO!B31=0," ",COUNTRY_INFO!B31) -> Central | C31: =IF(COUNTRY_INFO!C31=0," ",COUNTRY_INFO!C31) -> Sembabule | D31: =IF(COUNTRY_INFO!$T$9:$T$1000="MDA3 (IVM)", COUNTRY_INFO!$T$9:$T$1000, " ") ->  | H31: 0 | K31: 0 | N31: 0 | O31: 0 | P31: 0 | Q31: 0
A32: =IF(COUNTRY_INFO!A32=0," ",COUNTRY_INFO!A32) -> Uganda | B32: =IF(COUNTRY_INFO!B32=0," ",COUNTRY_INFO!B32) -> Central | C32: =IF(COUNTRY_INFO!C32=0," ",COUNTRY_INFO!C32) -> Wakiso | D32: =IF(COUNTRY_INFO!$T$9:$T$1000="MDA3 (IVM)", COUNTRY_INFO!$T$9:$T$1000, " ") ->  | H32: 0 | K32: 0 | N32: 0 | O32: 0 | P32: 0 | Q32: 0
A33: =IF(COUNTRY_INFO!A33=0," ",COUNTRY_INFO!A33) -> Uganda | B33: =IF(COUNTRY_INFO!B33=0," ",COUNTRY_INFO!B33) -> Eastern | C33: =IF(COUNTRY_INFO!C33=0," ",COUNTRY_INFO!C33) -> Amuria | D33: =IF(COUNTRY_INFO!$T$9:$T$1000="MDA3 (IVM)", COUNTRY_INFO!$T$9:$T$1000, " ") ->  | H33: 0 | K33: 0 | N33: 0 | O33: 0 | P33: 0 | Q33: 0
A34: =IF(COUNTRY_INFO!A34=0," ",COUNTRY_INFO!A34) -> Uganda | B34: =IF(COUNTRY_INFO!B34=0," ",COUNTRY_INFO!B34) -> Eastern | C34: =IF(COUNTRY_INFO!C34=0," ",COUNTRY_INFO!C34) -> Budaka | D34: =IF(COUNTRY_INFO!$T$9:$T$1000="MDA3 (IVM)", COUNTRY_INFO!$T$9:$T$1000, " ") ->  | H34: 0 | K34: 0 | N34: 0 | O34: 0 | P34: 0 | Q34: 0
A35: =IF(COUNTRY_INFO!A35=0," ",COUNTRY_INFO!A35) -> Uganda | B35: =IF(COUNTRY_INFO!B35=0," ",COUNTRY_INFO!B35) -> Eastern | C35: =IF(COUNTRY_INFO!C35=0," ",COUNTRY_INFO!C35) -> Bududa | D35: =IF(COUNTRY_INFO!$T$9:$T$1000="MDA3 (IVM)", COUNTRY_INFO!$T$9:$T$1000, " ") ->  | H35: 0 | K35: 0 | N35: 0 | O35: 0 | P35: 0 | Q35: 0
A36: =IF(COUNTRY_INFO!A36=0," ",COUNTRY_INFO!A36) -> Uganda | B36: =IF(COUNTRY_INFO!B36=0," ",COUNTRY_INFO!B36) -> Eastern | C36: =IF(COUNTRY_INFO!C36=0," ",COUNTRY_INFO!C36) -> Bugiri | D36: =IF(COUNTRY_INFO!$T$9:$T$1000="MDA3 (IVM)", COUNTRY_INFO!$T$9:$T$1000, " ") ->  | H36: 0 | K36: 0 | N36: 0 | O36: 0 | P36: 0 | Q36: 0
A37: =IF(COUNTRY_INFO!A37=0," ",COUNTRY_INFO!A37) -> Uganda | B37: =IF(COUNTRY_INFO!B37=0," ",COUNTRY_INFO!B37) -> Eastern | C37: =IF(COUNTRY_INFO!C37=0," ",COUNTRY_INFO!C37) -> Bukedea | D37: =IF(COUNTRY_INFO!$T$9:$T$1000="MDA3 (IVM)", COUNTRY_INFO!$T$9:$T$1000, " ") ->  | H37: 0 | K37: 0 | N37: 0 | O37: 0 | P37: 0 | Q37: 0
A38: =IF(COUNTRY_INFO!A38=0," ",COUNTRY_INFO!A38) -> Uganda | B38: =IF(COUNTRY_INFO!B38=0," ",COUNTRY_INFO!B38) -> Eastern | C38: =IF(COUNTRY_INFO!C38=0," ",COUNTRY_INFO!C38) -> Bukwo | D38: =IF(COUNTRY_INFO!$T$9:$T$1000="MDA3 (IVM)", COUNTRY_INFO!$T$9:$T$1000, " ") ->  | H38: 0 | K38: 0 | N38: 0 | O38: 0 | P38: 0 | Q38: 0
A39: =IF(COUNTRY_INFO!A39=0," ",COUNTRY_INFO!A39) -> Uganda | B39: =IF(COUNTRY_INFO!B39=0," ",COUNTRY_INFO!B39) -> Eastern | C39: =IF(COUNTRY_INFO!C39=0," ",COUNTRY_INFO!C39) -> Bulambuli | D39: =IF(COUNTRY_INFO!$T$9:$T$1000="MDA3 (IVM)", COUNTRY_INFO!$T$9:$T$1000, " ") ->  | H39: 0 | K39: 0 | N39: 0 | O39: 0 | P39: 0 | Q39: 0
A40: =IF(COUNTRY_INFO!A40=0," ",COUNTRY_INFO!A40) -> Uganda | B40: =IF(COUNTRY_INFO!B40=0," ",COUNTRY_INFO!B40) -> Eastern | C40: =IF(COUNTRY_INFO!C40=0," ",COUNTRY_INFO!C40) -> Busia | D40: =IF(COUNTRY_INFO!$T$9:$T$1000="MDA3 (IVM)", COUNTRY_INFO!$T$9:$T$1000, " ") ->  | H40: 0 | K40: 0 | N40: 0 | O40: 0 | P40: 0 | Q40: 0
A41: =IF(COUNTRY_INFO!A41=0," ",COUNTRY_INFO!A41) -> Uganda | B41: =IF(COUNTRY_INFO!B41=0," ",COUNTRY_INFO!B41) -> Eastern | C41: =IF(COUNTRY_INFO!C41=0," ",COUNTRY_INFO!C41) -> Butaleja | D41: =IF(COUNTRY_INFO!$T$9:$T$1000="MDA3 (IVM)", COUNTRY_INFO!$T$9:$T$1000, " ") ->  | H41: 0 | K41: 0 | N41: 0 | O41: 0 | P41: 0 | Q41: 0
A42: =IF(COUNTRY_INFO!A42=0," ",COUNTRY_INFO!A42) -> Uganda | B42: =IF(COUNTRY_INFO!B42=0," ",COUNTRY_INFO!B42) -> Eastern | C42: =IF(COUNTRY_INFO!C42=0," ",COUNTRY_INFO!C42) -> Buyende | D42: =IF(COUNTRY_INFO!$T$9:$T$1000="MDA3 (IVM)", COUNTRY_INFO!$T$9:$T$1000, " ") ->  | H42: 0 | K42: 0 | N42: 0 | O42: 0 | P42: 0 | Q42: 0
A43: =IF(COUNTRY_INFO!A43=0," ",COUNTRY_INFO!A43) -> Uganda | B43: =IF(COUNTRY_INFO!B43=0," ",COUNTRY_INFO!B43) -> Eastern | C43: =IF(COUNTRY_INFO!C43=0," ",COUNTRY_INFO!C43) -> Iganga | D43: =IF(COUNTRY_INFO!$T$9:$T$1000="MDA3 (IVM)", COUNTRY_INFO!$T$9:$T$1000, " ") ->  | H43: 0 | K43: 0 | N43: 0 | O43: 0 | P43: 0 | Q43: 0
A44: =IF(COUNTRY_INFO!A44=0," ",COUNTRY_INFO!A44) -> Uganda | B44: =IF(COUNTRY_INFO!B44=0," ",COUNTRY_INFO!B44) -> Eastern | C44: =IF(COUNTRY_INFO!C44=0," ",COUNTRY_INFO!C44) -> Jinja | D44: =IF(COUNTRY_INFO!$T$9:$T$1000="MDA3 (IVM)", COUNTRY_INFO!$T$9:$T$1000, " ") ->  | H44: 0 | K44: 0 | N44: 0 | O44: 0 | P44: 0 | Q44: 0
A45: =IF(COUNTRY_INFO!A45=0," ",COUNTRY_INFO!A45) -> Uganda | B45: =IF(COUNTRY_INFO!B45=0," ",COUNTRY_INFO!B45) -> Eastern | C45: =IF(COUNTRY_INFO!C45=0," ",COUNTRY_INFO!C45) -> Kaberamaido | D45: =IF(COUNTRY_INFO!$T$9:$T$1000="MDA3 (IVM)", COUNTRY_INFO!$T$9:$T$1000, " ") ->  | H45: 0 | K45: 0 | N45: 0 | O45: 0 | P45: 0 | Q45: 0
A46: =IF(COUNTRY_INFO!A46=0," ",COUNTRY_INFO!A46) -> Uganda | B46: =IF(COUNTRY_INFO!B46=0," ",COUNTRY_INFO!B46) -> Eastern | C46: =IF(COUNTRY_INFO!C46=0," ",COUNTRY_INFO!C46) -> Kaliro | D46: =IF(COUNTRY_INFO!$T$9:$T$1000="MDA3 (IVM)", COUNTRY_INFO!$T$9:$T$1000, " ") ->  | H46: 0 | K46: 0 | N46: 0 | O46: 0 | P46: 0 | Q46: 0
A47: =IF(COUNTRY_INFO!A47=0," ",COUNTRY_INFO!A47) -> Uganda | B47: =IF(COUNTRY_INFO!B47=0," ",COUNTRY_INFO!B47) -> Eastern | C47: =IF(COUNTRY_INFO!C47=0," ",COUNTRY_INFO!C47) -> Kamuli | D47: =IF(COUNTRY_INFO!$T$9:$T$1000="MDA3 (IVM)", COUNTRY_INFO!$T$9:$T$1000, " ") ->  | H47: 0 | K47: 0 | N47: 0 | O47: 0 | P47: 0 | Q47: 0
A48: =IF(COUNTRY_INFO!A48=0," ",COUNTRY_INFO!A48) -> Uganda | B48: =IF(COUNTRY_INFO!B48=0," ",COUNTRY_INFO!B48) -> Eastern | C48: =IF(COUNTRY_INFO!C48=0," ",COUNTRY_INFO!C48) -> Kapchorwa | D48: =IF(COUNTRY_INFO!$T$9:$T$1000="MDA3 (IVM)", COUNTRY_INFO!$T$9:$T$1000, " ") ->  | H48: 0 | K48: 0 | N48: 0 | O48: 0 | P48: 0 | Q48: 0
A49: =IF(COUNTRY_INFO!A49=0," ",COUNTRY_INFO!A49) -> Uganda | B49: =IF(COUNTRY_INFO!B49=0," ",COUNTRY_INFO!B49) -> Eastern | C49: =IF(COUNTRY_INFO!C49=0," ",COUNTRY_INFO!C49) -> Katakwi | D49: =IF(COUNTRY_INFO!$T$9:$T$1000="MDA3 (IVM)", COUNTRY_INFO!$T$9:$T$1000, " ") ->  | H49: 0 | K49: 0 | N49: 0 | O49: 0 | P49: 0 | Q49: 0
A50: =IF(COUNTRY_INFO!A50=0," ",COUNTRY_INFO!A50) -> Uganda | B50: =IF(COUNTRY_INFO!B50=0," ",COUNTRY_INFO!B50) -> Eastern | C50: =IF(COUNTRY_INFO!C50=0," ",COUNTRY_INFO!C50) -> Kibuku | D50: =IF(COUNTRY_INFO!$T$9:$T$1000="MDA3 (IVM)", COUNTRY_INFO!$T$9:$T$1000, " ") ->  | H50: 0 | K50: 0 | N50: 0 | O50: 0 | P50: 0 | Q50: 0
A51: =IF(COUNTRY_INFO!A51=0," ",COUNTRY_INFO!A51) -> Uganda | B51: =IF(COUNTRY_INFO!B51=0," ",COUNTRY_INFO!B51) -> Eastern | C51: =IF(COUNTRY_INFO!C51=0," ",COUNTRY_INFO!C51) -> Kumi | D51: =IF(COUNTRY_INFO!$T$9:$T$1000="MDA3 (IVM)", COUNTRY_INFO!$T$9:$T$1000, " ") ->  | H51: 0 | K51: 0 | N51: 0 | O51: 0 | P51: 0 | Q51: 0
A52: =IF(COUNTRY_INFO!A52=0," ",COUNTRY_INFO!A52) -> Uganda | B52: =IF(COUNTRY_INFO!B52=0," ",COUNTRY_INFO!B52) -> Eastern | C52: =IF(COUNTRY_INFO!C52=0," ",COUNTRY_INFO!C52) -> Kween | D52: =IF(COUNTRY_INFO!$T$9:$T$1000="MDA3 (IVM)", COUNTRY_INFO!$T$9:$T$1000, " ") ->  | H52: 0 | K52: 0 | N52: 0 | O52: 0 | P52: 0 | Q52: 0
A53: =IF(COUNTRY_INFO!A53=0," ",COUNTRY_INFO!A53) -> Uganda | B53: =IF(COUNTRY_INFO!B53=0," ",COUNTRY_INFO!B53) -> Eastern | C53: =IF(COUNTRY_INFO!C53=0," ",COUNTRY_INFO!C53) -> Luuka | D53: =IF(COUNTRY_INFO!$T$9:$T$1000="MDA3 (IVM)", COUNTRY_INFO!$T$9:$T$1000, " ") ->  | H53: 0 | K53: 0 | N53: 0 | O53: 0 | P53: 0 | Q53: 0
A54: =IF(COUNTRY_INFO!A54=0," ",COUNTRY_INFO!A54) -> Uganda | B54: =IF(COUNTRY_INFO!B54=0," ",COUNTRY_INFO!B54) -> Eastern | C54: =IF(COUNTRY_INFO!C54=0," ",COUNTRY_INFO!C54) -> Manafwa | D54: =IF(COUNTRY_INFO!$T$9:$T$1000="MDA3 (IVM)", COUNTRY_INFO!$T$9:$T$1000, " ") ->  | H54: 0 | K54: 0 | N54: 0 | O54: 0 | P54: 0 | Q54: 0
A55: =IF(COUNTRY_INFO!A55=0," ",COUNTRY_INFO!A55) -> Uganda | B55: =IF(COUNTRY_INFO!B55=0," ",COUNTRY_INFO!B55) -> Eastern | C55: =IF(COUNTRY_INFO!C55=0," ",COUNTRY_INFO!C55) -> Mayuge | D55: =IF(COUNTRY_INFO!$T$9:$T$1000="MDA3 (IVM)", COUNTRY_INFO!$T$9:$T$1000, " ") ->  | H55: 0 | K55: 0 | N55: 0 | O55: 0 | P55: 0 | Q55: 0
A56: =IF(COUNTRY_INFO!A56=0," ",COUNTRY_INFO!A56) -> Uganda | B56: =IF(COUNTRY_INFO!B56=0," ",COUNTRY_INFO!B56) -> Eastern | C56: =IF(COUNTRY_INFO!C56=0," ",COUNTRY_INFO!C56) -> Mbale | D56: =IF(COUNTRY_INFO!$T$9:$T$1000="MDA3 (IVM)", COUNTRY_INFO!$T$9:$T$1000, " ") ->  | H56: 0 | K56: 0 | N56: 0 | O56: 0 | P56: 0 | Q56: 0
A57: =IF(COUNTRY_INFO!A57=0," ",COUNTRY_INFO!A57) -> Uganda | B57: =IF(COUNTRY_INFO!B57=0," ",COUNTRY_INFO!B57) -> Eastern | C57: =IF(COUNTRY_INFO!C57=0," ",COUNTRY_INFO!C57) -> Namayingo | D57: =IF(COUNTRY_INFO!$T$9:$T$1000="MDA3 (IVM)", COUNTRY_INFO!$T$9:$T$1000, " ") ->  | H57: 0 | K57: 0 | N57: 0 | O57: 0 | P57: 0 | Q57: 0
A58: =IF(COUNTRY_INFO!A58=0," ",COUNTRY_INFO!A58) -> Uganda | B58: =IF(COUNTRY_INFO!B58=0," ",COUNTRY_INFO!B58) -> Eastern | C58: =IF(COUNTRY_INFO!C58=0," ",COUNTRY_INFO!C58) -> Namutumba | D58: =IF(COUNTRY_INFO!$T$9:$T$1000="MDA3 (IVM)", COUNTRY_INFO!$T$9:$T$1000, " ") ->  | H58: 0 | K58: 0 | N58: 0 | O58: 0 | P58: 0 | Q58: 0
A59: =IF(COUNTRY_INFO!A59=0," ",COUNTRY_INFO!A59) -> Uganda | B59: =IF(COUNTRY_INFO!B59=0," ",COUNTRY_INFO!B59) -> Eastern | C59: =IF(COUNTRY_INFO!C59=0," ",COUNTRY_INFO!C59) -> Ngora | D59: =IF(COUNTRY_INFO!$T$9:$T$1000="MDA3 (IVM)", COUNTRY_INFO!$T$9:$T$1000, " ") ->  | H59: 0 | K59: 0 | N59: 0 | O59: 0 | P59: 0 | Q59: 0
A60: =IF(COUNTRY_INFO!A60=0," ",COUNTRY_INFO!A60) -> Uganda | B60: =IF(COUNTRY_INFO!B60=0," ",COUNTRY_INFO!B60) -> Eastern | C60: =IF(COUNTRY_INFO!C60=0," ",COUNTRY_INFO!C60) -> Pallisa | D60: =IF(COUNTRY_INFO!$T$9:$T$1000="MDA3 (IVM)", COUNTRY_INFO!$T$9:$T$1000, " ") ->  | H60: 0 | K60: 0 | N60: 0 | O60: 0 | P60: 0 | Q60: 0
A61: =IF(COUNTRY_INFO!A61=0," ",COUNTRY_INFO!A61) -> Uganda | B61: =IF(COUNTRY_INFO!B61=0," ",COUNTRY_INFO!B61) -> Eastern | C61: =IF(COUNTRY_INFO!C61=0," ",COUNTRY_INFO!C61) -> Serere | D61: =IF(COUNTRY_INFO!$T$9:$T$1000="MDA3 (IVM)", COUNTRY_INFO!$T$9:$T$1000, " ") ->  | H61: 0 | K61: 0 | N61: 0 | O61: 0 | P61: 0 | Q61: 0
A62: =IF(COUNTRY_INFO!A62=0," ",COUNTRY_INFO!A62) -> Uganda | B62: =IF(COUNTRY_INFO!B62=0," ",COUNTRY_INFO!B62) -> Eastern | C62: =IF(COUNTRY_INFO!C62=0," ",COUNTRY_INFO!C62) -> Sironko | D62: =IF(COUNTRY_INFO!$T$9:$T$1000="MDA3 (IVM)", COUNTRY_INFO!$T$9:$T$1000, " ") ->  | H62: 0 | K62: 0 | N62: 0 | O62: 0 | P62: 0 | Q62: 0
A63: =IF(COUNTRY_INFO!A63=0," ",COUNTRY_INFO!A63) -> Uganda | B63: =IF(COUNTRY_INFO!B63=0," ",COUNTRY_INFO!B63) -> Eastern | C63: =IF(COUNTRY_INFO!C63=0," ",COUNTRY_INFO!C63) -> Soroti | D63: =IF(COUNTRY_INFO!$T$9:$T$1000="MDA3 (IVM)", COUNTRY_INFO!$T$9:$T$1000, " ") ->  | H63: 0 | K63: 0 | N63: 0 | O63: 0 | P63: 0 | Q63: 0
A64: =IF(COUNTRY_INFO!A64=0," ",COUNTRY_INFO!A64) -> Uganda | B64: =IF(COUNTRY_INFO!B64=0," ",COUNTRY_INFO!B64) -> Eastern | C64: =IF(COUNTRY_INFO!C64=0," ",COUNTRY_INFO!C64) -> Tororo | D64: =IF(COUNTRY_INFO!$T$9:$T$1000="MDA3 (IVM)", COUNTRY_INFO!$T$9:$T$1000, " ") ->  | H64: 0 | K64: 0 | N64: 0 | O64: 0 | P64: 0 | Q64: 0
A65: =IF(COUNTRY_INFO!A65=0," ",COUNTRY_INFO!A65) -> Uganda | B65: =IF(COUNTRY_INFO!B65=0," ",COUNTRY_INFO!B65) -> Northern | C65: =IF(COUNTRY_INFO!C65=0," ",COUNTRY_INFO!C65) -> Abim | D65: =IF(COUNTRY_INFO!$T$9:$T$1000="MDA3 (IVM)", COUNTRY_INFO!$T$9:$T$1000, " ") ->  | H65: 0 | K65: 0 | N65: 0 | O65: 0 | P65: 0 | Q65: 0
A66: =IF(COUNTRY_INFO!A66=0," ",COUNTRY_INFO!A66) -> Uganda | B66: =IF(COUNTRY_INFO!B66=0," ",COUNTRY_INFO!B66) -> Northern | C66: =IF(COUNTRY_INFO!C66=0," ",COUNTRY_INFO!C66) -> Adjumani | D66: =IF(COUNTRY_INFO!$T$9:$T$1000="MDA3 (IVM)", COUNTRY_INFO!$T$9:$T$1000, " ") -> MDA3 (IVM) | E66: April & Oct 2017 | F66: 8645 | G66: 14964 | H66: 23609 | I66: 8168 | J66: 14092 | K66: 22260 | L66: 7798 | M66: 13452 | N66: 21250 | O66: 8168 | P66: 14092 | Q66: 22260 | R66: 94.48235975 | S66: 94.1726811 | T66: 94.28607734
A67: =IF(COUNTRY_INFO!A67=0," ",COUNTRY_INFO!A67) -> Uganda | B67: =IF(COUNTRY_INFO!B67=0," ",COUNTRY_INFO!B67) -> Northern | C67: =IF(COUNTRY_INFO!C67=0," ",COUNTRY_INFO!C67) -> Agago | D67: =IF(COUNTRY_INFO!$T$9:$T$1000="MDA3 (IVM)", COUNTRY_INFO!$T$9:$T$1000, " ") ->  | H67: 0 | K67: 0 | N67: 0 | O67: 0 | P67: 0 | Q67: 0
A68: =IF(COUNTRY_INFO!A68=0," ",COUNTRY_INFO!A68) -> Uganda | B68: =IF(COUNTRY_INFO!B68=0," ",COUNTRY_INFO!B68) -> Northern | C68: =IF(COUNTRY_INFO!C68=0," ",COUNTRY_INFO!C68) -> Alebtong | D68: =IF(COUNTRY_INFO!$T$9:$T$1000="MDA3 (IVM)", COUNTRY_INFO!$T$9:$T$1000, " ") ->  | H68: 0 | K68: 0 | N68: 0 | O68: 0 | P68: 0 | Q68: 0
A69: =IF(COUNTRY_INFO!A69=0," ",COUNTRY_INFO!A69) -> Uganda | B69: =IF(COUNTRY_INFO!B69=0," ",COUNTRY_INFO!B69) -> Northern | C69: =IF(COUNTRY_INFO!C69=0," ",COUNTRY_INFO!C69) -> Amolatar | D69: =IF(COUNTRY_INFO!$T$9:$T$1000="MDA3 (IVM)", COUNTRY_INFO!$T$9:$T$1000, " ") ->  | H69: 0 | K69: 0 | N69: 0 | O69: 0 | P69: 0 | Q69: 0
A70: =IF(COUNTRY_INFO!A70=0," ",COUNTRY_INFO!A70) -> Uganda | B70: =IF(COUNTRY_INFO!B70=0," ",COUNTRY_INFO!B70) -> Northern | C70: =IF(COUNTRY_INFO!C70=0," ",COUNTRY_INFO!C70) -> Amudat | D70: =IF(COUNTRY_INFO!$T$9:$T$1000="MDA3 (IVM)", COUNTRY_INFO!$T$9:$T$1000, " ") ->  | H70: 0 | K70: 0 | N70: 0 | O70: 0 | P70: 0 | Q70: 0
A71: =IF(COUNTRY_INFO!A71=0," ",COUNTRY_INFO!A71) -> Uganda | B71: =IF(COUNTRY_INFO!B71=0," ",COUNTRY_INFO!B71) -> Northern | C71: =IF(COUNTRY_INFO!C71=0," ",COUNTRY_INFO!C71) -> Amuru | D71: =IF(COUNTRY_INFO!$T$9:$T$1000="MDA3 (IVM)", COUNTRY_INFO!$T$9:$T$1000, " ") -> MDA3 (IVM) | E71: April & Oct 2017 | F71: 75491 | G71: 130666 | H71: 206157 | I71: 70333 | J71: 121336 | K71: 191669 | L71: 71856 | M71: 123964 | N71: 195820 | O71: 71856 | P71: 123964 | Q71: 195820 | R71: 95.18485647 | S71: 94.8708922 | T71: 94.98586029
A72: =IF(COUNTRY_INFO!A72=0," ",COUNTRY_INFO!A72) -> Uganda | B72: =IF(COUNTRY_INFO!B72=0," ",COUNTRY_INFO!B72) -> Northern | C72: =IF(COUNTRY_INFO!C72=0," ",COUNTRY_INFO!C72) -> Apac | D72: =IF(COUNTRY_INFO!$T$9:$T$1000="MDA3 (IVM)", COUNTRY_INFO!$T$9:$T$1000, " ") ->  | H72: 0 | K72: 0 | N72: 0 | O72: 0 | P72: 0 | Q72: 0
A73: =IF(COUNTRY_INFO!A73=0," ",COUNTRY_INFO!A73) -> Uganda | B73: =IF(COUNTRY_INFO!B73=0," ",COUNTRY_INFO!B73) -> Northern | C73: =IF(COUNTRY_INFO!C73=0," ",COUNTRY_INFO!C73) -> Arua | D73: MDA3 (IVM) | E73: April & Oct 2017 | F73: 57970 | G73: 100342 | H73: 158312 | I73: 55399 | J73: 95573 | K73: 150972 | L73: 52628 | M73: 90792 | N73: 143420 | O73: 55399 | P73: 95573 | Q73: 150972 | R73: 95.56494739 | S73: 95.24725439 | T73: 95.36358583
A74: =IF(COUNTRY_INFO!A74=0," ",COUNTRY_INFO!A74) -> Uganda | B74: =IF(COUNTRY_INFO!B74=0," ",COUNTRY_INFO!B74) -> Northern | C74: =IF(COUNTRY_INFO!C74=0," ",COUNTRY_INFO!C74) -> Dokolo | D74: =IF(COUNTRY_INFO!$T$9:$T$1000="MDA3 (IVM)", COUNTRY_INFO!$T$9:$T$1000, " ") ->  | H74: =SUM(F74:G74) -> 0 | K74: =SUM(I74:J74) -> 0 | N74: =SUM(L74:M74) -> 0 | O74: =MAX(I74,L74) -> 0 | P74: =MAX(J74,M74) -> 0 | Q74: =SUM(O74:P74) -> 0 | R74: =IF(F74<>0, IF(MAX(I74,L74)/F74*100=0, "-", MAX(I74,L74)/F74*100), " ") ->  | S74: =IF(G74<>0, IF(MAX(J74,M74)/G74*100=0, "-", MAX(J74,M74)/G74*100), " ") ->  | T74: =IF(H74<>0, IF((MAX(I74,L74)+MAX(J74,M74))/H74*100=0, "-",(MAX(I74,L74)+MAX(J74,M74))/H74*100), " ") -> 
A75: =IF(COUNTRY_INFO!A75=0," ",COUNTRY_INFO!A75) -> Uganda | B75: =IF(COUNTRY_INFO!B75=0," ",COUNTRY_INFO!B75) -> Northern | C75: =IF(COUNTRY_INFO!C75=0," ",COUNTRY_INFO!C75) -> Gulu | D75: MDA3 (IVM) | E75: April & Oct 2017 | F75: 47111 | G75: 81544 | H75: 128655 | I75: 45579 | J75: 78630 | K75: 124209 | L75: 45589 | M75: 78648 | N75: 124237 | O75: 45589 | P75: 78648 | Q75: 124237 | R75: 96.769332 | S75: 96.44854312 | T75: 96.56600987
A76: =IF(COUNTRY_INFO!A76=0," ",COUNTRY_INFO!A76) -> Uganda | B76: =IF(COUNTRY_INFO!B76=0," ",COUNTRY_INFO!B76) -> Northern | C76: =IF(COUNTRY_INFO!C76=0," ",COUNTRY_INFO!C76) -> Kaabong | D76: =IF(COUNTRY_INFO!$T$9:$T$1000="MDA3 (IVM)", COUNTRY_INFO!$T$9:$T$1000, " ") ->  | H76: 0 | K76: 0 | N76: 0 | O76: 0 | P76: 0 | Q76: 0
A77: =IF(COUNTRY_INFO!A77=0," ",COUNTRY_INFO!A77) -> Uganda | B77: =IF(COUNTRY_INFO!B77=0," ",COUNTRY_INFO!B77) -> Northern | C77: =IF(COUNTRY_INFO!C77=0," ",COUNTRY_INFO!C77) -> Kitgum | D77: MDA3 (IVM) | E77: April & Oct 2017 | F77: 33183 | G77: 57438 | H77: 90621 | I77: 31073 | J77: 53607 | K77: 84680 | L77: 31891 | M77: 55018 | N77: 86909 | O77: 31891 | P77: 55018 | Q77: 86909 | R77: 96.10644004 | S77: 95.78676138 | T77: 95.9038192
A78: =IF(COUNTRY_INFO!A78=0," ",COUNTRY_INFO!A78) -> Uganda | B78: =IF(COUNTRY_INFO!B78=0," ",COUNTRY_INFO!B78) -> Northern | C78: =IF(COUNTRY_INFO!C78=0," ",COUNTRY_INFO!C78) -> Koboko | D78: =IF(COUNTRY_INFO!$T$9:$T$1000="MDA3 (IVM)", COUNTRY_INFO!$T$9:$T$1000, " ") -> MDA3 (IVM) | E78: Oct 2017 | F78: 4584 | G78: 7908 | H78: 12492 | K78: 0 | L78: 4710 | M78: 8125 | N78: 12835 | O78: 4710 | P78: 8125 | Q78: 12835 | R78: 102.7486911 | S78: 102.7440567 | T78: 102.7457573
A79: =IF(COUNTRY_INFO!A79=0," ",COUNTRY_INFO!A79) -> Uganda | B79: =IF(COUNTRY_INFO!B79=0," ",COUNTRY_INFO!B79) -> Northern | C79: =IF(COUNTRY_INFO!C79=0," ",COUNTRY_INFO!C79) -> Kole | D79: =IF(COUNTRY_INFO!$T$9:$T$1000="MDA3 (IVM)", COUNTRY_INFO!$T$9:$T$1000, " ") ->  | H79: 0 | K79: 0 | N79: 0 | O79: 0 | P79: 0 | Q79: 0
A80: =IF(COUNTRY_INFO!A80=0," ",COUNTRY_INFO!A80) -> Uganda | B80: =IF(COUNTRY_INFO!B80=0," ",COUNTRY_INFO!B80) -> Northern | C80: =IF(COUNTRY_INFO!C80=0," ",COUNTRY_INFO!C80) -> Kotido | D80: =IF(COUNTRY_INFO!$T$9:$T$1000="MDA3 (IVM)", COUNTRY_INFO!$T$9:$T$1000, " ") ->  | H80: 0 | K80: 0 | N80: 0 | O80: 0 | P80: 0 | Q80: 0
A81: =IF(COUNTRY_INFO!A81=0," ",COUNTRY_INFO!A81) -> Uganda | B81: =IF(COUNTRY_INFO!B81=0," ",COUNTRY_INFO!B81) -> Northern | C81: =IF(COUNTRY_INFO!C81=0," ",COUNTRY_INFO!C81) -> Lamwo | D81: MDA3 (IVM) | E81: April & Oct 2017 | F81: 47496 | G81: 82212 | H81: 129708 | I81: 41904 | J81: 72290 | K81: 114194 | L81: 41738 | M81: 72004 | N81: 113742 | O81: 41904 | P81: 72290 | Q81: 114194 | R81: 88.22637696 | S81: 87.93120226 | T81: 88.03928825
A82: =IF(COUNTRY_INFO!A82=0," ",COUNTRY_INFO!A82) -> Uganda | B82: =IF(COUNTRY_INFO!B82=0," ",COUNTRY_INFO!B82) -> Northern | C82: =IF(COUNTRY_INFO!C82=0," ",COUNTRY_INFO!C82) -> Lira | D82: =IF(COUNTRY_INFO!$T$9:$T$1000="MDA3 (IVM)", COUNTRY_INFO!$T$9:$T$1000, " ") -> MDA3 (IVM) | E82: April & Oct 2017 | F82: 22475 | G82: 38901 | H82: 61376 | I82: 22398 | J82: 38639 | K82: 61037 | L82: 22434 | M82: 38702 | N82: 61136 | O82: 22434 | P82: 38702 | Q82: 61136 | R82: 99.81757508 | S82: 99.48844503 | T82: 99.60896767
A83: =IF(COUNTRY_INFO!A83=0," ",COUNTRY_INFO!A83) -> Uganda | B83: =IF(COUNTRY_INFO!B83=0," ",COUNTRY_INFO!B83) -> Northern | C83: =IF(COUNTRY_INFO!C83=0," ",COUNTRY_INFO!C83) -> Maracha | D83: =IF(COUNTRY_INFO!$T$9:$T$1000="MDA3 (IVM)", COUNTRY_INFO!$T$9:$T$1000, " ") ->  | H83: 0 | K83: 0 | N83: 0 | O83: 0 | P83: 0 | Q83: 0
A84: =IF(COUNTRY_INFO!A84=0," ",COUNTRY_INFO!A84) -> Uganda | B84: =IF(COUNTRY_INFO!B84=0," ",COUNTRY_INFO!B84) -> Northern | C84: =IF(COUNTRY_INFO!C84=0," ",COUNTRY_INFO!C84) -> Moroto | D84: =IF(COUNTRY_INFO!$T$9:$T$1000="MDA3 (IVM)", COUNTRY_INFO!$T$9:$T$1000, " ") ->  | H84: 0 | K84: 0 | N84: 0 | O84: 0 | P84: 0 | Q84: 0
A85: =IF(COUNTRY_INFO!A85=0," ",COUNTRY_INFO!A85) -> Uganda | B85: =IF(COUNTRY_INFO!B85=0," ",COUNTRY_INFO!B85) -> Northern | C85: =IF(COUNTRY_INFO!C85=0," ",COUNTRY_INFO!C85) -> Moyo | D85: =IF(COUNTRY_INFO!$T$9:$T$1000="MDA3 (IVM)", COUNTRY_INFO!$T$9:$T$1000, " ") -> MDA3 (IVM) | E85: April & Oct 2017 | F85: 29003 | G85: 50201 | H85: 79204 | I85: 28587 | J85: 49316 | K85: 77903 | L85: 27440 | M85: 47339 | N85: 74779 | O85: 28587 | P85: 49316 | Q85: 77903 | R85: 98.56566562 | S85: 98.23708691 | T85: 98.35740619
A86: =IF(COUNTRY_INFO!A86=0," ",COUNTRY_INFO!A86) -> Uganda | B86: =IF(COUNTRY_INFO!B86=0," ",COUNTRY_INFO!B86) -> Northern | C86: =IF(COUNTRY_INFO!C86=0," ",COUNTRY_INFO!C86) -> Nakapiripirit | D86: =IF(COUNTRY_INFO!$T$9:$T$1000="MDA3 (IVM)", COUNTRY_INFO!$T$9:$T$1000, " ") ->  | H86: 0 | K86: 0 | N86: 0 | O86: 0 | P86: 0 | Q86: 0
A87: =IF(COUNTRY_INFO!A87=0," ",COUNTRY_INFO!A87) -> Uganda | B87: =IF(COUNTRY_INFO!B87=0," ",COUNTRY_INFO!B87) -> Northern | C87: =IF(COUNTRY_INFO!C87=0," ",COUNTRY_INFO!C87) -> Napak | D87: =IF(COUNTRY_INFO!$T$9:$T$1000="MDA3 (IVM)", COUNTRY_INFO!$T$9:$T$1000, " ") ->  | H87: 0 | K87: 0 | N87: 0 | O87: 0 | P87: 0 | Q87: 0
A88: =IF(COUNTRY_INFO!A88=0," ",COUNTRY_INFO!A88) -> Uganda | B88: =IF(COUNTRY_INFO!B88=0," ",COUNTRY_INFO!B88) -> Northern | C88: =IF(COUNTRY_INFO!C88=0," ",COUNTRY_INFO!C88) -> Nebbi | D88: =IF(COUNTRY_INFO!$T$9:$T$1000="MDA3 (IVM)", COUNTRY_INFO!$T$9:$T$1000, " ") -> MDA3 (IVM) | E88: April & Oct 2017 | F88: 47771 | G88: 82686 | H88: 130457 | I88: 44876 | J88: 77419 | K88: 122295 | L88: 47063 | M88: 81192 | N88: 128255 | O88: 47063 | P88: 81192 | Q88: 128255 | R88: 98.51792929 | S88: 98.1931645 | T88: 98.31208751
A89: =IF(COUNTRY_INFO!A89=0," ",COUNTRY_INFO!A89) -> Uganda | B89: =IF(COUNTRY_INFO!B89=0," ",COUNTRY_INFO!B89) -> Northern | C89: =IF(COUNTRY_INFO!C89=0," ",COUNTRY_INFO!C89) -> Nwoya | D89: =IF(COUNTRY_INFO!$T$9:$T$1000="MDA3 (IVM)", COUNTRY_INFO!$T$9:$T$1000, " ") -> MDA3 (IVM) | E89: April & Oct 2017 | F89: 59065 | G89: 102235 | H89: 161300 | I89: 54886 | J89: 94687 | K89: 149573 | L89: 57179 | M89: 98643 | N89: 155822 | O89: 57179 | P89: 98643 | Q89: 155822 | R89: 96.80690764 | S89: 96.48652614 | T89: 96.60384377
A90: =IF(COUNTRY_INFO!A90=0," ",COUNTRY_INFO!A90) -> Uganda | B90: =IF(COUNTRY_INFO!B90=0," ",COUNTRY_INFO!B90) -> Northern | C90: =IF(COUNTRY_INFO!C90=0," ",COUNTRY_INFO!C90) -> Omoro | D90: MDA3 (IVM) | E90: April & Oct 2017 | F90: 60488 | G90: 104697 | H90: 165185 | I90: 52159 | J90: 89983 | K90: 142142 | L90: 54915 | M90: 94737 | N90: 149652 | O90: 54915 | P90: 94737 | Q90: 149652 | R90: 90.7866023 | S90: 90.48683343 | T90: 90.59660381
A91: =IF(COUNTRY_INFO!A91=0," ",COUNTRY_INFO!A91) -> Uganda | B91: =IF(COUNTRY_INFO!B91=0," ",COUNTRY_INFO!B91) -> Northern | C91: =IF(COUNTRY_INFO!C91=0," ",COUNTRY_INFO!C91) -> Otuke | D91: =IF(COUNTRY_INFO!$T$9:$T$1000="MDA3 (IVM)", COUNTRY_INFO!$T$9:$T$1000, " ") ->  | H91: 0 | K91: 0 | N91: 0 | O91: 0 | P91: 0 | Q91: 0
A92: =IF(COUNTRY_INFO!A92=0," ",COUNTRY_INFO!A92) -> Uganda | B92: =IF(COUNTRY_INFO!B92=0," ",COUNTRY_INFO!B92) -> Northern | C92: =IF(COUNTRY_INFO!C92=0," ",COUNTRY_INFO!C92) -> Oyam | D92: =IF(COUNTRY_INFO!$T$9:$T$1000="MDA3 (IVM)", COUNTRY_INFO!$T$9:$T$1000, " ") -> MDA3 (IVM) | E92: April & Oct 2017 | F92: 7479 | G92: 12946 | H92: 20425 | I92: 7322 | J92: 12633 | K92: 19955 | L92: 7264 | M92: 12531 | N92: 19795 | O92: 7322 | P92: 12633 | Q92: 19955 | R92: 97.90078888 | S92: 97.58226479 | T92: 97.69889841
A93: =IF(COUNTRY_INFO!A93=0," ",COUNTRY_INFO!A93) -> Uganda | B93: =IF(COUNTRY_INFO!B93=0," ",COUNTRY_INFO!B93) -> Northern | C93: =IF(COUNTRY_INFO!C93=0," ",COUNTRY_INFO!C93) -> Pader | D93: =IF(COUNTRY_INFO!$T$9:$T$1000="MDA3 (IVM)", COUNTRY_INFO!$T$9:$T$1000, " ") -> MDA3 (IVM) | E93: April & Oct 2017 | F93: 61301 | G93: 106106 | H93: 167407 | I93: 58950 | J93: 101699 | K93: 160649 | L93: 58465 | M93: 100863 | N93: 159328 | O93: 58950 | P93: 101699 | Q93: 160649 | R93: 96.16482602 | S93: 95.84660622 | T93: 95.96313177
A94: =IF(COUNTRY_INFO!A94=0," ",COUNTRY_INFO!A94) -> Uganda | B94: =IF(COUNTRY_INFO!B94=0," ",COUNTRY_INFO!B94) -> Northern | C94: =IF(COUNTRY_INFO!C94=0," ",COUNTRY_INFO!C94) -> Yumbe | D94: =IF(COUNTRY_INFO!$T$9:$T$1000="MDA3 (IVM)", COUNTRY_INFO!$T$9:$T$1000, " ") -> MDA3 (IVM) | E94: Oct 2017 | F94: 57810 | G94: 99732 | H94: 157542 | K94: 0 | L94: 48854 | M94: 84282 | N94: 133136 | O94: 48854 | P94: 84282 | Q94: 133136 | R94: 84.50787061 | S94: 84.50848273 | T94: 84.50825812
A95: =IF(COUNTRY_INFO!A95=0," ",COUNTRY_INFO!A95) -> Uganda | B95: =IF(COUNTRY_INFO!B95=0," ",COUNTRY_INFO!B95) -> Northern | C95: =IF(COUNTRY_INFO!C95=0," ",COUNTRY_INFO!C95) -> Zombo | D95: =IF(COUNTRY_INFO!$T$9:$T$1000="MDA3 (IVM)", COUNTRY_INFO!$T$9:$T$1000, " ") -> MDA3 (IVM) | E95: April & Oct 2017 | F95: 76227 | G95: 131942 | H95: 208169 | I95: 69068 | J95: 119154 | K95: 188222 | L95: 73489 | M95: 126781 | N95: 200270 | O95: 73489 | P95: 126781 | Q95: 200270 | R95: 96.40809687 | S95: 96.0884328 | T95: 96.20548689
A96: =IF(COUNTRY_INFO!A96=0," ",COUNTRY_INFO!A96) -> Uganda | B96: =IF(COUNTRY_INFO!B96=0," ",COUNTRY_INFO!B96) -> Western | C96: =IF(COUNTRY_INFO!C96=0," ",COUNTRY_INFO!C96) -> Buhweju | D96: =IF(COUNTRY_INFO!$T$9:$T$1000="MDA3 (IVM)", COUNTRY_INFO!$T$9:$T$1000, " ") ->  | H96: 0 | K96: 0 | N96: 0 | O96: 0 | P96: 0 | Q96: 0
A97: =IF(COUNTRY_INFO!A97=0," ",COUNTRY_INFO!A97) -> Uganda | B97: =IF(COUNTRY_INFO!B97=0," ",COUNTRY_INFO!B97) -> Western | C97: =IF(COUNTRY_INFO!C97=0," ",COUNTRY_INFO!C97) -> Buliisa | D97: =IF(COUNTRY_INFO!$T$9:$T$1000="MDA3 (IVM)", COUNTRY_INFO!$T$9:$T$1000, " ") -> MDA3 (IVM) | E97: April & Oct 2017 | F97: 10881 | G97: 18835 | H97: 29716 | I97: 10761 | J97: 18564 | K97: 29325 | L97: 10751 | M97: 18548 | N97: 29299 | O97: 10761 | P97: 18564 | Q97: 29325 | R97: 98.89716019 | S97: 98.56118928 | T97: 98.68421053
A98: =IF(COUNTRY_INFO!A98=0," ",COUNTRY_INFO!A98) -> Uganda | B98: =IF(COUNTRY_INFO!B98=0," ",COUNTRY_INFO!B98) -> Western | C98: =IF(COUNTRY_INFO!C98=0," ",COUNTRY_INFO!C98) -> Bundibugyo | D98: =IF(COUNTRY_INFO!$T$9:$T$1000="MDA3 (IVM)", COUNTRY_INFO!$T$9:$T$1000, " ") ->  | H98: 0 | K98: 0 | N98: 0 | O98: 0 | P98: 0 | Q98: 0
A99: =IF(COUNTRY_INFO!A99=0," ",COUNTRY_INFO!A99) -> Uganda | B99: =IF(COUNTRY_INFO!B99=0," ",COUNTRY_INFO!B99) -> Western | C99: =IF(COUNTRY_INFO!C99=0," ",COUNTRY_INFO!C99) -> Bushenyi | D99: =IF(COUNTRY_INFO!$T$9:$T$1000="MDA3 (IVM)", COUNTRY_INFO!$T$9:$T$1000, " ") ->  | H99: 0 | K99: 0 | N99: 0 | O99: 0 | P99: 0 | Q99: 0
A100: =IF(COUNTRY_INFO!A100=0," ",COUNTRY_INFO!A100) -> Uganda | B100: =IF(COUNTRY_INFO!B100=0," ",COUNTRY_INFO!B100) -> Western | C100: =IF(COUNTRY_INFO!C100=0," ",COUNTRY_INFO!C100) -> Hoima | D100: =IF(COUNTRY_INFO!$T$9:$T$1000="MDA3 (IVM)", COUNTRY_INFO!$T$9:$T$1000, " ") -> MDA3 (IVM) | E100: April & Oct 2017 | F100: 25004 | G100: 43278 | H100: 68282 | I100: 23963 | J100: 41340 | K100: 65303 | L100: 23043 | M100: 39754 | N100: 62797 | O100: 23963 | P100: 41340 | Q100: 65303 | R100: 95.83666613 | S100: 95.52197421 | T100: 95.63721039
A101: =IF(COUNTRY_INFO!A101=0," ",COUNTRY_INFO!A101) -> Uganda | B101: =IF(COUNTRY_INFO!B101=0," ",COUNTRY_INFO!B101) -> Western | C101: =IF(COUNTRY_INFO!C101=0," ",COUNTRY_INFO!C101) -> Ibanda | D101: =IF(COUNTRY_INFO!$T$9:$T$1000="MDA3 (IVM)", COUNTRY_INFO!$T$9:$T$1000, " ") ->  | H101: 0 | K101: 0 | N101: 0 | O101: 0 | P101: 0 | Q101: 0
A102: =IF(COUNTRY_INFO!A102=0," ",COUNTRY_INFO!A102) -> Uganda | B102: =IF(COUNTRY_INFO!B102=0," ",COUNTRY_INFO!B102) -> Western | C102: =IF(COUNTRY_INFO!C102=0," ",COUNTRY_INFO!C102) -> Isingiro | D102: =IF(COUNTRY_INFO!$T$9:$T$1000="MDA3 (IVM)", COUNTRY_INFO!$T$9:$T$1000, " ") ->  | H102: 0 | K102: 0 | N102: 0 | O102: 0 | P102: 0 | Q102: 0
A103: =IF(COUNTRY_INFO!A103=0," ",COUNTRY_INFO!A103) -> Uganda | B103: =IF(COUNTRY_INFO!B103=0," ",COUNTRY_INFO!B103) -> Western | C103: =IF(COUNTRY_INFO!C103=0," ",COUNTRY_INFO!C103) -> Kabale | D103: =IF(COUNTRY_INFO!$T$9:$T$1000="MDA3 (IVM)", COUNTRY_INFO!$T$9:$T$1000, " ") ->  | H103: 0 | K103: 0 | N103: 0 | O103: 0 | P103: 0 | Q103: 0
A104: =IF(COUNTRY_INFO!A104=0," ",COUNTRY_INFO!A104) -> Uganda | B104: =IF(COUNTRY_INFO!B104=0," ",COUNTRY_INFO!B104) -> Western | C104: =IF(COUNTRY_INFO!C104=0," ",COUNTRY_INFO!C104) -> Kabarole | D104: =IF(COUNTRY_INFO!$T$9:$T$1000="MDA3 (IVM)", COUNTRY_INFO!$T$9:$T$1000, " ") ->  | H104: 0 | K104: 0 | N104: 0 | O104: 0 | P104: 0 | Q104: 0
A105: =IF(COUNTRY_INFO!A105=0," ",COUNTRY_INFO!A105) -> Uganda | B105: =IF(COUNTRY_INFO!B105=0," ",COUNTRY_INFO!B105) -> Western | C105: =IF(COUNTRY_INFO!C105=0," ",COUNTRY_INFO!C105) -> Kagadi | D105: =IF(COUNTRY_INFO!$T$9:$T$1000="MDA3 (IVM)", COUNTRY_INFO!$T$9:$T$1000, " ") ->  | H105: 0 | K105: 0 | N105: 0 | O105: 0 | P105: 0 | Q105: 0
A106: =IF(COUNTRY_INFO!A106=0," ",COUNTRY_INFO!A106) -> Uganda | B106: =IF(COUNTRY_INFO!B106=0," ",COUNTRY_INFO!B106) -> Western | C106: =IF(COUNTRY_INFO!C106=0," ",COUNTRY_INFO!C106) -> Kakumiro | D106: =IF(COUNTRY_INFO!$T$9:$T$1000="MDA3 (IVM)", COUNTRY_INFO!$T$9:$T$1000, " ") ->  | H106: 0 | K106: 0 | N106: 0 | O106: 0 | P106: 0 | Q106: 0
A107: =IF(COUNTRY_INFO!A107=0," ",COUNTRY_INFO!A107) -> Uganda | B107: =IF(COUNTRY_INFO!B107=0," ",COUNTRY_INFO!B107) -> Western | C107: =IF(COUNTRY_INFO!C107=0," ",COUNTRY_INFO!C107) -> Kamwenge | D107: =IF(COUNTRY_INFO!$T$9:$T$1000="MDA3 (IVM)", COUNTRY_INFO!$T$9:$T$1000, " ") ->  | H107: 0 | K107: 0 | N107: 0 | O107: 0 | P107: 0 | Q107: 0
A108: =IF(COUNTRY_INFO!A108=0," ",COUNTRY_INFO!A108) -> Uganda | B108: =IF(COUNTRY_INFO!B108=0," ",COUNTRY_INFO!B108) -> Western | C108: =IF(COUNTRY_INFO!C108=0," ",COUNTRY_INFO!C108) -> Kanungu | D108: =IF(COUNTRY_INFO!$T$9:$T$1000="MDA3 (IVM)", COUNTRY_INFO!$T$9:$T$1000, " ") -> MDA3 (IVM) | E108: April & Oct 2017 | F108: 19024 | G108: 32929 | H108: 51953 | I108: 18416 | J108: 31771 | K108: 50187 | L108: 18610 | M108: 32105 | N108: 50715 | O108: 18610 | P108: 32105 | Q108: 50715 | R108: 97.82380151 | S108: 97.49764645 | T108: 97.61707697
A109: =IF(COUNTRY_INFO!A109=0," ",COUNTRY_INFO!A109) -> Uganda | B109: =IF(COUNTRY_INFO!B109=0," ",COUNTRY_INFO!B109) -> Western | C109: =IF(COUNTRY_INFO!C109=0," ",COUNTRY_INFO!C109) -> Kasese | D109: =IF(COUNTRY_INFO!$T$9:$T$1000="MDA3 (IVM)", COUNTRY_INFO!$T$9:$T$1000, " ") -> MDA3 (IVM) | E109: April & Oct 2017 | F109: 40850 | G109: 70708 | H109: 111558 | I109: 39625 | J109: 68361 | K109: 107986 | L109: 40520 | M109: 69903 | N109: 110423 | O109: 40520 | P109: 69903 | Q109: 110423 | R109: 99.19216646 | S109: 98.86151496 | T109: 98.98259201
A110: =IF(COUNTRY_INFO!A110=0," ",COUNTRY_INFO!A110) -> Uganda | B110: =IF(COUNTRY_INFO!B110=0," ",COUNTRY_INFO!B110) -> Western | C110: =IF(COUNTRY_INFO!C110=0," ",COUNTRY_INFO!C110) -> Kibaale | D110: =IF(COUNTRY_INFO!$T$9:$T$1000="MDA3 (IVM)", COUNTRY_INFO!$T$9:$T$1000, " ") ->  | H110: 0 | K110: 0 | N110: 0 | O110: 0 | P110: 0 | Q110: 0
A111: =IF(COUNTRY_INFO!A111=0," ",COUNTRY_INFO!A111) -> Uganda | B111: =IF(COUNTRY_INFO!B111=0," ",COUNTRY_INFO!B111) -> Western | C111: =IF(COUNTRY_INFO!C111=0," ",COUNTRY_INFO!C111) -> Kiruhura | D111: =IF(COUNTRY_INFO!$T$9:$T$1000="MDA3 (IVM)", COUNTRY_INFO!$T$9:$T$1000, " ") ->  | H111: 0 | K111: 0 | N111: 0 | O111: 0 | P111: 0 | Q111: 0
A112: =IF(COUNTRY_INFO!A112=0," ",COUNTRY_INFO!A112) -> Uganda | B112: =IF(COUNTRY_INFO!B112=0," ",COUNTRY_INFO!B112) -> Western | C112: =IF(COUNTRY_INFO!C112=0," ",COUNTRY_INFO!C112) -> Kiryandongo | D112: =IF(COUNTRY_INFO!$T$9:$T$1000="MDA3 (IVM)", COUNTRY_INFO!$T$9:$T$1000, " ") ->  | H112: 0 | K112: 0 | N112: 0 | O112: 0 | P112: 0 | Q112: 0
A113: =IF(COUNTRY_INFO!A113=0," ",COUNTRY_INFO!A113) -> Uganda | B113: =IF(COUNTRY_INFO!B113=0," ",COUNTRY_INFO!B113) -> Western | C113: =IF(COUNTRY_INFO!C113=0," ",COUNTRY_INFO!C113) -> Kisoro | D113: =IF(COUNTRY_INFO!$T$9:$T$1000="MDA3 (IVM)", COUNTRY_INFO!$T$9:$T$1000, " ") -> MDA3 (IVM) | E113: April & Oct 2017 | F113: 12115 | G113: 20971 | H113: 33086 | I113: 11287 | J113: 19471 | K113: 30758 | L113: 11641 | M113: 20083 | N113: 31724 | O113: 11641 | P113: 20083 | Q113: 31724 | R113: 96.08749484 | S113: 95.76558104 | T113: 95.88345524
A114: =IF(COUNTRY_INFO!A114=0," ",COUNTRY_INFO!A114) -> Uganda | B114: =IF(COUNTRY_INFO!B114=0," ",COUNTRY_INFO!B114) -> Western | C114: =IF(COUNTRY_INFO!C114=0," ",COUNTRY_INFO!C114) -> Kyegegwa | D114: =IF(COUNTRY_INFO!$T$9:$T$1000="MDA3 (IVM)", COUNTRY_INFO!$T$9:$T$1000, " ") ->  | H114: 0 | K114: 0 | N114: 0 | O114: 0 | P114: 0 | Q114: 0
A115: =IF(COUNTRY_INFO!A115=0," ",COUNTRY_INFO!A115) -> Uganda | B115: =IF(COUNTRY_INFO!B115=0," ",COUNTRY_INFO!B115) -> Western | C115: =IF(COUNTRY_INFO!C115=0," ",COUNTRY_INFO!C115) -> Kyenjojo | D115: =IF(COUNTRY_INFO!$T$9:$T$1000="MDA3 (IVM)", COUNTRY_INFO!$T$9:$T$1000, " ") ->  | H115: 0 | K115: 0 | N115: 0 | O115: 0 | P115: 0 | Q115: 0
A116: =IF(COUNTRY_INFO!A116=0," ",COUNTRY_INFO!A116) -> Uganda | B116: =IF(COUNTRY_INFO!B116=0," ",COUNTRY_INFO!B116) -> Western | C116: =IF(COUNTRY_INFO!C116=0," ",COUNTRY_INFO!C116) -> Masindi | D116: =IF(COUNTRY_INFO!$T$9:$T$1000="MDA3 (IVM)", COUNTRY_INFO!$T$9:$T$1000, " ") -> MDA3 (IVM) | E116: April & Oct 2017 | F116: 16163 | G116: 27978 | H116: 44141 | I116: 16072 | J116: 27727 | K116: 43799 | L116: 15742 | M116: 27158 | N116: 42900 | O116: 16072 | P116: 27727 | Q116: 43799 | R116: 99.43698571 | S116: 99.10286654 | T116: 99.22521012
A117: =IF(COUNTRY_INFO!A117=0," ",COUNTRY_INFO!A117) -> Uganda | B117: =IF(COUNTRY_INFO!B117=0," ",COUNTRY_INFO!B117) -> Western | C117: =IF(COUNTRY_INFO!C117=0," ",COUNTRY_INFO!C117) -> Mbarara | D117: =IF(COUNTRY_INFO!$T$9:$T$1000="MDA3 (IVM)", COUNTRY_INFO!$T$9:$T$1000, " ") ->  | H117: 0 | K117: 0 | N117: 0 | O117: 0 | P117: 0 | Q117: 0
A118: =IF(COUNTRY_INFO!A118=0," ",COUNTRY_INFO!A118) -> Uganda | B118: =IF(COUNTRY_INFO!B118=0," ",COUNTRY_INFO!B118) -> Western | C118: =IF(COUNTRY_INFO!C118=0," ",COUNTRY_INFO!C118) -> Mitooma | D118: =IF(COUNTRY_INFO!$T$9:$T$1000="MDA3 (IVM)", COUNTRY_INFO!$T$9:$T$1000, " ") ->  | H118: 0 | K118: 0 | N118: 0 | O118: 0 | P118: 0 | Q118: 0
A119: =IF(COUNTRY_INFO!A119=0," ",COUNTRY_INFO!A119) -> Uganda | B119: =IF(COUNTRY_INFO!B119=0," ",COUNTRY_INFO!B119) -> Western | C119: =IF(COUNTRY_INFO!C119=0," ",COUNTRY_INFO!C119) -> Ntoroko | D119: =IF(COUNTRY_INFO!$T$9:$T$1000="MDA3 (IVM)", COUNTRY_INFO!$T$9:$T$1000, " ") ->  | H119: 0 | K119: 0 | N119: 0 | O119: 0 | P119: 0 | Q119: 0
A120: =IF(COUNTRY_INFO!A120=0," ",COUNTRY_INFO!A120) -> Uganda | B120: =IF(COUNTRY_INFO!B120=0," ",COUNTRY_INFO!B120) -> Western | C120: =IF(COUNTRY_INFO!C120=0," ",COUNTRY_INFO!C120) -> Ntungamo | D120: =IF(COUNTRY_INFO!$T$9:$T$1000="MDA3 (IVM)", COUNTRY_INFO!$T$9:$T$1000, " ") ->  | H120: 0 | K120: 0 | N120: 0 | O120: 0 | P120: 0 | Q120: 0
A121: =IF(COUNTRY_INFO!A121=0," ",COUNTRY_INFO!A121) -> Uganda | B121: =IF(COUNTRY_INFO!B121=0," ",COUNTRY_INFO!B121) -> Western | C121: =IF(COUNTRY_INFO!C121=0," ",COUNTRY_INFO!C121) -> Rubanda | D121: =IF(COUNTRY_INFO!$T$9:$T$1000="MDA3 (IVM)", COUNTRY_INFO!$T$9:$T$1000, " ") -> MDA3 (IVM) | E121: April & Oct 2017 | F121: 9711 | G121: 16809 | H121: 26520 | I121: 9459 | J121: 16319 | K121: 25778 | L121: 9174 | M121: 15827 | N121: 25001 | O121: 9459 | P121: 16319 | Q121: 25778 | R121: 97.40500463 | S121: 97.084895 | T121: 97.20211161
A122: =IF(COUNTRY_INFO!A122=0," ",COUNTRY_INFO!A122) -> Uganda | B122: =IF(COUNTRY_INFO!B122=0," ",COUNTRY_INFO!B122) -> Western | C122: =IF(COUNTRY_INFO!C122=0," ",COUNTRY_INFO!C122) -> Rubirizi | D122: =IF(COUNTRY_INFO!$T$9:$T$1000="MDA3 (IVM)", COUNTRY_INFO!$T$9:$T$1000, " ") ->  | H122: 0 | K122: 0 | N122: 0 | O122: 0 | P122: 0 | Q122: 0
A123: =IF(COUNTRY_INFO!A123=0," ",COUNTRY_INFO!A123) -> Uganda | B123: =IF(COUNTRY_INFO!B123=0," ",COUNTRY_INFO!B123) -> Western | C123: =IF(COUNTRY_INFO!C123=0," ",COUNTRY_INFO!C123) -> Rukungiri | D123: =IF(COUNTRY_INFO!$T$9:$T$1000="MDA3 (IVM)", COUNTRY_INFO!$T$9:$T$1000, " ") ->  | H123: 0 | K123: 0 | N123: 0 | O123: 0 | P123: 0 | Q123: 0
A124: =IF(COUNTRY_INFO!A124=0," ",COUNTRY_INFO!A124) -> Uganda | B124: =IF(COUNTRY_INFO!B124=0," ",COUNTRY_INFO!B124) -> Western | C124: =IF(COUNTRY_INFO!C124=0," ",COUNTRY_INFO!C124) -> Sheema | D124: =IF(COUNTRY_INFO!$T$9:$T$1000="MDA3 (IVM)", COUNTRY_INFO!$T$9:$T$1000, " ") ->  | H124: 0 | K124: 0 | N124: 0 | O124: 0 | P124: 0 | Q124: 0

Sheet T1
A1: T 1 - Praziquantel (PZQ) and Albendazole (ALB) or Mebendazole (MBD)
A2: Administrative structure, population requiring PC by age group, population treated by age group and coverage
A4: TOTAL | G4: =SUM(G$9:G$1000) -> 0 | H4: 0 | I4: 0 | J4: 0 | K4: =SUM(K$9:K$1000) -> 0 | L4: 0 | M4: 0 | N4: 0 | O4: 0 | P4: =IF(G4<>0, IF(L4/G4*100=0, "-", L4/G4*100), " ") ->  | Q4: =IF(OR(I4<>0,H4<>0), IF(M4/MAX(H4,I4)*100=0, "-", M4/MAX(H4,I4)*100), " ") ->  | R4: =IF(J4<>0, IF(N4/J4*100=0, "-", N4/J4*100), " ") ->  | S4: =IF(K4<>0, IF(O4/K4*100=0, "-", O4/K4*100), " ") -> 
D6: PC implemented | E6: Medicine | F6: Date | G6: Population targeted for T1 | L6: Population treated | P6: Programme coverage (%)
A7: Country | B7: Province/State | C7: District | G7: PreSAC (ALB) | H7: SAC (ALB) | I7: SAC (PZQ) | J7: Adults (PZQ) | K7: Total | L7: PreSAC | M7: SAC | N7: Adults | O7: Total | P7: PreSAC | Q7: SAC | R7: Adults | S7: Total
A9: =IF(COUNTRY_INFO!A9=0," ",COUNTRY_INFO!A9) -> Uganda | B9: =IF(COUNTRY_INFO!B9=0," ",COUNTRY_INFO!B9) -> Central | C9: =IF(COUNTRY_INFO!C9=0," ",COUNTRY_INFO!C9) -> Buikwe | D9: =IF(OR(COUNTRY_INFO!$T$9:$T$1000="T1 (PZQ+ALB/MBD)",COUNTRY_INFO!$U$9:$U$1000="T1 (PZQ+ALB/MBD)"), "T1 (PZQ+ALB/MBD)", " ") ->  | K9: =MAX(H9:I9)+G9+J9 -> 0 | O9: =SUM(L9:N9) -> 0 | P9: =IF(G9<>0, IF(L9/G9*100=0, "-", L9/G9*100), " ") ->  | Q9: =IF(OR(I9<>0,H9<>0), IF(M9/MAX(H9,I9)*100=0, "-", M9/MAX(H9,I9)*100), " ") ->  | R9: =IF(J9<>0, IF(N9/J9*100=0, "-", N9/J9*100), " ") -> 
A10: =IF(COUNTRY_INFO!A10=0," ",COUNTRY_INFO!A10) -> Uganda | B10: =IF(COUNTRY_INFO!B10=0," ",COUNTRY_INFO!B10) -> Central | C10: =IF(COUNTRY_INFO!C10=0," ",COUNTRY_INFO!C10) -> Bukomansimbi | D10: =IF(OR(COUNTRY_INFO!$T$9:$T$1000="T1 (PZQ+ALB/MBD)",COUNTRY_INFO!$U$9:$U$1000="T1 (PZQ+ALB/MBD)"), "T1 (PZQ+ALB/MBD)", " ") ->  | K10: =MAX(H10:I10)+G10+J10 -> 0 | O10: =SUM(L10:N10) -> 0 | P10: =IF(G10<>0, IF(L10/G10*100=0, "-", L10/G10*100), " ") ->  | Q10: =IF(OR(I10<>0,H10<>0), IF(M10/MAX(H10,I10)*100=0, "-", M10/MAX(H10,I10)*100), " ") ->  | R10: =IF(J10<>0, IF(N10/J10*100=0, "-", N10/J10*100), " ") ->  | S10: =IF(K10<>0, IF(O10/K10*100=0, "-", O10/K10*100), " ") -> 
A11: =IF(COUNTRY_INFO!A11=0," ",COUNTRY_INFO!A11) -> Uganda | B11: =IF(COUNTRY_INFO!B11=0," ",COUNTRY_INFO!B11) -> Central | C11: =IF(COUNTRY_INFO!C11=0," ",COUNTRY_INFO!C11) -> Butambala | D11: =IF(OR(COUNTRY_INFO!$T$9:$T$1000="T1 (PZQ+ALB/MBD)",COUNTRY_INFO!$U$9:$U$1000="T1 (PZQ+ALB/MBD)"), "T1 (PZQ+ALB/MBD)", " ") ->  | K11: 0 | O11: 0
A12: =IF(COUNTRY_INFO!A12=0," ",COUNTRY_INFO!A12) -> Uganda | B12: =IF(COUNTRY_INFO!B12=0," ",COUNTRY_INFO!B12) -> Central | C12: =IF(COUNTRY_INFO!C12=0," ",COUNTRY_INFO!C12) -> Buvuma | D12: =IF(OR(COUNTRY_INFO!$T$9:$T$1000="T1 (PZQ+ALB/MBD)",COUNTRY_INFO!$U$9:$U$1000="T1 (PZQ+ALB/MBD)"), "T1 (PZQ+ALB/MBD)", " ") ->  | K12: 0 | O12: 0
A13: =IF(COUNTRY_INFO!A13=0," ",COUNTRY_INFO!A13) -> Uganda | B13: =IF(COUNTRY_INFO!B13=0," ",COUNTRY_INFO!B13) -> Central | C13: =IF(COUNTRY_INFO!C13=0," ",COUNTRY_INFO!C13) -> Gomba | D13: =IF(OR(COUNTRY_INFO!$T$9:$T$1000="T1 (PZQ+ALB/MBD)",COUNTRY_INFO!$U$9:$U$1000="T1 (PZQ+ALB/MBD)"), "T1 (PZQ+ALB/MBD)", " ") ->  | K13: 0 | O13: 0
A14: =IF(COUNTRY_INFO!A14=0," ",COUNTRY_INFO!A14) -> Uganda | B14: =IF(COUNTRY_INFO!B14=0," ",COUNTRY_INFO!B14) -> Central | C14: =IF(COUNTRY_INFO!C14=0," ",COUNTRY_INFO!C14) -> Kalangala | D14: =IF(OR(COUNTRY_INFO!$T$9:$T$1000="T1 (PZQ+ALB/MBD)",COUNTRY_INFO!$U$9:$U$1000="T1 (PZQ+ALB/MBD)"), "T1 (PZQ+ALB/MBD)", " ") ->  | K14: 0 | O14: 0
A15: =IF(COUNTRY_INFO!A15=0," ",COUNTRY_INFO!A15) -> Uganda | B15: =IF(COUNTRY_INFO!B15=0," ",COUNTRY_INFO!B15) -> Central | C15: =IF(COUNTRY_INFO!C15=0," ",COUNTRY_INFO!C15) -> Kalungu | D15: =IF(OR(COUNTRY_INFO!$T$9:$T$1000="T1 (PZQ+ALB/MBD)",COUNTRY_INFO!$U$9:$U$1000="T1 (PZQ+ALB/MBD)"), "T1 (PZQ+ALB/MBD)", " ") ->  | K15: 0 | O15: 0
A16: =IF(COUNTRY_INFO!A16=0," ",COUNTRY_INFO!A16) -> Uganda | B16: =IF(COUNTRY_INFO!B16=0," ",COUNTRY_INFO!B16) -> Central | C16: =IF(COUNTRY_INFO!C16=0," ",COUNTRY_INFO!C16) -> Kampala | D16: =IF(OR(COUNTRY_INFO!$T$9:$T$1000="T1 (PZQ+ALB/MBD)",COUNTRY_INFO!$U$9:$U$1000="T1 (PZQ+ALB/MBD)"), "T1 (PZQ+ALB/MBD)", " ") ->  | K16: 0 | O16: 0
A17: =IF(COUNTRY_INFO!A17=0," ",COUNTRY_INFO!A17) -> Uganda | B17: =IF(COUNTRY_INFO!B17=0," ",COUNTRY_INFO!B17) -> Central | C17: =IF(COUNTRY_INFO!C17=0," ",COUNTRY_INFO!C17) -> Kayunga | D17: =IF(OR(COUNTRY_INFO!$T$9:$T$1000="T1 (PZQ+ALB/MBD)",COUNTRY_INFO!$U$9:$U$1000="T1 (PZQ+ALB/MBD)"), "T1 (PZQ+ALB/MBD)", " ") ->  | K17: 0 | O17: 0
A18: =IF(COUNTRY_INFO!A18=0," ",COUNTRY_INFO!A18) -> Uganda | B18: =IF(COUNTRY_INFO!B18=0," ",COUNTRY_INFO!B18) -> Central | C18: =IF(COUNTRY_INFO!C18=0," ",COUNTRY_INFO!C18) -> Kiboga | D18: =IF(OR(COUNTRY_INFO!$T$9:$T$1000="T1 (PZQ+ALB/MBD)",COUNTRY_INFO!$U$9:$U$1000="T1 (PZQ+ALB/MBD)"), "T1 (PZQ+ALB/MBD)", " ") ->  | K18: 0 | O18: 0
A19: =IF(COUNTRY_INFO!A19=0," ",COUNTRY_INFO!A19) -> Uganda | B19: =IF(COUNTRY_INFO!B19=0," ",COUNTRY_INFO!B19) -> Central | C19: =IF(COUNTRY_INFO!C19=0," ",COUNTRY_INFO!C19) -> Kyankwanzi | D19: =IF(OR(COUNTRY_INFO!$T$9:$T$1000="T1 (PZQ+ALB/MBD)",COUNTRY_INFO!$U$9:$U$1000="T1 (PZQ+ALB/MBD)"), "T1 (PZQ+ALB/MBD)", " ") ->  | K19: 0 | O19: 0
A20: =IF(COUNTRY_INFO!A20=0," ",COUNTRY_INFO!A20) -> Uganda | B20: =IF(COUNTRY_INFO!B20=0," ",COUNTRY_INFO!B20) -> Central | C20: =IF(COUNTRY_INFO!C20=0," ",COUNTRY_INFO!C20) -> Luwero | D20: =IF(OR(COUNTRY_INFO!$T$9:$T$1000="T1 (PZQ+ALB/MBD)",COUNTRY_INFO!$U$9:$U$1000="T1 (PZQ+ALB/MBD)"), "T1 (PZQ+ALB/MBD)", " ") ->  | K20: 0 | O20: 0
A21: =IF(COUNTRY_INFO!A21=0," ",COUNTRY_INFO!A21) -> Uganda | B21: =IF(COUNTRY_INFO!B21=0," ",COUNTRY_INFO!B21) -> Central | C21: =IF(COUNTRY_INFO!C21=0," ",COUNTRY_INFO!C21) -> Lwengo | D21: =IF(OR(COUNTRY_INFO!$T$9:$T$1000="T1 (PZQ+ALB/MBD)",COUNTRY_INFO!$U$9:$U$1000="T1 (PZQ+ALB/MBD)"), "T1 (PZQ+ALB/MBD)", " ") ->  | K21: 0 | O21: 0
A22: =IF(COUNTRY_INFO!A22=0," ",COUNTRY_INFO!A22) -> Uganda | B22: =IF(COUNTRY_INFO!B22=0," ",COUNTRY_INFO!B22) -> Central | C22: =IF(COUNTRY_INFO!C22=0," ",COUNTRY_INFO!C22) -> Lyantonde | D22: =IF(OR(COUNTRY_INFO!$T$9:$T$1000="T1 (PZQ+ALB/MBD)",COUNTRY_INFO!$U$9:$U$1000="T1 (PZQ+ALB/MBD)"), "T1 (PZQ+ALB/MBD)", " ") ->  | K22: 0 | O22: 0
A23: =IF(COUNTRY_INFO!A23=0," ",COUNTRY_INFO!A23) -> Uganda | B23: =IF(COUNTRY_INFO!B23=0," ",COUNTRY_INFO!B23) -> Central | C23: =IF(COUNTRY_INFO!C23=0," ",COUNTRY_INFO!C23) -> Masaka | D23: =IF(OR(COUNTRY_INFO!$T$9:$T$1000="T1 (PZQ+ALB/MBD)",COUNTRY_INFO!$U$9:$U$1000="T1 (PZQ+ALB/MBD)"), "T1 (PZQ+ALB/MBD)", " ") ->  | K23: 0 | O23: 0
A24: =IF(COUNTRY_INFO!A24=0," ",COUNTRY_INFO!A24) -> Uganda | B24: =IF(COUNTRY_INFO!B24=0," ",COUNTRY_INFO!B24) -> Central | C24: =IF(COUNTRY_INFO!C24=0," ",COUNTRY_INFO!C24) -> Mityana | D24: =IF(OR(COUNTRY_INFO!$T$9:$T$1000="T1 (PZQ+ALB/MBD)",COUNTRY_INFO!$U$9:$U$1000="T1 (PZQ+ALB/MBD)"), "T1 (PZQ+ALB/MBD)", " ") ->  | K24: 0 | O24: 0
A25: =IF(COUNTRY_INFO!A25=0," ",COUNTRY_INFO!A25) -> Uganda | B25: =IF(COUNTRY_INFO!B25=0," ",COUNTRY_INFO!B25) -> Central | C25: =IF(COUNTRY_INFO!C25=0," ",COUNTRY_INFO!C25) -> Mpigi | D25: =IF(OR(COUNTRY_INFO!$T$9:$T$1000="T1 (PZQ+ALB/MBD)",COUNTRY_INFO!$U$9:$U$1000="T1 (PZQ+ALB/MBD)"), "T1 (PZQ+ALB/MBD)", " ") ->  | K25: 0 | O25: 0
A26: =IF(COUNTRY_INFO!A26=0," ",COUNTRY_INFO!A26) -> Uganda | B26: =IF(COUNTRY_INFO!B26=0," ",COUNTRY_INFO!B26) -> Central | C26: =IF(COUNTRY_INFO!C26=0," ",COUNTRY_INFO!C26) -> Mubende | D26: =IF(OR(COUNTRY_INFO!$T$9:$T$1000="T1 (PZQ+ALB/MBD)",COUNTRY_INFO!$U$9:$U$1000="T1 (PZQ+ALB/MBD)"), "T1 (PZQ+ALB/MBD)", " ") ->  | K26: 0 | O26: 0
A27: =IF(COUNTRY_INFO!A27=0," ",COUNTRY_INFO!A27) -> Uganda | B27: =IF(COUNTRY_INFO!B27=0," ",COUNTRY_INFO!B27) -> Central | C27: =IF(COUNTRY_INFO!C27=0," ",COUNTRY_INFO!C27) -> Mukono | D27: =IF(OR(COUNTRY_INFO!$T$9:$T$1000="T1 (PZQ+ALB/MBD)",COUNTRY_INFO!$U$9:$U$1000="T1 (PZQ+ALB/MBD)"), "T1 (PZQ+ALB/MBD)", " ") ->  | K27: 0 | O27: 0
A28: =IF(COUNTRY_INFO!A28=0," ",COUNTRY_INFO!A28) -> Uganda | B28: =IF(COUNTRY_INFO!B28=0," ",COUNTRY_INFO!B28) -> Central | C28: =IF(COUNTRY_INFO!C28=0," ",COUNTRY_INFO!C28) -> Nakaseke | D28: =IF(OR(COUNTRY_INFO!$T$9:$T$1000="T1 (PZQ+ALB/MBD)",COUNTRY_INFO!$U$9:$U$1000="T1 (PZQ+ALB/MBD)"), "T1 (PZQ+ALB/MBD)", " ") ->  | K28: 0 | O28: 0
A29: =IF(COUNTRY_INFO!A29=0," ",COUNTRY_INFO!A29) -> Uganda | B29: =IF(COUNTRY_INFO!B29=0," ",COUNTRY_INFO!B29) -> Central | C29: =IF(COUNTRY_INFO!C29=0," ",COUNTRY_INFO!C29) -> Nakasongola | D29: =IF(OR(COUNTRY_INFO!$T$9:$T$1000="T1 (PZQ+ALB/MBD)",COUNTRY_INFO!$U$9:$U$1000="T1 (PZQ+ALB/MBD)"), "T1 (PZQ+ALB/MBD)", " ") ->  | K29: 0 | O29: 0
A30: =IF(COUNTRY_INFO!A30=0," ",COUNTRY_INFO!A30) -> Uganda | B30: =IF(COUNTRY_INFO!B30=0," ",COUNTRY_INFO!B30) -> Central | C30: =IF(COUNTRY_INFO!C30=0," ",COUNTRY_INFO!C30) -> Rakai | D30: =IF(OR(COUNTRY_INFO!$T$9:$T$1000="T1 (PZQ+ALB/MBD)",COUNTRY_INFO!$U$9:$U$1000="T1 (PZQ+ALB/MBD)"), "T1 (PZQ+ALB/MBD)", " ") ->  | K30: 0 | O30: 0
A31: =IF(COUNTRY_INFO!A31=0," ",COUNTRY_INFO!A31) -> Uganda | B31: =IF(COUNTRY_INFO!B31=0," ",COUNTRY_INFO!B31) -> Central | C31: =IF(COUNTRY_INFO!C31=0," ",COUNTRY_INFO!C31) -> Sembabule | D31: =IF(OR(COUNTRY_INFO!$T$9:$T$1000="T1 (PZQ+ALB/MBD)",COUNTRY_INFO!$U$9:$U$1000="T1 (PZQ+ALB/MBD)"), "T1 (PZQ+ALB/MBD)", " ") ->  | K31: 0 | O31: 0
A32: =IF(COUNTRY_INFO!A32=0," ",COUNTRY_INFO!A32) -> Uganda | B32: =IF(COUNTRY_INFO!B32=0," ",COUNTRY_INFO!B32) -> Central | C32: =IF(COUNTRY_INFO!C32=0," ",COUNTRY_INFO!C32) -> Wakiso | D32: =IF(OR(COUNTRY_INFO!$T$9:$T$1000="T1 (PZQ+ALB/MBD)",COUNTRY_INFO!$U$9:$U$1000="T1 (PZQ+ALB/MBD)"), "T1 (PZQ+ALB/MBD)", " ") ->  | K32: 0 | O32: 0
A33: =IF(COUNTRY_INFO!A33=0," ",COUNTRY_INFO!A33) -> Uganda | B33: =IF(COUNTRY_INFO!B33=0," ",COUNTRY_INFO!B33) -> Eastern | C33: =IF(COUNTRY_INFO!C33=0," ",COUNTRY_INFO!C33) -> Amuria | D33: =IF(OR(COUNTRY_INFO!$T$9:$T$1000="T1 (PZQ+ALB/MBD)",COUNTRY_INFO!$U$9:$U$1000="T1 (PZQ+ALB/MBD)"), "T1 (PZQ+ALB/MBD)", " ") ->  | K33: 0 | O33: 0
A34: =IF(COUNTRY_INFO!A34=0," ",COUNTRY_INFO!A34) -> Uganda | B34: =IF(COUNTRY_INFO!B34=0," ",COUNTRY_INFO!B34) -> Eastern | C34: =IF(COUNTRY_INFO!C34=0," ",COUNTRY_INFO!C34) -> Budaka | D34: =IF(OR(COUNTRY_INFO!$T$9:$T$1000="T1 (PZQ+ALB/MBD)",COUNTRY_INFO!$U$9:$U$1000="T1 (PZQ+ALB/MBD)"), "T1 (PZQ+ALB/MBD)", " ") ->  | K34: 0 | O34: 0
A35: =IF(COUNTRY_INFO!A35=0," ",COUNTRY_INFO!A35) -> Uganda | B35: =IF(COUNTRY_INFO!B35=0," ",COUNTRY_INFO!B35) -> Eastern | C35: =IF(COUNTRY_INFO!C35=0," ",COUNTRY_INFO!C35) -> Bududa | D35: =IF(OR(COUNTRY_INFO!$T$9:$T$1000="T1 (PZQ+ALB/MBD)",COUNTRY_INFO!$U$9:$U$1000="T1 (PZQ+ALB/MBD)"), "T1 (PZQ+ALB/MBD)", " ") ->  | K35: 0 | O35: 0
A36: =IF(COUNTRY_INFO!A36=0," ",COUNTRY_INFO!A36) -> Uganda | B36: =IF(COUNTRY_INFO!B36=0," ",COUNTRY_INFO!B36) -> Eastern | C36: =IF(COUNTRY_INFO!C36=0," ",COUNTRY_INFO!C36) -> Bugiri | D36: =IF(OR(COUNTRY_INFO!$T$9:$T$1000="T1 (PZQ+ALB/MBD)",COUNTRY_INFO!$U$9:$U$1000="T1 (PZQ+ALB/MBD)"), "T1 (PZQ+ALB/MBD)", " ") ->  | K36: 0 | O36: 0
A37: =IF(COUNTRY_INFO!A37=0," ",COUNTRY_INFO!A37) -> Uganda | B37: =IF(COUNTRY_INFO!B37=0," ",COUNTRY_INFO!B37) -> Eastern | C37: =IF(COUNTRY_INFO!C37=0," ",COUNTRY_INFO!C37) -> Bukedea | D37: =IF(OR(COUNTRY_INFO!$T$9:$T$1000="T1 (PZQ+ALB/MBD)",COUNTRY_INFO!$U$9:$U$1000="T1 (PZQ+ALB/MBD)"), "T1 (PZQ+ALB/MBD)", " ") ->  | K37: 0 | O37: 0
A38: =IF(COUNTRY_INFO!A38=0," ",COUNTRY_INFO!A38) -> Uganda | B38: =IF(COUNTRY_INFO!B38=0," ",COUNTRY_INFO!B38) -> Eastern | C38: =IF(COUNTRY_INFO!C38=0," ",COUNTRY_INFO!C38) -> Bukwo | D38: =IF(OR(COUNTRY_INFO!$T$9:$T$1000="T1 (PZQ+ALB/MBD)",COUNTRY_INFO!$U$9:$U$1000="T1 (PZQ+ALB/MBD)"), "T1 (PZQ+ALB/MBD)", " ") ->  | K38: 0 | O38: 0
A39: =IF(COUNTRY_INFO!A39=0," ",COUNTRY_INFO!A39) -> Uganda | B39: =IF(COUNTRY_INFO!B39=0," ",COUNTRY_INFO!B39) -> Eastern | C39: =IF(COUNTRY_INFO!C39=0," ",COUNTRY_INFO!C39) -> Bulambuli | D39: =IF(OR(COUNTRY_INFO!$T$9:$T$1000="T1 (PZQ+ALB/MBD)",COUNTRY_INFO!$U$9:$U$1000="T1 (PZQ+ALB/MBD)"), "T1 (PZQ+ALB/MBD)", " ") ->  | K39: 0 | O39: 0
A40: =IF(COUNTRY_INFO!A40=0," ",COUNTRY_INFO!A40) -> Uganda | B40: =IF(COUNTRY_INFO!B40=0," ",COUNTRY_INFO!B40) -> Eastern | C40: =IF(COUNTRY_INFO!C40=0," ",COUNTRY_INFO!C40) -> Busia | D40: =IF(OR(COUNTRY_INFO!$T$9:$T$1000="T1 (PZQ+ALB/MBD)",COUNTRY_INFO!$U$9:$U$1000="T1 (PZQ+ALB/MBD)"), "T1 (PZQ+ALB/MBD)", " ") ->  | K40: 0 | O40: 0
A41: =IF(COUNTRY_INFO!A41=0," ",COUNTRY_INFO!A41) -> Uganda | B41: =IF(COUNTRY_INFO!B41=0," ",COUNTRY_INFO!B41) -> Eastern | C41: =IF(COUNTRY_INFO!C41=0," ",COUNTRY_INFO!C41) -> Butaleja | D41: =IF(OR(COUNTRY_INFO!$T$9:$T$1000="T1 (PZQ+ALB/MBD)",COUNTRY_INFO!$U$9:$U$1000="T1 (PZQ+ALB/MBD)"), "T1 (PZQ+ALB/MBD)", " ") ->  | K41: 0 | O41: 0
A42: =IF(COUNTRY_INFO!A42=0," ",COUNTRY_INFO!A42) -> Uganda | B42: =IF(COUNTRY_INFO!B42=0," ",COUNTRY_INFO!B42) -> Eastern | C42: =IF(COUNTRY_INFO!C42=0," ",COUNTRY_INFO!C42) -> Buyende | D42: =IF(OR(COUNTRY_INFO!$T$9:$T$1000="T1 (PZQ+ALB/MBD)",COUNTRY_INFO!$U$9:$U$1000="T1 (PZQ+ALB/MBD)"), "T1 (PZQ+ALB/MBD)", " ") ->  | K42: 0 | O42: 0
A43: =IF(COUNTRY_INFO!A43=0," ",COUNTRY_INFO!A43) -> Uganda | B43: =IF(COUNTRY_INFO!B43=0," ",COUNTRY_INFO!B43) -> Eastern | C43: =IF(COUNTRY_INFO!C43=0," ",COUNTRY_INFO!C43) -> Iganga | D43: =IF(OR(COUNTRY_INFO!$T$9:$T$1000="T1 (PZQ+ALB/MBD)",COUNTRY_INFO!$U$9:$U$1000="T1 (PZQ+ALB/MBD)"), "T1 (PZQ+ALB/MBD)", " ") ->  | K43: 0 | O43: 0
A44: =IF(COUNTRY_INFO!A44=0," ",COUNTRY_INFO!A44) -> Uganda | B44: =IF(COUNTRY_INFO!B44=0," ",COUNTRY_INFO!B44) -> Eastern | C44: =IF(COUNTRY_INFO!C44=0," ",COUNTRY_INFO!C44) -> Jinja | D44: =IF(OR(COUNTRY_INFO!$T$9:$T$1000="T1 (PZQ+ALB/MBD)",COUNTRY_INFO!$U$9:$U$1000="T1 (PZQ+ALB/MBD)"), "T1 (PZQ+ALB/MBD)", " ") ->  | K44: 0 | O44: 0
A45: =IF(COUNTRY_INFO!A45=0," ",COUNTRY_INFO!A45) -> Uganda | B45: =IF(COUNTRY_INFO!B45=0," ",COUNTRY_INFO!B45) -> Eastern | C45: =IF(COUNTRY_INFO!C45=0," ",COUNTRY_INFO!C45) -> Kaberamaido | D45: =IF(OR(COUNTRY_INFO!$T$9:$T$1000="T1 (PZQ+ALB/MBD)",COUNTRY_INFO!$U$9:$U$1000="T1 (PZQ+ALB/MBD)"), "T1 (PZQ+ALB/MBD)", " ") ->  | K45: 0 | O45: 0
A46: =IF(COUNTRY_INFO!A46=0," ",COUNTRY_INFO!A46) -> Uganda | B46: =IF(COUNTRY_INFO!B46=0," ",COUNTRY_INFO!B46) -> Eastern | C46: =IF(COUNTRY_INFO!C46=0," ",COUNTRY_INFO!C46) -> Kaliro | D46: =IF(OR(COUNTRY_INFO!$T$9:$T$1000="T1 (PZQ+ALB/MBD)",COUNTRY_INFO!$U$9:$U$1000="T1 (PZQ+ALB/MBD)"), "T1 (PZQ+ALB/MBD)", " ") ->  | K46: 0 | O46: 0
A47: =IF(COUNTRY_INFO!A47=0," ",COUNTRY_INFO!A47) -> Uganda | B47: =IF(COUNTRY_INFO!B47=0," ",COUNTRY_INFO!B47) -> Eastern | C47: =IF(COUNTRY_INFO!C47=0," ",COUNTRY_INFO!C47) -> Kamuli | D47: =IF(OR(COUNTRY_INFO!$T$9:$T$1000="T1 (PZQ+ALB/MBD)",COUNTRY_INFO!$U$9:$U$1000="T1 (PZQ+ALB/MBD)"), "T1 (PZQ+ALB/MBD)", " ") ->  | K47: 0 | O47: 0
A48: =IF(COUNTRY_INFO!A48=0," ",COUNTRY_INFO!A48) -> Uganda | B48: =IF(COUNTRY_INFO!B48=0," ",COUNTRY_INFO!B48) -> Eastern | C48: =IF(COUNTRY_INFO!C48=0," ",COUNTRY_INFO!C48) -> Kapchorwa | D48: =IF(OR(COUNTRY_INFO!$T$9:$T$1000="T1 (PZQ+ALB/MBD)",COUNTRY_INFO!$U$9:$U$1000="T1 (PZQ+ALB/MBD)"), "T1 (PZQ+ALB/MBD)", " ") ->  | K48: 0 | O48: 0
A49: =IF(COUNTRY_INFO!A49=0," ",COUNTRY_INFO!A49) -> Uganda | B49: =IF(COUNTRY_INFO!B49=0," ",COUNTRY_INFO!B49) -> Eastern | C49: =IF(COUNTRY_INFO!C49=0," ",COUNTRY_INFO!C49) -> Katakwi | D49: =IF(OR(COUNTRY_INFO!$T$9:$T$1000="T1 (PZQ+ALB/MBD)",COUNTRY_INFO!$U$9:$U$1000="T1 (PZQ+ALB/MBD)"), "T1 (PZQ+ALB/MBD)", " ") ->  | K49: 0 | O49: 0
A50: =IF(COUNTRY_INFO!A50=0," ",COUNTRY_INFO!A50) -> Uganda | B50: =IF(COUNTRY_INFO!B50=0," ",COUNTRY_INFO!B50) -> Eastern | C50: =IF(COUNTRY_INFO!C50=0," ",COUNTRY_INFO!C50) -> Kibuku | D50: =IF(OR(COUNTRY_INFO!$T$9:$T$1000="T1 (PZQ+ALB/MBD)",COUNTRY_INFO!$U$9:$U$1000="T1 (PZQ+ALB/MBD)"), "T1 (PZQ+ALB/MBD)", " ") ->  | K50: 0 | O50: 0
A51: =IF(COUNTRY_INFO!A51=0," ",COUNTRY_INFO!A51) -> Uganda | B51: =IF(COUNTRY_INFO!B51=0," ",COUNTRY_INFO!B51) -> Eastern | C51: =IF(COUNTRY_INFO!C51=0," ",COUNTRY_INFO!C51) -> Kumi | D51: =IF(OR(COUNTRY_INFO!$T$9:$T$1000="T1 (PZQ+ALB/MBD)",COUNTRY_INFO!$U$9:$U$1000="T1 (PZQ+ALB/MBD)"), "T1 (PZQ+ALB/MBD)", " ") ->  | K51: 0 | O51: 0
A52: =IF(COUNTRY_INFO!A52=0," ",COUNTRY_INFO!A52) -> Uganda | B52: =IF(COUNTRY_INFO!B52=0," ",COUNTRY_INFO!B52) -> Eastern | C52: =IF(COUNTRY_INFO!C52=0," ",COUNTRY_INFO!C52) -> Kween | D52: =IF(OR(COUNTRY_INFO!$T$9:$T$1000="T1 (PZQ+ALB/MBD)",COUNTRY_INFO!$U$9:$U$1000="T1 (PZQ+ALB/MBD)"), "T1 (PZQ+ALB/MBD)", " ") ->  | K52: 0 | O52: 0
A53: =IF(COUNTRY_INFO!A53=0," ",COUNTRY_INFO!A53) -> Uganda | B53: =IF(COUNTRY_INFO!B53=0," ",COUNTRY_INFO!B53) -> Eastern | C53: =IF(COUNTRY_INFO!C53=0," ",COUNTRY_INFO!C53) -> Luuka | D53: =IF(OR(COUNTRY_INFO!$T$9:$T$1000="T1 (PZQ+ALB/MBD)",COUNTRY_INFO!$U$9:$U$1000="T1 (PZQ+ALB/MBD)"), "T1 (PZQ+ALB/MBD)", " ") ->  | K53: 0 | O53: 0
A54: =IF(COUNTRY_INFO!A54=0," ",COUNTRY_INFO!A54) -> Uganda | B54: =IF(COUNTRY_INFO!B54=0," ",COUNTRY_INFO!B54) -> Eastern | C54: =IF(COUNTRY_INFO!C54=0," ",COUNTRY_INFO!C54) -> Manafwa | D54: =IF(OR(COUNTRY_INFO!$T$9:$T$1000="T1 (PZQ+ALB/MBD)",COUNTRY_INFO!$U$9:$U$1000="T1 (PZQ+ALB/MBD)"), "T1 (PZQ+ALB/MBD)", " ") ->  | K54: 0 | O54: 0
A55: =IF(COUNTRY_INFO!A55=0," ",COUNTRY_INFO!A55) -> Uganda | B55: =IF(COUNTRY_INFO!B55=0," ",COUNTRY_INFO!B55) -> Eastern | C55: =IF(COUNTRY_INFO!C55=0," ",COUNTRY_INFO!C55) -> Mayuge | D55: =IF(OR(COUNTRY_INFO!$T$9:$T$1000="T1 (PZQ+ALB/MBD)",COUNTRY_INFO!$U$9:$U$1000="T1 (PZQ+ALB/MBD)"), "T1 (PZQ+ALB/MBD)", " ") ->  | K55: 0 | O55: 0
A56: =IF(COUNTRY_INFO!A56=0," ",COUNTRY_INFO!A56) -> Uganda | B56: =IF(COUNTRY_INFO!B56=0," ",COUNTRY_INFO!B56) -> Eastern | C56: =IF(COUNTRY_INFO!C56=0," ",COUNTRY_INFO!C56) -> Mbale | D56: =IF(OR(COUNTRY_INFO!$T$9:$T$1000="T1 (PZQ+ALB/MBD)",COUNTRY_INFO!$U$9:$U$1000="T1 (PZQ+ALB/MBD)"), "T1 (PZQ+ALB/MBD)", " ") ->  | K56: 0 | O56: 0
A57: =IF(COUNTRY_INFO!A57=0," ",COUNTRY_INFO!A57) -> Uganda | B57: =IF(COUNTRY_INFO!B57=0," ",COUNTRY_INFO!B57) -> Eastern | C57: =IF(COUNTRY_INFO!C57=0," ",COUNTRY_INFO!C57) -> Namayingo | D57: =IF(OR(COUNTRY_INFO!$T$9:$T$1000="T1 (PZQ+ALB/MBD)",COUNTRY_INFO!$U$9:$U$1000="T1 (PZQ+ALB/MBD)"), "T1 (PZQ+ALB/MBD)", " ") ->  | K57: 0 | O57: 0
A58: =IF(COUNTRY_INFO!A58=0," ",COUNTRY_INFO!A58) -> Uganda | B58: =IF(COUNTRY_INFO!B58=0," ",COUNTRY_INFO!B58) -> Eastern | C58: =IF(COUNTRY_INFO!C58=0," ",COUNTRY_INFO!C58) -> Namutumba | D58: =IF(OR(COUNTRY_INFO!$T$9:$T$1000="T1 (PZQ+ALB/MBD)",COUNTRY_INFO!$U$9:$U$1000="T1 (PZQ+ALB/MBD)"), "T1 (PZQ+ALB/MBD)", " ") ->  | K58: 0 | O58: 0
A59: =IF(COUNTRY_INFO!A59=0," ",COUNTRY_INFO!A59) -> Uganda | B59: =IF(COUNTRY_INFO!B59=0," ",COUNTRY_INFO!B59) -> Eastern | C59: =IF(COUNTRY_INFO!C59=0," ",COUNTRY_INFO!C59) -> Ngora | D59: =IF(OR(COUNTRY_INFO!$T$9:$T$1000="T1 (PZQ+ALB/MBD)",COUNTRY_INFO!$U$9:$U$1000="T1 (PZQ+ALB/MBD)"), "T1 (PZQ+ALB/MBD)", " ") ->  | K59: 0 | O59: 0
A60: =IF(COUNTRY_INFO!A60=0," ",COUNTRY_INFO!A60) -> Uganda | B60: =IF(COUNTRY_INFO!B60=0," ",COUNTRY_INFO!B60) -> Eastern | C60: =IF(COUNTRY_INFO!C60=0," ",COUNTRY_INFO!C60) -> Pallisa | D60: =IF(OR(COUNTRY_INFO!$T$9:$T$1000="T1 (PZQ+ALB/MBD)",COUNTRY_INFO!$U$9:$U$1000="T1 (PZQ+ALB/MBD)"), "T1 (PZQ+ALB/MBD)", " ") ->  | K60: 0 | O60: 0
A61: =IF(COUNTRY_INFO!A61=0," ",COUNTRY_INFO!A61) -> Uganda | B61: =IF(COUNTRY_INFO!B61=0," ",COUNTRY_INFO!B61) -> Eastern | C61: =IF(COUNTRY_INFO!C61=0," ",COUNTRY_INFO!C61) -> Serere | D61: =IF(OR(COUNTRY_INFO!$T$9:$T$1000="T1 (PZQ+ALB/MBD)",COUNTRY_INFO!$U$9:$U$1000="T1 (PZQ+ALB/MBD)"), "T1 (PZQ+ALB/MBD)", " ") ->  | K61: 0 | O61: 0
A62: =IF(COUNTRY_INFO!A62=0," ",COUNTRY_INFO!A62) -> Uganda | B62: =IF(COUNTRY_INFO!B62=0," ",COUNTRY_INFO!B62) -> Eastern | C62: =IF(COUNTRY_INFO!C62=0," ",COUNTRY_INFO!C62) -> Sironko | D62: =IF(OR(COUNTRY_INFO!$T$9:$T$1000="T1 (PZQ+ALB/MBD)",COUNTRY_INFO!$U$9:$U$1000="T1 (PZQ+ALB/MBD)"), "T1 (PZQ+ALB/MBD)", " ") ->  | K62: 0 | O62: 0
A63: =IF(COUNTRY_INFO!A63=0," ",COUNTRY_INFO!A63) -> Uganda | B63: =IF(COUNTRY_INFO!B63=0," ",COUNTRY_INFO!B63) -> Eastern | C63: =IF(COUNTRY_INFO!C63=0," ",COUNTRY_INFO!C63) -> Soroti | D63: =IF(OR(COUNTRY_INFO!$T$9:$T$1000="T1 (PZQ+ALB/MBD)",COUNTRY_INFO!$U$9:$U$1000="T1 (PZQ+ALB/MBD)"), "T1 (PZQ+ALB/MBD)", " ") ->  | K63: 0 | O63: 0
A64: =IF(COUNTRY_INFO!A64=0," ",COUNTRY_INFO!A64) -> Uganda | B64: =IF(COUNTRY_INFO!B64=0," ",COUNTRY_INFO!B64) -> Eastern | C64: =IF(COUNTRY_INFO!C64=0," ",COUNTRY_INFO!C64) -> Tororo | D64: =IF(OR(COUNTRY_INFO!$T$9:$T$1000="T1 (PZQ+ALB/MBD)",COUNTRY_INFO!$U$9:$U$1000="T1 (PZQ+ALB/MBD)"), "T1 (PZQ+ALB/MBD)", " ") ->  | K64: 0 | O64: 0
A65: =IF(COUNTRY_INFO!A65=0," ",COUNTRY_INFO!A65) -> Uganda | B65: =IF(COUNTRY_INFO!B65=0," ",COUNTRY_INFO!B65) -> Northern | C65: =IF(COUNTRY_INFO!C65=0," ",COUNTRY_INFO!C65) -> Abim | D65: =IF(OR(COUNTRY_INFO!$T$9:$T$1000="T1 (PZQ+ALB/MBD)",COUNTRY_INFO!$U$9:$U$1000="T1 (PZQ+ALB/MBD)"), "T1 (PZQ+ALB/MBD)", " ") ->  | K65: 0 | O65: 0
A66: =IF(COUNTRY_INFO!A66=0," ",COUNTRY_INFO!A66) -> Uganda | B66: =IF(COUNTRY_INFO!B66=0," ",COUNTRY_INFO!B66) -> Northern | C66: =IF(COUNTRY_INFO!C66=0," ",COUNTRY_INFO!C66) -> Adjumani | D66: =IF(OR(COUNTRY_INFO!$T$9:$T$1000="T1 (PZQ+ALB/MBD)",COUNTRY_INFO!$U$9:$U$1000="T1 (PZQ+ALB/MBD)"), "T1 (PZQ+ALB/MBD)", " ") ->  | K66: 0 | O66: 0
A67: =IF(COUNTRY_INFO!A67=0," ",COUNTRY_INFO!A67) -> Uganda | B67: =IF(COUNTRY_INFO!B67=0," ",COUNTRY_INFO!B67) -> Northern | C67: =IF(COUNTRY_INFO!C67=0," ",COUNTRY_INFO!C67) -> Agago | D67: =IF(OR(COUNTRY_INFO!$T$9:$T$1000="T1 (PZQ+ALB/MBD)",COUNTRY_INFO!$U$9:$U$1000="T1 (PZQ+ALB/MBD)"), "T1 (PZQ+ALB/MBD)", " ") ->  | K67: 0 | O67: 0
A68: =IF(COUNTRY_INFO!A68=0," ",COUNTRY_INFO!A68) -> Uganda | B68: =IF(COUNTRY_INFO!B68=0," ",COUNTRY_INFO!B68) -> Northern | C68: =IF(COUNTRY_INFO!C68=0," ",COUNTRY_INFO!C68) -> Alebtong | D68: =IF(OR(COUNTRY_INFO!$T$9:$T$1000="T1 (PZQ+ALB/MBD)",COUNTRY_INFO!$U$9:$U$1000="T1 (PZQ+ALB/MBD)"), "T1 (PZQ+ALB/MBD)", " ") ->  | K68: 0 | O68: 0
A69: =IF(COUNTRY_INFO!A69=0," ",COUNTRY_INFO!A69) -> Uganda | B69: =IF(COUNTRY_INFO!B69=0," ",COUNTRY_INFO!B69) -> Northern | C69: =IF(COUNTRY_INFO!C69=0," ",COUNTRY_INFO!C69) -> Amolatar | D69: =IF(OR(COUNTRY_INFO!$T$9:$T$1000="T1 (PZQ+ALB/MBD)",COUNTRY_INFO!$U$9:$U$1000="T1 (PZQ+ALB/MBD)"), "T1 (PZQ+ALB/MBD)", " ") ->  | K69: 0 | O69: 0
A70: =IF(COUNTRY_INFO!A70=0," ",COUNTRY_INFO!A70) -> Uganda | B70: =IF(COUNTRY_INFO!B70=0," ",COUNTRY_INFO!B70) -> Northern | C70: =IF(COUNTRY_INFO!C70=0," ",COUNTRY_INFO!C70) -> Amudat | D70: =IF(OR(COUNTRY_INFO!$T$9:$T$1000="T1 (PZQ+ALB/MBD)",COUNTRY_INFO!$U$9:$U$1000="T1 (PZQ+ALB/MBD)"), "T1 (PZQ+ALB/MBD)", " ") ->  | K70: 0 | O70: 0
A71: =IF(COUNTRY_INFO!A71=0," ",COUNTRY_INFO!A71) -> Uganda | B71: =IF(COUNTRY_INFO!B71=0," ",COUNTRY_INFO!B71) -> Northern | C71: =IF(COUNTRY_INFO!C71=0," ",COUNTRY_INFO!C71) -> Amuru | D71: =IF(OR(COUNTRY_INFO!$T$9:$T$1000="T1 (PZQ+ALB/MBD)",COUNTRY_INFO!$U$9:$U$1000="T1 (PZQ+ALB/MBD)"), "T1 (PZQ+ALB/MBD)", " ") ->  | K71: 0 | O71: 0
A72: =IF(COUNTRY_INFO!A72=0," ",COUNTRY_INFO!A72) -> Uganda | B72: =IF(COUNTRY_INFO!B72=0," ",COUNTRY_INFO!B72) -> Northern | C72: =IF(COUNTRY_INFO!C72=0," ",COUNTRY_INFO!C72) -> Apac | D72: =IF(OR(COUNTRY_INFO!$T$9:$T$1000="T1 (PZQ+ALB/MBD)",COUNTRY_INFO!$U$9:$U$1000="T1 (PZQ+ALB/MBD)"), "T1 (PZQ+ALB/MBD)", " ") ->  | K72: 0 | O72: 0
A73: =IF(COUNTRY_INFO!A73=0," ",COUNTRY_INFO!A73) -> Uganda | B73: =IF(COUNTRY_INFO!B73=0," ",COUNTRY_INFO!B73) -> Northern | C73: =IF(COUNTRY_INFO!C73=0," ",COUNTRY_INFO!C73) -> Arua | D73: =IF(OR(COUNTRY_INFO!$T$9:$T$1000="T1 (PZQ+ALB/MBD)",COUNTRY_INFO!$U$9:$U$1000="T1 (PZQ+ALB/MBD)"), "T1 (PZQ+ALB/MBD)", " ") ->  | K73: 0 | O73: 0
A74: =IF(COUNTRY_INFO!A74=0," ",COUNTRY_INFO!A74) -> Uganda | B74: =IF(COUNTRY_INFO!B74=0," ",COUNTRY_INFO!B74) -> Northern | C74: =IF(COUNTRY_INFO!C74=0," ",COUNTRY_INFO!C74) -> Dokolo | D74: =IF(OR(COUNTRY_INFO!$T$9:$T$1000="T1 (PZQ+ALB/MBD)",COUNTRY_INFO!$U$9:$U$1000="T1 (PZQ+ALB/MBD)"), "T1 (PZQ+ALB/MBD)", " ") ->  | K74: =MAX(H74:I74)+G74+J74 -> 0 | O74: =SUM(L74:N74) -> 0 | P74: =IF(G74<>0, IF(L74/G74*100=0, "-", L74/G74*100), " ") ->  | Q74: =IF(OR(I74<>0,H74<>0), IF(M74/MAX(H74,I74)*100=0, "-", M74/MAX(H74,I74)*100), " ") ->  | R74: =IF(J74<>0, IF(N74/J74*100=0, "-", N74/J74*100), " ") ->  | S74: =IF(K74<>0, IF(O74/K74*100=0, "-", O74/K74*100), " ") -> 
A75: =IF(COUNTRY_INFO!A75=0," ",COUNTRY_INFO!A75) -> Uganda | B75: =IF(COUNTRY_INFO!B75=0," ",COUNTRY_INFO!B75) -> Northern | C75: =IF(COUNTRY_INFO!C75=0," ",COUNTRY_INFO!C75) -> Gulu | D75: =IF(OR(COUNTRY_INFO!$T$9:$T$1000="T1 (PZQ+ALB/MBD)",COUNTRY_INFO!$U$9:$U$1000="T1 (PZQ+ALB/MBD)"), "T1 (PZQ+ALB/MBD)", " ") ->  | K75: 0 | O75: 0
A76: =IF(COUNTRY_INFO!A76=0," ",COUNTRY_INFO!A76) -> Uganda | B76: =IF(COUNTRY_INFO!B76=0," ",COUNTRY_INFO!B76) -> Northern | C76: =IF(COUNTRY_INFO!C76=0," ",COUNTRY_INFO!C76) -> Kaabong | D76: =IF(OR(COUNTRY_INFO!$T$9:$T$1000="T1 (PZQ+ALB/MBD)",COUNTRY_INFO!$U$9:$U$1000="T1 (PZQ+ALB/MBD)"), "T1 (PZQ+ALB/MBD)", " ") ->  | K76: 0 | O76: 0
A77: =IF(COUNTRY_INFO!A77=0," ",COUNTRY_INFO!A77) -> Uganda | B77: =IF(COUNTRY_INFO!B77=0," ",COUNTRY_INFO!B77) -> Northern | C77: =IF(COUNTRY_INFO!C77=0," ",COUNTRY_INFO!C77) -> Kitgum | D77: =IF(OR(COUNTRY_INFO!$T$9:$T$1000="T1 (PZQ+ALB/MBD)",COUNTRY_INFO!$U$9:$U$1000="T1 (PZQ+ALB/MBD)"), "T1 (PZQ+ALB/MBD)", " ") ->  | K77: 0 | O77: 0
A78: =IF(COUNTRY_INFO!A78=0," ",COUNTRY_INFO!A78) -> Uganda | B78: =IF(COUNTRY_INFO!B78=0," ",COUNTRY_INFO!B78) -> Northern | C78: =IF(COUNTRY_INFO!C78=0," ",COUNTRY_INFO!C78) -> Koboko | D78: =IF(OR(COUNTRY_INFO!$T$9:$T$1000="T1 (PZQ+ALB/MBD)",COUNTRY_INFO!$U$9:$U$1000="T1 (PZQ+ALB/MBD)"), "T1 (PZQ+ALB/MBD)", " ") ->  | K78: 0 | O78: 0
A79: =IF(COUNTRY_INFO!A79=0," ",COUNTRY_INFO!A79) -> Uganda | B79: =IF(COUNTRY_INFO!B79=0," ",COUNTRY_INFO!B79) -> Northern | C79: =IF(COUNTRY_INFO!C79=0," ",COUNTRY_INFO!C79) -> Kole | D79: =IF(OR(COUNTRY_INFO!$T$9:$T$1000="T1 (PZQ+ALB/MBD)",COUNTRY_INFO!$U$9:$U$1000="T1 (PZQ+ALB/MBD)"), "T1 (PZQ+ALB/MBD)", " ") ->  | K79: 0 | O79: 0
A80: =IF(COUNTRY_INFO!A80=0," ",COUNTRY_INFO!A80) -> Uganda | B80: =IF(COUNTRY_INFO!B80=0," ",COUNTRY_INFO!B80) -> Northern | C80: =IF(COUNTRY_INFO!C80=0," ",COUNTRY_INFO!C80) -> Kotido | D80: =IF(OR(COUNTRY_INFO!$T$9:$T$1000="T1 (PZQ+ALB/MBD)",COUNTRY_INFO!$U$9:$U$1000="T1 (PZQ+ALB/MBD)"), "T1 (PZQ+ALB/MBD)", " ") ->  | K80: 0 | O80: 0
A81: =IF(COUNTRY_INFO!A81=0," ",COUNTRY_INFO!A81) -> Uganda | B81: =IF(COUNTRY_INFO!B81=0," ",COUNTRY_INFO!B81) -> Northern | C81: =IF(COUNTRY_INFO!C81=0," ",COUNTRY_INFO!C81) -> Lamwo | D81: =IF(OR(COUNTRY_INFO!$T$9:$T$1000="T1 (PZQ+ALB/MBD)",COUNTRY_INFO!$U$9:$U$1000="T1 (PZQ+ALB/MBD)"), "T1 (PZQ+ALB/MBD)", " ") ->  | K81: 0 | O81: 0
A82: =IF(COUNTRY_INFO!A82=0," ",COUNTRY_INFO!A82) -> Uganda | B82: =IF(COUNTRY_INFO!B82=0," ",COUNTRY_INFO!B82) -> Northern | C82: =IF(COUNTRY_INFO!C82=0," ",COUNTRY_INFO!C82) -> Lira | D82: =IF(OR(COUNTRY_INFO!$T$9:$T$1000="T1 (PZQ+ALB/MBD)",COUNTRY_INFO!$U$9:$U$1000="T1 (PZQ+ALB/MBD)"), "T1 (PZQ+ALB/MBD)", " ") ->  | K82: 0 | O82: 0
A83: =IF(COUNTRY_INFO!A83=0," ",COUNTRY_INFO!A83) -> Uganda | B83: =IF(COUNTRY_INFO!B83=0," ",COUNTRY_INFO!B83) -> Northern | C83: =IF(COUNTRY_INFO!C83=0," ",COUNTRY_INFO!C83) -> Maracha | D83: =IF(OR(COUNTRY_INFO!$T$9:$T$1000="T1 (PZQ+ALB/MBD)",COUNTRY_INFO!$U$9:$U$1000="T1 (PZQ+ALB/MBD)"), "T1 (PZQ+ALB/MBD)", " ") ->  | K83: 0 | O83: 0
A84: =IF(COUNTRY_INFO!A84=0," ",COUNTRY_INFO!A84) -> Uganda | B84: =IF(COUNTRY_INFO!B84=0," ",COUNTRY_INFO!B84) -> Northern | C84: =IF(COUNTRY_INFO!C84=0," ",COUNTRY_INFO!C84) -> Moroto | D84: =IF(OR(COUNTRY_INFO!$T$9:$T$1000="T1 (PZQ+ALB/MBD)",COUNTRY_INFO!$U$9:$U$1000="T1 (PZQ+ALB/MBD)"), "T1 (PZQ+ALB/MBD)", " ") ->  | K84: 0 | O84: 0
A85: =IF(COUNTRY_INFO!A85=0," ",COUNTRY_INFO!A85) -> Uganda | B85: =IF(COUNTRY_INFO!B85=0," ",COUNTRY_INFO!B85) -> Northern | C85: =IF(COUNTRY_INFO!C85=0," ",COUNTRY_INFO!C85) -> Moyo | D85: =IF(OR(COUNTRY_INFO!$T$9:$T$1000="T1 (PZQ+ALB/MBD)",COUNTRY_INFO!$U$9:$U$1000="T1 (PZQ+ALB/MBD)"), "T1 (PZQ+ALB/MBD)", " ") ->  | K85: 0 | O85: 0
A86: =IF(COUNTRY_INFO!A86=0," ",COUNTRY_INFO!A86) -> Uganda | B86: =IF(COUNTRY_INFO!B86=0," ",COUNTRY_INFO!B86) -> Northern | C86: =IF(COUNTRY_INFO!C86=0," ",COUNTRY_INFO!C86) -> Nakapiripirit | D86: =IF(OR(COUNTRY_INFO!$T$9:$T$1000="T1 (PZQ+ALB/MBD)",COUNTRY_INFO!$U$9:$U$1000="T1 (PZQ+ALB/MBD)"), "T1 (PZQ+ALB/MBD)", " ") ->  | K86: 0 | O86: 0
A87: =IF(COUNTRY_INFO!A87=0," ",COUNTRY_INFO!A87) -> Uganda | B87: =IF(COUNTRY_INFO!B87=0," ",COUNTRY_INFO!B87) -> Northern | C87: =IF(COUNTRY_INFO!C87=0," ",COUNTRY_INFO!C87) -> Napak | D87: =IF(OR(COUNTRY_INFO!$T$9:$T$1000="T1 (PZQ+ALB/MBD)",COUNTRY_INFO!$U$9:$U$1000="T1 (PZQ+ALB/MBD)"), "T1 (PZQ+ALB/MBD)", " ") ->  | K87: 0 | O87: 0
A88: =IF(COUNTRY_INFO!A88=0," ",COUNTRY_INFO!A88) -> Uganda | B88: =IF(COUNTRY_INFO!B88=0," ",COUNTRY_INFO!B88) -> Northern | C88: =IF(COUNTRY_INFO!C88=0," ",COUNTRY_INFO!C88) -> Nebbi | D88: =IF(OR(COUNTRY_INFO!$T$9:$T$1000="T1 (PZQ+ALB/MBD)",COUNTRY_INFO!$U$9:$U$1000="T1 (PZQ+ALB/MBD)"), "T1 (PZQ+ALB/MBD)", " ") ->  | K88: 0 | O88: 0
A89: =IF(COUNTRY_INFO!A89=0," ",COUNTRY_INFO!A89) -> Uganda | B89: =IF(COUNTRY_INFO!B89=0," ",COUNTRY_INFO!B89) -> Northern | C89: =IF(COUNTRY_INFO!C89=0," ",COUNTRY_INFO!C89) -> Nwoya | D89: =IF(OR(COUNTRY_INFO!$T$9:$T$1000="T1 (PZQ+ALB/MBD)",COUNTRY_INFO!$U$9:$U$1000="T1 (PZQ+ALB/MBD)"), "T1 (PZQ+ALB/MBD)", " ") ->  | K89: 0 | O89: 0
A90: =IF(COUNTRY_INFO!A90=0," ",COUNTRY_INFO!A90) -> Uganda | B90: =IF(COUNTRY_INFO!B90=0," ",COUNTRY_INFO!B90) -> Northern | C90: =IF(COUNTRY_INFO!C90=0," ",COUNTRY_INFO!C90) -> Omoro | D90: =IF(OR(COUNTRY_INFO!$T$9:$T$1000="T1 (PZQ+ALB/MBD)",COUNTRY_INFO!$U$9:$U$1000="T1 (PZQ+ALB/MBD)"), "T1 (PZQ+ALB/MBD)", " ") ->  | K90: 0 | O90: 0
A91: =IF(COUNTRY_INFO!A91=0," ",COUNTRY_INFO!A91) -> Uganda | B91: =IF(COUNTRY_INFO!B91=0," ",COUNTRY_INFO!B91) -> Northern | C91: =IF(COUNTRY_INFO!C91=0," ",COUNTRY_INFO!C91) -> Otuke | D91: =IF(OR(COUNTRY_INFO!$T$9:$T$1000="T1 (PZQ+ALB/MBD)",COUNTRY_INFO!$U$9:$U$1000="T1 (PZQ+ALB/MBD)"), "T1 (PZQ+ALB/MBD)", " ") ->  | K91: 0 | O91: 0
A92: =IF(COUNTRY_INFO!A92=0," ",COUNTRY_INFO!A92) -> Uganda | B92: =IF(COUNTRY_INFO!B92=0," ",COUNTRY_INFO!B92) -> Northern | C92: =IF(COUNTRY_INFO!C92=0," ",COUNTRY_INFO!C92) -> Oyam | D92: =IF(OR(COUNTRY_INFO!$T$9:$T$1000="T1 (PZQ+ALB/MBD)",COUNTRY_INFO!$U$9:$U$1000="T1 (PZQ+ALB/MBD)"), "T1 (PZQ+ALB/MBD)", " ") ->  | K92: 0 | O92: 0
A93: =IF(COUNTRY_INFO!A93=0," ",COUNTRY_INFO!A93) -> Uganda | B93: =IF(COUNTRY_INFO!B93=0," ",COUNTRY_INFO!B93) -> Northern | C93: =IF(COUNTRY_INFO!C93=0," ",COUNTRY_INFO!C93) -> Pader | D93: =IF(OR(COUNTRY_INFO!$T$9:$T$1000="T1 (PZQ+ALB/MBD)",COUNTRY_INFO!$U$9:$U$1000="T1 (PZQ+ALB/MBD)"), "T1 (PZQ+ALB/MBD)", " ") ->  | K93: 0 | O93: 0
A94: =IF(COUNTRY_INFO!A94=0," ",COUNTRY_INFO!A94) -> Uganda | B94: =IF(COUNTRY_INFO!B94=0," ",COUNTRY_INFO!B94) -> Northern | C94: =IF(COUNTRY_INFO!C94=0," ",COUNTRY_INFO!C94) -> Yumbe | D94: =IF(OR(COUNTRY_INFO!$T$9:$T$1000="T1 (PZQ+ALB/MBD)",COUNTRY_INFO!$U$9:$U$1000="T1 (PZQ+ALB/MBD)"), "T1 (PZQ+ALB/MBD)", " ") ->  | K94: 0 | O94: 0
A95: =IF(COUNTRY_INFO!A95=0," ",COUNTRY_INFO!A95) -> Uganda | B95: =IF(COUNTRY_INFO!B95=0," ",COUNTRY_INFO!B95) -> Northern | C95: =IF(COUNTRY_INFO!C95=0," ",COUNTRY_INFO!C95) -> Zombo | D95: =IF(OR(COUNTRY_INFO!$T$9:$T$1000="T1 (PZQ+ALB/MBD)",COUNTRY_INFO!$U$9:$U$1000="T1 (PZQ+ALB/MBD)"), "T1 (PZQ+ALB/MBD)", " ") ->  | K95: 0 | O95: 0
A96: =IF(COUNTRY_INFO!A96=0," ",COUNTRY_INFO!A96) -> Uganda | B96: =IF(COUNTRY_INFO!B96=0," ",COUNTRY_INFO!B96) -> Western | C96: =IF(COUNTRY_INFO!C96=0," ",COUNTRY_INFO!C96) -> Buhweju | D96: =IF(OR(COUNTRY_INFO!$T$9:$T$1000="T1 (PZQ+ALB/MBD)",COUNTRY_INFO!$U$9:$U$1000="T1 (PZQ+ALB/MBD)"), "T1 (PZQ+ALB/MBD)", " ") ->  | K96: 0 | O96: 0
A97: =IF(COUNTRY_INFO!A97=0," ",COUNTRY_INFO!A97) -> Uganda | B97: =IF(COUNTRY_INFO!B97=0," ",COUNTRY_INFO!B97) -> Western | C97: =IF(COUNTRY_INFO!C97=0," ",COUNTRY_INFO!C97) -> Buliisa | D97: =IF(OR(COUNTRY_INFO!$T$9:$T$1000="T1 (PZQ+ALB/MBD)",COUNTRY_INFO!$U$9:$U$1000="T1 (PZQ+ALB/MBD)"), "T1 (PZQ+ALB/MBD)", " ") ->  | K97: 0 | O97: 0
A98: =IF(COUNTRY_INFO!A98=0," ",COUNTRY_INFO!A98) -> Uganda | B98: =IF(COUNTRY_INFO!B98=0," ",COUNTRY_INFO!B98) -> Western | C98: =IF(COUNTRY_INFO!C98=0," ",COUNTRY_INFO!C98) -> Bundibugyo | D98: =IF(OR(COUNTRY_INFO!$T$9:$T$1000="T1 (PZQ+ALB/MBD)",COUNTRY_INFO!$U$9:$U$1000="T1 (PZQ+ALB/MBD)"), "T1 (PZQ+ALB/MBD)", " ") ->  | K98: 0 | O98: 0
A99: =IF(COUNTRY_INFO!A99=0," ",COUNTRY_INFO!A99) -> Uganda | B99: =IF(COUNTRY_INFO!B99=0," ",COUNTRY_INFO!B99) -> Western | C99: =IF(COUNTRY_INFO!C99=0," ",COUNTRY_INFO!C99) -> Bushenyi | D99: =IF(OR(COUNTRY_INFO!$T$9:$T$1000="T1 (PZQ+ALB/MBD)",COUNTRY_INFO!$U$9:$U$1000="T1 (PZQ+ALB/MBD)"), "T1 (PZQ+ALB/MBD)", " ") ->  | K99: 0 | O99: 0
A100: =IF(COUNTRY_INFO!A100=0," ",COUNTRY_INFO!A100) -> Uganda | B100: =IF(COUNTRY_INFO!B100=0," ",COUNTRY_INFO!B100) -> Western | C100: =IF(COUNTRY_INFO!C100=0," ",COUNTRY_INFO!C100) -> Hoima | D100: =IF(OR(COUNTRY_INFO!$T$9:$T$1000="T1 (PZQ+ALB/MBD)",COUNTRY_INFO!$U$9:$U$1000="T1 (PZQ+ALB/MBD)"), "T1 (PZQ+ALB/MBD)", " ") ->  | K100: 0 | O100: 0
A101: =IF(COUNTRY_INFO!A101=0," ",COUNTRY_INFO!A101) -> Uganda | B101: =IF(COUNTRY_INFO!B101=0," ",COUNTRY_INFO!B101) -> Western | C101: =IF(COUNTRY_INFO!C101=0," ",COUNTRY_INFO!C101) -> Ibanda | D101: =IF(OR(COUNTRY_INFO!$T$9:$T$1000="T1 (PZQ+ALB/MBD)",COUNTRY_INFO!$U$9:$U$1000="T1 (PZQ+ALB/MBD)"), "T1 (PZQ+ALB/MBD)", " ") ->  | K101: 0 | O101: 0
A102: =IF(COUNTRY_INFO!A102=0," ",COUNTRY_INFO!A102) -> Uganda | B102: =IF(COUNTRY_INFO!B102=0," ",COUNTRY_INFO!B102) -> Western | C102: =IF(COUNTRY_INFO!C102=0," ",COUNTRY_INFO!C102) -> Isingiro | D102: =IF(OR(COUNTRY_INFO!$T$9:$T$1000="T1 (PZQ+ALB/MBD)",COUNTRY_INFO!$U$9:$U$1000="T1 (PZQ+ALB/MBD)"), "T1 (PZQ+ALB/MBD)", " ") ->  | K102: 0 | O102: 0
A103: =IF(COUNTRY_INFO!A103=0," ",COUNTRY_INFO!A103) -> Uganda | B103: =IF(COUNTRY_INFO!B103=0," ",COUNTRY_INFO!B103) -> Western | C103: =IF(COUNTRY_INFO!C103=0," ",COUNTRY_INFO!C103) -> Kabale | D103: =IF(OR(COUNTRY_INFO!$T$9:$T$1000="T1 (PZQ+ALB/MBD)",COUNTRY_INFO!$U$9:$U$1000="T1 (PZQ+ALB/MBD)"), "T1 (PZQ+ALB/MBD)", " ") ->  | K103: 0 | O103: 0
A104: =IF(COUNTRY_INFO!A104=0," ",COUNTRY_INFO!A104) -> Uganda | B104: =IF(COUNTRY_INFO!B104=0," ",COUNTRY_INFO!B104) -> Western | C104: =IF(COUNTRY_INFO!C104=0," ",COUNTRY_INFO!C104) -> Kabarole | D104: =IF(OR(COUNTRY_INFO!$T$9:$T$1000="T1 (PZQ+ALB/MBD)",COUNTRY_INFO!$U$9:$U$1000="T1 (PZQ+ALB/MBD)"), "T1 (PZQ+ALB/MBD)", " ") ->  | K104: 0 | O104: 0
A105: =IF(COUNTRY_INFO!A105=0," ",COUNTRY_INFO!A105) -> Uganda | B105: =IF(COUNTRY_INFO!B105=0," ",COUNTRY_INFO!B105) -> Western | C105: =IF(COUNTRY_INFO!C105=0," ",COUNTRY_INFO!C105) -> Kagadi | D105: =IF(OR(COUNTRY_INFO!$T$9:$T$1000="T1 (PZQ+ALB/MBD)",COUNTRY_INFO!$U$9:$U$1000="T1 (PZQ+ALB/MBD)"), "T1 (PZQ+ALB/MBD)", " ") ->  | K105: 0 | O105: 0
A106: =IF(COUNTRY_INFO!A106=0," ",COUNTRY_INFO!A106) -> Uganda | B106: =IF(COUNTRY_INFO!B106=0," ",COUNTRY_INFO!B106) -> Western | C106: =IF(COUNTRY_INFO!C106=0," ",COUNTRY_INFO!C106) -> Kakumiro | D106: =IF(OR(COUNTRY_INFO!$T$9:$T$1000="T1 (PZQ+ALB/MBD)",COUNTRY_INFO!$U$9:$U$1000="T1 (PZQ+ALB/MBD)"), "T1 (PZQ+ALB/MBD)", " ") ->  | K106: 0 | O106: 0
A107: =IF(COUNTRY_INFO!A107=0," ",COUNTRY_INFO!A107) -> Uganda | B107: =IF(COUNTRY_INFO!B107=0," ",COUNTRY_INFO!B107) -> Western | C107: =IF(COUNTRY_INFO!C107=0," ",COUNTRY_INFO!C107) -> Kamwenge | D107: =IF(OR(COUNTRY_INFO!$T$9:$T$1000="T1 (PZQ+ALB/MBD)",COUNTRY_INFO!$U$9:$U$1000="T1 (PZQ+ALB/MBD)"), "T1 (PZQ+ALB/MBD)", " ") ->  | K107: 0 | O107: 0
A108: =IF(COUNTRY_INFO!A108=0," ",COUNTRY_INFO!A108) -> Uganda | B108: =IF(COUNTRY_INFO!B108=0," ",COUNTRY_INFO!B108) -> Western | C108: =IF(COUNTRY_INFO!C108=0," ",COUNTRY_INFO!C108) -> Kanungu | D108: =IF(OR(COUNTRY_INFO!$T$9:$T$1000="T1 (PZQ+ALB/MBD)",COUNTRY_INFO!$U$9:$U$1000="T1 (PZQ+ALB/MBD)"), "T1 (PZQ+ALB/MBD)", " ") ->  | K108: 0 | O108: 0
A109: =IF(COUNTRY_INFO!A109=0," ",COUNTRY_INFO!A109) -> Uganda | B109: =IF(COUNTRY_INFO!B109=0," ",COUNTRY_INFO!B109) -> Western | C109: =IF(COUNTRY_INFO!C109=0," ",COUNTRY_INFO!C109) -> Kasese | D109: =IF(OR(COUNTRY_INFO!$T$9:$T$1000="T1 (PZQ+ALB/MBD)",COUNTRY_INFO!$U$9:$U$1000="T1 (PZQ+ALB/MBD)"), "T1 (PZQ+ALB/MBD)", " ") ->  | K109: 0 | O109: 0
A110: =IF(COUNTRY_INFO!A110=0," ",COUNTRY_INFO!A110) -> Uganda | B110: =IF(COUNTRY_INFO!B110=0," ",COUNTRY_INFO!B110) -> Western | C110: =IF(COUNTRY_INFO!C110=0," ",COUNTRY_INFO!C110) -> Kibaale | D110: =IF(OR(COUNTRY_INFO!$T$9:$T$1000="T1 (PZQ+ALB/MBD)",COUNTRY_INFO!$U$9:$U$1000="T1 (PZQ+ALB/MBD)"), "T1 (PZQ+ALB/MBD)", " ") ->  | K110: 0 | O110: 0
A111: =IF(COUNTRY_INFO!A111=0," ",COUNTRY_INFO!A111) -> Uganda | B111: =IF(COUNTRY_INFO!B111=0," ",COUNTRY_INFO!B111) -> Western | C111: =IF(COUNTRY_INFO!C111=0," ",COUNTRY_INFO!C111) -> Kiruhura | D111: =IF(OR(COUNTRY_INFO!$T$9:$T$1000="T1 (PZQ+ALB/MBD)",COUNTRY_INFO!$U$9:$U$1000="T1 (PZQ+ALB/MBD)"), "T1 (PZQ+ALB/MBD)", " ") ->  | K111: 0 | O111: 0
A112: =IF(COUNTRY_INFO!A112=0," ",COUNTRY_INFO!A112) -> Uganda | B112: =IF(COUNTRY_INFO!B112=0," ",COUNTRY_INFO!B112) -> Western | C112: =IF(COUNTRY_INFO!C112=0," ",COUNTRY_INFO!C112) -> Kiryandongo | D112: =IF(OR(COUNTRY_INFO!$T$9:$T$1000="T1 (PZQ+ALB/MBD)",COUNTRY_INFO!$U$9:$U$1000="T1 (PZQ+ALB/MBD)"), "T1 (PZQ+ALB/MBD)", " ") ->  | K112: 0 | O112: 0
A113: =IF(COUNTRY_INFO!A113=0," ",COUNTRY_INFO!A113) -> Uganda | B113: =IF(COUNTRY_INFO!B113=0," ",COUNTRY_INFO!B113) -> Western | C113: =IF(COUNTRY_INFO!C113=0," ",COUNTRY_INFO!C113) -> Kisoro | D113: =IF(OR(COUNTRY_INFO!$T$9:$T$1000="T1 (PZQ+ALB/MBD)",COUNTRY_INFO!$U$9:$U$1000="T1 (PZQ+ALB/MBD)"), "T1 (PZQ+ALB/MBD)", " ") ->  | K113: 0 | O113: 0
A114: =IF(COUNTRY_INFO!A114=0," ",COUNTRY_INFO!A114) -> Uganda | B114: =IF(COUNTRY_INFO!B114=0," ",COUNTRY_INFO!B114) -> Western | C114: =IF(COUNTRY_INFO!C114=0," ",COUNTRY_INFO!C114) -> Kyegegwa | D114: =IF(OR(COUNTRY_INFO!$T$9:$T$1000="T1 (PZQ+ALB/MBD)",COUNTRY_INFO!$U$9:$U$1000="T1 (PZQ+ALB/MBD)"), "T1 (PZQ+ALB/MBD)", " ") ->  | K114: 0 | O114: 0
A115: =IF(COUNTRY_INFO!A115=0," ",COUNTRY_INFO!A115) -> Uganda | B115: =IF(COUNTRY_INFO!B115=0," ",COUNTRY_INFO!B115) -> Western | C115: =IF(COUNTRY_INFO!C115=0," ",COUNTRY_INFO!C115) -> Kyenjojo | D115: =IF(OR(COUNTRY_INFO!$T$9:$T$1000="T1 (PZQ+ALB/MBD)",COUNTRY_INFO!$U$9:$U$1000="T1 (PZQ+ALB/MBD)"), "T1 (PZQ+ALB/MBD)", " ") ->  | K115: 0 | O115: 0
A116: =IF(COUNTRY_INFO!A116=0," ",COUNTRY_INFO!A116) -> Uganda | B116: =IF(COUNTRY_INFO!B116=0," ",COUNTRY_INFO!B116) -> Western | C116: =IF(COUNTRY_INFO!C116=0," ",COUNTRY_INFO!C116) -> Masindi | D116: =IF(OR(COUNTRY_INFO!$T$9:$T$1000="T1 (PZQ+ALB/MBD)",COUNTRY_INFO!$U$9:$U$1000="T1 (PZQ+ALB/MBD)"), "T1 (PZQ+ALB/MBD)", " ") ->  | K116: 0 | O116: 0
A117: =IF(COUNTRY_INFO!A117=0," ",COUNTRY_INFO!A117) -> Uganda | B117: =IF(COUNTRY_INFO!B117=0," ",COUNTRY_INFO!B117) -> Western | C117: =IF(COUNTRY_INFO!C117=0," ",COUNTRY_INFO!C117) -> Mbarara | D117: =IF(OR(COUNTRY_INFO!$T$9:$T$1000="T1 (PZQ+ALB/MBD)",COUNTRY_INFO!$U$9:$U$1000="T1 (PZQ+ALB/MBD)"), "T1 (PZQ+ALB/MBD)", " ") ->  | K117: 0 | O117: 0
A118: =IF(COUNTRY_INFO!A118=0," ",COUNTRY_INFO!A118) -> Uganda | B118: =IF(COUNTRY_INFO!B118=0," ",COUNTRY_INFO!B118) -> Western | C118: =IF(COUNTRY_INFO!C118=0," ",COUNTRY_INFO!C118) -> Mitooma | D118: =IF(OR(COUNTRY_INFO!$T$9:$T$1000="T1 (PZQ+ALB/MBD)",COUNTRY_INFO!$U$9:$U$1000="T1 (PZQ+ALB/MBD)"), "T1 (PZQ+ALB/MBD)", " ") ->  | K118: 0 | O118: 0
A119: =IF(COUNTRY_INFO!A119=0," ",COUNTRY_INFO!A119) -> Uganda | B119: =IF(COUNTRY_INFO!B119=0," ",COUNTRY_INFO!B119) -> Western | C119: =IF(COUNTRY_INFO!C119=0," ",COUNTRY_INFO!C119) -> Ntoroko | D119: =IF(OR(COUNTRY_INFO!$T$9:$T$1000="T1 (PZQ+ALB/MBD)",COUNTRY_INFO!$U$9:$U$1000="T1 (PZQ+ALB/MBD)"), "T1 (PZQ+ALB/MBD)", " ") ->  | K119: 0 | O119: 0
A120: =IF(COUNTRY_INFO!A120=0," ",COUNTRY_INFO!A120) -> Uganda | B120: =IF(COUNTRY_INFO!B120=0," ",COUNTRY_INFO!B120) -> Western | C120: =IF(COUNTRY_INFO!C120=0," ",COUNTRY_INFO!C120) -> Ntungamo | D120: =IF(OR(COUNTRY_INFO!$T$9:$T$1000="T1 (PZQ+ALB/MBD)",COUNTRY_INFO!$U$9:$U$1000="T1 (PZQ+ALB/MBD)"), "T1 (PZQ+ALB/MBD)", " ") ->  | K120: 0 | O120: 0
A121: =IF(COUNTRY_INFO!A121=0," ",COUNTRY_INFO!A121) -> Uganda | B121: =IF(COUNTRY_INFO!B121=0," ",COUNTRY_INFO!B121) -> Western | C121: =IF(COUNTRY_INFO!C121=0," ",COUNTRY_INFO!C121) -> Rubanda | D121: =IF(OR(COUNTRY_INFO!$T$9:$T$1000="T1 (PZQ+ALB/MBD)",COUNTRY_INFO!$U$9:$U$1000="T1 (PZQ+ALB/MBD)"), "T1 (PZQ+ALB/MBD)", " ") ->  | K121: 0 | O121: 0
A122: =IF(COUNTRY_INFO!A122=0," ",COUNTRY_INFO!A122) -> Uganda | B122: =IF(COUNTRY_INFO!B122=0," ",COUNTRY_INFO!B122) -> Western | C122: =IF(COUNTRY_INFO!C122=0," ",COUNTRY_INFO!C122) -> Rubirizi | D122: =IF(OR(COUNTRY_INFO!$T$9:$T$1000="T1 (PZQ+ALB/MBD)",COUNTRY_INFO!$U$9:$U$1000="T1 (PZQ+ALB/MBD)"), "T1 (PZQ+ALB/MBD)", " ") ->  | K122: 0 | O122: 0
A123: =IF(COUNTRY_INFO!A123=0," ",COUNTRY_INFO!A123) -> Uganda | B123: =IF(COUNTRY_INFO!B123=0," ",COUNTRY_INFO!B123) -> Western | C123: =IF(COUNTRY_INFO!C123=0," ",COUNTRY_INFO!C123) -> Rukungiri | D123: =IF(OR(COUNTRY_INFO!$T$9:$T$1000="T1 (PZQ+ALB/MBD)",COUNTRY_INFO!$U$9:$U$1000="T1 (PZQ+ALB/MBD)"), "T1 (PZQ+ALB/MBD)", " ") ->  | K123: 0 | O123: 0
A124: =IF(COUNTRY_INFO!A124=0," ",COUNTRY_INFO!A124) -> Uganda | B124: =IF(COUNTRY_INFO!B124=0," ",COUNTRY_INFO!B124) -> Western | C124: =IF(COUNTRY_INFO!C124=0," ",COUNTRY_INFO!C124) -> Sheema | D124: =IF(OR(COUNTRY_INFO!$T$9:$T$1000="T1 (PZQ+ALB/MBD)",COUNTRY_INFO!$U$9:$U$1000="T1 (PZQ+ALB/MBD)"), "T1 (PZQ+ALB/MBD)", " ") ->  | K124: 0 | O124: 0

Sheet T2
A1: T 2 - Praziquantel (PZQ)
A2: Administrative structure, population requiring PC by age group, population treated by age group and coverage
A4: TOTAL | F4: =SUM(F$9:F$1000) -> 0 | G4: 3886886 | H4: 3572266 | I4: 7459152 | J4: 0 | K4: 3275464 | L4: 2545916 | M4: 5821380 | N4: =IF(F4<>0, IF(J4/F4*100=0, "-", J4/F4*100), " ") ->  | O4: =IF(G4<>0, IF(K4/G4*100=0, "-", K4/G4*100), " ") -> 84.2696184 | P4: =IF(H4<>0, IF(L4/H4*100=0, "-", L4/H4*100), " ") -> 71.26893686 | Q4: =IF(I4<>0, IF(M4/I4*100=0, "-", M4/I4*100), " ") -> 78.04345588
D6: PC implemented | E6: Date | F6: Population targeted for T2 | J6: Population treated | N6: Programme coverage (%)
A7: Country | B7: Province/State | C7: District | F7: PreSAC | G7: SAC | H7: Adults | I7: Total | J7: PreSAC | K7: SAC | L7: Adults | M7: Total | N7: PreSAC | O7: SAC | P7: Adults | Q7: Total
A9: =IF(COUNTRY_INFO!A9=0," ",COUNTRY_INFO!A9) -> Uganda | B9: =IF(COUNTRY_INFO!B9=0," ",COUNTRY_INFO!B9) -> Central | C9: =IF(COUNTRY_INFO!C9=0," ",COUNTRY_INFO!C9) -> Buikwe | D9: =IF(OR(COUNTRY_INFO!$T$9:$T$1000="T2 (PZQ)",COUNTRY_INFO!$U$9:$U$1000="T2 (PZQ)"), "T2 (PZQ)", " ") -> T2 (PZQ) | E9: Oct-2017 | G9: 54770 | H9: 86035 | I9: =SUM(F9:H9) -> 140805 | K9: 36194 | L9: 69185 | M9: =SUM(J9:L9) -> 105379 | N9: =IF(F9<>0, IF(J9/F9*100=0, "-", J9/F9*100), " ") ->  | O9: 66.08362242 | P9: 80.41494741 | Q9: 74.84038209
A10: =IF(COUNTRY_INFO!A10=0," ",COUNTRY_INFO!A10) -> Uganda | B10: =IF(COUNTRY_INFO!B10=0," ",COUNTRY_INFO!B10) -> Central | C10: =IF(COUNTRY_INFO!C10=0," ",COUNTRY_INFO!C10) -> Bukomansimbi | D10: =IF(OR(COUNTRY_INFO!$T$9:$T$1000="T2 (PZQ)",COUNTRY_INFO!$U$9:$U$1000="T2 (PZQ)"), "T2 (PZQ)", " ") ->  | I10: =SUM(F10:H10) -> 0 | M10: =SUM(J10:L10) -> 0 | N10: =IF(F10<>0, IF(J10/F10*100=0, "-", J10/F10*100), " ") ->  | O10: =IF(G10<>0, IF(K10/G10*100=0, "-", K10/G10*100), " ") ->  | P10: =IF(H10<>0, IF(L10/H10*100=0, "-", L10/H10*100), " ") ->  | Q10: =IF(I10<>0, IF(M10/I10*100=0, "-", M10/I10*100), " ") -> 
A11: =IF(COUNTRY_INFO!A11=0," ",COUNTRY_INFO!A11) -> Uganda | B11: =IF(COUNTRY_INFO!B11=0," ",COUNTRY_INFO!B11) -> Central | C11: =IF(COUNTRY_INFO!C11=0," ",COUNTRY_INFO!C11) -> Butambala | D11: =IF(OR(COUNTRY_INFO!$T$9:$T$1000="T2 (PZQ)",COUNTRY_INFO!$U$9:$U$1000="T2 (PZQ)"), "T2 (PZQ)", " ") ->  | I11: 0 | M11: 0
A12: =IF(COUNTRY_INFO!A12=0," ",COUNTRY_INFO!A12) -> Uganda | B12: =IF(COUNTRY_INFO!B12=0," ",COUNTRY_INFO!B12) -> Central | C12: =IF(COUNTRY_INFO!C12=0," ",COUNTRY_INFO!C12) -> Buvuma | D12: =IF(OR(COUNTRY_INFO!$T$9:$T$1000="T2 (PZQ)",COUNTRY_INFO!$U$9:$U$1000="T2 (PZQ)"), "T2 (PZQ)", " ") -> T2 (PZQ) | E12: Oct-2017 | G12: 31972 | H12: 53384 | I12: 85356 | K12: 27443 | L12: 44830 | M12: 72273 | O12: 85.83448017 | P12: 83.97647235 | Q12: 84.67243076
A13: =IF(COUNTRY_INFO!A13=0," ",COUNTRY_INFO!A13) -> Uganda | B13: =IF(COUNTRY_INFO!B13=0," ",COUNTRY_INFO!B13) -> Central | C13: =IF(COUNTRY_INFO!C13=0," ",COUNTRY_INFO!C13) -> Gomba | D13: =IF(OR(COUNTRY_INFO!$T$9:$T$1000="T2 (PZQ)",COUNTRY_INFO!$U$9:$U$1000="T2 (PZQ)"), "T2 (PZQ)", " ") -> T2 (PZQ) | E13: Oct-2017 | G13: 11517 | H13: 10807 | I13: 22324 | K13: 6810 | L13: 10807 | M13: 17617 | O13: 59.12998177 | P13: 100 | Q13: 78.91506898
A14: =IF(COUNTRY_INFO!A14=0," ",COUNTRY_INFO!A14) -> Uganda | B14: =IF(COUNTRY_INFO!B14=0," ",COUNTRY_INFO!B14) -> Central | C14: =IF(COUNTRY_INFO!C14=0," ",COUNTRY_INFO!C14) -> Kalangala | D14: =IF(OR(COUNTRY_INFO!$T$9:$T$1000="T2 (PZQ)",COUNTRY_INFO!$U$9:$U$1000="T2 (PZQ)"), "T2 (PZQ)", " ") -> T2 (PZQ) | E14: Oct-2017 | G14: 11234 | H14: 33388 | I14: 44622 | K14: 8487 | L14: 28713 | M14: 37200 | O14: 75.54744526 | P14: 85.99796334 | Q14: 83.36694904
A15: =IF(COUNTRY_INFO!A15=0," ",COUNTRY_INFO!A15) -> Uganda | B15: =IF(COUNTRY_INFO!B15=0," ",COUNTRY_INFO!B15) -> Central | C15: =IF(COUNTRY_INFO!C15=0," ",COUNTRY_INFO!C15) -> Kalungu | D15: =IF(OR(COUNTRY_INFO!$T$9:$T$1000="T2 (PZQ)",COUNTRY_INFO!$U$9:$U$1000="T2 (PZQ)"), "T2 (PZQ)", " ") -> T2 (PZQ) | E15: Oct-2017 | G15: 20777 | I15: 20777 | K15: 18867 | M15: 18867 | O15: 90.80714251 | Q15: 90.80714251
A16: =IF(COUNTRY_INFO!A16=0," ",COUNTRY_INFO!A16) -> Uganda | B16: =IF(COUNTRY_INFO!B16=0," ",COUNTRY_INFO!B16) -> Central | C16: =IF(COUNTRY_INFO!C16=0," ",COUNTRY_INFO!C16) -> Kampala | D16: =IF(OR(COUNTRY_INFO!$T$9:$T$1000="T2 (PZQ)",COUNTRY_INFO!$U$9:$U$1000="T2 (PZQ)"), "T2 (PZQ)", " ") ->  | I16: 0 | M16: 0
A17: =IF(COUNTRY_INFO!A17=0," ",COUNTRY_INFO!A17) -> Uganda | B17: =IF(COUNTRY_INFO!B17=0," ",COUNTRY_INFO!B17) -> Central | C17: =IF(COUNTRY_INFO!C17=0," ",COUNTRY_INFO!C17) -> Kayunga | D17: =IF(OR(COUNTRY_INFO!$T$9:$T$1000="T2 (PZQ)",COUNTRY_INFO!$U$9:$U$1000="T2 (PZQ)"), "T2 (PZQ)", " ") -> T2 (PZQ) | E17: Oct-2017 | G17: 51588 | H17: 53992 | I17: 105580 | K17: 45869 | L17: 45193 | M17: 91062 | O17: 88.91408855 | P17: 83.70314121 | Q17: 86.24928964
A18: =IF(COUNTRY_INFO!A18=0," ",COUNTRY_INFO!A18) -> Uganda | B18: =IF(COUNTRY_INFO!B18=0," ",COUNTRY_INFO!B18) -> Central | C18: =IF(COUNTRY_INFO!C18=0," ",COUNTRY_INFO!C18) -> Kiboga | D18: =IF(OR(COUNTRY_INFO!$T$9:$T$1000="T2 (PZQ)",COUNTRY_INFO!$U$9:$U$1000="T2 (PZQ)"), "T2 (PZQ)", " ") ->  | I18: 0 | M18: 0
A19: =IF(COUNTRY_INFO!A19=0," ",COUNTRY_INFO!A19) -> Uganda | B19: =IF(COUNTRY_INFO!B19=0," ",COUNTRY_INFO!B19) -> Central | C19: =IF(COUNTRY_INFO!C19=0," ",COUNTRY_INFO!C19) -> Kyankwanzi | D19: =IF(OR(COUNTRY_INFO!$T$9:$T$1000="T2 (PZQ)",COUNTRY_INFO!$U$9:$U$1000="T2 (PZQ)"), "T2 (PZQ)", " ") ->  | I19: 0 | M19: 0
A20: =IF(COUNTRY_INFO!A20=0," ",COUNTRY_INFO!A20) -> Uganda | B20: =IF(COUNTRY_INFO!B20=0," ",COUNTRY_INFO!B20) -> Central | C20: =IF(COUNTRY_INFO!C20=0," ",COUNTRY_INFO!C20) -> Luwero | D20: =IF(OR(COUNTRY_INFO!$T$9:$T$1000="T2 (PZQ)",COUNTRY_INFO!$U$9:$U$1000="T2 (PZQ)"), "T2 (PZQ)", " ") ->  | I20: 0 | M20: 0
A21: =IF(COUNTRY_INFO!A21=0," ",COUNTRY_INFO!A21) -> Uganda | B21: =IF(COUNTRY_INFO!B21=0," ",COUNTRY_INFO!B21) -> Central | C21: =IF(COUNTRY_INFO!C21=0," ",COUNTRY_INFO!C21) -> Lwengo | D21: =IF(OR(COUNTRY_INFO!$T$9:$T$1000="T2 (PZQ)",COUNTRY_INFO!$U$9:$U$1000="T2 (PZQ)"), "T2 (PZQ)", " ") ->  | I21: 0 | M21: 0
A22: =IF(COUNTRY_INFO!A22=0," ",COUNTRY_INFO!A22) -> Uganda | B22: =IF(COUNTRY_INFO!B22=0," ",COUNTRY_INFO!B22) -> Central | C22: =IF(COUNTRY_INFO!C22=0," ",COUNTRY_INFO!C22) -> Lyantonde | D22: =IF(OR(COUNTRY_INFO!$T$9:$T$1000="T2 (PZQ)",COUNTRY_INFO!$U$9:$U$1000="T2 (PZQ)"), "T2 (PZQ)", " ") ->  | I22: 0 | M22: 0
A23: =IF(COUNTRY_INFO!A23=0," ",COUNTRY_INFO!A23) -> Uganda | B23: =IF(COUNTRY_INFO!B23=0," ",COUNTRY_INFO!B23) -> Central | C23: =IF(COUNTRY_INFO!C23=0," ",COUNTRY_INFO!C23) -> Masaka | D23: =IF(OR(COUNTRY_INFO!$T$9:$T$1000="T2 (PZQ)",COUNTRY_INFO!$U$9:$U$1000="T2 (PZQ)"), "T2 (PZQ)", " ") -> T2 (PZQ) | E23: Oct-2017 | G23: 24164 | H23: 20100 | I23: 44264 | K23: 17449 | L23: 16364 | M23: 33813 | O23: 72.2107267 | P23: 81.41293532 | Q23: 76.38939093
A24: =IF(COUNTRY_INFO!A24=0," ",COUNTRY_INFO!A24) -> Uganda | B24: =IF(COUNTRY_INFO!B24=0," ",COUNTRY_INFO!B24) -> Central | C24: =IF(COUNTRY_INFO!C24=0," ",COUNTRY_INFO!C24) -> Mityana | D24: =IF(OR(COUNTRY_INFO!$T$9:$T$1000="T2 (PZQ)",COUNTRY_INFO!$U$9:$U$1000="T2 (PZQ)"), "T2 (PZQ)", " ") -> T2 (PZQ) | E24: Oct-2017 | G24: 16313 | H24: 11091 | I24: 27404 | K24: 11661 | L24: 7264 | M24: 18925 | O24: 71.48286643 | P24: 65.49454513 | Q24: 69.05926142
A25: =IF(COUNTRY_INFO!A25=0," ",COUNTRY_INFO!A25) -> Uganda | B25: =IF(COUNTRY_INFO!B25=0," ",COUNTRY_INFO!B25) -> Central | C25: =IF(COUNTRY_INFO!C25=0," ",COUNTRY_INFO!C25) -> Mpigi | D25: =IF(OR(COUNTRY_INFO!$T$9:$T$1000="T2 (PZQ)",COUNTRY_INFO!$U$9:$U$1000="T2 (PZQ)"), "T2 (PZQ)", " ") -> T2 (PZQ) | E25: Oct-2017 | G25: 50765 | H25: 51692 | I25: 102457 | K25: 47751 | L25: 50223 | M25: 97974 | O25: 94.06283857 | P25: 97.15816761 | Q25: 95.62450589
A26: =IF(COUNTRY_INFO!A26=0," ",COUNTRY_INFO!A26) -> Uganda | B26: =IF(COUNTRY_INFO!B26=0," ",COUNTRY_INFO!B26) -> Central | C26: =IF(COUNTRY_INFO!C26=0," ",COUNTRY_INFO!C26) -> Mubende | D26: =IF(OR(COUNTRY_INFO!$T$9:$T$1000="T2 (PZQ)",COUNTRY_INFO!$U$9:$U$1000="T2 (PZQ)"), "T2 (PZQ)", " ") -> T2 (PZQ) | E26: Oct-2017 | G26: 51692 | I26: 51692 | K26: 49178 | M26: 49178 | O26: 95.13657819 | Q26: 95.13657819
A27: =IF(COUNTRY_INFO!A27=0," ",COUNTRY_INFO!A27) -> Uganda | B27: =IF(COUNTRY_INFO!B27=0," ",COUNTRY_INFO!B27) -> Central | C27: =IF(COUNTRY_INFO!C27=0," ",COUNTRY_INFO!C27) -> Mukono | D27: =IF(OR(COUNTRY_INFO!$T$9:$T$1000="T2 (PZQ)",COUNTRY_INFO!$U$9:$U$1000="T2 (PZQ)"), "T2 (PZQ)", " ") -> T2 (PZQ) | E27: Oct-2017 | G27: 32123 | H27: 29996 | I27: 62119 | K27: 25574 | L27: 24095 | M27: 49669 | O27: 79.61273854 | P27: 80.32737698 | Q27: 79.95782289
A28: =IF(COUNTRY_INFO!A28=0," ",COUNTRY_INFO!A28) -> Uganda | B28: =IF(COUNTRY_INFO!B28=0," ",COUNTRY_INFO!B28) -> Central | C28: =IF(COUNTRY_INFO!C28=0," ",COUNTRY_INFO!C28) -> Nakaseke | D28: =IF(OR(COUNTRY_INFO!$T$9:$T$1000="T2 (PZQ)",COUNTRY_INFO!$U$9:$U$1000="T2 (PZQ)"), "T2 (PZQ)", " ") ->  | I28: 0 | M28: 0
A29: =IF(COUNTRY_INFO!A29=0," ",COUNTRY_INFO!A29) -> Uganda | B29: =IF(COUNTRY_INFO!B29=0," ",COUNTRY_INFO!B29) -> Central | C29: =IF(COUNTRY_INFO!C29=0," ",COUNTRY_INFO!C29) -> Nakasongola | D29: =IF(OR(COUNTRY_INFO!$T$9:$T$1000="T2 (PZQ)",COUNTRY_INFO!$U$9:$U$1000="T2 (PZQ)"), "T2 (PZQ)", " ") -> T2 (PZQ) | E29: Oct-2017 | G29: 39420 | I29: 39420 | K29: 36294 | M29: 36294 | O29: 92.07001522 | Q29: 92.07001522
A30: =IF(COUNTRY_INFO!A30=0," ",COUNTRY_INFO!A30) -> Uganda | B30: =IF(COUNTRY_INFO!B30=0," ",COUNTRY_INFO!B30) -> Central | C30: =IF(COUNTRY_INFO!C30=0," ",COUNTRY_INFO!C30) -> Rakai | D30: =IF(OR(COUNTRY_INFO!$T$9:$T$1000="T2 (PZQ)",COUNTRY_INFO!$U$9:$U$1000="T2 (PZQ)"), "T2 (PZQ)", " ") -> T2 (PZQ) | E30: Oct-2017 | G30: 41540 | I30: 41540 | K30: 39340 | M30: 39340 | O30: 94.70389986 | Q30: 94.70389986
A31: =IF(COUNTRY_INFO!A31=0," ",COUNTRY_INFO!A31) -> Uganda | B31: =IF(COUNTRY_INFO!B31=0," ",COUNTRY_INFO!B31) -> Central | C31: =IF(COUNTRY_INFO!C31=0," ",COUNTRY_INFO!C31) -> Sembabule | D31: =IF(OR(COUNTRY_INFO!$T$9:$T$1000="T2 (PZQ)",COUNTRY_INFO!$U$9:$U$1000="T2 (PZQ)"), "T2 (PZQ)", " ") ->  | I31: 0 | M31: 0
A32: =IF(COUNTRY_INFO!A32=0," ",COUNTRY_INFO!A32) -> Uganda | B32: =IF(COUNTRY_INFO!B32=0," ",COUNTRY_INFO!B32) -> Central | C32: =IF(COUNTRY_INFO!C32=0," ",COUNTRY_INFO!C32) -> Wakiso | D32: =IF(OR(COUNTRY_INFO!$T$9:$T$1000="T2 (PZQ)",COUNTRY_INFO!$U$9:$U$1000="T2 (PZQ)"), "T2 (PZQ)", " ") -> T2 (PZQ) | E32: Oct-2017 | G32: 93566 | H32: 70719 | I32: 164285 | K32: 85259 | L32: 54955 | M32: 140214 | O32: 91.121775 | P32: 77.70896082 | Q32: 85.34802325
A33: =IF(COUNTRY_INFO!A33=0," ",COUNTRY_INFO!A33) -> Uganda | B33: =IF(COUNTRY_INFO!B33=0," ",COUNTRY_INFO!B33) -> Eastern | C33: =IF(COUNTRY_INFO!C33=0," ",COUNTRY_INFO!C33) -> Amuria | D33: =IF(OR(COUNTRY_INFO!$T$9:$T$1000="T2 (PZQ)",COUNTRY_INFO!$U$9:$U$1000="T2 (PZQ)"), "T2 (PZQ)", " ") ->  | I33: 0 | M33: 0
A34: =IF(COUNTRY_INFO!A34=0," ",COUNTRY_INFO!A34) -> Uganda | B34: =IF(COUNTRY_INFO!B34=0," ",COUNTRY_INFO!B34) -> Eastern | C34: =IF(COUNTRY_INFO!C34=0," ",COUNTRY_INFO!C34) -> Budaka | D34: =IF(OR(COUNTRY_INFO!$T$9:$T$1000="T2 (PZQ)",COUNTRY_INFO!$U$9:$U$1000="T2 (PZQ)"), "T2 (PZQ)", " ") -> T2 (PZQ) | E34: Oct-2017 | G34: 30377 | I34: 30377 | K34: 27979 | M34: 27979 | O34: 92.10586957 | Q34: 92.10586957
A35: =IF(COUNTRY_INFO!A35=0," ",COUNTRY_INFO!A35) -> Uganda | B35: =IF(COUNTRY_INFO!B35=0," ",COUNTRY_INFO!B35) -> Eastern | C35: =IF(COUNTRY_INFO!C35=0," ",COUNTRY_INFO!C35) -> Bududa | D35: =IF(OR(COUNTRY_INFO!$T$9:$T$1000="T2 (PZQ)",COUNTRY_INFO!$U$9:$U$1000="T2 (PZQ)"), "T2 (PZQ)", " ") ->  | I35: 0 | M35: 0
A36: =IF(COUNTRY_INFO!A36=0," ",COUNTRY_INFO!A36) -> Uganda | B36: =IF(COUNTRY_INFO!B36=0," ",COUNTRY_INFO!B36) -> Eastern | C36: =IF(COUNTRY_INFO!C36=0," ",COUNTRY_INFO!C36) -> Bugiri | D36: =IF(OR(COUNTRY_INFO!$T$9:$T$1000="T2 (PZQ)",COUNTRY_INFO!$U$9:$U$1000="T2 (PZQ)"), "T2 (PZQ)", " ") -> T2 (PZQ) | E36: Oct-2017 | G36: 29236 | H36: 40520 | I36: 69756 | K36: 17710 | L36: 24924 | M36: 42634 | O36: 60.57600219 | P36: 61.51036525 | Q36: 61.11875681
A37: =IF(COUNTRY_INFO!A37=0," ",COUNTRY_INFO!A37) -> Uganda | B37: =IF(COUNTRY_INFO!B37=0," ",COUNTRY_INFO!B37) -> Eastern | C37: =IF(COUNTRY_INFO!C37=0," ",COUNTRY_INFO!C37) -> Bukedea | D37: =IF(OR(COUNTRY_INFO!$T$9:$T$1000="T2 (PZQ)",COUNTRY_INFO!$U$9:$U$1000="T2 (PZQ)"), "T2 (PZQ)", " ") -> T2 (PZQ) | E37: Oct-2017 | G37: 65544 | I37: 65544 | K37: 56727 | M37: 56727 | O37: 86.54796778 | Q37: 86.54796778
A38: =IF(COUNTRY_INFO!A38=0," ",COUNTRY_INFO!A38) -> Uganda | B38: =IF(COUNTRY_INFO!B38=0," ",COUNTRY_INFO!B38) -> Eastern | C38: =IF(COUNTRY_INFO!C38=0," ",COUNTRY_INFO!C38) -> Bukwo | D38: =IF(OR(COUNTRY_INFO!$T$9:$T$1000="T2 (PZQ)",COUNTRY_INFO!$U$9:$U$1000="T2 (PZQ)"), "T2 (PZQ)", " ") ->  | I38: 0 | M38: 0
A39: =IF(COUNTRY_INFO!A39=0," ",COUNTRY_INFO!A39) -> Uganda | B39: =IF(COUNTRY_INFO!B39=0," ",COUNTRY_INFO!B39) -> Eastern | C39: =IF(COUNTRY_INFO!C39=0," ",COUNTRY_INFO!C39) -> Bulambuli | D39: =IF(OR(COUNTRY_INFO!$T$9:$T$1000="T2 (PZQ)",COUNTRY_INFO!$U$9:$U$1000="T2 (PZQ)"), "T2 (PZQ)", " ") -> T2 (PZQ) | E39: Oct-2017 | G39: 8187 | I39: 8187 | K39: 7500 | M39: 7500 | O39: 91.60864786 | Q39: 91.60864786
A40: =IF(COUNTRY_INFO!A40=0," ",COUNTRY_INFO!A40) -> Uganda | B40: =IF(COUNTRY_INFO!B40=0," ",COUNTRY_INFO!B40) -> Eastern | C40: =IF(COUNTRY_INFO!C40=0," ",COUNTRY_INFO!C40) -> Busia | D40: =IF(OR(COUNTRY_INFO!$T$9:$T$1000="T2 (PZQ)",COUNTRY_INFO!$U$9:$U$1000="T2 (PZQ)"), "T2 (PZQ)", " ") -> T2 (PZQ) | E40: Oct-2017 | G40: 49633 | H40: 65001 | I40: 114634 | K40: 31675 | L40: 42513 | M40: 74188 | O40: 63.81842726 | P40: 65.40360918 | Q40: 64.71727411
A41: =IF(COUNTRY_INFO!A41=0," ",COUNTRY_INFO!A41) -> Uganda | B41: =IF(COUNTRY_INFO!B41=0," ",COUNTRY_INFO!B41) -> Eastern | C41: =IF(COUNTRY_INFO!C41=0," ",COUNTRY_INFO!C41) -> Butaleja | D41: =IF(OR(COUNTRY_INFO!$T$9:$T$1000="T2 (PZQ)",COUNTRY_INFO!$U$9:$U$1000="T2 (PZQ)"), "T2 (PZQ)", " ") -> T2 (PZQ) | E41: Oct-2017 | G41: 23066 | I41: 23066 | K41: 20033 | M41: 20033 | O41: 86.85077603 | Q41: 86.85077603
A42: =IF(COUNTRY_INFO!A42=0," ",COUNTRY_INFO!A42) -> Uganda | B42: =IF(COUNTRY_INFO!B42=0," ",COUNTRY_INFO!B42) -> Eastern | C42: =IF(COUNTRY_INFO!C42=0," ",COUNTRY_INFO!C42) -> Buyende | D42: =IF(OR(COUNTRY_INFO!$T$9:$T$1000="T2 (PZQ)",COUNTRY_INFO!$U$9:$U$1000="T2 (PZQ)"), "T2 (PZQ)", " ") -> T2 (PZQ) | E42: Oct-2017 | G42: 112539 | H42: 138238 | I42: 250777 | K42: 106623 | L42: 109337 | M42: 215960 | O42: 94.74315571 | P42: 79.09330285 | Q42: 86.11635038
A43: =IF(COUNTRY_INFO!A43=0," ",COUNTRY_INFO!A43) -> Uganda | B43: =IF(COUNTRY_INFO!B43=0," ",COUNTRY_INFO!B43) -> Eastern | C43: =IF(COUNTRY_INFO!C43=0," ",COUNTRY_INFO!C43) -> Iganga | D43: =IF(OR(COUNTRY_INFO!$T$9:$T$1000="T2 (PZQ)",COUNTRY_INFO!$U$9:$U$1000="T2 (PZQ)"), "T2 (PZQ)", " ") -> T2 (PZQ) | E43: Oct-2017 | G43: 54956 | I43: 54956 | K43: 35166 | M43: 35166 | O43: 63.98937332 | Q43: 63.98937332
A44: =IF(COUNTRY_INFO!A44=0," ",COUNTRY_INFO!A44) -> Uganda | B44: =IF(COUNTRY_INFO!B44=0," ",COUNTRY_INFO!B44) -> Eastern | C44: =IF(COUNTRY_INFO!C44=0," ",COUNTRY_INFO!C44) -> Jinja | D44: =IF(OR(COUNTRY_INFO!$T$9:$T$1000="T2 (PZQ)",COUNTRY_INFO!$U$9:$U$1000="T2 (PZQ)"), "T2 (PZQ)", " ") -> T2 (PZQ) | E44: Oct-2017 | G44: 181049 | H44: 268518 | I44: 449567 | K44: 166966 | L44: 166380 | M44: 333346 | O44: 92.22144281 | P44: 61.96232655 | Q44: 74.14823597
A45: =IF(COUNTRY_INFO!A45=0," ",COUNTRY_INFO!A45) -> Uganda | B45: =IF(COUNTRY_INFO!B45=0," ",COUNTRY_INFO!B45) -> Eastern | C45: =IF(COUNTRY_INFO!C45=0," ",COUNTRY_INFO!C45) -> Kaberamaido | D45: =IF(OR(COUNTRY_INFO!$T$9:$T$1000="T2 (PZQ)",COUNTRY_INFO!$U$9:$U$1000="T2 (PZQ)"), "T2 (PZQ)", " ") -> T2 (PZQ) | E45: Oct-2017 | G45: 45031 | H45: 63792 | I45: 108823 | K45: 40850 | L45: 56523 | M45: 97373 | O45: 90.71528503 | P45: 88.60515425 | Q45: 89.47832719
A46: =IF(COUNTRY_INFO!A46=0," ",COUNTRY_INFO!A46) -> Uganda | B46: =IF(COUNTRY_INFO!B46=0," ",COUNTRY_INFO!B46) -> Eastern | C46: =IF(COUNTRY_INFO!C46=0," ",COUNTRY_INFO!C46) -> Kaliro | D46: =IF(OR(COUNTRY_INFO!$T$9:$T$1000="T2 (PZQ)",COUNTRY_INFO!$U$9:$U$1000="T2 (PZQ)"), "T2 (PZQ)", " ") -> T2 (PZQ) | E46: Oct-2017 | G46: 69175 | I46: 69175 | K46: 56197 | M46: 56197 | O46: 81.23888688 | Q46: 81.23888688
A47: =IF(COUNTRY_INFO!A47=0," ",COUNTRY_INFO!A47) -> Uganda | B47: =IF(COUNTRY_INFO!B47=0," ",COUNTRY_INFO!B47) -> Eastern | C47: =IF(COUNTRY_INFO!C47=0," ",COUNTRY_INFO!C47) -> Kamuli | D47: =IF(OR(COUNTRY_INFO!$T$9:$T$1000="T2 (PZQ)",COUNTRY_INFO!$U$9:$U$1000="T2 (PZQ)"), "T2 (PZQ)", " ") -> T2 (PZQ) | E47: Oct-2017 | G47: 93693 | I47: 93693 | K47: 83382 | M47: 83382 | O47: 88.9949089 | Q47: 88.9949089
A48: =IF(COUNTRY_INFO!A48=0," ",COUNTRY_INFO!A48) -> Uganda | B48: =IF(COUNTRY_INFO!B48=0," ",COUNTRY_INFO!B48) -> Eastern | C48: =IF(COUNTRY_INFO!C48=0," ",COUNTRY_INFO!C48) -> Kapchorwa | D48: =IF(OR(COUNTRY_INFO!$T$9:$T$1000="T2 (PZQ)",COUNTRY_INFO!$U$9:$U$1000="T2 (PZQ)"), "T2 (PZQ)", " ") ->  | I48: 0 | M48: 0
A49: =IF(COUNTRY_INFO!A49=0," ",COUNTRY_INFO!A49) -> Uganda | B49: =IF(COUNTRY_INFO!B49=0," ",COUNTRY_INFO!B49) -> Eastern | C49: =IF(COUNTRY_INFO!C49=0," ",COUNTRY_INFO!C49) -> Katakwi | D49: =IF(OR(COUNTRY_INFO!$T$9:$T$1000="T2 (PZQ)",COUNTRY_INFO!$U$9:$U$1000="T2 (PZQ)"), "T2 (PZQ)", " ") -> T2 (PZQ) | E49: Oct-2017 | G49: 18678 | I49: 18678 | K49: 16409 | M49: 16409 | O49: 87.85201842 | Q49: 87.85201842
A50: =IF(COUNTRY_INFO!A50=0," ",COUNTRY_INFO!A50) -> Uganda | B50: =IF(COUNTRY_INFO!B50=0," ",COUNTRY_INFO!B50) -> Eastern | C50: =IF(COUNTRY_INFO!C50=0," ",COUNTRY_INFO!C50) -> Kibuku | D50: =IF(OR(COUNTRY_INFO!$T$9:$T$1000="T2 (PZQ)",COUNTRY_INFO!$U$9:$U$1000="T2 (PZQ)"), "T2 (PZQ)", " ") -> T2 (PZQ) | E50: Oct-2017 | G50: 43365 | I50: 43365 | K50: 35551 | M50: 35551 | O50: 81.98086014 | Q50: 81.98086014
A51: =IF(COUNTRY_INFO!A51=0," ",COUNTRY_INFO!A51) -> Uganda | B51: =IF(COUNTRY_INFO!B51=0," ",COUNTRY_INFO!B51) -> Eastern | C51: =IF(COUNTRY_INFO!C51=0," ",COUNTRY_INFO!C51) -> Kumi | D51: =IF(OR(COUNTRY_INFO!$T$9:$T$1000="T2 (PZQ)",COUNTRY_INFO!$U$9:$U$1000="T2 (PZQ)"), "T2 (PZQ)", " ") -> T2 (PZQ) | E51: Oct-2017 | G51: 41967 | I51: 41967 | K51: 40747 | M51: 40747 | O51: 97.09295399 | Q51: 97.09295399
A52: =IF(COUNTRY_INFO!A52=0," ",COUNTRY_INFO!A52) -> Uganda | B52: =IF(COUNTRY_INFO!B52=0," ",COUNTRY_INFO!B52) -> Eastern | C52: =IF(COUNTRY_INFO!C52=0," ",COUNTRY_INFO!C52) -> Kween | D52: =IF(OR(COUNTRY_INFO!$T$9:$T$1000="T2 (PZQ)",COUNTRY_INFO!$U$9:$U$1000="T2 (PZQ)"), "T2 (PZQ)", " ") -> T2 (PZQ) | E52: Oct-2017 | G52: 3044 | I52: 3044 | K52: 2819 | M52: 2819 | O52: 92.60840999 | Q52: 92.60840999
A53: =IF(COUNTRY_INFO!A53=0," ",COUNTRY_INFO!A53) -> Uganda | B53: =IF(COUNTRY_INFO!B53=0," ",COUNTRY_INFO!B53) -> Eastern | C53: =IF(COUNTRY_INFO!C53=0," ",COUNTRY_INFO!C53) -> Luuka | D53: =IF(OR(COUNTRY_INFO!$T$9:$T$1000="T2 (PZQ)",COUNTRY_INFO!$U$9:$U$1000="T2 (PZQ)"), "T2 (PZQ)", " ") -> T2 (PZQ) | E53: Oct-2017 | G53: 84810 | I53: 84810 | K53: 79406 | M53: 79406 | O53: 93.62810989 | Q53: 93.62810989
A54: =IF(COUNTRY_INFO!A54=0," ",COUNTRY_INFO!A54) -> Uganda | B54: =IF(COUNTRY_INFO!B54=0," ",COUNTRY_INFO!B54) -> Eastern | C54: =IF(COUNTRY_INFO!C54=0," ",COUNTRY_INFO!C54) -> Manafwa | D54: =IF(OR(COUNTRY_INFO!$T$9:$T$1000="T2 (PZQ)",COUNTRY_INFO!$U$9:$U$1000="T2 (PZQ)"), "T2 (PZQ)", " ") -> T2 (PZQ) | E54: Oct-2017 | G54: 14317 | I54: 14317 | K54: 12894 | M54: 12894 | O54: 90.06076692 | Q54: 90.06076692
A55: =IF(COUNTRY_INFO!A55=0," ",COUNTRY_INFO!A55) -> Uganda | B55: =IF(COUNTRY_INFO!B55=0," ",COUNTRY_INFO!B55) -> Eastern | C55: =IF(COUNTRY_INFO!C55=0," ",COUNTRY_INFO!C55) -> Mayuge | D55: =IF(OR(COUNTRY_INFO!$T$9:$T$1000="T2 (PZQ)",COUNTRY_INFO!$U$9:$U$1000="T2 (PZQ)"), "T2 (PZQ)", " ") -> T2 (PZQ) | E55: Oct-2017 | G55: 52454 | H55: 86633 | I55: 139087 | K55: 48510 | L55: 59370 | M55: 107880 | O55: 92.481031 | P55: 68.5304676 | Q55: 77.56296419
A56: =IF(COUNTRY_INFO!A56=0," ",COUNTRY_INFO!A56) -> Uganda | B56: =IF(COUNTRY_INFO!B56=0," ",COUNTRY_INFO!B56) -> Eastern | C56: =IF(COUNTRY_INFO!C56=0," ",COUNTRY_INFO!C56) -> Mbale | D56: =IF(OR(COUNTRY_INFO!$T$9:$T$1000="T2 (PZQ)",COUNTRY_INFO!$U$9:$U$1000="T2 (PZQ)"), "T2 (PZQ)", " ") -> T2 (PZQ) | E56: Oct-2017 | G56: 4099 | I56: 4099 | K56: 4043 | M56: 4043 | O56: 98.63381313 | Q56: 98.63381313
A57: =IF(COUNTRY_INFO!A57=0," ",COUNTRY_INFO!A57) -> Uganda | B57: =IF(COUNTRY_INFO!B57=0," ",COUNTRY_INFO!B57) -> Eastern | C57: =IF(COUNTRY_INFO!C57=0," ",COUNTRY_INFO!C57) -> Namayingo | D57: =IF(OR(COUNTRY_INFO!$T$9:$T$1000="T2 (PZQ)",COUNTRY_INFO!$U$9:$U$1000="T2 (PZQ)"), "T2 (PZQ)", " ") -> T2 (PZQ) | E57: Oct-2017 | G57: 84234 | H57: 119263 | I57: 203497 | K57: 67125 | L57: 96417 | M57: 163542 | O57: 79.68872427 | P57: 80.844017 | Q57: 80.36580392
A58: =IF(COUNTRY_INFO!A58=0," ",COUNTRY_INFO!A58) -> Uganda | B58: =IF(COUNTRY_INFO!B58=0," ",COUNTRY_INFO!B58) -> Eastern | C58: =IF(COUNTRY_INFO!C58=0," ",COUNTRY_INFO!C58) -> Namutumba | D58: =IF(OR(COUNTRY_INFO!$T$9:$T$1000="T2 (PZQ)",COUNTRY_INFO!$U$9:$U$1000="T2 (PZQ)"), "T2 (PZQ)", " ") -> T2 (PZQ) | E58: Oct-2017 | G58: 99757 | I58: 99757 | K58: 63941 | M58: 63941 | O58: 64.09675511 | Q58: 64.09675511
A59: =IF(COUNTRY_INFO!A59=0," ",COUNTRY_INFO!A59) -> Uganda | B59: =IF(COUNTRY_INFO!B59=0," ",COUNTRY_INFO!B59) -> Eastern | C59: =IF(COUNTRY_INFO!C59=0," ",COUNTRY_INFO!C59) -> Ngora | D59: =IF(OR(COUNTRY_INFO!$T$9:$T$1000="T2 (PZQ)",COUNTRY_INFO!$U$9:$U$1000="T2 (PZQ)"), "T2 (PZQ)", " ") -> T2 (PZQ) | E59: Oct-2017 | G59: 48870 | I59: 48870 | K59: 45526 | M59: 45526 | O59: 93.15735625 | Q59: 93.15735625
A60: =IF(COUNTRY_INFO!A60=0," ",COUNTRY_INFO!A60) -> Uganda | B60: =IF(COUNTRY_INFO!B60=0," ",COUNTRY_INFO!B60) -> Eastern | C60: =IF(COUNTRY_INFO!C60=0," ",COUNTRY_INFO!C60) -> Pallisa | D60: =IF(OR(COUNTRY_INFO!$T$9:$T$1000="T2 (PZQ)",COUNTRY_INFO!$U$9:$U$1000="T2 (PZQ)"), "T2 (PZQ)", " ") -> T2 (PZQ) | E60: Oct-2017 | G60: 69467 | I60: 69467 | K60: 60409 | M60: 60409 | O60: 86.96071516 | Q60: 86.96071516
A61: =IF(COUNTRY_INFO!A61=0," ",COUNTRY_INFO!A61) -> Uganda | B61: =IF(COUNTRY_INFO!B61=0," ",COUNTRY_INFO!B61) -> Eastern | C61: =IF(COUNTRY_INFO!C61=0," ",COUNTRY_INFO!C61) -> Serere | D61: =IF(OR(COUNTRY_INFO!$T$9:$T$1000="T2 (PZQ)",COUNTRY_INFO!$U$9:$U$1000="T2 (PZQ)"), "T2 (PZQ)", " ") -> T2 (PZQ) | E61: Oct-2017 | G61: 69497 | H61: 88964 | I61: 158461 | K61: 65189 | L61: 69076 | M61: 134265 | O61: 93.80117127 | P61: 77.64489007 | Q61: 84.73062773
A62: =IF(COUNTRY_INFO!A62=0," ",COUNTRY_INFO!A62) -> Uganda | B62: =IF(COUNTRY_INFO!B62=0," ",COUNTRY_INFO!B62) -> Eastern | C62: =IF(COUNTRY_INFO!C62=0," ",COUNTRY_INFO!C62) -> Sironko | D62: =IF(OR(COUNTRY_INFO!$T$9:$T$1000="T2 (PZQ)",COUNTRY_INFO!$U$9:$U$1000="T2 (PZQ)"), "T2 (PZQ)", " ") -> T2 (PZQ) | E62: Oct-2017 | G62: 9431 | I62: 9431 | K62: 8472 | M62: 8472 | O62: 89.83140706 | Q62: 89.83140706
A63: =IF(COUNTRY_INFO!A63=0," ",COUNTRY_INFO!A63) -> Uganda | B63: =IF(COUNTRY_INFO!B63=0," ",COUNTRY_INFO!B63) -> Eastern | C63: =IF(COUNTRY_INFO!C63=0," ",COUNTRY_INFO!C63) -> Soroti | D63: =IF(OR(COUNTRY_INFO!$T$9:$T$1000="T2 (PZQ)",COUNTRY_INFO!$U$9:$U$1000="T2 (PZQ)"), "T2 (PZQ)", " ") -> T2 (PZQ) | E63: Oct-2017 | G63: 18118 | I63: 18118 | K63: 17237 | M63: 17237 | O63: 95.13743239 | Q63: 95.13743239
A64: =IF(COUNTRY_INFO!A64=0," ",COUNTRY_INFO!A64) -> Uganda | B64: =IF(COUNTRY_INFO!B64=0," ",COUNTRY_INFO!B64) -> Eastern | C64: =IF(COUNTRY_INFO!C64=0," ",COUNTRY_INFO!C64) -> Tororo | D64: =IF(OR(COUNTRY_INFO!$T$9:$T$1000="T2 (PZQ)",COUNTRY_INFO!$U$9:$U$1000="T2 (PZQ)"), "T2 (PZQ)", " ") -> T2 (PZQ) | E64: Oct-2017 | G64: 105271 | I64: 105271 | K64: 71850 | M64: 71850 | O64: 68.2524152 | Q64: 68.2524152
A65: =IF(COUNTRY_INFO!A65=0," ",COUNTRY_INFO!A65) -> Uganda | B65: =IF(COUNTRY_INFO!B65=0," ",COUNTRY_INFO!B65) -> Northern | C65: =IF(COUNTRY_INFO!C65=0," ",COUNTRY_INFO!C65) -> Abim | D65: =IF(OR(COUNTRY_INFO!$T$9:$T$1000="T2 (PZQ)",COUNTRY_INFO!$U$9:$U$1000="T2 (PZQ)"), "T2 (PZQ)", " ") ->  | I65: 0 | M65: 0
A66: =IF(COUNTRY_INFO!A66=0," ",COUNTRY_INFO!A66) -> Uganda | B66: =IF(COUNTRY_INFO!B66=0," ",COUNTRY_INFO!B66) -> Northern | C66: =IF(COUNTRY_INFO!C66=0," ",COUNTRY_INFO!C66) -> Adjumani | D66: =IF(OR(COUNTRY_INFO!$T$9:$T$1000="T2 (PZQ)",COUNTRY_INFO!$U$9:$U$1000="T2 (PZQ)"), "T2 (PZQ)", " ") -> T2 (PZQ) | E66: Oct-2017 | G66: 17910 | H66: 29525 | I66: 47435 | K66: 19982 | L66: 29186 | M66: 49168 | O66: 111.5689559 | P66: 98.85182049 | Q66: 103.6534205
A67: =IF(COUNTRY_INFO!A67=0," ",COUNTRY_INFO!A67) -> Uganda | B67: =IF(COUNTRY_INFO!B67=0," ",COUNTRY_INFO!B67) -> Northern | C67: =IF(COUNTRY_INFO!C67=0," ",COUNTRY_INFO!C67) -> Agago | D67: =IF(OR(COUNTRY_INFO!$T$9:$T$1000="T2 (PZQ)",COUNTRY_INFO!$U$9:$U$1000="T2 (PZQ)"), "T2 (PZQ)", " ") -> T2 (PZQ) | E67: Oct-2017 | G67: 66676 | H67: 117377 | I67: 184053 | K67: 61307 | L67: 92562 | M67: 153869 | O67: 91.94762733 | P67: 78.85872019 | Q67: 83.60037598
A68: =IF(COUNTRY_INFO!A68=0," ",COUNTRY_INFO!A68) -> Uganda | B68: =IF(COUNTRY_INFO!B68=0," ",COUNTRY_INFO!B68) -> Northern | C68: =IF(COUNTRY_INFO!C68=0," ",COUNTRY_INFO!C68) -> Alebtong | D68: =IF(OR(COUNTRY_INFO!$T$9:$T$1000="T2 (PZQ)",COUNTRY_INFO!$U$9:$U$1000="T2 (PZQ)"), "T2 (PZQ)", " ") -> T2 (PZQ) | E68: Oct-2017 | G68: 50472 | H68: 49301 | I68: 99773 | K68: 47503 | L68: 45662 | M68: 93165 | O68: 94.11753051 | P68: 92.61881098 | Q68: 93.37696571
A69: =IF(COUNTRY_INFO!A69=0," ",COUNTRY_INFO!A69) -> Uganda | B69: =IF(COUNTRY_INFO!B69=0," ",COUNTRY_INFO!B69) -> Northern | C69: =IF(COUNTRY_INFO!C69=0," ",COUNTRY_INFO!C69) -> Amolatar | D69: =IF(OR(COUNTRY_INFO!$T$9:$T$1000="T2 (PZQ)",COUNTRY_INFO!$U$9:$U$1000="T2 (PZQ)"), "T2 (PZQ)", " ") -> T2 (PZQ) | E69: Oct-2017 | G69: 48997 | H69: 77654 | I69: 126651 | K69: 47541 | L69: 69075 | M69: 116616 | O69: 97.02838949 | P69: 88.95227548 | Q69: 92.07665159
A70: =IF(COUNTRY_INFO!A70=0," ",COUNTRY_INFO!A70) -> Uganda | B70: =IF(COUNTRY_INFO!B70=0," ",COUNTRY_INFO!B70) -> Northern | C70: =IF(COUNTRY_INFO!C70=0," ",COUNTRY_INFO!C70) -> Amudat | D70: =IF(OR(COUNTRY_INFO!$T$9:$T$1000="T2 (PZQ)",COUNTRY_INFO!$U$9:$U$1000="T2 (PZQ)"), "T2 (PZQ)", " ") ->  | I70: 0 | M70: 0
A71: =IF(COUNTRY_INFO!A71=0," ",COUNTRY_INFO!A71) -> Uganda | B71: =IF(COUNTRY_INFO!B71=0," ",COUNTRY_INFO!B71) -> Northern | C71: =IF(COUNTRY_INFO!C71=0," ",COUNTRY_INFO!C71) -> Amuru | D71: =IF(OR(COUNTRY_INFO!$T$9:$T$1000="T2 (PZQ)",COUNTRY_INFO!$U$9:$U$1000="T2 (PZQ)"), "T2 (PZQ)", " ") -> T2 (PZQ) | E71: Oct-2017 | G71: 73246 | H71: 126362 | I71: 199608 | K71: 42988 | L71: 120831 | M71: 163819 | O71: 58.68989433 | P71: 95.62289296 | Q71: 82.0703579
A72: =IF(COUNTRY_INFO!A72=0," ",COUNTRY_INFO!A72) -> Uganda | B72: =IF(COUNTRY_INFO!B72=0," ",COUNTRY_INFO!B72) -> Northern | C72: =IF(COUNTRY_INFO!C72=0," ",COUNTRY_INFO!C72) -> Apac | D72: =IF(OR(COUNTRY_INFO!$T$9:$T$1000="T2 (PZQ)",COUNTRY_INFO!$U$9:$U$1000="T2 (PZQ)"), "T2 (PZQ)", " ") -> T2 (PZQ) | E72: Oct-2017 | G72: 92054 | H72: 146124 | I72: 238178 | K72: 85535 | L72: 116854 | M72: 202389 | O72: 92.91828709 | P72: 79.96906737 | Q72: 84.97384309
A73: =IF(COUNTRY_INFO!A73=0," ",COUNTRY_INFO!A73) -> Uganda | B73: =IF(COUNTRY_INFO!B73=0," ",COUNTRY_INFO!B73) -> Northern | C73: =IF(COUNTRY_INFO!C73=0," ",COUNTRY_INFO!C73) -> Arua | D73: =IF(OR(COUNTRY_INFO!$T$9:$T$1000="T2 (PZQ)",COUNTRY_INFO!$U$9:$U$1000="T2 (PZQ)"), "T2 (PZQ)", " ") -> T2 (PZQ) | E73: Oct-2017 | G73: 330459 | H73: 439682 | I73: 770141 | K73: 209088 | L73: 104553 | M73: 313641 | O73: 63.27199441 | P73: 23.77923135 | Q73: 40.72513994
A74: =IF(COUNTRY_INFO!A74=0," ",COUNTRY_INFO!A74) -> Uganda | B74: =IF(COUNTRY_INFO!B74=0," ",COUNTRY_INFO!B74) -> Northern | C74: =IF(COUNTRY_INFO!C74=0," ",COUNTRY_INFO!C74) -> Dokolo | D74: =IF(OR(COUNTRY_INFO!$T$9:$T$1000="T2 (PZQ)",COUNTRY_INFO!$U$9:$U$1000="T2 (PZQ)"), "T2 (PZQ)", " ") -> T2 (PZQ) | E74: Oct-2017 | G74: 32455 | I74: =SUM(F74:H74) -> 32455 | K74: 30581 | M74: =SUM(J74:L74) -> 30581 | N74: =IF(F74<>0, IF(J74/F74*100=0, "-", J74/F74*100), " ") ->  | O74: =IF(G74<>0, IF(K74/G74*100=0, "-", K74/G74*100), " ") -> 94.22585118 | P74: =IF(H74<>0, IF(L74/H74*100=0, "-", L74/H74*100), " ") ->  | Q74: =IF(I74<>0, IF(M74/I74*100=0, "-", M74/I74*100), " ") -> 94.22585118
A75: =IF(COUNTRY_INFO!A75=0," ",COUNTRY_INFO!A75) -> Uganda | B75: =IF(COUNTRY_INFO!B75=0," ",COUNTRY_INFO!B75) -> Northern | C75: =IF(COUNTRY_INFO!C75=0," ",COUNTRY_INFO!C75) -> Gulu | D75: =IF(OR(COUNTRY_INFO!$T$9:$T$1000="T2 (PZQ)",COUNTRY_INFO!$U$9:$U$1000="T2 (PZQ)"), "T2 (PZQ)", " ") -> T2 (PZQ) | E75: Oct-2017 | G75: 70460 | H75: 116444 | I75: 186904 | K75: 79462 | L75: 100030 | M75: 179492 | O75: 112.7760431 | P75: 85.90395383 | Q75: 96.03432778
A76: =IF(COUNTRY_INFO!A76=0," ",COUNTRY_INFO!A76) -> Uganda | B76: =IF(COUNTRY_INFO!B76=0," ",COUNTRY_INFO!B76) -> Northern | C76: =IF(COUNTRY_INFO!C76=0," ",COUNTRY_INFO!C76) -> Kaabong | D76: =IF(OR(COUNTRY_INFO!$T$9:$T$1000="T2 (PZQ)",COUNTRY_INFO!$U$9:$U$1000="T2 (PZQ)"), "T2 (PZQ)", " ") ->  | I76: 0 | M76: 0
A77: =IF(COUNTRY_INFO!A77=0," ",COUNTRY_INFO!A77) -> Uganda | B77: =IF(COUNTRY_INFO!B77=0," ",COUNTRY_INFO!B77) -> Northern | C77: =IF(COUNTRY_INFO!C77=0," ",COUNTRY_INFO!C77) -> Kitgum | D77: =IF(OR(COUNTRY_INFO!$T$9:$T$1000="T2 (PZQ)",COUNTRY_INFO!$U$9:$U$1000="T2 (PZQ)"), "T2 (PZQ)", " ") -> T2 (PZQ) | E77: Oct-2017 | G77: 70623 | H77: 110542 | I77: 181165 | K77: 43650 | L77: 69873 | M77: 113523 | O77: 61.80706002 | P77: 63.20945885 | Q77: 62.66276599
A78: =IF(COUNTRY_INFO!A78=0," ",COUNTRY_INFO!A78) -> Uganda | B78: =IF(COUNTRY_INFO!B78=0," ",COUNTRY_INFO!B78) -> Northern | C78: =IF(COUNTRY_INFO!C78=0," ",COUNTRY_INFO!C78) -> Koboko | D78: =IF(OR(COUNTRY_INFO!$T$9:$T$1000="T2 (PZQ)",COUNTRY_INFO!$U$9:$U$1000="T2 (PZQ)"), "T2 (PZQ)", " ") -> T2 (PZQ) | E78: Oct-2017 | G78: 22534 | H78: 25267 | I78: 47801 | K78: 37783 | L78: 18496 | M78: 56279 | O78: 167.6710748 | P78: 73.2022005 | Q78: 117.7360306
A79: =IF(COUNTRY_INFO!A79=0," ",COUNTRY_INFO!A79) -> Uganda | B79: =IF(COUNTRY_INFO!B79=0," ",COUNTRY_INFO!B79) -> Northern | C79: =IF(COUNTRY_INFO!C79=0," ",COUNTRY_INFO!C79) -> Kole | D79: =IF(OR(COUNTRY_INFO!$T$9:$T$1000="T2 (PZQ)",COUNTRY_INFO!$U$9:$U$1000="T2 (PZQ)"), "T2 (PZQ)", " ") ->  | I79: 0 | M79: 0
A80: =IF(COUNTRY_INFO!A80=0," ",COUNTRY_INFO!A80) -> Uganda | B80: =IF(COUNTRY_INFO!B80=0," ",COUNTRY_INFO!B80) -> Northern | C80: =IF(COUNTRY_INFO!C80=0," ",COUNTRY_INFO!C80) -> Kotido | D80: =IF(OR(COUNTRY_INFO!$T$9:$T$1000="T2 (PZQ)",COUNTRY_INFO!$U$9:$U$1000="T2 (PZQ)"), "T2 (PZQ)", " ") ->  | I80: 0 | M80: 0
A81: =IF(COUNTRY_INFO!A81=0," ",COUNTRY_INFO!A81) -> Uganda | B81: =IF(COUNTRY_INFO!B81=0," ",COUNTRY_INFO!B81) -> Northern | C81: =IF(COUNTRY_INFO!C81=0," ",COUNTRY_INFO!C81) -> Lamwo | D81: =IF(OR(COUNTRY_INFO!$T$9:$T$1000="T2 (PZQ)",COUNTRY_INFO!$U$9:$U$1000="T2 (PZQ)"), "T2 (PZQ)", " ") -> T2 (PZQ) | E81: Oct-2017 | G81: 40343 | I81: 40343 | K81: 38496 | M81: 38496 | O81: 95.42175842 | Q81: 95.42175842
A82: =IF(COUNTRY_INFO!A82=0," ",COUNTRY_INFO!A82) -> Uganda | B82: =IF(COUNTRY_INFO!B82=0," ",COUNTRY_INFO!B82) -> Northern | C82: =IF(COUNTRY_INFO!C82=0," ",COUNTRY_INFO!C82) -> Lira | D82: =IF(OR(COUNTRY_INFO!$T$9:$T$1000="T2 (PZQ)",COUNTRY_INFO!$U$9:$U$1000="T2 (PZQ)"), "T2 (PZQ)", " ") -> T2 (PZQ) | E82: Oct-2017 | G82: 8718 | I82: 8718 | K82: 8439 | M82: 8439 | O82: 96.79972471 | Q82: 96.79972471
A83: =IF(COUNTRY_INFO!A83=0," ",COUNTRY_INFO!A83) -> Uganda | B83: =IF(COUNTRY_INFO!B83=0," ",COUNTRY_INFO!B83) -> Northern | C83: =IF(COUNTRY_INFO!C83=0," ",COUNTRY_INFO!C83) -> Maracha | D83: =IF(OR(COUNTRY_INFO!$T$9:$T$1000="T2 (PZQ)",COUNTRY_INFO!$U$9:$U$1000="T2 (PZQ)"), "T2 (PZQ)", " ") -> T2 (PZQ) | E83: Oct-2017 | G83: 61479 | I83: 61479 | K83: 42696 | M83: 42696 | O83: 69.44810423 | Q83: 69.44810423
A84: =IF(COUNTRY_INFO!A84=0," ",COUNTRY_INFO!A84) -> Uganda | B84: =IF(COUNTRY_INFO!B84=0," ",COUNTRY_INFO!B84) -> Northern | C84: =IF(COUNTRY_INFO!C84=0," ",COUNTRY_INFO!C84) -> Moroto | D84: =IF(OR(COUNTRY_INFO!$T$9:$T$1000="T2 (PZQ)",COUNTRY_INFO!$U$9:$U$1000="T2 (PZQ)"), "T2 (PZQ)", " ") ->  | I84: 0 | M84: 0
A85: =IF(COUNTRY_INFO!A85=0," ",COUNTRY_INFO!A85) -> Uganda | B85: =IF(COUNTRY_INFO!B85=0," ",COUNTRY_INFO!B85) -> Northern | C85: =IF(COUNTRY_INFO!C85=0," ",COUNTRY_INFO!C85) -> Moyo | D85: =IF(OR(COUNTRY_INFO!$T$9:$T$1000="T2 (PZQ)",COUNTRY_INFO!$U$9:$U$1000="T2 (PZQ)"), "T2 (PZQ)", " ") -> T2 (PZQ) | E85: Oct-2017 | G85: 34688 | H85: 54920 | I85: 89608 | K85: 31947 | L85: 50479 | M85: 82426 | O85: 92.09813192 | P85: 91.91369264 | Q85: 91.98509062
A86: =IF(COUNTRY_INFO!A86=0," ",COUNTRY_INFO!A86) -> Uganda | B86: =IF(COUNTRY_INFO!B86=0," ",COUNTRY_INFO!B86) -> Northern | C86: =IF(COUNTRY_INFO!C86=0," ",COUNTRY_INFO!C86) -> Nakapiripirit | D86: =IF(OR(COUNTRY_INFO!$T$9:$T$1000="T2 (PZQ)",COUNTRY_INFO!$U$9:$U$1000="T2 (PZQ)"), "T2 (PZQ)", " ") -> T2 (PZQ) | E86: Oct-2017 | G86: 7906 | I86: 7906 | K86: 6317 | M86: 6317 | O86: 79.90134075 | Q86: 79.90134075
A87: =IF(COUNTRY_INFO!A87=0," ",COUNTRY_INFO!A87) -> Uganda | B87: =IF(COUNTRY_INFO!B87=0," ",COUNTRY_INFO!B87) -> Northern | C87: =IF(COUNTRY_INFO!C87=0," ",COUNTRY_INFO!C87) -> Napak | D87: =IF(OR(COUNTRY_INFO!$T$9:$T$1000="T2 (PZQ)",COUNTRY_INFO!$U$9:$U$1000="T2 (PZQ)"), "T2 (PZQ)", " ") ->  | I87: 0 | M87: 0
A88: =IF(COUNTRY_INFO!A88=0," ",COUNTRY_INFO!A88) -> Uganda | B88: =IF(COUNTRY_INFO!B88=0," ",COUNTRY_INFO!B88) -> Northern | C88: =IF(COUNTRY_INFO!C88=0," ",COUNTRY_INFO!C88) -> Nebbi | D88: =IF(OR(COUNTRY_INFO!$T$9:$T$1000="T2 (PZQ)",COUNTRY_INFO!$U$9:$U$1000="T2 (PZQ)"), "T2 (PZQ)", " ") -> T2 (PZQ) | E88: Oct-2017 | G88: 58356 | H88: 87451 | I88: 145807 | K88: 54606 | L88: 80434 | M88: 135040 | O88: 93.57392556 | P88: 91.97607803 | Q88: 92.61558087
A89: =IF(COUNTRY_INFO!A89=0," ",COUNTRY_INFO!A89) -> Uganda | B89: =IF(COUNTRY_INFO!B89=0," ",COUNTRY_INFO!B89) -> Northern | C89: =IF(COUNTRY_INFO!C89=0," ",COUNTRY_INFO!C89) -> Nwoya | D89: =IF(OR(COUNTRY_INFO!$T$9:$T$1000="T2 (PZQ)",COUNTRY_INFO!$U$9:$U$1000="T2 (PZQ)"), "T2 (PZQ)", " ") -> T2 (PZQ) | E89: Oct-2017 | G89: 61651 | H89: 83212 | I89: 144863 | K89: 57347 | L89: 77754 | M89: 135101 | O89: 93.01876693 | P89: 93.44084988 | Q89: 93.26121922
A90: =IF(COUNTRY_INFO!A90=0," ",COUNTRY_INFO!A90) -> Uganda | B90: =IF(COUNTRY_INFO!B90=0," ",COUNTRY_INFO!B90) -> Northern | C90: =IF(COUNTRY_INFO!C90=0," ",COUNTRY_INFO!C90) -> Omoro | D90: =IF(OR(COUNTRY_INFO!$T$9:$T$1000="T2 (PZQ)",COUNTRY_INFO!$U$9:$U$1000="T2 (PZQ)"), "T2 (PZQ)", " ") -> T2 (PZQ) | E90: Oct-2017 | G90: 34587 | H90: 99491 | I90: 134078 | K90: 45976 | L90: 60529 | M90: 106505 | O90: 132.928557 | P90: 60.83866882 | Q90: 79.43510494
A91: =IF(COUNTRY_INFO!A91=0," ",COUNTRY_INFO!A91) -> Uganda | B91: =IF(COUNTRY_INFO!B91=0," ",COUNTRY_INFO!B91) -> Northern | C91: =IF(COUNTRY_INFO!C91=0," ",COUNTRY_INFO!C91) -> Otuke | D91: =IF(OR(COUNTRY_INFO!$T$9:$T$1000="T2 (PZQ)",COUNTRY_INFO!$U$9:$U$1000="T2 (PZQ)"), "T2 (PZQ)", " ") ->  | I91: 0 | M91: 0
A92: =IF(COUNTRY_INFO!A92=0," ",COUNTRY_INFO!A92) -> Uganda | B92: =IF(COUNTRY_INFO!B92=0," ",COUNTRY_INFO!B92) -> Northern | C92: =IF(COUNTRY_INFO!C92=0," ",COUNTRY_INFO!C92) -> Oyam | D92: =IF(OR(COUNTRY_INFO!$T$9:$T$1000="T2 (PZQ)",COUNTRY_INFO!$U$9:$U$1000="T2 (PZQ)"), "T2 (PZQ)", " ") -> T2 (PZQ) | E92: Oct-2017 | G92: 66685 | H92: 102614 | I92: 169299 | K92: 62152 | L92: 86131 | M92: 148283 | O92: 93.20236935 | P92: 83.9368897 | Q92: 87.58645946
A93: =IF(COUNTRY_INFO!A93=0," ",COUNTRY_INFO!A93) -> Uganda | B93: =IF(COUNTRY_INFO!B93=0," ",COUNTRY_INFO!B93) -> Northern | C93: =IF(COUNTRY_INFO!C93=0," ",COUNTRY_INFO!C93) -> Pader | D93: =IF(OR(COUNTRY_INFO!$T$9:$T$1000="T2 (PZQ)",COUNTRY_INFO!$U$9:$U$1000="T2 (PZQ)"), "T2 (PZQ)", " ") -> T2 (PZQ) | E93: Oct-2017 | G93: 87338 | H93: 101340 | I93: 188678 | K93: 64721 | L93: 68771 | M93: 133492 | O93: 74.10405551 | P93: 67.86165384 | Q93: 70.75122696
A94: =IF(COUNTRY_INFO!A94=0," ",COUNTRY_INFO!A94) -> Uganda | B94: =IF(COUNTRY_INFO!B94=0," ",COUNTRY_INFO!B94) -> Northern | C94: =IF(COUNTRY_INFO!C94=0," ",COUNTRY_INFO!C94) -> Yumbe | D94: =IF(OR(COUNTRY_INFO!$T$9:$T$1000="T2 (PZQ)",COUNTRY_INFO!$U$9:$U$1000="T2 (PZQ)"), "T2 (PZQ)", " ") -> T2 (PZQ) | E94: Oct-2017 | G94: 102344 | H94: 145196 | I94: 247540 | K94: 62462 | L94: 79546 | M94: 142008 | O94: 61.03142343 | P94: 54.78525579 | Q94: 57.36769815
A95: =IF(COUNTRY_INFO!A95=0," ",COUNTRY_INFO!A95) -> Uganda | B95: =IF(COUNTRY_INFO!B95=0," ",COUNTRY_INFO!B95) -> Northern | C95: =IF(COUNTRY_INFO!C95=0," ",COUNTRY_INFO!C95) -> Zombo | D95: =IF(OR(COUNTRY_INFO!$T$9:$T$1000="T2 (PZQ)",COUNTRY_INFO!$U$9:$U$1000="T2 (PZQ)"), "T2 (PZQ)", " ") -> T2 (PZQ) | E95: Oct-2017 | G95: 29902 | I95: 29902 | K95: 23656 | M95: 23656 | O95: 79.1117651 | Q95: 79.1117651
A96: =IF(COUNTRY_INFO!A96=0," ",COUNTRY_INFO!A96) -> Uganda | B96: =IF(COUNTRY_INFO!B96=0," ",COUNTRY_INFO!B96) -> Western | C96: =IF(COUNTRY_INFO!C96=0," ",COUNTRY_INFO!C96) -> Buhweju | D96: =IF(OR(COUNTRY_INFO!$T$9:$T$1000="T2 (PZQ)",COUNTRY_INFO!$U$9:$U$1000="T2 (PZQ)"), "T2 (PZQ)", " ") ->  | I96: 0 | M96: 0
A97: =IF(COUNTRY_INFO!A97=0," ",COUNTRY_INFO!A97) -> Uganda | B97: =IF(COUNTRY_INFO!B97=0," ",COUNTRY_INFO!B97) -> Western | C97: =IF(COUNTRY_INFO!C97=0," ",COUNTRY_INFO!C97) -> Buliisa | D97: =IF(OR(COUNTRY_INFO!$T$9:$T$1000="T2 (PZQ)",COUNTRY_INFO!$U$9:$U$1000="T2 (PZQ)"), "T2 (PZQ)", " ") -> T2 (PZQ) | E97: Oct-2017 | G97: 40992 | H97: 73946 | I97: 114938 | K97: 37348 | L97: 59143 | M97: 96491 | O97: 91.11046058 | P97: 79.98133773 | Q97: 83.95047765
A98: =IF(COUNTRY_INFO!A98=0," ",COUNTRY_INFO!A98) -> Uganda | B98: =IF(COUNTRY_INFO!B98=0," ",COUNTRY_INFO!B98) -> Western | C98: =IF(COUNTRY_INFO!C98=0," ",COUNTRY_INFO!C98) -> Bundibugyo | D98: =IF(OR(COUNTRY_INFO!$T$9:$T$1000="T2 (PZQ)",COUNTRY_INFO!$U$9:$U$1000="T2 (PZQ)"), "T2 (PZQ)", " ") ->  | I98: 0 | M98: 0
A99: =IF(COUNTRY_INFO!A99=0," ",COUNTRY_INFO!A99) -> Uganda | B99: =IF(COUNTRY_INFO!B99=0," ",COUNTRY_INFO!B99) -> Western | C99: =IF(COUNTRY_INFO!C99=0," ",COUNTRY_INFO!C99) -> Bushenyi | D99: =IF(OR(COUNTRY_INFO!$T$9:$T$1000="T2 (PZQ)",COUNTRY_INFO!$U$9:$U$1000="T2 (PZQ)"), "T2 (PZQ)", " ") ->  | I99: 0 | M99: 0
A100: =IF(COUNTRY_INFO!A100=0," ",COUNTRY_INFO!A100) -> Uganda | B100: =IF(COUNTRY_INFO!B100=0," ",COUNTRY_INFO!B100) -> Western | C100: =IF(COUNTRY_INFO!C100=0," ",COUNTRY_INFO!C100) -> Hoima | D100: =IF(OR(COUNTRY_INFO!$T$9:$T$1000="T2 (PZQ)",COUNTRY_INFO!$U$9:$U$1000="T2 (PZQ)"), "T2 (PZQ)", " ") -> T2 (PZQ) | E100: Oct-2017 | G100: 73102 | H100: 91102 | I100: 164204 | K100: 61514 | L100: 80134 | M100: 141648 | O100: 84.14817652 | P100: 87.96074729 | Q100: 86.26342842
A101: =IF(COUNTRY_INFO!A101=0," ",COUNTRY_INFO!A101) -> Uganda | B101: =IF(COUNTRY_INFO!B101=0," ",COUNTRY_INFO!B101) -> Western | C101: =IF(COUNTRY_INFO!C101=0," ",COUNTRY_INFO!C101) -> Ibanda | D101: =IF(OR(COUNTRY_INFO!$T$9:$T$1000="T2 (PZQ)",COUNTRY_INFO!$U$9:$U$1000="T2 (PZQ)"), "T2 (PZQ)", " ") -> T2 (PZQ) | E101: Oct-2017 | G101: 6903 | I101: 6903 | K101: 5913 | M101: 5913 | O101: 85.65840939 | Q101: 85.65840939
A102: =IF(COUNTRY_INFO!A102=0," ",COUNTRY_INFO!A102) -> Uganda | B102: =IF(COUNTRY_INFO!B102=0," ",COUNTRY_INFO!B102) -> Western | C102: =IF(COUNTRY_INFO!C102=0," ",COUNTRY_INFO!C102) -> Isingiro | D102: =IF(OR(COUNTRY_INFO!$T$9:$T$1000="T2 (PZQ)",COUNTRY_INFO!$U$9:$U$1000="T2 (PZQ)"), "T2 (PZQ)", " ") -> T2 (PZQ) | E102: Oct-2017 | G102: 20643 | I102: 20643 | K102: 19714 | M102: 19714 | O102: 95.49968512 | Q102: 95.49968512
A103: =IF(COUNTRY_INFO!A103=0," ",COUNTRY_INFO!A103) -> Uganda | B103: =IF(COUNTRY_INFO!B103=0," ",COUNTRY_INFO!B103) -> Western | C103: =IF(COUNTRY_INFO!C103=0," ",COUNTRY_INFO!C103) -> Kabale | D103: =IF(OR(COUNTRY_INFO!$T$9:$T$1000="T2 (PZQ)",COUNTRY_INFO!$U$9:$U$1000="T2 (PZQ)"), "T2 (PZQ)", " ") ->  | I103: 0 | M103: 0
A104: =IF(COUNTRY_INFO!A104=0," ",COUNTRY_INFO!A104) -> Uganda | B104: =IF(COUNTRY_INFO!B104=0," ",COUNTRY_INFO!B104) -> Western | C104: =IF(COUNTRY_INFO!C104=0," ",COUNTRY_INFO!C104) -> Kabarole | D104: =IF(OR(COUNTRY_INFO!$T$9:$T$1000="T2 (PZQ)",COUNTRY_INFO!$U$9:$U$1000="T2 (PZQ)"), "T2 (PZQ)", " ") -> T2 (PZQ) | E104: Oct-2017 | G104: 27577 | H104: 32736 | I104: 60313 | K104: 21254 | L104: 20658 | M104: 41912 | O104: 77.0714726 | P104: 63.10483871 | Q104: 69.49082287
A105: =IF(COUNTRY_INFO!A105=0," ",COUNTRY_INFO!A105) -> Uganda | B105: =IF(COUNTRY_INFO!B105=0," ",COUNTRY_INFO!B105) -> Western | C105: =IF(COUNTRY_INFO!C105=0," ",COUNTRY_INFO!C105) -> Kagadi | D105: =IF(OR(COUNTRY_INFO!$T$9:$T$1000="T2 (PZQ)",COUNTRY_INFO!$U$9:$U$1000="T2 (PZQ)"), "T2 (PZQ)", " ") -> T2 (PZQ) | E105: Oct-2017 | G105: 96109 | H105: 102473 | I105: 198582 | K105: 84609 | L105: 84859 | M105: 169468 | O105: 88.03441925 | P105: 82.81108194 | Q105: 85.33905389
A106: =IF(COUNTRY_INFO!A106=0," ",COUNTRY_INFO!A106) -> Uganda | B106: =IF(COUNTRY_INFO!B106=0," ",COUNTRY_INFO!B106) -> Western | C106: =IF(COUNTRY_INFO!C106=0," ",COUNTRY_INFO!C106) -> Kakumiro | D106: =IF(OR(COUNTRY_INFO!$T$9:$T$1000="T2 (PZQ)",COUNTRY_INFO!$U$9:$U$1000="T2 (PZQ)"), "T2 (PZQ)", " ") ->  | I106: 0 | M106: 0
A107: =IF(COUNTRY_INFO!A107=0," ",COUNTRY_INFO!A107) -> Uganda | B107: =IF(COUNTRY_INFO!B107=0," ",COUNTRY_INFO!B107) -> Western | C107: =IF(COUNTRY_INFO!C107=0," ",COUNTRY_INFO!C107) -> Kamwenge | D107: =IF(OR(COUNTRY_INFO!$T$9:$T$1000="T2 (PZQ)",COUNTRY_INFO!$U$9:$U$1000="T2 (PZQ)"), "T2 (PZQ)", " ") -> T2 (PZQ) | E107: Oct-2017 | G107: 6918 | H107: 8469 | I107: 15387 | K107: 7369 | L107: 6808 | M107: 14177 | O107: 106.5192252 | P107: 80.38729484 | Q107: 92.13621889
A108: =IF(COUNTRY_INFO!A108=0," ",COUNTRY_INFO!A108) -> Uganda | B108: =IF(COUNTRY_INFO!B108=0," ",COUNTRY_INFO!B108) -> Western | C108: =IF(COUNTRY_INFO!C108=0," ",COUNTRY_INFO!C108) -> Kanungu | D108: =IF(OR(COUNTRY_INFO!$T$9:$T$1000="T2 (PZQ)",COUNTRY_INFO!$U$9:$U$1000="T2 (PZQ)"), "T2 (PZQ)", " ") ->  | I108: 0 | M108: 0
A109: =IF(COUNTRY_INFO!A109=0," ",COUNTRY_INFO!A109) -> Uganda | B109: =IF(COUNTRY_INFO!B109=0," ",COUNTRY_INFO!B109) -> Western | C109: =IF(COUNTRY_INFO!C109=0," ",COUNTRY_INFO!C109) -> Kasese | D109: =IF(OR(COUNTRY_INFO!$T$9:$T$1000="T2 (PZQ)",COUNTRY_INFO!$U$9:$U$1000="T2 (PZQ)"), "T2 (PZQ)", " ") -> T2 (PZQ) | E109: Oct-2017 | G109: 4482 | H109: 6858 | I109: 11340 | K109: 3704 | L109: 6089 | M109: 9793 | O109: 82.64167782 | P109: 88.78681831 | Q109: 86.35802469
A110: =IF(COUNTRY_INFO!A110=0," ",COUNTRY_INFO!A110) -> Uganda | B110: =IF(COUNTRY_INFO!B110=0," ",COUNTRY_INFO!B110) -> Western | C110: =IF(COUNTRY_INFO!C110=0," ",COUNTRY_INFO!C110) -> Kibaale | D110: =IF(OR(COUNTRY_INFO!$T$9:$T$1000="T2 (PZQ)",COUNTRY_INFO!$U$9:$U$1000="T2 (PZQ)"), "T2 (PZQ)", " ") ->  | I110: 0 | M110: 0
A111: =IF(COUNTRY_INFO!A111=0," ",COUNTRY_INFO!A111) -> Uganda | B111: =IF(COUNTRY_INFO!B111=0," ",COUNTRY_INFO!B111) -> Western | C111: =IF(COUNTRY_INFO!C111=0," ",COUNTRY_INFO!C111) -> Kiruhura | D111: =IF(OR(COUNTRY_INFO!$T$9:$T$1000="T2 (PZQ)",COUNTRY_INFO!$U$9:$U$1000="T2 (PZQ)"), "T2 (PZQ)", " ") -> T2 (PZQ) | E111: Oct-2017 | G111: 30772 | I111: 30772 | K111: 29919 | M111: 29919 | O111: 97.22799948 | Q111: 97.22799948
A112: =IF(COUNTRY_INFO!A112=0," ",COUNTRY_INFO!A112) -> Uganda | B112: =IF(COUNTRY_INFO!B112=0," ",COUNTRY_INFO!B112) -> Western | C112: =IF(COUNTRY_INFO!C112=0," ",COUNTRY_INFO!C112) -> Kiryandongo | D112: =IF(OR(COUNTRY_INFO!$T$9:$T$1000="T2 (PZQ)",COUNTRY_INFO!$U$9:$U$1000="T2 (PZQ)"), "T2 (PZQ)", " ") -> T2 (PZQ) | E112: Oct-2017 | G112: 31188 | H112: 40864 | I112: 72052 | K112: 36790 | L112: 32471 | M112: 69261 | O112: 117.9620367 | P112: 79.46113939 | Q112: 96.1264087
A113: =IF(COUNTRY_INFO!A113=0," ",COUNTRY_INFO!A113) -> Uganda | B113: =IF(COUNTRY_INFO!B113=0," ",COUNTRY_INFO!B113) -> Western | C113: =IF(COUNTRY_INFO!C113=0," ",COUNTRY_INFO!C113) -> Kisoro | D113: =IF(OR(COUNTRY_INFO!$T$9:$T$1000="T2 (PZQ)",COUNTRY_INFO!$U$9:$U$1000="T2 (PZQ)"), "T2 (PZQ)", " ") ->  | I113: 0 | M113: 0
A114: =IF(COUNTRY_INFO!A114=0," ",COUNTRY_INFO!A114) -> Uganda | B114: =IF(COUNTRY_INFO!B114=0," ",COUNTRY_INFO!B114) -> Western | C114: =IF(COUNTRY_INFO!C114=0," ",COUNTRY_INFO!C114) -> Kyegegwa | D114: =IF(OR(COUNTRY_INFO!$T$9:$T$1000="T2 (PZQ)",COUNTRY_INFO!$U$9:$U$1000="T2 (PZQ)"), "T2 (PZQ)", " ") ->  | I114: 0 | M114: 0
A115: =IF(COUNTRY_INFO!A115=0," ",COUNTRY_INFO!A115) -> Uganda | B115: =IF(COUNTRY_INFO!B115=0," ",COUNTRY_INFO!B115) -> Western | C115: =IF(COUNTRY_INFO!C115=0," ",COUNTRY_INFO!C115) -> Kyenjojo | D115: =IF(OR(COUNTRY_INFO!$T$9:$T$1000="T2 (PZQ)",COUNTRY_INFO!$U$9:$U$1000="T2 (PZQ)"), "T2 (PZQ)", " ") ->  | I115: 0 | M115: 0
A116: =IF(COUNTRY_INFO!A116=0," ",COUNTRY_INFO!A116) -> Uganda | B116: =IF(COUNTRY_INFO!B116=0," ",COUNTRY_INFO!B116) -> Western | C116: =IF(COUNTRY_INFO!C116=0," ",COUNTRY_INFO!C116) -> Masindi | D116: =IF(OR(COUNTRY_INFO!$T$9:$T$1000="T2 (PZQ)",COUNTRY_INFO!$U$9:$U$1000="T2 (PZQ)"), "T2 (PZQ)", " ") ->  | I116: 0 | M116: 0
A117: =IF(COUNTRY_INFO!A117=0," ",COUNTRY_INFO!A117) -> Uganda | B117: =IF(COUNTRY_INFO!B117=0," ",COUNTRY_INFO!B117) -> Western | C117: =IF(COUNTRY_INFO!C117=0," ",COUNTRY_INFO!C117) -> Mbarara | D117: =IF(OR(COUNTRY_INFO!$T$9:$T$1000="T2 (PZQ)",COUNTRY_INFO!$U$9:$U$1000="T2 (PZQ)"), "T2 (PZQ)", " ") ->  | I117: 0 | M117: 0
A118: =IF(COUNTRY_INFO!A118=0," ",COUNTRY_INFO!A118) -> Uganda | B118: =IF(COUNTRY_INFO!B118=0," ",COUNTRY_INFO!B118) -> Western | C118: =IF(COUNTRY_INFO!C118=0," ",COUNTRY_INFO!C118) -> Mitooma | D118: =IF(OR(COUNTRY_INFO!$T$9:$T$1000="T2 (PZQ)",COUNTRY_INFO!$U$9:$U$1000="T2 (PZQ)"), "T2 (PZQ)", " ") ->  | I118: 0 | M118: 0
A119: =IF(COUNTRY_INFO!A119=0," ",COUNTRY_INFO!A119) -> Uganda | B119: =IF(COUNTRY_INFO!B119=0," ",COUNTRY_INFO!B119) -> Western | C119: =IF(COUNTRY_INFO!C119=0," ",COUNTRY_INFO!C119) -> Ntoroko | D119: =IF(OR(COUNTRY_INFO!$T$9:$T$1000="T2 (PZQ)",COUNTRY_INFO!$U$9:$U$1000="T2 (PZQ)"), "T2 (PZQ)", " ") -> T2 (PZQ) | E119: Oct-2017 | G119: 4950 | H119: 8557 | I119: 13507 | K119: 4074 | L119: 6193 | M119: 10267 | O119: 82.3030303 | P119: 72.37349538 | Q119: 76.012438
A120: =IF(COUNTRY_INFO!A120=0," ",COUNTRY_INFO!A120) -> Uganda | B120: =IF(COUNTRY_INFO!B120=0," ",COUNTRY_INFO!B120) -> Western | C120: =IF(COUNTRY_INFO!C120=0," ",COUNTRY_INFO!C120) -> Ntungamo | D120: =IF(OR(COUNTRY_INFO!$T$9:$T$1000="T2 (PZQ)",COUNTRY_INFO!$U$9:$U$1000="T2 (PZQ)"), "T2 (PZQ)", " ") ->  | I120: 0 | M120: 0
A121: =IF(COUNTRY_INFO!A121=0," ",COUNTRY_INFO!A121) -> Uganda | B121: =IF(COUNTRY_INFO!B121=0," ",COUNTRY_INFO!B121) -> Western | C121: =IF(COUNTRY_INFO!C121=0," ",COUNTRY_INFO!C121) -> Rubanda | D121: =IF(OR(COUNTRY_INFO!$T$9:$T$1000="T2 (PZQ)",COUNTRY_INFO!$U$9:$U$1000="T2 (PZQ)"), "T2 (PZQ)", " ") ->  | I121: 0 | M121: 0
A122: =IF(COUNTRY_INFO!A122=0," ",COUNTRY_INFO!A122) -> Uganda | B122: =IF(COUNTRY_INFO!B122=0," ",COUNTRY_INFO!B122) -> Western | C122: =IF(COUNTRY_INFO!C122=0," ",COUNTRY_INFO!C122) -> Rubirizi | D122: =IF(OR(COUNTRY_INFO!$T$9:$T$1000="T2 (PZQ)",COUNTRY_INFO!$U$9:$U$1000="T2 (PZQ)"), "T2 (PZQ)", " ") -> T2 (PZQ) | E122: Oct-2017 | G122: 883 | H122: 2626 | I122: 3509 | K122: 801 | L122: 2626 | M122: 3427 | O122: 90.71347678 | P122: 100 | Q122: 97.6631519
A123: =IF(COUNTRY_INFO!A123=0," ",COUNTRY_INFO!A123) -> Uganda | B123: =IF(COUNTRY_INFO!B123=0," ",COUNTRY_INFO!B123) -> Western | C123: =IF(COUNTRY_INFO!C123=0," ",COUNTRY_INFO!C123) -> Rukungiri | D123: =IF(OR(COUNTRY_INFO!$T$9:$T$1000="T2 (PZQ)",COUNTRY_INFO!$U$9:$U$1000="T2 (PZQ)"), "T2 (PZQ)", " ") -> T2 (PZQ) | E123: Oct-2017 | G123: 11178 | I123: 11178 | K123: 11108 | M123: 11108 | O123: 99.37376991 | Q123: 99.37376991
A124: =IF(COUNTRY_INFO!A124=0," ",COUNTRY_INFO!A124) -> Uganda | B124: =IF(COUNTRY_INFO!B124=0," ",COUNTRY_INFO!B124) -> Western | C124: =IF(COUNTRY_INFO!C124=0," ",COUNTRY_INFO!C124) -> Sheema | D124: =IF(OR(COUNTRY_INFO!$T$9:$T$1000="T2 (PZQ)",COUNTRY_INFO!$U$9:$U$1000="T2 (PZQ)"), "T2 (PZQ)", " ") ->  | I124: 0 | M124: 0

Sheet T3_R1
A1: T 3 - Albendazole (ALB) or Mebendazole (MBD) - Round 1
A2: Administrative structure, population requiring PC by age group, population treated by age group and coverage
A4: TOTAL | G4: =SUM(G$9:G$1000) -> 5375868 | H4: 11433191 | I4: 0 | J4: 16809059 | K4: 4724858 | L4: 3510398 | M4: 0 | N4: 8235256 | O4: =IF(G4<>0, IF(K4/G4*100=0, "-", K4/G4*100), " ") -> 87.89014165 | P4: =IF(H4<>0, IF(L4/H4*100=0, "-", L4/H4*100), " ") -> 30.70357173 | Q4: =IF(I4<>0, IF(M4/I4*100=0, "-", M4/I4*100), " ") ->  | R4: =IF(J4<>0, IF(N4/J4*100=0, "-", N4/J4*100), " ") -> 48.99296266
D6: PC implemented | E6: Medicine | F6: Date | G6: Population targeted for T3 | K6: Population treated | O6: Programme coverage (%)
A7: Country | B7: Province/State | C7: District | G7: PreSAC | H7: SAC | I7: Adults | J7: Total | K7: PreSAC | L7: SAC | M7: Adults | N7: Total | O7: PreSAC | P7: SAC | Q7: Adults | R7: Total
A9: =IF(COUNTRY_INFO!A9=0," ",COUNTRY_INFO!A9) -> Uganda | B9: =IF(COUNTRY_INFO!B9=0," ",COUNTRY_INFO!B9) -> Central | C9: =IF(COUNTRY_INFO!C9=0," ",COUNTRY_INFO!C9) -> Buikwe | D9: =IF(OR(COUNTRY_INFO!$T$9:$T$1000="T3 (ALB/MBD)",COUNTRY_INFO!$U$9:$U$1000="T3 (ALB/MBD)"), "T3 (ALB/MBD)", " ") -> T3 (ALB/MBD) | E9: MBD | F9: Jan-June 2017 | G9: 65658 | H9: 139638 | J9: =SUM(G9:I9) -> 205296 | K9: 30755 | L9: 2815 | N9: =SUM(K9:M9) -> 33570 | O9: =IF(G9<>0, IF(K9/G9*100=0, "-", K9/G9*100), " ") -> 46.84120747 | P9: 2.015926897 | R9: 16.35199906
A10: =IF(COUNTRY_INFO!A10=0," ",COUNTRY_INFO!A10) -> Uganda | B10: =IF(COUNTRY_INFO!B10=0," ",COUNTRY_INFO!B10) -> Central | C10: =IF(COUNTRY_INFO!C10=0," ",COUNTRY_INFO!C10) -> Bukomansimbi | D10: =IF(OR(COUNTRY_INFO!$T$9:$T$1000="T3 (ALB/MBD)",COUNTRY_INFO!$U$9:$U$1000="T3 (ALB/MBD)"), "T3 (ALB/MBD)", " ") -> T3 (ALB/MBD) | E10: MBD | F10: Jan-June 2017 | G10: 23515 | H10: 50011 | J10: =SUM(G10:I10) -> 73526 | K10: 45454 | L10: 29975 | N10: =SUM(K10:M10) -> 75429 | O10: =IF(G10<>0, IF(K10/G10*100=0, "-", K10/G10*100), " ") -> 193.297895 | P10: =IF(H10<>0, IF(L10/H10*100=0, "-", L10/H10*100), " ") -> 59.9368139 | Q10: =IF(I10<>0, IF(M10/I10*100=0, "-", M10/I10*100), " ") ->  | R10: =IF(J10<>0, IF(N10/J10*100=0, "-", N10/J10*100), " ") -> 102.5882001
A11: =IF(COUNTRY_INFO!A11=0," ",COUNTRY_INFO!A11) -> Uganda | B11: =IF(COUNTRY_INFO!B11=0," ",COUNTRY_INFO!B11) -> Central | C11: =IF(COUNTRY_INFO!C11=0," ",COUNTRY_INFO!C11) -> Butambala | D11: =IF(OR(COUNTRY_INFO!$T$9:$T$1000="T3 (ALB/MBD)",COUNTRY_INFO!$U$9:$U$1000="T3 (ALB/MBD)"), "T3 (ALB/MBD)", " ") -> T3 (ALB/MBD) | E11: MBD | F11: Jan-June 2017 | G11: 15661 | H11: 33306 | J11: 48967 | K11: 47158 | L11: 8855 | N11: 56013 | O11: 301.1174255 | P11: 26.58680118 | R11: 114.3892826
A12: =IF(COUNTRY_INFO!A12=0," ",COUNTRY_INFO!A12) -> Uganda | B12: =IF(COUNTRY_INFO!B12=0," ",COUNTRY_INFO!B12) -> Central | C12: =IF(COUNTRY_INFO!C12=0," ",COUNTRY_INFO!C12) -> Buvuma | D12: =IF(OR(COUNTRY_INFO!$T$9:$T$1000="T3 (ALB/MBD)",COUNTRY_INFO!$U$9:$U$1000="T3 (ALB/MBD)"), "T3 (ALB/MBD)", " ") -> T3 (ALB/MBD) | E12: MBD | F12: Jan-June 2017 | G12: 14550 | H12: 30944 | J12: 45494 | K12: 3309 | L12: 5118 | N12: 8427 | O12: 22.74226804 | P12: 16.53955533 | R12: 18.52332176
A13: =IF(COUNTRY_INFO!A13=0," ",COUNTRY_INFO!A13) -> Uganda | B13: =IF(COUNTRY_INFO!B13=0," ",COUNTRY_INFO!B13) -> Central | C13: =IF(COUNTRY_INFO!C13=0," ",COUNTRY_INFO!C13) -> Gomba | D13: =IF(OR(COUNTRY_INFO!$T$9:$T$1000="T3 (ALB/MBD)",COUNTRY_INFO!$U$9:$U$1000="T3 (ALB/MBD)"), "T3 (ALB/MBD)", " ") -> T3 (ALB/MBD) | E13: MBD | F13: Jan-June 2017 | G13: 24836 | H13: 52821 | J13: 77657 | K13: 15984 | L13: 14433 | N13: 30417 | O13: 64.35818972 | P13: 27.32435963 | R13: 39.16839435
A14: =IF(COUNTRY_INFO!A14=0," ",COUNTRY_INFO!A14) -> Uganda | B14: =IF(COUNTRY_INFO!B14=0," ",COUNTRY_INFO!B14) -> Central | C14: =IF(COUNTRY_INFO!C14=0," ",COUNTRY_INFO!C14) -> Kalangala | D14: =IF(OR(COUNTRY_INFO!$T$9:$T$1000="T3 (ALB/MBD)",COUNTRY_INFO!$U$9:$U$1000="T3 (ALB/MBD)"), "T3 (ALB/MBD)", " ") -> T3 (ALB/MBD) | E14: MBD | F14: Jan-June 2017 | G14: 8432 | H14: 17932 | J14: 26364 | K14: 11684 | L14: 6409 | N14: 18093 | O14: 138.5673624 | P14: 35.74057551 | R14: 68.6276741
A15: =IF(COUNTRY_INFO!A15=0," ",COUNTRY_INFO!A15) -> Uganda | B15: =IF(COUNTRY_INFO!B15=0," ",COUNTRY_INFO!B15) -> Central | C15: =IF(COUNTRY_INFO!C15=0," ",COUNTRY_INFO!C15) -> Kalungu | D15: =IF(OR(COUNTRY_INFO!$T$9:$T$1000="T3 (ALB/MBD)",COUNTRY_INFO!$U$9:$U$1000="T3 (ALB/MBD)"), "T3 (ALB/MBD)", " ") -> T3 (ALB/MBD) | E15: MBD | F15: Jan-June 2017 | G15: 28456 | H15: 60520 | J15: 88976 | K15: 52713 | L15: 21831 | N15: 74544 | O15: 185.2438853 | P15: 36.07237277 | R15: 83.7798957
A16: =IF(COUNTRY_INFO!A16=0," ",COUNTRY_INFO!A16) -> Uganda | B16: =IF(COUNTRY_INFO!B16=0," ",COUNTRY_INFO!B16) -> Central | C16: =IF(COUNTRY_INFO!C16=0," ",COUNTRY_INFO!C16) -> Kampala | D16: =IF(OR(COUNTRY_INFO!$T$9:$T$1000="T3 (ALB/MBD)",COUNTRY_INFO!$U$9:$U$1000="T3 (ALB/MBD)"), "T3 (ALB/MBD)", " ") -> T3 (ALB/MBD) | E16: MBD | F16: Jan-June 2017 | G16: 234054 | H16: 497777 | J16: 731831 | K16: 55089 | L16: 33098 | N16: 88187 | O16: 23.53687611 | P16: 6.649162175 | R16: 12.05018645
